Workbook

Sheet 原材料
M1: 基本設定
M3: 基本情報を選択してください
M4: 期間指定（開始時期） | Q4: 期間指定（開始時期）
M5: 令和2年(2020)1月 | Q5: =VLOOKUP($M$5,開始時期リスト[#All],3,FALSE) -> 2020-01-01
M7: 参考業種
M8: 建設業 | O8: 繊維・衣服等卸売業
M9: 食料品製造業 | O9: 飲食料品卸売業
M10: 繊維工業 | O10: 建築材料等卸売業※2
M11: 印刷・同関連業 | O11: 機械器具卸売業
M12: プラスチック製品製造※1 | O12: 飲食店
M13: 金属製品製造業 | O13: 廃棄物処理業
M14: 生産用機械器具製造業 | O14: 不動産賃貸業・管理業
M15: 輸送用機械器具製造業 | O15: 物品賃貸業
M16: 道路貨物運送業 | O16: 情報サービス業
M17: ※1 「プラスチック製品製造」は「プラスチック製品製造業」を指す
M18: ※2 「建築材料等卸売業」は「建築材料、鉱物・金属材料等卸売業」を指す
M20: 業種名(最大10文字) | Q20: 先頭10文字
M21: 食料品製造業 | Q21: =LEFT($M$21,10) -> 食料品製造業
M24: グラフ表示
M25: グラフ表示 | N25: グラフ表示品目等 | Q25: データコード
M26: グラフ1 | N26: 米 | Q26: PR01'PRCG20_2202040001
M27: グラフ2 | N27: 砂糖 | Q27: PR01'PRCG20_2200150036
M28: グラフ3 | N28: 動植物油脂 | Q28: PR01'PRCG20_2200140014
M29: グラフ4 | N29: 調味料 | Q29: PR01'PRCG20_2200140015
M30: グラフ5 | N30: 原乳 | Q30: PR01'PRCG20_2202050005
M31: グラフ6 | N31: 鶏卵 | Q31: PR01'PRCG20_2202050006
M32: グラフ7 | N32: 食肉 | Q32: PR01'PRCG20_2202040007
M33: グラフ8 | N33: 事業用電力 | Q33: PR01'PRCG20_2202250001
M34: グラフ9 | N34: 道路貨物輸送 | Q34: PR02'PRCS20_5200630002
M35: グラフ10 | N35: 人件費 | Q35: PR02'PRLC00_9999999999

Sheet 労務費
M1: 基本設定
M4: 期間指定（開始時期） | Q4: 期間指定（開始時期）
M5: 令和2年(2020) | Q5: =VLOOKUP(M5,開始時期リスト[[#All],[令和表記_年]:[開始時期]],2,FALSE) -> 2020-01-01
M8: 現金給与総額（業種別）
M9: 業種選択
M10: 鉱業、採石業等 | O10: 学術研究等
M11: 建設業 | O11: 飲食サービス業等
M12: 製造業 | O12: 生活関連サービス等
M13: 電気・ガス業 | O13: 教育、学習支援業
M14: 情報通信業 | O14: 医療、福祉
M15: 運輸業、郵便業 | O15: 複合サービス事業
M16: 卸売業、小売業 | O16: その他のサービス業
M17: 金融業、保険業 | O17: 業種平均
M18: 不動産・物品賃貸業
M20: 選択業種（最大２つ）
M21: 製造業
M22: 運輸業、郵便業
M25: 最低賃金（都道府県別）
M26: 都道府県選択（最大5つ）
M27: 埼玉
M28: 全国平均
M29: 神奈川
M30: 茨城
M31: 群馬

Sheet 男女間賃金格差
V1: 基本設定
V8: 業界分析
V10: 業種選択
V12: 鉱業、採石業、砂利採取業 | W12: 学術研究、専門・技術サービス業
V13: 建設業 | W13: 宿泊業、飲食サービス業
V14: 製造業 | W14: 生活関連サービス業、娯楽業
V15: 電気・ガス・熱供給・水道業 | W15: 教育、学習支援業
V16: 情報通信業 | W16: 医療、福祉
V17: 運輸業、郵便業 | W17: 複合サービス業
V18: 卸売業、小売業 | W18: サービス業（他に分類されないもの）
V19: 金融業、保険業 | W19: 業種平均
V20: 不動産業、物品賃貸業
V23: 業種選択
V25: 電気・ガス・熱供給・水道業
V29: 自社分析
V31: 月収、年収のどちらか一方を入力ください（概算値で可）
V32: 男性の賃金（単位：千円）
V34: 400
V36: 女性の賃金（単位：千円）
V38: 200
V40: 男女間賃金格差
V42: =IFERROR((V38/V34*100),"") -> 50
V44: 女性の賃金÷男性の賃金×100
V47: 参考（国際比較）
V49: 2022年における男女間の賃金格差（OECD）
V79: 出典：OECD Stat「Gender wage gap」。男女間賃金格差指数として、100から各国のGender wage gapを差し引きし、埼玉県が算出したもの。

Sheet 個別分析
W7: 元データ（コピー用）
W8: 必要に応じて、コピーしてご利用ください。
W10: 年月 | X10: データ（指数）
W11: 令和2年1月 | X11: =詳細分析グラフ!C5 -> 102.7
W12: 令和2年2月 | X12: =詳細分析グラフ!E5 -> 102.3
W13: 令和2年3月 | X13: =詳細分析グラフ!G5 -> 102.3
W14: 令和2年4月 | X14: =詳細分析グラフ!I5 -> 102
W15: 令和2年5月 | X15: =詳細分析グラフ!K5 -> 101.8
W16: 令和2年6月 | X16: =詳細分析グラフ!M5 -> 100.9
W17: 令和2年7月 | X17: =詳細分析グラフ!O5 -> 100.3
W18: 令和2年8月 | X18: =詳細分析グラフ!Q5 -> 100
W19: 令和2年9月 | X19: =詳細分析グラフ!S5 -> 97.2
W20: 令和2年10月 | X20: =詳細分析グラフ!U5 -> 97.4
W21: 令和2年11月 | X21: =詳細分析グラフ!W5 -> 96.9
W22: 令和2年12月 | X22: =詳細分析グラフ!Y5 -> 96
W23: 令和3年1月 | X23: =詳細分析グラフ!C7 -> 96.6
W24: 令和3年2月 | X24: =詳細分析グラフ!E7 -> 95.1
W25: 令和3年3月 | X25: =詳細分析グラフ!G7 -> 95.2
W26: 令和3年4月 | X26: =詳細分析グラフ!I7 -> 94.6
W27: 令和3年5月 | X27: =詳細分析グラフ!K7 -> 94.3
W28: 令和3年6月 | X28: =詳細分析グラフ!M7 -> 91.6
W29: 令和3年7月 | X29: =詳細分析グラフ!O7 -> 89.6
W30: 令和3年8月 | X30: =詳細分析グラフ!Q7 -> 88.1
W31: 令和3年9月 | X31: =詳細分析グラフ!S7 -> 85.8
W32: 令和3年10月 | X32: =詳細分析グラフ!U7 -> 83.9
W33: 令和3年11月 | X33: =詳細分析グラフ!W7 -> 83.7
W34: 令和3年12月 | X34: =詳細分析グラフ!Y7 -> 83
W35: 令和4年1月 | X35: =詳細分析グラフ!C9 -> 82.4
W36: 令和4年2月 | X36: =詳細分析グラフ!E9 -> 83.5
W37: 令和4年3月 | X37: =詳細分析グラフ!G9 -> 81.5
W38: 令和4年4月 | X38: =詳細分析グラフ!I9 -> 81.8
W39: 令和4年5月 | X39: =詳細分析グラフ!K9 -> 80.9
W40: 令和4年6月 | X40: =詳細分析グラフ!M9 -> 81.1
W41: 令和4年7月 | X41: =詳細分析グラフ!O9 -> 81.6
W42: 令和4年8月 | X42: =詳細分析グラフ!Q9 -> 82.2
W43: 令和4年9月 | X43: =詳細分析グラフ!S9 -> 89.3
W44: 令和4年10月 | X44: =詳細分析グラフ!U9 -> 90.4
W45: 令和4年11月 | X45: =詳細分析グラフ!W9 -> 90.3
W46: 令和4年12月 | X46: =詳細分析グラフ!Y9 -> 90.3
W47: 令和5年1月 | X47: =詳細分析グラフ!C11 -> 90.8
W48: 令和5年2月 | X48: =詳細分析グラフ!E11 -> 90.5
W49: 令和5年3月 | X49: =詳細分析グラフ!G11 -> 90
W50: 令和5年4月 | X50: =詳細分析グラフ!I11 -> 89.9
W51: 令和5年5月 | X51: =詳細分析グラフ!K11 -> 90
W52: 令和5年6月 | X52: =詳細分析グラフ!M11 -> 90.1
W53: 令和5年7月 | X53: =詳細分析グラフ!O11 -> 89.2
W54: 令和5年8月 | X54: =詳細分析グラフ!Q11 -> 89.2
W55: 令和5年9月 | X55: =詳細分析グラフ!S11 -> 98
W56: 令和5年10月 | X56: =詳細分析グラフ!U11 -> 98.1
W57: 令和5年11月 | X57: =詳細分析グラフ!W11 -> 98.6
W58: 令和5年12月 | X58: =詳細分析グラフ!Y11 -> 99.5
W59: 令和6年1月 | X59: =詳細分析グラフ!C13 -> 99.1
W60: 令和6年2月 | X60: =詳細分析グラフ!E13 -> 99.3
W61: 令和6年3月 | X61: =詳細分析グラフ!G13 -> 99.6
W62: 令和6年4月 | X62: =詳細分析グラフ!I13 -> 100.8
W63: 令和6年5月 | X63: =詳細分析グラフ!K13 -> 101.3
W64: 令和6年6月 | X64: =詳細分析グラフ!M13 -> 102.1
W65: 令和6年7月 | X65: =詳細分析グラフ!O13 -> 101.4
W66: 令和6年8月 | X66: =詳細分析グラフ!Q13 -> 102.9
W67: 令和6年9月 | X67: =詳細分析グラフ!S13 -> 143.7
W68: 令和6年10月 | X68: =詳細分析グラフ!U13 -> 157.8
W69: 令和6年11月 | X69: =詳細分析グラフ!W13 -> 156.3
W70: 令和6年12月 | X70: =詳細分析グラフ!Y13 -> 162.5
W71: 令和7年1月 | X71: =詳細分析グラフ!C15 -> 172
W72: 令和7年2月 | X72: =詳細分析グラフ!E15 -> 175.3
W73: 令和7年3月 | X73: =詳細分析グラフ!G15 -> 169
W74: 令和7年4月 | X74: =詳細分析グラフ!I15 -> 179.9
W75: 令和7年5月 | X75: =詳細分析グラフ!K15 -> 182.3
W76: 令和7年6月 | X76: =詳細分析グラフ!M15 -> 177.4
W77: 令和7年7月 | X77: =詳細分析グラフ!O15 -> 173.2
W78: 令和7年8月 | X78: =詳細分析グラフ!Q15 -> 178.5
W79: 令和7年9月 | X79: =詳細分析グラフ!S15 -> 229.8
W80: 令和7年10月 | X80: =詳細分析グラフ!U15 -> 240.5
W81: 令和7年11月 | X81: =詳細分析グラフ!W15 -> 237.9
W82: 令和7年12月 | X82: =詳細分析グラフ!Y15 -> 232.7
W83: 令和8年1月 | X83: =詳細分析グラフ!C17 -> 229.5
W84: 令和8年2月 | X84: =詳細分析グラフ!E17 -> 227.9
W85: 令和8年3月 | X85: =詳細分析グラフ!G17 -> 223.8
W86: 令和8年4月 | X86: =詳細分析グラフ!I17 -> 
W87: 令和8年5月 | X87: =詳細分析グラフ!K17 -> 
W88: 令和8年6月 | X88: =詳細分析グラフ!M17 -> 
W89: 令和8年7月 | X89: =詳細分析グラフ!O17 -> 
W90: 令和8年8月 | X90: =詳細分析グラフ!Q17 -> 
W91: 令和8年9月 | X91: =詳細分析グラフ!S17 -> 
W92: 令和8年10月 | X92: =詳細分析グラフ!U17 -> 
W93: 令和8年11月 | X93: =詳細分析グラフ!W17 -> 
W94: 令和8年12月 | X94: =詳細分析グラフ!Y17 -> 

Sheet 男女間賃金 (hidden)
B1: 自社分析 | D1: 業種平均 | F1: 業種比較 | H1: OECD平均
B2: =男女間賃金格差!$V$42 -> 50 | D2: =グラフ・男女差データソース!B1 -> 84 | F2: =B2-D2 -> -34 | H2: =B2-K8 -> -38.57443204 | J2: 国名 | K2: 男女間賃金格差指数
J3: ルクセンブルク | K3: 99.55888116
B4: =IF(OR(男女間賃金格差!V34="",男女間賃金格差!V47=""),"◎自社分析の入力をお願いします。",(IF(F2>0,"あなたの会社は、業種平均と比べ、男女間賃金格差が小さいです。",(IF(F2=0,"あなたの会社は、業種平均と比べ、男女間賃金格差は同程度です。","あなたの会社は、業種平均と比べ、男女間賃金格差は大きいです。"))))) -> あなたの会社は、業種平均と比べ、男女間賃金格差は大きいです。 | J4: ベルギー | K4: 98.8932223
J5: イタリア | K5: 96.71142662
B6: =IF(OR(男女間賃金格差!V34="",男女間賃金格差!V47=""),"◎自社分析の入力をお願いします。",(IF(H2>0,"あなたの会社は、国際水準（OECD）と比べ、男女間賃金格差が小さいです。",(IF(H2=0,"あなたの会社は、国際水準（OECD）と比べ、男女間賃金格差は同程度です。","あなたの会社は、国際水準（OECD）と比べ、男女間賃金格差は大きいです。"))))) -> あなたの会社は、国際水準（OECD）と比べ、男女間賃金格差は大きいです。 | J6: スペイン | K6: 93.27791659
J7: オーストラリア | K7: 90.125
B8: =IF(OR(男女間賃金格差!V34="",男女間賃金格差!V47=""),"",(IF(AND(F2>0,H2>0),"あなたの会社は、業種平均や国際水準と比べ、男女間賃金格差は小さいです。","男女間の賃金格差を、一度見直してはいかがでしょうか。"))) -> 男女間の賃金格差を、一度見直してはいかがでしょうか。 | J8: OECD | K8: 88.57443204
J9: フランス | K9: 88.44178879
J10: イギリス | K10: 86.02166276
J11: ドイツ | K11: 85.61986781
J12: アメリカ | K12: 83.01559792
J13: カナダ | K13: 82.85714286
J14: 日本 | K14: 78.65205843
J15: 韓国 | K15: 68.75791572

Sheet 詳細設定
H1: 入れ替えたい品目をクリックすると、入力されている品目が自動削除されます。新たに追加したい品目を選択してください。
H2: 「個別分析」シートの品目を入れ替えたい場合は、グラフ１を変更してください。
H3: グラフ1 | I3: グラフ2 | J3: グラフ3 | K3: グラフ4 | L3: グラフ5
H4: 米 | I4: 砂糖 | J4: 動植物油脂 | K4: 調味料 | L4: 原乳
H6: 1 | I6: 2 | J6: 3 | K6: 4 | L6: 5
H7: グラフ6 | I7: グラフ7 | J7: グラフ8 | K7: グラフ9 | L7: グラフ10
H8: 鶏卵 | I8: 食肉 | J8: 事業用電力 | K8: 道路貨物輸送 | L8: 人件費
H10: 6 | I10: 7 | J10: 8 | K10: 9 | L10: 10
I11: 検索をしたい場合は、 キーと キーを押した後、検索したい品目を入力してください
A13: 目次 | F13: データコード | G13: 種別 | H13: 類別（サービスは大類別） | I13: 小類別（サービスは類別） | J13: 商品群（サービスは小類別） | K13: 品目
A14: クリックした類別にカーソルが移動 | F14: PR01'PRCG20_2200120001 | G14: 国内 | H14: 飲食料品 | I14: _ | J14: _ | K14: _
A15: 国内 | F15: PR01'PRCG20_2200130001 | G15: 国内 | H15: 飲食料品 | I15: 食料品 | J15: _ | K15: _
A16: 輸入 | F16: PR01'PRCG20_2200140001 | G16: 国内 | H16: 飲食料品 | I16: 食料品 | J16: 酪農品 | K16: _
A17: サービス | F17: PR01'PRCG20_2200150001 | G17: 国内 | H17: 飲食料品 | I17: 食料品 | J17: 酪農品 | K17: 処理牛乳
A18: 人件費 | F18: PR01'PRCG20_2200150002 | G18: 国内 | H18: 飲食料品 | I18: 食料品 | J18: 酪農品 | K18: 乳飲料・乳酸菌飲料
A19: ドル円レート（1米ドル） | F19: PR01'PRCG20_2200150003 | G19: 国内 | H19: 飲食料品 | I19: 食料品 | J19: 酪農品 | K19: 粉乳
F20: PR01'PRCG20_2200150004 | G20: 国内 | H20: 飲食料品 | I20: 食料品 | J20: 酪農品 | K20: バター
A21: 国内 | F21: PR01'PRCG20_2200150005 | G21: 国内 | H21: 飲食料品 | I21: 食料品 | J21: 酪農品 | K21: チーズ
A22: 飲食料品 | F22: PR01'PRCG20_2200150006 | G22: 国内 | H22: 飲食料品 | I22: 食料品 | J22: 酪農品 | K22: 生クリーム
A23: 繊維製品 | F23: PR01'PRCG20_2200150007 | G23: 国内 | H23: 飲食料品 | I23: 食料品 | J23: 酪農品 | K23: アイスクリーム
A24: 木材・木製品 | F24: PR01'PRCG20_2200150008 | G24: 国内 | H24: 飲食料品 | I24: 食料品 | J24: 酪農品 | K24: ヨーグルト
A25: パルプ・紙・同製品 | F25: PR01'PRCG20_2200140002 | G25: 国内 | H25: 飲食料品 | I25: 食料品 | J25: その他の畜産食料品 | K25: _
A26: 化学製品 | F26: PR01'PRCG20_2200150009 | G26: 国内 | H26: 飲食料品 | I26: 食料品 | J26: その他の畜産食料品 | K26: 肉製品
A27: 石油・石炭製品 | F27: PR01'PRCG20_2200140003 | G27: 国内 | H27: 飲食料品 | I27: 食料品 | J27: 水産びん・かん詰 | K27: _
A28: プラスチック製品 | F28: PR01'PRCG20_2200150010 | G28: 国内 | H28: 飲食料品 | I28: 食料品 | J28: 水産びん・かん詰 | K28: 水産びん・かん詰
A29: 窯業・土石製品 | F29: PR01'PRCG20_2200140004 | G29: 国内 | H29: 飲食料品 | I29: 食料品 | J29: ねり製品 | K29: _
A30: 鉄鋼 | F30: PR01'PRCG20_2200150011 | G30: 国内 | H30: 飲食料品 | I30: 食料品 | J30: ねり製品 | K30: ねり製品
A31: 非鉄金属 | F31: PR01'PRCG20_2200140005 | G31: 国内 | H31: 飲食料品 | I31: 食料品 | J31: その他の水産食料品 | K31: _
A32: 金属製品 | F32: PR01'PRCG20_2200150012 | G32: 国内 | H32: 飲食料品 | I32: 食料品 | J32: その他の水産食料品 | K32: かつおパック
A33: はん用機器 | F33: PR01'PRCG20_2200150013 | G33: 国内 | H33: 飲食料品 | I33: 食料品 | J33: その他の水産食料品 | K33: 水産物漬物
A34: 生産用機器 | F34: PR01'PRCG20_2200150014 | G34: 国内 | H34: 飲食料品 | I34: 食料品 | J34: その他の水産食料品 | K34: つくだ煮
A35: 業務用機器 | F35: PR01'PRCG20_2200140006 | G35: 国内 | H35: 飲食料品 | I35: 食料品 | J35: 製粉 | K35: _
A36: 電子部品・デバイス | F36: PR01'PRCG20_2200150015 | G36: 国内 | H36: 飲食料品 | I36: 食料品 | J36: 製粉 | K36: 小麦粉
A37: 電気機器 | F37: PR01'PRCG20_2200140007 | G37: 国内 | H37: 飲食料品 | I37: 食料品 | J37: めん類 | K37: _
A38: 情報通信機器 | F38: PR01'PRCG20_2200150016 | G38: 国内 | H38: 飲食料品 | I38: 食料品 | J38: めん類 | K38: 即席めん
A39: 輸送用機器 | F39: PR01'PRCG20_2200150017 | G39: 国内 | H39: 飲食料品 | I39: 食料品 | J39: めん類 | K39: 和風めん
A40: その他工業製品 | F40: PR01'PRCG20_2200150018 | G40: 国内 | H40: 飲食料品 | I40: 食料品 | J40: めん類 | K40: 中華めん
A41: 農林水産物 | F41: PR01'PRCG20_2200150019 | G41: 国内 | H41: 飲食料品 | I41: 食料品 | J41: めん類 | K41: 洋風めん
A42: 鉱産物 | F42: PR01'PRCG20_2200140008 | G42: 国内 | H42: 飲食料品 | I42: 食料品 | J42: パン類 | K42: _
A43: 電力・都市ガス・水道 | F43: PR01'PRCG20_2200150020 | G43: 国内 | H43: 飲食料品 | I43: 食料品 | J43: パン類 | K43: 食パン
A44: スクラップ類 | F44: PR01'PRCG20_2200150021 | G44: 国内 | H44: 飲食料品 | I44: 食料品 | J44: パン類 | K44: 菓子パン
F45: PR01'PRCG20_2200150022 | G45: 国内 | H45: 飲食料品 | I45: 食料品 | J45: パン類 | K45: 調理パン・サンドイッチ
A46: 輸入 | F46: PR01'PRCG20_2200140009 | G46: 国内 | H46: 飲食料品 | I46: 食料品 | J46: 菓子類 | K46: _
A47: 飲食料品・食料用農水産物 | F47: PR01'PRCG20_2200150023 | G47: 国内 | H47: 飲食料品 | I47: 食料品 | J47: 菓子類 | K47: 洋生菓子
A48: 繊維品 | F48: PR01'PRCG20_2200150024 | G48: 国内 | H48: 飲食料品 | I48: 食料品 | J48: 菓子類 | K48: 和生菓子
A49: 金属・同製品 | F49: PR01'PRCG20_2200150025 | G49: 国内 | H49: 飲食料品 | I49: 食料品 | J49: 菓子類 | K49: ビスケット類
A50: 木材・木製品・林産物 | F50: PR01'PRCG20_2200150026 | G50: 国内 | H50: 飲食料品 | I50: 食料品 | J50: 菓子類 | K50: 米菓
A51: 石油・石炭・天然ガス | F51: PR01'PRCG20_2200150027 | G51: 国内 | H51: 飲食料品 | I51: 食料品 | J51: 菓子類 | K51: キャンデー
A52: 化学製品 | F52: PR01'PRCG20_2200150028 | G52: 国内 | H52: 飲食料品 | I52: 食料品 | J52: 菓子類 | K52: チョコレート
A53: はん用・生産用・業務用機器 | F53: PR01'PRCG20_2200150029 | G53: 国内 | H53: 飲食料品 | I53: 食料品 | J53: 菓子類 | K53: チューインガム
A54: 電気・電子機器 | F54: PR01'PRCG20_2200150030 | G54: 国内 | H54: 飲食料品 | I54: 食料品 | J54: 菓子類 | K54: スナック菓子
A55: 輸送用機器 | F55: PR01'PRCG20_2200150031 | G55: 国内 | H55: 飲食料品 | I55: 食料品 | J55: 菓子類 | K55: 氷菓
A56: その他産品・製品 | F56: PR01'PRCG20_2200150032 | G56: 国内 | H56: 飲食料品 | I56: 食料品 | J56: 菓子類 | K56: 豆菓子
F57: PR01'PRCG20_2200150033 | G57: 国内 | H57: 飲食料品 | I57: 食料品 | J57: 菓子類 | K57: シリアル
A58: サービス | F58: PR01'PRCG20_2200140010 | G58: 国内 | H58: 飲食料品 | I58: 食料品 | J58: 農産保存食料品 | K58: _
A59: 金融 | F59: PR01'PRCG20_2200150034 | G59: 国内 | H59: 飲食料品 | I59: 食料品 | J59: 農産保存食料品 | K59: 果実・野菜缶詰
A60: 保険 | F60: PR01'PRCG20_2200150035 | G60: 国内 | H60: 飲食料品 | I60: 食料品 | J60: 農産保存食料品 | K60: 漬物
A61: 不動産仲介・管理 | F61: PR01'PRCG20_2200140011 | G61: 国内 | H61: 飲食料品 | I61: 食料品 | J61: 砂糖 | K61: _
A62: 不動産賃貸 | F62: PR01'PRCG20_2200150036 | G62: 国内 | H62: 飲食料品 | I62: 食料品 | J62: 砂糖 | K62: 砂糖
A63: 旅客輸送 | F63: PR01'PRCG20_2200140012 | G63: 国内 | H63: 飲食料品 | I63: 食料品 | J63: でん粉 | K63: _
A64: 陸上貨物輸送 | F64: PR01'PRCG20_2200150037 | G64: 国内 | H64: 飲食料品 | I64: 食料品 | J64: でん粉 | K64: でん粉
A65: 海上貨物輸送 | F65: PR01'PRCG20_2200140013 | G65: 国内 | H65: 飲食料品 | I65: 食料品 | J65: ぶどう糖・水あめ・異性化糖 | K65: _
A66: 航空貨物輸送 | F66: PR01'PRCG20_2200150038 | G66: 国内 | H66: 飲食料品 | I66: 食料品 | J66: ぶどう糖・水あめ・異性化糖 | K66: ぶどう糖・水あめ
A67: 倉庫・運輸附帯サービス | F67: PR01'PRCG20_2200150039 | G67: 国内 | H67: 飲食料品 | I67: 食料品 | J67: ぶどう糖・水あめ・異性化糖 | K67: 異性化糖
A68: 郵便・親書便 | F68: PR01'PRCG20_2200140014 | G68: 国内 | H68: 飲食料品 | I68: 食料品 | J68: 動植物油脂 | K68: _
A69: 通信 | F69: PR01'PRCG20_2200150040 | G69: 国内 | H69: 飲食料品 | I69: 食料品 | J69: 動植物油脂 | K69: 植物油脂（除混合植物油脂）
A70: 放送 | F70: PR01'PRCG20_2200150041 | G70: 国内 | H70: 飲食料品 | I70: 食料品 | J70: 動植物油脂 | K70: 混合植物油脂
A71: 情報サービス | F71: PR01'PRCG20_2200150042 | G71: 国内 | H71: 飲食料品 | I71: 食料品 | J71: 動植物油脂 | K71: 植物油搾かす
A72: インターネット附随サービス | F72: PR01'PRCG20_2200150043 | G72: 国内 | H72: 飲食料品 | I72: 食料品 | J72: 動植物油脂 | K72: ショートニング
A73: 映像・文字情報制作 | F73: PR01'PRCG20_2200150044 | G73: 国内 | H73: 飲食料品 | I73: 食料品 | J73: 動植物油脂 | K73: マーガリン
A74: リース | F74: PR01'PRCG20_2200140015 | G74: 国内 | H74: 飲食料品 | I74: 食料品 | J74: 調味料 | K74: _
A75: レンタル | F75: PR01'PRCG20_2200150045 | G75: 国内 | H75: 飲食料品 | I75: 食料品 | J75: 調味料 | K75: みそ
A76: 広告 | F76: PR01'PRCG20_2200150046 | G76: 国内 | H76: 飲食料品 | I76: 食料品 | J76: 調味料 | K76: しょう油
A77: 下水道・廃棄物処理 | F77: PR01'PRCG20_2200150047 | G77: 国内 | H77: 飲食料品 | I77: 食料品 | J77: 調味料 | K77: ソース
A78: 自動車整備・機械修理 | F78: PR01'PRCG20_2200150048 | G78: 国内 | H78: 飲食料品 | I78: 食料品 | J78: 調味料 | K78: 食酢
A79: 専門サービス | F79: PR01'PRCG20_2200150049 | G79: 国内 | H79: 飲食料品 | I79: 食料品 | J79: 調味料 | K79: 香辛料
A80: 技術サービス | F80: PR01'PRCG20_2200150050 | G80: 国内 | H80: 飲食料品 | I80: 食料品 | J80: 調味料 | K80: ルウ
A81: 職業紹介・労働者派遣サービス | F81: PR01'PRCG20_2200150051 | G81: 国内 | H81: 飲食料品 | I81: 食料品 | J81: 調味料 | K81: うま味・風味調味料
A82: その他諸サービス | F82: PR01'PRCG20_2200150052 | G82: 国内 | H82: 飲食料品 | I82: 食料品 | J82: 調味料 | K82: たれ・めんつゆ
F83: PR01'PRCG20_2200140016 | G83: 国内 | H83: 飲食料品 | I83: 食料品 | J83: 冷凍調理食品 | K83: _
F84: PR01'PRCG20_2200150053 | G84: 国内 | H84: 飲食料品 | I84: 食料品 | J84: 冷凍調理食品 | K84: 冷凍調理食品
F85: PR01'PRCG20_2200140017 | G85: 国内 | H85: 飲食料品 | I85: 食料品 | J85: レトルト食品 | K85: _
F86: PR01'PRCG20_2200150054 | G86: 国内 | H86: 飲食料品 | I86: 食料品 | J86: レトルト食品 | K86: レトルト食品
F87: PR01'PRCG20_2200140018 | G87: 国内 | H87: 飲食料品 | I87: 食料品 | J87: そう菜・すし・弁当 | K87: _
F88: PR01'PRCG20_2200150055 | G88: 国内 | H88: 飲食料品 | I88: 食料品 | J88: そう菜・すし・弁当 | K88: そう菜
F89: PR01'PRCG20_2200150056 | G89: 国内 | H89: 飲食料品 | I89: 食料品 | J89: そう菜・すし・弁当 | K89: すし・弁当・おにぎり
F90: PR01'PRCG20_2200140019 | G90: 国内 | H90: 飲食料品 | I90: 食料品 | J90: その他の食料品 | K90: _
F91: PR01'PRCG20_2200150057 | G91: 国内 | H91: 飲食料品 | I91: 食料品 | J91: その他の食料品 | K91: 豆腐・しみ豆腐・油揚げ類
F92: PR01'PRCG20_2200150058 | G92: 国内 | H92: 飲食料品 | I92: 食料品 | J92: その他の食料品 | K92: あん
F93: PR01'PRCG20_2200150059 | G93: 国内 | H93: 飲食料品 | I93: 食料品 | J93: その他の食料品 | K93: サプリメント
F94: PR01'PRCG20_2200150060 | G94: 国内 | H94: 飲食料品 | I94: 食料品 | J94: その他の食料品 | K94: こんにゃく
F95: PR01'PRCG20_2200150061 | G95: 国内 | H95: 飲食料品 | I95: 食料品 | J95: その他の食料品 | K95: 即席みそ汁・インスタントスープ
F96: PR01'PRCG20_2200150062 | G96: 国内 | H96: 飲食料品 | I96: 食料品 | J96: その他の食料品 | K96: 茶づけ・ふりかけ
F97: PR01'PRCG20_2200150063 | G97: 国内 | H97: 飲食料品 | I97: 食料品 | J97: その他の食料品 | K97: 納豆
F98: PR01'PRCG20_2200150064 | G98: 国内 | H98: 飲食料品 | I98: 食料品 | J98: その他の食料品 | K98: パン粉
F99: PR01'PRCG20_2200130002 | G99: 国内 | H99: 飲食料品 | I99: 飲料 | J99: _ | K99: _
F100: PR01'PRCG20_2200140020 | G100: 国内 | H100: 飲食料品 | I100: 飲料 | J100: 清酒 | K100: _
F101: PR01'PRCG20_2200150065 | G101: 国内 | H101: 飲食料品 | I101: 飲料 | J101: 清酒 | K101: 清酒
F102: PR01'PRCG20_2200140021 | G102: 国内 | H102: 飲食料品 | I102: 飲料 | J102: ビール類 | K102: _
F103: PR01'PRCG20_2200150066 | G103: 国内 | H103: 飲食料品 | I103: 飲料 | J103: ビール類 | K103: ビール
F104: PR01'PRCG20_2200150067 | G104: 国内 | H104: 飲食料品 | I104: 飲料 | J104: ビール類 | K104: 発泡酒・新ジャンル
F105: PR01'PRCG20_2200140022 | G105: 国内 | H105: 飲食料品 | I105: 飲料 | J105: ウイスキー類 | K105: _
F106: PR01'PRCG20_2200150068 | G106: 国内 | H106: 飲食料品 | I106: 飲料 | J106: ウイスキー類 | K106: ウイスキー
F107: PR01'PRCG20_2200140023 | G107: 国内 | H107: 飲食料品 | I107: 飲料 | J107: その他の酒類 | K107: _
F108: PR01'PRCG20_2200150069 | G108: 国内 | H108: 飲食料品 | I108: 飲料 | J108: その他の酒類 | K108: 果実酒・チューハイ
F109: PR01'PRCG20_2200150070 | G109: 国内 | H109: 飲食料品 | I109: 飲料 | J109: その他の酒類 | K109: 焼ちゅう
F110: PR01'PRCG20_2200140024 | G110: 国内 | H110: 飲食料品 | I110: 飲料 | J110: 茶・コーヒー | K110: _
F111: PR01'PRCG20_2200150071 | G111: 国内 | H111: 飲食料品 | I111: 飲料 | J111: 茶・コーヒー | K111: 荒茶
F112: PR01'PRCG20_2200150072 | G112: 国内 | H112: 飲食料品 | I112: 飲料 | J112: 茶・コーヒー | K112: 緑茶
F113: PR01'PRCG20_2200150073 | G113: 国内 | H113: 飲食料品 | I113: 飲料 | J113: 茶・コーヒー | K113: コーヒー
F114: PR01'PRCG20_2200140025 | G114: 国内 | H114: 飲食料品 | I114: 飲料 | J114: 清涼飲料 | K114: _
F115: PR01'PRCG20_2200150074 | G115: 国内 | H115: 飲食料品 | I115: 飲料 | J115: 清涼飲料 | K115: 炭酸飲料
F116: PR01'PRCG20_2200150075 | G116: 国内 | H116: 飲食料品 | I116: 飲料 | J116: 清涼飲料 | K116: ジュース
F117: PR01'PRCG20_2200150076 | G117: 国内 | H117: 飲食料品 | I117: 飲料 | J117: 清涼飲料 | K117: コーヒー飲料
F118: PR01'PRCG20_2200150077 | G118: 国内 | H118: 飲食料品 | I118: 飲料 | J118: 清涼飲料 | K118: 茶飲料
F119: PR01'PRCG20_2200150078 | G119: 国内 | H119: 飲食料品 | I119: 飲料 | J119: 清涼飲料 | K119: ミネラルウォーター
F120: PR01'PRCG20_2200150079 | G120: 国内 | H120: 飲食料品 | I120: 飲料 | J120: 清涼飲料 | K120: スポーツドリンク
F121: PR01'PRCG20_2200150080 | G121: 国内 | H121: 飲食料品 | I121: 飲料 | J121: 清涼飲料 | K121: 豆乳飲料
F122: PR01'PRCG20_2200150081 | G122: 国内 | H122: 飲食料品 | I122: 飲料 | J122: 清涼飲料 | K122: ノンアルコール飲料
F123: PR01'PRCG20_2200140026 | G123: 国内 | H123: 飲食料品 | I123: 飲料 | J123: 製氷 | K123: _
F124: PR01'PRCG20_2200150082 | G124: 国内 | H124: 飲食料品 | I124: 飲料 | J124: 製氷 | K124: 人造氷
F125: PR01'PRCG20_2200130003 | G125: 国内 | H125: 飲食料品 | I125: 飼料・有機質肥料 | J125: _ | K125: _
F126: PR01'PRCG20_2200140027 | G126: 国内 | H126: 飲食料品 | I126: 飼料・有機質肥料 | J126: 飼料 | K126: _
F127: PR01'PRCG20_2200150083 | G127: 国内 | H127: 飲食料品 | I127: 飼料・有機質肥料 | J127: 飼料 | K127: 配合飼料
F128: PR01'PRCG20_2200150084 | G128: 国内 | H128: 飲食料品 | I128: 飼料・有機質肥料 | J128: 飼料 | K128: ペットフード
F129: PR01'PRCG20_2200130004 | G129: 国内 | H129: 飲食料品 | I129: たばこ | J129: _ | K129: _
F130: PR01'PRCG20_2200140028 | G130: 国内 | H130: 飲食料品 | I130: たばこ | J130: たばこ | K130: _
F131: PR01'PRCG20_2200150085 | G131: 国内 | H131: 飲食料品 | I131: たばこ | J131: たばこ | K131: たばこ
F132: PR01'PRCG20_2200220001 | G132: 国内 | H132: 繊維製品 | I132: _ | J132: _ | K132: _
F133: PR01'PRCG20_2200230001 | G133: 国内 | H133: 繊維製品 | I133: 繊維工業製品 | J133: _ | K133: _
F134: PR01'PRCG20_2200240001 | G134: 国内 | H134: 繊維製品 | I134: 繊維工業製品 | J134: 紡績糸 | K134: _
F135: PR01'PRCG20_2200250001 | G135: 国内 | H135: 繊維製品 | I135: 繊維工業製品 | J135: 紡績糸 | K135: 紡績糸
F136: PR01'PRCG20_2200240002 | G136: 国内 | H136: 繊維製品 | I136: 繊維工業製品 | J136: 織物 | K136: _
F137: PR01'PRCG20_2200250002 | G137: 国内 | H137: 繊維製品 | I137: 繊維工業製品 | J137: 織物 | K137: 織物
F138: PR01'PRCG20_2200240003 | G138: 国内 | H138: 繊維製品 | I138: 繊維工業製品 | J138: その他の繊維工業製品 | K138: _
F139: PR01'PRCG20_2200250003 | G139: 国内 | H139: 繊維製品 | I139: 繊維工業製品 | J139: その他の繊維工業製品 | K139: フェルト生地・不織布
F140: PR01'PRCG20_2200230002 | G140: 国内 | H140: 繊維製品 | I140: 衣服・その他繊維既製品 | J140: _ | K140: _
F141: PR01'PRCG20_2200240004 | G141: 国内 | H141: 繊維製品 | I141: 衣服・その他繊維既製品 | J141: 織物製・ニット製衣服 | K141: _
F142: PR01'PRCG20_2200250004 | G142: 国内 | H142: 繊維製品 | I142: 衣服・その他繊維既製品 | J142: 織物製・ニット製衣服 | K142: 外衣・シャツ
F143: PR01'PRCG20_2200250005 | G143: 国内 | H143: 繊維製品 | I143: 衣服・その他繊維既製品 | J143: 織物製・ニット製衣服 | K143: 下着類
F144: PR01'PRCG20_2200240005 | G144: 国内 | H144: 繊維製品 | I144: 衣服・その他繊維既製品 | J144: その他の衣服・身の回り品 | K144: _
F145: PR01'PRCG20_2200250006 | G145: 国内 | H145: 繊維製品 | I145: 衣服・その他繊維既製品 | J145: その他の衣服・身の回り品 | K145: 繊維製身の回り品
F146: PR01'PRCG20_2200240006 | G146: 国内 | H146: 繊維製品 | I146: 衣服・その他繊維既製品 | J146: その他の繊維既製品 | K146: _
F147: PR01'PRCG20_2200250007 | G147: 国内 | H147: 繊維製品 | I147: 衣服・その他繊維既製品 | J147: その他の繊維既製品 | K147: 寝具
F148: PR01'PRCG20_2200250008 | G148: 国内 | H148: 繊維製品 | I148: 衣服・その他繊維既製品 | J148: その他の繊維既製品 | K148: 敷物
F149: PR01'PRCG20_2200250009 | G149: 国内 | H149: 繊維製品 | I149: 衣服・その他繊維既製品 | J149: その他の繊維既製品 | K149: 繊維製帆布
F150: PR01'PRCG20_2200250010 | G150: 国内 | H150: 繊維製品 | I150: 衣服・その他繊維既製品 | J150: その他の繊維既製品 | K150: タオル
F151: PR01'PRCG20_2200250011 | G151: 国内 | H151: 繊維製品 | I151: 衣服・その他繊維既製品 | J151: その他の繊維既製品 | K151: 衛生材料
F152: PR01'PRCG20_2200320001 | G152: 国内 | H152: 木材・木製品 | I152: _ | J152: _ | K152: _
F153: PR01'PRCG20_2200330001 | G153: 国内 | H153: 木材・木製品 | I153: 木材・木製品 | J153: _ | K153: _
F154: PR01'PRCG20_2200340001 | G154: 国内 | H154: 木材・木製品 | I154: 木材・木製品 | J154: 製材 | K154: _
F155: PR01'PRCG20_2200350001 | G155: 国内 | H155: 木材・木製品 | I155: 木材・木製品 | J155: 製材 | K155: 板
F156: PR01'PRCG20_2200350002 | G156: 国内 | H156: 木材・木製品 | I156: 木材・木製品 | J156: 製材 | K156: ひき割
F157: PR01'PRCG20_2200350003 | G157: 国内 | H157: 木材・木製品 | I157: 木材・木製品 | J157: 製材 | K157: ひき角
F158: PR01'PRCG20_2200350004 | G158: 国内 | H158: 木材・木製品 | I158: 木材・木製品 | J158: 製材 | K158: 梱包用材
F159: PR01'PRCG20_2200340002 | G159: 国内 | H159: 木材・木製品 | I159: 木材・木製品 | J159: 合板・集成材 | K159: _
F160: PR01'PRCG20_2200350005 | G160: 国内 | H160: 木材・木製品 | I160: 木材・木製品 | J160: 合板・集成材 | K160: 普通合板
F161: PR01'PRCG20_2200350006 | G161: 国内 | H161: 木材・木製品 | I161: 木材・木製品 | J161: 合板・集成材 | K161: 特殊合板
F162: PR01'PRCG20_2200350007 | G162: 国内 | H162: 木材・木製品 | I162: 木材・木製品 | J162: 合板・集成材 | K162: 集成材
F163: PR01'PRCG20_2200340003 | G163: 国内 | H163: 木材・木製品 | I163: 木材・木製品 | J163: 木材チップ | K163: _
F164: PR01'PRCG20_2200350008 | G164: 国内 | H164: 木材・木製品 | I164: 木材・木製品 | J164: 木材チップ | K164: 木材チップ
F165: PR01'PRCG20_2200340004 | G165: 国内 | H165: 木材・木製品 | I165: 木材・木製品 | J165: その他の木製品 | K165: _
F166: PR01'PRCG20_2200350009 | G166: 国内 | H166: 木材・木製品 | I166: 木材・木製品 | J166: その他の木製品 | K166: 造作材
F167: PR01'PRCG20_2200350010 | G167: 国内 | H167: 木材・木製品 | I167: 木材・木製品 | J167: その他の木製品 | K167: 住宅建築用木製組立材料
F168: PR01'PRCG20_2200350011 | G168: 国内 | H168: 木材・木製品 | I168: 木材・木製品 | J168: その他の木製品 | K168: 床板
F169: PR01'PRCG20_2200350012 | G169: 国内 | H169: 木材・木製品 | I169: 木材・木製品 | J169: その他の木製品 | K169: 木箱
F170: PR01'PRCG20_2200420001 | G170: 国内 | H170: パルプ・紙・同製品 | I170: _ | J170: _ | K170: _
F171: PR01'PRCG20_2200430001 | G171: 国内 | H171: パルプ・紙・同製品 | I171: パルプ・紙・板紙・加工紙 | J171: _ | K171: _
F172: PR01'PRCG20_2200440001 | G172: 国内 | H172: パルプ・紙・同製品 | I172: パルプ・紙・板紙・加工紙 | J172: 洋紙・和紙 | K172: _
F173: PR01'PRCG20_2200450001 | G173: 国内 | H173: パルプ・紙・同製品 | I173: パルプ・紙・板紙・加工紙 | J173: 洋紙・和紙 | K173: 新聞用紙
F174: PR01'PRCG20_2200450002 | G174: 国内 | H174: パルプ・紙・同製品 | I174: パルプ・紙・板紙・加工紙 | J174: 洋紙・和紙 | K174: 非塗工印刷用紙
F175: PR01'PRCG20_2200450003 | G175: 国内 | H175: パルプ・紙・同製品 | I175: パルプ・紙・板紙・加工紙 | J175: 洋紙・和紙 | K175: 塗工印刷用紙
F176: PR01'PRCG20_2200450004 | G176: 国内 | H176: パルプ・紙・同製品 | I176: パルプ・紙・板紙・加工紙 | J176: 洋紙・和紙 | K176: 情報用紙
F177: PR01'PRCG20_2200450005 | G177: 国内 | H177: パルプ・紙・同製品 | I177: パルプ・紙・板紙・加工紙 | J177: 洋紙・和紙 | K177: クラフト紙
F178: PR01'PRCG20_2200450006 | G178: 国内 | H178: パルプ・紙・同製品 | I178: パルプ・紙・板紙・加工紙 | J178: 洋紙・和紙 | K178: 加工原紙
F179: PR01'PRCG20_2200440002 | G179: 国内 | H179: パルプ・紙・同製品 | I179: パルプ・紙・板紙・加工紙 | J179: 板紙 | K179: _
F180: PR01'PRCG20_2200450007 | G180: 国内 | H180: パルプ・紙・同製品 | I180: パルプ・紙・板紙・加工紙 | J180: 板紙 | K180: ライナー
F181: PR01'PRCG20_2200450008 | G181: 国内 | H181: パルプ・紙・同製品 | I181: パルプ・紙・板紙・加工紙 | J181: 板紙 | K181: 中しん原紙
F182: PR01'PRCG20_2200450009 | G182: 国内 | H182: パルプ・紙・同製品 | I182: パルプ・紙・板紙・加工紙 | J182: 板紙 | K182: 白板紙
F183: PR01'PRCG20_2200440003 | G183: 国内 | H183: パルプ・紙・同製品 | I183: パルプ・紙・板紙・加工紙 | J183: 段ボール | K183: _
F184: PR01'PRCG20_2200450010 | G184: 国内 | H184: パルプ・紙・同製品 | I184: パルプ・紙・板紙・加工紙 | J184: 段ボール | K184: 段ボール
F185: PR01'PRCG20_2200440004 | G185: 国内 | H185: パルプ・紙・同製品 | I185: パルプ・紙・板紙・加工紙 | J185: 塗工紙・建設用加工紙 | K185: _
F186: PR01'PRCG20_2200450011 | G186: 国内 | H186: パルプ・紙・同製品 | I186: パルプ・紙・板紙・加工紙 | J186: 塗工紙・建設用加工紙 | K186: アスファルト塗工紙
F187: PR01'PRCG20_2200450012 | G187: 国内 | H187: パルプ・紙・同製品 | I187: パルプ・紙・板紙・加工紙 | J187: 塗工紙・建設用加工紙 | K187: ノーカーボン紙・粘着紙
F188: PR01'PRCG20_2200450013 | G188: 国内 | H188: パルプ・紙・同製品 | I188: パルプ・紙・板紙・加工紙 | J188: 塗工紙・建設用加工紙 | K188: 壁紙・ふすま紙
F189: PR01'PRCG20_2200430002 | G189: 国内 | H189: パルプ・紙・同製品 | I189: 紙加工品 | J189: _ | K189: _
F190: PR01'PRCG20_2200440005 | G190: 国内 | H190: パルプ・紙・同製品 | I190: 紙加工品 | J190: 段ボール箱 | K190: _
F191: PR01'PRCG20_2200450014 | G191: 国内 | H191: パルプ・紙・同製品 | I191: 紙加工品 | J191: 段ボール箱 | K191: 段ボール箱
F192: PR01'PRCG20_2200440006 | G192: 国内 | H192: パルプ・紙・同製品 | I192: 紙加工品 | J192: その他の紙製容器 | K192: _
F193: PR01'PRCG20_2200450015 | G193: 国内 | H193: パルプ・紙・同製品 | I193: 紙加工品 | J193: その他の紙製容器 | K193: 重包装紙袋
F194: PR01'PRCG20_2200450016 | G194: 国内 | H194: パルプ・紙・同製品 | I194: 紙加工品 | J194: その他の紙製容器 | K194: 軽包装紙袋
F195: PR01'PRCG20_2200450017 | G195: 国内 | H195: パルプ・紙・同製品 | I195: 紙加工品 | J195: その他の紙製容器 | K195: 紙箱
F196: PR01'PRCG20_2200440007 | G196: 国内 | H196: パルプ・紙・同製品 | I196: 紙加工品 | J196: 紙製衛生材料・用品 | K196: _
F197: PR01'PRCG20_2200450018 | G197: 国内 | H197: パルプ・紙・同製品 | I197: 紙加工品 | J197: 紙製衛生材料・用品 | K197: 大人用紙おむつ
F198: PR01'PRCG20_2200450019 | G198: 国内 | H198: パルプ・紙・同製品 | I198: 紙加工品 | J198: 紙製衛生材料・用品 | K198: 子供用紙おむつ
F199: PR01'PRCG20_2200450020 | G199: 国内 | H199: パルプ・紙・同製品 | I199: 紙加工品 | J199: 紙製衛生材料・用品 | K199: ティッシュペーパー
F200: PR01'PRCG20_2200450021 | G200: 国内 | H200: パルプ・紙・同製品 | I200: 紙加工品 | J200: 紙製衛生材料・用品 | K200: トイレットペーパー
F201: PR01'PRCG20_2200450022 | G201: 国内 | H201: パルプ・紙・同製品 | I201: 紙加工品 | J201: 紙製衛生材料・用品 | K201: 生理用品
F202: PR01'PRCG20_2200440008 | G202: 国内 | H202: パルプ・紙・同製品 | I202: 紙加工品 | J202: その他のパルプ・紙・紙加工品 | K202: _
F203: PR01'PRCG20_2200450023 | G203: 国内 | H203: パルプ・紙・同製品 | I203: 紙加工品 | J203: その他のパルプ・紙・紙加工品 | K203: 封筒
... 1232 more rows

Sheet 参考業種設定シート (hidden)
A1: 建設業 | C1: 食料品製造業 | E1: 繊維工業 | G1: 印刷・同関連業 | I1: プラスチック製品製造 | K1: 金属製品製造業 | M1: 生産用機械器具製造業 | O1: 輸送用機械器具製造業 | Q1: 道路貨物運送業 | S1: 繊維・衣服等卸売業 | U1: 飲食料品卸売業 | W1: 建築材料等卸売業 | Y1: 機械器具卸売業 | AA1: 飲食店 | AC1: 廃棄物処理業 | AE1: 不動産賃貸業・管理業 | AG1: 物品賃貸業 | AI1: 情報サービス業
A2: データコード | B2: 系列名称 | C2: データコード | D2: 系列名称 | E2: データコード | F2: 系列名称 | G2: データコード | H2: 系列名称 | I2: データコード | J2: 系列名称 | K2: データコード | L2: 系列名称 | M2: データコード | N2: 系列名称 | O2: データコード | P2: 系列名称 | Q2: データコード | R2: 系列名称 | S2: データコード | T2: 系列名称 | U2: データコード | V2: 系列名称 | W2: データコード | X2: 系列名称 | Y2: データコード | Z2: 系列名称 | AA2: データコード | AB2: 系列名称 | AC2: データコード | AD2: 系列名称 | AE2: データコード | AF2: 系列名称 | AG2: データコード | AH2: 系列名称 | AI2: データコード | AJ2: 系列名称
A3: PR01'PRCG20_2200650005 | B3: 品目/____軽油 | C3: PR01'PRCG20_2200150015 | D3: 品目/____小麦粉 | E3: PR01'PRCG20_2200250001 | F3: 品目/____紡績糸 | G3: PR01'PRCG20_2200450001 | H3: 品目/____新聞用紙 | I3: PR01'PRCG20_2200550021 | J3: 品目/____熱硬化性樹脂 | K3: PR01'PRCG20_2200940002 | L3: 商品群/___熱間圧延鋼材 | M3: PR01'PRCG20_2200740001 | N3: 商品群/___プラスチック製品 | O3: PR01'PRCG20_2200750009 | P3: 品目/____輸送機械用プラスチック製品 | Q3: PR01'PRCG20_2200650001 | R3: 品目/____ガソリン | S3: PR01'PRCG20_2200250003 | T3: 品目/____フェルト生地・不織布 | U3: PR01'PRCG20_2200140001 | V3: 商品群/___酪農品 | W3: PR01'PRCG20_2200820001 | X3: 類別/_窯業・土石製品 | Y3: PR01'PRCG20_2201330001 | Z3: 小類別/__生産用機器 | AA3: PR01'PRCG20_2200140014 | AB3: 商品群/___動植物油脂 | AC3: PR01'PRCG20_2200650001 | AD3: 品目/____ガソリン | AE3: PR01'PRCG20_2201630002 | AF3: 小類別/__民生用電気機器 | AG3: PR01'PRCG20_2201220001 | AH3: 類別/_はん用機器 | AI3: PR02'PRCS20_5200430001 | AJ3: 小類別/__事務所賃貸
A4: PR01'PRCG20_2200850010 | B4: 品目/____生コンクリート | C4: PR01'PRCG20_2200150036 | D4: 品目/____砂糖 | E4: PR01'PRCG20_2200250002 | F4: 品目/____織物 | G4: PR01'PRCG20_2200450002 | H4: 品目/____非塗工印刷用紙 | I4: PR01'PRCG20_2200550022 | J4: 品目/____ポリエチレン | K4: PR01'PRCG20_2200940004 | L4: 商品群/___冷間仕上鋼材 | M4: PR01'PRCG20_2200830001 | N4: 小類別/__ガラス・ガラス製品 | O4: PR01'PRCG20_2200840001 | P4: 商品群/___板ガラス・安全ガラス | Q4: PR01'PRCG20_2200650005 | R4: 品目/____軽油 | S4: PR01'PRCG20_2200250004 | T4: 品目/____外衣・シャツ | U4: PR01'PRCG20_2200140008 | V4: 商品群/___パン類 | W4: PR01'PRCG20_2201120001 | X4: 類別/_金属製品 | Y4: PR01'PRCG20_2201430001 | Z4: 小類別/__業務用機器 | AA4: PR01'PRCG20_2200140015 | AB4: 商品群/___調味料 | AC4: PR01'PRCG20_2200650005 | AD4: 品目/____軽油 | AE4: PR01'PRCG20_2201930001 | AF4: 小類別/__家具・装備品 | AG4: PR01'PRCG20_2201320001 | AH4: 類別/_生産用機器 | AI4: PR02'PRCS20_5201220001 | AJ4: 類別/_通信
A5: PR01'PRCG20_2200950005 | B5: 品目/____厚中板 | C5: PR01'PRCG20_2200140014 | D5: 商品群/___動植物油脂 | E5: PR01'PRCG20_2200250003 | F5: 品目/____フェルト生地・不織布 | G5: PR01'PRCG20_2200450003 | H5: 品目/____塗工印刷用紙 | I5: PR01'PRCG20_2200550023 | J5: 品目/____ポリスチレン | K5: PR01'PRCG20_2200940005 | L5: 商品群/___めっき鋼材 | M5: PR01'PRCG20_2200930002 | N5: 小類別/__鋼材 | O5: PR01'PRCG20_2200920001 | P5: 類別/_鉄鋼 | Q5: PR01'PRCG20_2201950014 | R5: 品目/____自動車タイヤ | S5: PR01'PRCG20_2200250005 | T5: 品目/____下着類 | U5: PR01'PRCG20_2200140009 | V5: 商品群/___菓子類 | W5: PR01'PRCG20_2200740001 | X5: 商品群/___プラスチック製品 | Y5: PR01'PRCG20_2201630002 | Z5: 小類別/__民生用電気機器 | AA5: PR01'PRCG20_2200140021 | AB5: 商品群/___ビール類 | AC5: PR01'PRCG20_2201850004 | AD5: 品目/____特別用途車 | AE5: PR02'PRCS20_5200350001 | AF5: 品目/___不動産仲介 | AG5: PR01'PRCG20_2201420001 | AH5: 類別/_業務用機器 | AI5: PR02'PRCS20_5201430001 | AJ5: 小類別/__ソフトウェア開発
A6: PR01'PRCG20_2200940003 | B6: 商品群/___鋼管 | C6: PR01'PRCG20_2200140015 | D6: 商品群/___調味料 | E6: PR01'PRCG20_2200550019 | F6: 品目/____合成染料 | G6: PR01'PRCG20_2200450004 | H6: 品目/____情報用紙 | I6: PR01'PRCG20_2200550024 | J6: 品目/____ポリプロピレン | K6: PR01'PRCG20_2200940006 | L6: 商品群/___鋳鍛鋼・鋳鉄品・鍛工品 | M6: PR01'PRCG20_2201040005 | N6: 商品群/___電線・ケーブル | O6: PR01'PRCG20_2201020001 | P6: 類別/_非鉄金属 | Q6: PR02'PRCS20_5200250003 | R6: 品目/___自動車保険（任意） | S6: PR01'PRCG20_2200250006 | T6: 品目/____繊維製身の回り品 | U6: PR01'PRCG20_2200140018 | V6: 商品群/___そう菜・すし・弁当 | W6: PR01'PRCG20_2200520001 | X6: 類別/_化学製品 | Y6: PR01'PRCG20_2201730001 | Z6: 小類別/__通信・映像・音響機器 | AA6: PR01'PRCG20_2200140025 | AB6: 商品群/___清涼飲料 | AC6: PR02'PRCS20_5201750009 | AD6: 品目/___自動車リース | AE6: PR02'PRCS20_5200350002 | AF6: 品目/___不動産管理 | AG6: PR01'PRCG20_2201630001 | AH6: 小類別/__産業用電気機器 | AI6: PR02'PRCS20_5201450004 | AJ6: 品目/___情報処理サービス
A7: PR01'PRCG20_2200950019 | B7: 品目/____亜鉛めっき鋼板 | C7: PR01'PRCG20_2202050005 | D7: 品目/____原乳 | E7: PR01'PRCG20_2200550026 | F7: 品目/____ポリアミド樹脂 | G7: PR01'PRCG20_2200450005 | H7: 品目/____クラフト紙 | I7: PR01'PRCG20_2200550025 | J7: 品目/____塩化ビニル樹脂 | K7: PR01'PRCG20_2200950024 | L7: 品目/____鉄鋼シャースリット | M7: PR01'PRCG20_2201140004 | N7: 商品群/___ボルト・ナット・リベット・スプリング | O7: PR01'PRCG20_2201140004 | P7: 商品群/___ボルト・ナット・リベット・スプリング | Q7: PR02'PRCS20_5200930001 | R7: 小類別/__倉庫 | S7: PR01'PRCG20_2200250007 | T7: 品目/____寝具 | U7: PR01'PRCG20_2200140025 | V7: 商品群/___清涼飲料 | W7: PR01'PRCG20_2200620001 | X7: 類別/_石油・石炭製品 | Y7: PR01'PRCG20_2201730002 | Z7: 小類別/__電子計算機・同附属装置 | AA7: PR01'PRCG20_2202050002 | AB7: 品目/____精米 | AC7: PR02'PRCS20_5202050002 | AD7: 品目/___一般廃棄物処理 | AE7: PR02'PRCS20_5200420001 | AF7: 類別/_不動産賃貸 | AG7: PR01'PRCG20_2201720001 | AH7: 類別/_情報通信機器 | AI7: PR02'PRCS20_5201450007 | AJ7: 品目/___システム等管理運営受託
A8: PR01'PRCG20_2201050008 | B8: 品目/____プラスチック被覆銅線 | C8: PR01'PRCG20_2202050006 | D8: 品目/____鶏卵 | E8: PR01'PRCG20_2200550027 | F8: 品目/____飽和ポリエステル樹脂 | G8: PR01'PRCG20_2200450006 | H8: 品目/____加工原紙 | I8: PR01'PRCG20_2200550027 | J8: 品目/____飽和ポリエステル樹脂 | K8: PR01'PRCG20_2201040005 | L8: 商品群/___電線・ケーブル | M8: PR01'PRCG20_2201350027 | N8: 品目/____金型 | O8: PR01'PRCG20_2201350027 | P8: 品目/____金型 | Q8: PR02'PRCS20_5201750009 | R8: 品目/___自動車リース | S8: PR01'PRCG20_2200250008 | T8: 品目/____敷物 | U8: PR01'PRCG20_2202040002 | V8: 商品群/___精穀 | W8: PR01'PRCG20_2200920001 | X8: 類別/_鉄鋼 | Y8: PR01'PRCG20_2201830001 | Z8: 小類別/__乗用車 | AA8: PR01'PRCG20_2202040007 | AB8: 商品群/___食肉 | AC8: PR02'PRCS20_5202050003 | AD8: 品目/___産業廃棄物処理 | AE8: PR02'PRCS20_5202550001 | AF8: 品目/___建物サービス | AG8: PR01'PRCG20_2201850001 | AH8: 品目/____乗用車 | AI8: PR02'PRCS20_5201750006 | AJ8: 品目/___通信機器リース
A9: PR01'PRCG20_2202350002 | B9: 品目/____鉄屑 | C9: PR01'PRCG20_2202040007 | D9: 商品群/___食肉 | E9: PR01'PRCG20_2200550032 | F9: 品目/____化学繊維 | G9: PR01'PRCG20_2200550044 | H9: 品目/____印刷インキ | I9: PR01'PRCG20_2200650002 | J9: 品目/____ナフサ | K9: PR01'PRCG20_2201350027 | L9: 品目/____金型 | M9: PR01'PRCG20_2201520001 | N9: 類別/_電子部品・デバイス | O9: PR01'PRCG20_2201930003 | P9: 小類別/__ゴム製品 | Q9: PR02'PRCS20_5202130001 | R9: 小類別/__自動車整備 | S9: PR01'PRCG20_2201950023 | T9: 品目/____革製履物 | U9: PR01'PRCG20_2202040007 | V9: 商品群/___食肉 | W9: PR01'PRCG20_2201020001 | X9: 類別/_非鉄金属 | Y9: PR01'PRCG20_2201840002 | Z9: 商品群/___トラック・バス・その他の自動車 | AA9: PR02'PRCS20_5200450005 | AB9: 品目/___店舗賃貸 | AC9: PR02'PRCS20_5202150001 | AD9: 品目/___自動車整備 | AE9: PR02'PRCS20_5202530002 | AF9: 小類別/__警備 | AG9: PR01'PRCG20_2201850003 | AH9: 品目/____トラック | AI9: PR02'PRCS20_5201750007 | AJ9: 品目/___電子計算機・同関連機器リース
A10: PR01'PRCG20_2202250001 | B10: 品目/____事業用電力 | C10: PR01'PRCG20_2202250001 | D10: 品目/____事業用電力 | E10: PR01'PRCG20_2202250001 | F10: 品目/____事業用電力 | G10: PR01'PRCG20_2202250001 | H10: 品目/____事業用電力 | I10: PR01'PRCG20_2202250001 | J10: 品目/____事業用電力 | K10: PR01'PRCG20_2202250001 | L10: 品目/____事業用電力 | M10: PR01'PRCG20_2202250001 | N10: 品目/____事業用電力 | O10: PR01'PRCG20_2202250001 | P10: 品目/____事業用電力 | Q10: PR01'PRCG20_2202250001 | R10: 品目/____事業用電力 | S10: PR01'PRCG20_2202250001 | T10: 品目/____事業用電力 | U10: PR01'PRCG20_2202250001 | V10: 品目/____事業用電力 | W10: PR01'PRCG20_2202250001 | X10: 品目/____事業用電力 | Y10: PR01'PRCG20_2202250001 | Z10: 品目/____事業用電力 | AA10: PR01'PRCG20_2202250001 | AB10: 品目/____事業用電力 | AC10: PR01'PRCG20_2202250001 | AD10: 品目/____事業用電力 | AE10: PR01'PRCG20_2202250001 | AF10: 品目/____事業用電力 | AG10: PR01'PRCG20_2202250001 | AH10: 品目/____事業用電力 | AI10: PR01'PRCG20_2202250001 | AJ10: 品目/____事業用電力
A11: PR02'PRCS20_5200630002 | B11: 小類別/__道路貨物輸送 | C11: PR02'PRCS20_5200630002 | D11: 小類別/__道路貨物輸送 | E11: PR02'PRCS20_5200630002 | F11: 小類別/__道路貨物輸送 | G11: PR02'PRCS20_5200630002 | H11: 小類別/__道路貨物輸送 | I11: PR02'PRCS20_5200630002 | J11: 小類別/__道路貨物輸送 | K11: PR02'PRCS20_5200630002 | L11: 小類別/__道路貨物輸送 | M11: PR02'PRCS20_5200630002 | N11: 小類別/__道路貨物輸送 | O11: PR02'PRCS20_5200630002 | P11: 小類別/__道路貨物輸送 | Q11: PR02'PRCS20_5200630002 | R11: 小類別/__道路貨物輸送 | S11: PR02'PRCS20_5200630002 | T11: 小類別/__道路貨物輸送 | U11: PR02'PRCS20_5200630002 | V11: 小類別/__道路貨物輸送 | W11: PR02'PRCS20_5200630002 | X11: 小類別/__道路貨物輸送 | Y11: PR02'PRCS20_5200630002 | Z11: 小類別/__道路貨物輸送 | AA11: PR02'PRCS20_5200630002 | AB11: 小類別/__道路貨物輸送 | AC11: PR02'PRCS20_5200630002 | AD11: 小類別/__道路貨物輸送 | AE11: PR02'PRCS20_5200630002 | AF11: 小類別/__道路貨物輸送 | AG11: PR02'PRCS20_5200630002 | AH11: 小類別/__道路貨物輸送 | AI11: PR02'PRCS20_5200630002 | AJ11: 小類別/__道路貨物輸送
A12: PR02'PRLC00_9999999999 | B12: 類別/_人件費 | C12: PR02'PRLC00_9999999999 | D12: 類別/_人件費 | E12: PR02'PRLC00_9999999999 | F12: 類別/_人件費 | G12: PR02'PRLC00_9999999999 | H12: 類別/_人件費 | I12: PR02'PRLC00_9999999999 | J12: 類別/_人件費 | K12: PR02'PRLC00_9999999999 | L12: 類別/_人件費 | M12: PR02'PRLC00_9999999999 | N12: 類別/_人件費 | O12: PR02'PRLC00_9999999999 | P12: 人件費 | Q12: PR02'PRLC00_9999999999 | R12: 類別/_人件費 | S12: PR02'PRLC00_9999999999 | T12: 類別/_人件費 | U12: PR02'PRLC00_9999999999 | V12: 類別/_人件費 | W12: PR02'PRLC00_9999999999 | X12: 類別/_人件費 | Y12: PR02'PRLC00_9999999999 | Z12: 類別/_人件費 | AA12: PR02'PRLC00_9999999999 | AB12: 類別/_人件費 | AC12: PR02'PRLC00_9999999999 | AD12: 類別/_人件費 | AE12: PR02'PRLC00_9999999999 | AF12: 類別/_人件費 | AG12: PR02'PRLC00_9999999999 | AH12: 類別/_人件費 | AI12: PR02'PRLC00_9999999999 | AJ12: 類別/_人件費

Sheet メンテナンス (hidden)
A1: 令和表記 | B1: 令和表記_年 | C1: 開始時期 | D1: 現在日付入力欄
A2: =Reiwa漢字西暦(開始時期リスト[[#This Row],[開始時期]]) -> 令和2年(2020)1月 | B2: =Reiwa漢字西暦年(開始時期リスト[[#This Row],[開始時期]]) -> 令和2年(2020) | C2: 2020-01-01 | D2: 2026-04-10
A3: =Reiwa漢字西暦(開始時期リスト[[#This Row],[開始時期]]) -> 令和3年(2021)1月 | B3: =Reiwa漢字西暦年(開始時期リスト[[#This Row],[開始時期]]) -> 令和3年(2021) | C3: 2021-01-01
A4: =Reiwa漢字西暦(開始時期リスト[[#This Row],[開始時期]]) -> 令和4年(2022)1月 | B4: =Reiwa漢字西暦年(開始時期リスト[[#This Row],[開始時期]]) -> 令和4年(2022) | C4: 2022-01-01
A5: =Reiwa漢字西暦(開始時期リスト[[#This Row],[開始時期]]) -> 令和5年(2023)1月 | B5: =Reiwa漢字西暦年(開始時期リスト[[#This Row],[開始時期]]) -> 令和5年(2023) | C5: 2023-01-01
A6: =Reiwa漢字西暦(開始時期リスト[[#This Row],[開始時期]]) -> 令和6年(2024)1月 | B6: =Reiwa漢字西暦年(開始時期リスト[[#This Row],[開始時期]]) -> 令和6年(2024) | C6: 2024-01-01 | E6: Z:\部共有\【経済対策担当】強い経済の構築に向けた戦略会議\02_価格交渉支援ツール\01_価格交渉支援ツール\01_アップロード用\260410公開用\更新データシート(R8.4)（新ツール）.xlsx
A7: =Reiwa漢字西暦(開始時期リスト[[#This Row],[開始時期]]) -> 令和7年(2025)1月 | B7: =Reiwa漢字西暦年(開始時期リスト[[#This Row],[開始時期]]) -> 令和7年(2025) | C7: 2025-01-01
E8: メンテナンス画面表示 パスワード
E9: 4321
E11: シート保護解除 パスワード
E12: 1234
E14: デフォルト値
E16: 現金給与総額（業種別）
E17: 業種選択
E18: 業種平均
E20: 最低賃金（都道府県別）
E21: 都道府県選択
E22: 埼玉
E23: 全国平均

Sheet リスト (hidden)
A1: 参考業種 | C1: 現金給与総額（業種別） | E1: 都道府県 | G1: 男女賃金格差
A2: 建設業 | C2: 業種平均 | E2: 埼玉 | G2: 産業計
A3: 食料品製造業 | C3: 鉱業，採石業等 | E3: 全国平均 | G3: 鉱業、採石業、砂利採取業
A4: 繊維工業 | C4: 建設業 | E4: 北海道 | G4: 建設業
A5: 印刷・同関連業 | C5: 製造業 | E5: 青森 | G5: 製造業
A6: プラスチック製品製造 | C6: 電気・ガス業 | E6: 岩手 | G6: 電気・ガス・熱供給・水道業
A7: 金属製品製造業 | C7: 情報通信業 | E7: 宮城 | G7: 情報通信業
A8: 生産用機械器具製造業 | C8: 運輸業，郵便業 | E8: 秋田 | G8: 運輸業、郵便業
A9: 輸送用機械器具製造業 | C9: 卸売業，小売業 | E9: 山形 | G9: 卸売業、小売業
A10: 道路貨物運送業 | C10: 金融業，保険業 | E10: 福島 | G10: 金融業、保険業
A11: 繊維・衣服等卸売業 | C11: 不動産・物品賃貸業 | E11: 茨城 | G11: 不動産業、物品賃貸業
A12: 飲食料品卸売業 | C12: 学術研究等 | E12: 栃木 | G12: 学術研究、専門・技術サービス業
A13: 建築材料等卸売業 | C13: 飲食サービス業等 | E13: 群馬 | G13: 宿泊業、飲食サービス業
A14: 機械器具卸売業 | C14: 生活関連サービス等 | E14: 千葉 | G14: 生活関連サービス業、娯楽業
A15: 飲食店 | C15: 教育，学習支援業 | E15: 東京 | G15: 教育、学習支援業
A16: 廃棄物処理業 | C16: 医療，福祉 | E16: 神奈川 | G16: 医療、福祉
A17: 不動産賃貸業・管理業 | C17: 複合サービス事業 | E17: 新潟 | G17: 複合サービス業
A18: 物品賃貸業 | C18: その他のサービス業 | E18: 富山 | G18: サービス業（他に分類されないもの）
A19: 情報サービス業 | E19: 石川
E20: 福井
E21: 山梨
E22: 長野
E23: 岐阜
E24: 静岡
E25: 愛知
E26: 三重
E27: 滋賀
E28: 京都
E29: 大阪
E30: 兵庫
E31: 奈良
E32: 和歌山
E33: 鳥取
E34: 島根
E35: 岡山
E36: 広島
E37: 山口
E38: 徳島
E39: 香川
E40: 愛媛
E41: 高知
E42: 福岡
E43: 佐賀
E44: 長崎
E45: 熊本
E46: 大分
E47: 宮崎
E48: 鹿児島
E49: 沖縄

Sheet グラフ・増減率作成シート (hidden)
A1: 期間指定
A2: 開始時期 | B2: 開始列 | C2: 終了列 | D2: 本日の日付 | E2: チラシシート日付
A3: =IFERROR(Reiwa漢字(原材料!Q5)&" からの増減","") -> 令和2年1月 からの増減 | B3: $W$16 | C3: $CS$16 | D3: =メンテナンス!$D$2 -> 2026-04-10 | E3: =Reiwa漢字(D3) &" 現在" -> 令和8年4月 現在
A5: グラフ表示 | B5: データコード | C5: 種別 | D5: 終了時期 | E5: 終了時期 （令和） | F5: 品目 | G5: 小数点第2位 四捨五入 | H5: 正負 | I5: 為替 | J5: 増減率 | K5: H31.1 | L5: H31.2 | M5: H31.3 | N5: H31.4 | O5: R1.5 | P5: R1.6 | Q5: R1.7 | R5: R1.8 | S5: R1.9 | T5: R1.10 | U5: R1.11 | V5: R1.12 | W5: R2.1 | X5: R2.2 | Y5: R2.3 | Z5: R2.4 | AA5: R2.5 | AB5: R2.6 | AC5: R2.7 | AD5: R2.8 | AE5: R2.9 | AF5: R2.10 | AG5: R2.11 | AH5: R2.12 | AI5: R3.1 | AJ5: R3.2 | AK5: R3.3 | AL5: R3.4 | AM5: R3.5 | AN5: R3.6 | AO5: R3.7 | AP5: R3.8 | AQ5: R3.9 | AR5: R3.10 | AS5: R3.11 | AT5: R3.12 | AU5: R4.1 | AV5: R4.2 | AW5: R4.3 | AX5: R4.4 | AY5: R4.5 | AZ5: R4.6 | BA5: R4.7 | BB5: R4.8 | BC5: R4.9 | BD5: R4.10 | BE5: R4.11 | BF5: R4.12 | BG5: R5.1 | BH5: R5.2 | BI5: R5.3 | BJ5: R5.4 | BK5: R5.5 | BL5: R5.6 | BM5: R5.7 | BN5: R5.8 | BO5: R5.9 | BP5: R5.10 | BQ5: R5.11 | BR5: R5.12 | BS5: R6.1 | BT5: R6.2 | BU5: R6.3 | BV5: R6.4 | BW5: R6.5 | BX5: R6.6 | BY5: R6.7 | BZ5: R6.8 | CA5: R6.9 | CB5: R6.10 | CC5: R6.11 | CD5: R6.12 | CE5: R7.1 | CF5: R7.2 | CG5: R7.3 | CH5: R7.4 | CI5: R7.5 | CJ5: R7.6 | CK5: R7.7 | CL5: R7.8 | CM5: R7.9 | CN5: R7.10 | CO5: R7.11 | CP5: R7.12 | CQ5: R8.1 | CR5: R8.2 | CS5: R8.3
A6: グラフ1 | B6: PR01'PRCG20_2202040001 | C6: 国内 | D6: $CS$16 | E6: =IF(D6="","",(Reiwa漢字(INDIRECT(D6,TRUE))&" 時点")) -> 令和8年3月 時点 | F6: 米 | G6: =IF(ISERROR(J6),"",IF(J6=0,"",ABS(ROUND(J6,1)))) -> 117.9 | H6: =_xlfn.IFS(ISERROR(J6),"",J6="","",F6="為替","",J6>0,"％ｕｐ",J6<0,"％ｄｏｗｎ",J6=0,"") -> ％ｕｐ | I6: =IF(F6="ドル円レート（1米ドル）","単位：円","") ->  | J6: =($CS$6-$W$6) /$W$6* 100 -> 117.916261 | W6: 102.7 | X6: 102.3 | Y6: 102.3 | Z6: 102 | AA6: 101.8 | AB6: 100.9 | AC6: 100.3 | AD6: 100 | AE6: 97.2 | AF6: 97.4 | AG6: 96.9 | AH6: 96 | AI6: 96.6 | AJ6: 95.1 | AK6: 95.2 | AL6: 94.6 | AM6: 94.3 | AN6: 91.6 | AO6: 89.6 | AP6: 88.1 | AQ6: 85.8 | AR6: 83.9 | AS6: 83.7 | AT6: 83 | AU6: 82.4 | AV6: 83.5 | AW6: 81.5 | AX6: 81.8 | AY6: 80.9 | AZ6: 81.1 | BA6: 81.6 | BB6: 82.2 | BC6: 89.3 | BD6: 90.4 | BE6: 90.3 | BF6: 90.3 | BG6: 90.8 | BH6: 90.5 | BI6: 90 | BJ6: 89.9 | BK6: 90 | BL6: 90.1 | BM6: 89.2 | BN6: 89.2 | BO6: 98 | BP6: 98.1 | BQ6: 98.6 | BR6: 99.5 | BS6: 99.1 | BT6: 99.3 | BU6: 99.6 | BV6: 100.8 | BW6: 101.3 | BX6: 102.1 | BY6: 101.4 | BZ6: 102.9 | CA6: 143.7 | CB6: 157.8 | CC6: 156.3 | CD6: 162.5 | CE6: 172 | CF6: 175.3 | CG6: 169 | CH6: 179.9 | CI6: 182.3 | CJ6: 177.4 | CK6: 173.2 | CL6: 178.5 | CM6: 229.8 | CN6: 240.5 | CO6: 237.9 | CP6: 232.7 | CQ6: 229.5 | CR6: 227.9 | CS6: 223.8
A7: グラフ2 | B7: PR01'PRCG20_2200150036 | C7: 国内 | D7: $CS$16 | E7: =IF(D7="","",(Reiwa漢字(INDIRECT(D7,TRUE))&" 時点")) -> 令和8年3月 時点 | F7: 砂糖 | G7: =IF(ISERROR(J7),"",IF(J7=0,"",ABS(ROUND(J7,1)))) -> 33.1 | H7: =_xlfn.IFS(ISERROR(J7),"",J7="","",F7="為替","",J7>0,"％ｕｐ",J7<0,"％ｄｏｗｎ",J7=0,"") -> ％ｕｐ | J7: =($CS$7-$W$7) /$W$7* 100 -> 33.13373253 | W7: 100.2 | X7: 100.6 | Y7: 99.6 | Z7: 99.6 | AA7: 100.7 | AB7: 99.9 | AC7: 99.8 | AD7: 99.1 | AE7: 99.6 | AF7: 100.5 | AG7: 99.8 | AH7: 100.7 | AI7: 100.6 | AJ7: 101.5 | AK7: 102.9 | AL7: 103 | AM7: 103.3 | AN7: 103.7 | AO7: 104.5 | AP7: 105.3 | AQ7: 105.3 | AR7: 106 | AS7: 105.9 | AT7: 111.3 | AU7: 112.1 | AV7: 111.9 | AW7: 112.1 | AX7: 112 | AY7: 111.3 | AZ7: 111.9 | BA7: 114.5 | BB7: 116.7 | BC7: 117.8 | BD7: 117.2 | BE7: 117.5 | BF7: 123.5 | BG7: 125.6 | BH7: 125.9 | BI7: 126.8 | BJ7: 126.1 | BK7: 126.5 | BL7: 126.1 | BM7: 129.4 | BN7: 132.6 | BO7: 132.5 | BP7: 132.7 | BQ7: 135.9 | BR7: 136.1 | BS7: 142.1 | BT7: 141.9 | BU7: 142.8 | BV7: 140.7 | BW7: 141.3 | BX7: 140.7 | BY7: 139.5 | BZ7: 139.1 | CA7: 140 | CB7: 141.1 | CC7: 139.2 | CD7: 139.1 | CE7: 140.9 | CF7: 141 | CG7: 141.3 | CH7: 140 | CI7: 139.3 | CJ7: 139.7 | CK7: 138.4 | CL7: 138.4 | CM7: 139.7 | CN7: 139.4 | CO7: 135.8 | CP7: 134 | CQ7: 132.7 | CR7: 133.4 | CS7: 133.4
A8: グラフ3 | B8: PR01'PRCG20_2200140014 | C8: 国内 | D8: $CS$16 | E8: =IF(D8="","",(Reiwa漢字(INDIRECT(D8,TRUE))&" 時点")) -> 令和8年3月 時点 | F8: 動植物油脂 | G8: 52.9 | H8: =_xlfn.IFS(ISERROR(J8),"",J8="","",F8="為替","",J8>0,"％ｕｐ",J8<0,"％ｄｏｗｎ",J8=0,"") -> ％ｕｐ | J8: =($CS$8-$W$8) /$W$8* 100 -> 52.91790307 | W8: 101.1 | X8: 100.1 | Y8: 99.1 | Z8: 100.1 | AA8: 99.8 | AB8: 100.1 | AC8: 99.6 | AD8: 99.2 | AE8: 98.3 | AF8: 100.3 | AG8: 101.2 | AH8: 101.2 | AI8: 102.5 | AJ8: 103.6 | AK8: 103.7 | AL8: 106.9 | AM8: 110.4 | AN8: 109.8 | AO8: 115.1 | AP8: 122.5 | AQ8: 122.5 | AR8: 123.9 | AS8: 128.7 | AT8: 127.9 | AU8: 132 | AV8: 133.2 | AW8: 136.4 | AX8: 139.9 | AY8: 145.9 | AZ8: 146.4 | BA8: 155.6 | BB8: 158.9 | BC8: 165.5 | BD8: 167.4 | BE8: 166.3 | BF8: 167.3 | BG8: 164.2 | BH8: 162.8 | BI8: 161.5 | BJ8: 160.3 | BK8: 159.3 | BL8: 157.7 | BM8: 152.2 | BN8: 151.1 | BO8: 150 | BP8: 150.4 | BQ8: 152.9 | BR8: 153.5 | BS8: 153.1 | BT8: 153.8 | BU8: 153.4 | BV8: 147 | BW8: 147.2 | BX8: 147.4 | BY8: 147.7 | BZ8: 145.9 | CA8: 146.7 | CB8: 144.1 | CC8: 145.7 | CD8: 146.9 | CE8: 146.2 | CF8: 146.3 | CG8: 146.8 | CH8: 146.9 | CI8: 147.9 | CJ8: 149.1 | CK8: 148.2 | CL8: 147.2 | CM8: 147.4 | CN8: 146.9 | CO8: 149.5 | CP8: 150.6 | CQ8: 154.9 | CR8: 154.5 | CS8: 154.6
A9: グラフ4 | B9: PR01'PRCG20_2200140015 | C9: 国内 | D9: $CS$16 | E9: =IF(D9="","",(Reiwa漢字(INDIRECT(D9,TRUE))&" 時点")) -> 令和8年3月 時点 | F9: 調味料 | G9: 22.6 | H9: =_xlfn.IFS(ISERROR(J9),"",J9="","",F9="為替","",J9>0,"％ｕｐ",J9<0,"％ｄｏｗｎ",J9=0,"") -> ％ｕｐ | J9: =($CS$9-$W$9) /$W$9* 100 -> 22.58064516 | W9: 99.2 | X9: 100 | Y9: 100.1 | Z9: 100.6 | AA9: 99.6 | AB9: 100.1 | AC9: 100.5 | AD9: 99.7 | AE9: 99.9 | AF9: 100.3 | AG9: 99.8 | AH9: 100.2 | AI9: 98.4 | AJ9: 100 | AK9: 99.3 | AL9: 100.7 | AM9: 98.7 | AN9: 99.7 | AO9: 100.7 | AP9: 100 | AQ9: 100.7 | AR9: 100.3 | AS9: 100.6 | AT9: 100.7 | AU9: 98.6 | AV9: 100 | AW9: 101.4 | AX9: 103.4 | AY9: 101.6 | AZ9: 103.2 | BA9: 103.5 | BB9: 104.1 | BC9: 104.1 | BD9: 104.9 | BE9: 105.3 | BF9: 106.4 | BG9: 104.6 | BH9: 107.4 | BI9: 106.9 | BJ9: 111.3 | BK9: 110.7 | BL9: 112.4 | BM9: 113.2 | BN9: 113 | BO9: 113.2 | BP9: 114.8 | BQ9: 115.4 | BR9: 115.7 | BS9: 115.2 | BT9: 115.8 | BU9: 114.7 | BV9: 117.7 | BW9: 117.2 | BX9: 117.1 | BY9: 117.1 | BZ9: 116.8 | CA9: 116.3 | CB9: 117.7 | CC9: 117 | CD9: 117.3 | CE9: 114.7 | CF9: 116.3 | CG9: 115.6 | CH9: 116.8 | CI9: 117.5 | CJ9: 117.7 | CK9: 118 | CL9: 117.4 | CM9: 117.6 | CN9: 119 | CO9: 121.9 | CP9: 122 | CQ9: 120.6 | CR9: 121.5 | CS9: 121.6
A10: グラフ5 | B10: PR01'PRCG20_2202050005 | C10: 国内 | D10: $CS$16 | E10: =IF(D10="","",(Reiwa漢字(INDIRECT(D10,TRUE))&" 時点")) -> 令和8年3月 時点 | F10: 原乳 | G10: 21.6 | H10: =_xlfn.IFS(ISERROR(J10),"",J10="","",F10="為替","",J10>0,"％ｕｐ",J10<0,"％ｄｏｗｎ",J10=0,"") -> ％ｕｐ | J10: =($CS$10-$W$10) /$W$10* 100 -> 21.56469408 | W10: 99.7 | X10: 99.8 | Y10: 99.1 | Z10: 99.3 | AA10: 99.5 | AB10: 100.5 | AC10: 100.6 | AD10: 100.2 | AE10: 100.5 | AF10: 100.6 | AG10: 100.5 | AH10: 99.7 | AI10: 99.6 | AJ10: 99.8 | AK10: 99.6 | AL10: 99.7 | AM10: 99.8 | AN10: 100.5 | AO10: 100.3 | AP10: 100 | AQ10: 100.4 | AR10: 100.4 | AS10: 100.4 | AT10: 99.7 | AU10: 99.6 | AV10: 99.7 | AW10: 99.6 | AX10: 99.7 | AY10: 99.8 | AZ10: 100.6 | BA10: 100.3 | BB10: 100 | BC10: 100.4 | BD10: 100.4 | BE10: 105.2 | BF10: 104.6 | BG10: 104.7 | BH10: 104.7 | BI10: 104.5 | BJ10: 109.6 | BK10: 109.8 | BL10: 110.6 | BM10: 110.3 | BN10: 115.4 | BO10: 115.4 | BP10: 115.4 | BQ10: 115.4 | BR10: 115.9 | BS10: 116 | BT10: 116 | BU10: 115.9 | BV10: 116.7 | BW10: 116.7 | BX10: 117.2 | BY10: 117 | BZ10: 116.7 | CA10: 117.3 | CB10: 117.3 | CC10: 117.2 | CD10: 116.4 | CE10: 116.5 | CF10: 116.7 | CG10: 116.3 | CH10: 116.2 | CI10: 116.4 | CJ10: 119.8 | CK10: 119.7 | CL10: 121.5 | CM10: 121.8 | CN10: 121.9 | CO10: 121.7 | CP10: 120.9 | CQ10: 121 | CR10: 121.2 | CS10: 121.2
A11: グラフ6 | B11: PR01'PRCG20_2202050006 | C11: 国内 | D11: $CS$16 | E11: =IF(D11="","",(Reiwa漢字(INDIRECT(D11,TRUE))&" 時点")) -> 令和8年3月 時点 | F11: 鶏卵 | G11: 83.2 | H11: =_xlfn.IFS(ISERROR(J11),"",J11="","",F11="為替","",J11>0,"％ｕｐ",J11<0,"％ｄｏｗｎ",J11=0,"") -> ％ｕｐ | J11: =($CS$11-$W$11) /$W$11* 100 -> 83.19838057 | W11: 98.8 | X11: 107 | Y11: 114.5 | Z11: 117.7 | AA11: 97.2 | AB11: 92.3 | AC11: 89.1 | AD11: 85.9 | AE11: 91.1 | AF11: 97.9 | AG11: 101.4 | AH11: 107.1 | AI11: 83.1 | AJ11: 108.4 | AK11: 130 | AL11: 141.6 | AM11: 150.1 | AN11: 150.5 | AO11: 142.2 | AP11: 125.3 | AQ11: 124.8 | AR11: 124.9 | AS11: 121.5 | AT11: 122.7 | AU11: 87.9 | AV11: 102.2 | AW11: 113.6 | AX11: 123.9 | AY11: 128.5 | AZ11: 123.5 | BA11: 119.8 | BB11: 121 | BC11: 132.2 | BD11: 140.9 | BE11: 152.5 | BF11: 167.1 | BG11: 163.7 | BH11: 191 | BI11: 198.6 | BJ11: 201.5 | BK11: 201.5 | BL11: 200.8 | BM11: 185.3 | BN11: 167.3 | BO11: 172.2 | BP11: 168.1 | BQ11: 150.7 | BR11: 142.5 | BS11: 103.3 | BT11: 109.6 | BU11: 121 | BV11: 126.9 | BW11: 118.1 | BX11: 117.2 | BY11: 121.3 | BZ11: 133.5 | CA11: 153.6 | CB11: 160.7 | CC11: 162 | CD11: 167.2 | CE11: 149.7 | CF11: 180 | CG11: 185.4 | CH11: 190.4 | CI11: 195.7 | CJ11: 195.7 | CK11: 192.8 | CL11: 186 | CM11: 189.9 | CN11: 192.1 | CO11: 198.8 | CP11: 201.5 | CQ11: 180.1 | CR11: 181 | CS11: 181
A12: グラフ7 | B12: PR01'PRCG20_2202040007 | C12: 国内 | D12: $CS$16 | E12: =IF(D12="","",(Reiwa漢字(INDIRECT(D12,TRUE))&" 時点")) -> 令和8年3月 時点 | F12: 食肉 | G12: 25.3 | H12: =_xlfn.IFS(ISERROR(J12),"",J12="","",F12="為替","",J12>0,"％ｕｐ",J12<0,"％ｄｏｗｎ",J12=0,"") -> ％ｕｐ | J12: =($CS$12-$W$12) /$W$12* 100 -> 25.27805865 | W12: 98.9 | X12: 94.8 | Y12: 91.8 | Z12: 95 | AA12: 97.3 | AB12: 97.4 | AC12: 101.1 | AD12: 102.9 | AE12: 103.3 | AF12: 102.3 | AG12: 105.1 | AH12: 110.3 | AI12: 107 | AJ12: 104.2 | AK12: 105.9 | AL12: 108.4 | AM12: 105.4 | AN12: 108.1 | AO12: 109 | AP12: 105.3 | AQ12: 104 | AR12: 101.5 | AS12: 100.1 | AT12: 109.1 | AU12: 100.3 | AV12: 99.6 | AW12: 101.3 | AX12: 104 | AY12: 109.2 | AZ12: 108.6 | BA12: 111.6 | BB12: 108.2 | BC12: 109.9 | BD12: 110.7 | BE12: 110.1 | BF12: 111.7 | BG12: 110 | BH12: 110.3 | BI12: 111.1 | BJ12: 112.1 | BK12: 114 | BL12: 114.6 | BM12: 114.1 | BN12: 113.1 | BO12: 111.2 | BP12: 104.1 | BQ12: 105 | BR12: 109.6 | BS12: 103 | BT12: 105.1 | BU12: 105.9 | BV12: 107.8 | BW12: 112.8 | BX12: 114.6 | BY12: 116.7 | BZ12: 114.8 | CA12: 110.8 | CB12: 106.9 | CC12: 108.7 | CD12: 113.9 | CE12: 109.1 | CF12: 111.3 | CG12: 112.4 | CH12: 115.5 | CI12: 120.3 | CJ12: 125.4 | CK12: 131.4 | CL12: 123.4 | CM12: 118 | CN12: 114.8 | CO12: 117.2 | CP12: 120.7 | CQ12: 113.4 | CR12: 116.3 | CS12: 123.9
A13: グラフ8 | B13: PR01'PRCG20_2202250001 | C13: 国内 | D13: $CS$16 | E13: =IF(D13="","",(Reiwa漢字(INDIRECT(D13,TRUE))&" 時点")) -> 令和8年3月 時点 | F13: 事業用電力 | G13: 20.1 | H13: =_xlfn.IFS(ISERROR(J13),"",J13="","",F13="為替","",J13>0,"％ｕｐ",J13<0,"％ｄｏｗｎ",J13=0,"") -> ％ｕｐ | J13: =($CS$13-$W$13) /$W$13* 100 -> 20.11776251 | W13: 101.9 | X13: 101.4 | Y13: 101.5 | Z13: 101.6 | AA13: 101.8 | AB13: 101.5 | AC13: 105.2 | AD13: 103.8 | AE13: 101.6 | AF13: 94.8 | AG13: 93.1 | AH13: 91.8 | AI13: 91.1 | AJ13: 91.1 | AK13: 92.2 | AL13: 94 | AM13: 98.1 | AN13: 99.3 | AO13: 104.9 | AP13: 104.9 | AQ13: 106.8 | AR13: 104.2 | AS13: 106.2 | AT13: 108 | AU13: 110.2 | AV13: 114.9 | AW13: 118.9 | AX13: 120.6 | AY13: 122.5 | AZ13: 123.4 | BA13: 132.3 | BB13: 138.2 | BC13: 144.5 | BD13: 146.5 | BE13: 154.6 | BF13: 162 | BG13: 165.7 | BH13: 155 | BI13: 150.8 | BJ13: 153.4 | BK13: 139 | BL13: 131.5 | BM13: 129.7 | BN13: 123.9 | BO13: 120.2 | BP13: 119.9 | BQ13: 119.3 | BR13: 118.8 | BS13: 119.5 | BT13: 119.8 | BU13: 120.1 | BV13: 119 | BW13: 127.4 | BX13: 129.7 | BY13: 136.1 | BZ13: 135.6 | CA13: 129.3 | CB13: 127.2 | CC13: 131.3 | CD13: 135.4 | CE13: 134.1 | CF13: 128.7 | CG13: 129 | CH13: 133.5 | CI13: 136.8 | CJ13: 134.9 | CK13: 137.3 | CL13: 132.5 | CM13: 131.4 | CN13: 127.4 | CO13: 130.9 | CP13: 130.2 | CQ13: 129.9 | CR13: 121.8 | CS13: 122.4
A14: グラフ9 | B14: PR02'PRCS20_5200630002 | C14: サービス | D14: $CR$16 | E14: =IF(D14="","",(Reiwa漢字(INDIRECT(D14,TRUE))&" 時点")) -> 令和8年2月 時点 | F14: 道路貨物輸送 | G14: 9.2 | H14: =_xlfn.IFS(ISERROR(J14),"",J14="","",F14="為替","",J14>0,"％ｕｐ",J14<0,"％ｄｏｗｎ",J14=0,"") -> ％ｕｐ | J14: =($CR$14-$W$14) /$W$14* 100 -> 9.181636727 | W14: 100.2 | X14: 100.3 | Y14: 100.3 | Z14: 99.9 | AA14: 99.7 | AB14: 99.4 | AC14: 99.6 | AD14: 100.1 | AE14: 99.9 | AF14: 99.9 | AG14: 100 | AH14: 100.6 | AI14: 100.1 | AJ14: 100.1 | AK14: 100.4 | AL14: 100.5 | AM14: 100.1 | AN14: 99.9 | AO14: 100.2 | AP14: 100.6 | AQ14: 100.2 | AR14: 100.3 | AS14: 100.4 | AT14: 101 | AU14: 100.4 | AV14: 100.4 | AW14: 100.8 | AX14: 100.6 | AY14: 100.3 | AZ14: 100.2 | BA14: 100.5 | BB14: 101 | BC14: 100.9 | BD14: 101 | BE14: 101.1 | BF14: 101.7 | BG14: 101.2 | BH14: 101.1 | BI14: 101.6 | BJ14: 101.8 | BK14: 101.5 | BL14: 101.4 | BM14: 101.7 | BN14: 102 | BO14: 101.9 | BP14: 102.2 | BQ14: 102.5 | BR14: 103.1 | BS14: 102.8 | BT14: 102.9 | BU14: 103.4 | BV14: 104.9 | BW14: 104.5 | BX14: 104.4 | BY14: 104.7 | BZ14: 105.3 | CA14: 105.2 | CB14: 105.2 | CC14: 105.2 | CD14: 105.9 | CE14: 106 | CF14: 106.3 | CG14: 106.6 | CH14: 108 | CI14: 107.8 | CJ14: 107.7 | CK14: 108 | CL14: 108.4 | CM14: 108 | CN14: 108.2 | CO14: 108.4 | CP14: 108.9 | CQ14: 109.4 | CR14: 109.4
A15: グラフ10 | B15: PR02'PRLC00_9999999999 | C15: 人件費 | D15: $CR$16 | E15: =IF(D15="","",(Reiwa漢字(INDIRECT(D15,TRUE))&" 時点")) -> 令和8年2月 時点 | F15: 人件費 | G15: 9.1 | H15: =_xlfn.IFS(ISERROR(J15),"",J15="","",F15="為替","",J15>0,"％ｕｐ",J15<0,"％ｄｏｗｎ",J15=0,"") -> ％ｕｐ | J15: =($CR$15-$W$15) /$W$15* 100 -> 9.144542773 | W15: 101.7 | X15: 101.2 | Y15: 100.1 | Z15: 99.4 | AA15: 98.7 | AB15: 99.7 | AC15: 99.7 | AD15: 99.8 | AE15: 100.5 | AF15: 100.5 | AG15: 99.9 | AH15: 99.6 | AI15: 100.5 | AJ15: 100.8 | AK15: 100.5 | AL15: 100.8 | AM15: 100.5 | AN15: 99.9 | AO15: 100.4 | AP15: 100.6 | AQ15: 100.6 | AR15: 100.9 | AS15: 100.7 | AT15: 99.1 | AU15: 101.6 | AV15: 102 | AW15: 102.5 | AX15: 102.2 | AY15: 101.6 | AZ15: 101.5 | BA15: 101.9 | BB15: 102.5 | BC15: 102.8 | BD15: 102.2 | BE15: 103 | BF15: 102.8 | BG15: 102.8 | BH15: 103 | BI15: 103.8 | BJ15: 103.3 | BK15: 104.5 | BL15: 103.3 | BM15: 102.9 | BN15: 103.6 | BO15: 103.6 | BP15: 104 | BQ15: 103.4 | BR15: 103.5 | BS15: 104.7 | BT15: 104.4 | BU15: 104.9 | BV15: 105 | BW15: 106.5 | BX15: 107.8 | BY15: 106.5 | BZ15: 106.5 | CA15: 106.4 | CB15: 106.5 | CC15: 107.4 | CD15: 107.6 | CE15: 106.8 | CF15: 107.5 | CG15: 107.3 | CH15: 107.6 | CI15: 107.8 | CJ15: 110.7 | CK15: 110.1 | CL15: 108.3 | CM15: 108.8 | CN15: 109.1 | CO15: 109.3 | CP15: 110.1 | CQ15: 109.3 | CR15: 111
K16: 2019-01-01 | L16: 2019-02-01 | M16: 2019-03-01 | N16: 2019-04-01 | O16: 2019-05-01 | P16: 2019-06-01 | Q16: 2019-07-01 | R16: 2019-08-01 | S16: 2019-09-01 | T16: 2019-10-01 | U16: 2019-11-01 | V16: 2019-12-01 | W16: 2020-01-01 | X16: 2020-02-01 | Y16: 2020-03-01 | Z16: 2020-04-01 | AA16: 2020-05-01 | AB16: 2020-06-01 | AC16: 2020-07-01 | AD16: 2020-08-01 | AE16: 2020-09-01 | AF16: 2020-10-01 | AG16: 2020-11-01 | AH16: 2020-12-01 | AI16: 2021-01-01 | AJ16: 2021-02-01 | AK16: 2021-03-01 | AL16: 2021-04-01 | AM16: 2021-05-01 | AN16: 2021-06-01 | AO16: 2021-07-01 | AP16: 2021-08-01 | AQ16: 2021-09-01 | AR16: 2021-10-01 | AS16: 2021-11-01 | AT16: 2021-12-01 | AU16: 2022-01-01 | AV16: 2022-02-01 | AW16: 2022-03-01 | AX16: 2022-04-01 | AY16: 2022-05-01 | AZ16: 2022-06-01 | BA16: 2022-07-01 | BB16: 2022-08-01 | BC16: 2022-09-01 | BD16: 2022-10-01 | BE16: 2022-11-01 | BF16: 2022-12-01 | BG16: 2023-01-01 | BH16: 2023-02-01 | BI16: 2023-03-01 | BJ16: 2023-04-01 | BK16: 2023-05-01 | BL16: 2023-06-01 | BM16: 2023-07-01 | BN16: 2023-08-01 | BO16: 2023-09-01 | BP16: 2023-10-01 | BQ16: 2023-11-01 | BR16: 2023-12-01 | BS16: 2024-01-01 | BT16: 2024-02-01 | BU16: 2024-03-01 | BV16: 2024-04-01 | BW16: 2024-05-01 | BX16: 2024-06-01 | BY16: 2024-07-01 | BZ16: 2024-08-01 | CA16: 2024-09-01 | CB16: 2024-10-01 | CC16: 2024-11-01 | CD16: 2024-12-01 | CE16: 2025-01-01 | CF16: 2025-02-01 | CG16: 2025-03-01 | CH16: 2025-04-01 | CI16: 2025-05-01 | CJ16: 2025-06-01 | CK16: 2025-07-01 | CL16: 2025-08-01 | CM16: 2025-09-01 | CN16: 2025-10-01 | CO16: 2025-11-01 | CP16: 2025-12-01 | CQ16: 2026-01-01 | CR16: 2026-02-01 | CS16: 2026-03-01
K375: 105.6 | L375: 105.6 | M375: 105.6 | N375: 98.6 | O375: 98.6 | P375: 98.6 | Q375: 96.7 | R375: 96.7 | S375: 96.7 | T375: 99.1 | U375: 99.1 | V375: 99.1 | W375: 95.4 | X375: 95.4 | Y375: 96.8 | Z375: 104.7 | AA375: 104.7 | AB375: 104.7 | AC375: 123.9 | AD375: 123.9 | AE375: 123.9 | AF375: 142.4 | AG375: 142.4 | AH375: 142.4 | AI375: 169.5 | AJ375: 169.5 | AK375: 169.5 | AL375: 209.9 | AM375: 209.9 | AN375: 209.9 | AO375: 231.7 | AP375: 231.7 | AQ375: 231.7 | AR375: 202.2 | AS375: 202.2 | AT375: 202.2
K376: 105.6 | L376: 105.6 | M376: 105.6 | N376: 98.6 | O376: 98.6 | P376: 98.6 | Q376: 96.7 | R376: 96.7 | S376: 96.7 | T376: 99.1 | U376: 99.1 | V376: 99.1 | W376: 95.4 | X376: 95.4 | Y376: 96.8 | Z376: 104.7 | AA376: 104.7 | AB376: 104.7 | AC376: 123.9 | AD376: 123.9 | AE376: 123.9 | AF376: 142.4 | AG376: 142.4 | AH376: 142.4 | AI376: 169.5 | AJ376: 169.5 | AK376: 169.5 | AL376: 209.9 | AM376: 209.9 | AN376: 209.9 | AO376: 231.7 | AP376: 231.7 | AQ376: 231.7 | AR376: 202.2 | AS376: 202.2 | AT376: 202.2
K377: 105.6 | L377: 105.6 | M377: 105.6 | N377: 98.6 | O377: 98.6 | P377: 98.6 | Q377: 96.7 | R377: 96.7 | S377: 96.7 | T377: 99.1 | U377: 99.1 | V377: 99.1 | W377: 95.4 | X377: 95.4 | Y377: 96.8 | Z377: 104.7 | AA377: 104.7 | AB377: 104.7 | AC377: 123.9 | AD377: 123.9 | AE377: 123.9 | AF377: 142.4 | AG377: 142.4 | AH377: 142.4 | AI377: 169.5 | AJ377: 169.5 | AK377: 169.5 | AL377: 209.9 | AM377: 209.9 | AN377: 209.9 | AO377: 231.7 | AP377: 231.7 | AQ377: 231.7 | AR377: 202.2 | AS377: 202.2 | AT377: 202.2
K378: 102.1 | L378: 101.9 | M378: 101.5 | N378: 100 | O378: 99.5 | P378: 99.2 | Q378: 99.1 | R378: 99.1 | S378: 99.1 | T378: 99.2 | U378: 99.4 | V378: 99.8 | W378: 101.5 | X378: 102.3 | Y378: 103.1 | Z378: 107.9 | AA378: 109.7 | AB378: 112 | AC378: 115 | AD378: 117 | AE378: 118.7 | AF378: 128.3 | AG378: 131.1 | AH378: 132 | AI378: 134.5 | AJ378: 135.2 | AK378: 136.2 | AL378: 141.1 | AM378: 143.5 | AN378: 145.5 | AO378: 151 | AP378: 152.6 | AQ378: 153.9 | AR378: 161.4 | AS378: 161.7 | AT378: 161.4
K379: 102.9 | L379: 102.7 | M379: 102.2 | N379: 100 | O379: 99.2 | P379: 99 | Q379: 98.9 | R379: 98.9 | S379: 98.8 | T379: 98.7 | U379: 99.1 | V379: 99.7 | W379: 102 | X379: 103.2 | Y379: 104.3 | Z379: 108.8 | AA379: 111.4 | AB379: 114.5 | AC379: 117.9 | AD379: 120.3 | AE379: 122.2 | AF379: 131 | AG379: 134.5 | AH379: 135.7 | AI379: 138.3 | AJ379: 139 | AK379: 140.3 | AL379: 145.4 | AM379: 147.8 | AN379: 149.5 | AO379: 156 | AP379: 157.9 | AQ379: 159.4 | AR379: 165.7 | AS379: 166.1 | AT379: 165.9
K380: 105 | L380: 104.3 | M380: 103.3 | N380: 99.9 | O380: 97.4 | P380: 98 | Q380: 98.5 | R380: 97.8 | S380: 97.7 | T380: 98.4 | U380: 99 | V380: 100.7 | W380: 107.7 | X380: 108.9 | Y380: 110.3 | Z380: 113.4 | AA380: 115.5 | AB380: 123.2 | AC380: 125.8 | AD380: 129.6 | AE380: 131.6 | AF380: 133.6 | AG380: 137.4 | AH380: 138.5 | AI380: 139.7 | AJ380: 140.2 | AK380: 142.6 | AL380: 150.4 | AM380: 155.1 | AN380: 157.1 | AO380: 159.4 | AP380: 160.3 | AQ380: 160.4 | AR380: 160.4 | AS380: 159.9 | AT380: 159.9
K381: 104.7 | L381: 103.7 | M381: 102.3 | N381: 101.1 | O381: 98.7 | P381: 97.3 | Q381: 97.4 | R381: 98 | S381: 98 | T381: 98 | U381: 99.5 | V381: 101.2 | W381: 103.8 | X381: 106.3 | Y381: 108.8 | Z381: 111.7 | AA381: 115.4 | AB381: 119.1 | AC381: 123.1 | AD381: 126.4 | AE381: 128.2 | AF381: 130.3 | AG381: 133.7 | AH381: 136.6 | AI381: 138 | AJ381: 140 | AK381: 145.2 | AL381: 148.9 | AM381: 153.9 | AN381: 158.3 | AO381: 159.8 | AP381: 160.6 | AQ381: 161.9 | AR381: 159.7 | AS381: 161.8 | AT381: 161.4
K382: 102.2 | L382: 102.2 | M382: 102.2 | N382: 99.6 | O382: 99.6 | P382: 99.6 | Q382: 99.6 | R382: 99.6 | S382: 99.6 | T382: 98.7 | U382: 98.7 | V382: 98.7 | W382: 99.9 | X382: 99.9 | Y382: 101 | Z382: 104.5 | AA382: 107.3 | AB382: 110 | AC382: 114.5 | AD382: 116 | AE382: 117.2 | AF382: 124.8 | AG382: 128.2 | AH382: 129.1 | AI382: 130.6 | AJ382: 130.6 | AK382: 132 | AL382: 133.9 | AM382: 136.6 | AN382: 138.1 | AO382: 138.9 | AP382: 144.1 | AQ382: 144.6 | AR382: 144.1 | AS382: 151.3 | AT382: 149.5
K383: 103.8 | L383: 103.9 | M383: 103.8 | N383: 99.5 | O383: 99.4 | P383: 99.4 | Q383: 99.1 | R383: 99.1 | S383: 98.7 | T383: 97.7 | U383: 97.7 | V383: 97.7 | W383: 99.9 | X383: 99.9 | Y383: 100.5 | Z383: 105.4 | AA383: 109.5 | AB383: 112.6 | AC383: 115.3 | AD383: 122.1 | AE383: 125.3 | AF383: 133.7 | AG383: 147.2 | AH383: 150.1 | AI383: 156.1 | AJ383: 156.1 | AK383: 156.1 | AL383: 157.2 | AM383: 158.9 | AN383: 159 | AO383: 168.8 | AP383: 175.7 | AQ383: 183.2 | AR383: 182 | AS383: 181.4 | AT383: 181.4
K384: 102.5 | L384: 102.5 | M384: 102.5 | N384: 99.7 | O384: 99.6 | P384: 99.4 | Q384: 98.8 | R384: 98.8 | S384: 98.8 | T384: 98.9 | U384: 99 | V384: 99.3 | W384: 101.8 | X384: 104.3 | Y384: 105.6 | Z384: 113.2 | AA384: 117.5 | AB384: 121.8 | AC384: 127.1 | AD384: 128 | AE384: 129.4 | AF384: 144.8 | AG384: 144.8 | AH384: 144.8 | AI384: 147.5 | AJ384: 147.5 | AK384: 147.5 | AL384: 153.9 | AM384: 154.7 | AN384: 155.9 | AO384: 168.3 | AP384: 168.3 | AQ384: 169 | AR384: 183 | AS384: 183 | AT384: 183
K385: 98.9 | L385: 101.5 | M385: 100.4 | N385: 101.5 | O385: 101.5 | P385: 100.3 | Q385: 100.5 | R385: 101.3 | S385: 101.1 | T385: 98.1 | U385: 97.8 | V385: 97.2 | W385: 95.9 | X385: 98.1 | Y385: 96.9 | Z385: 100.1 | AA385: 98.8 | AB385: 99.3 | AC385: 102 | AD385: 102.5 | AE385: 102.1 | AF385: 106.1 | AG385: 107.7 | AH385: 107.3 | AI385: 109 | AJ385: 109.1 | AK385: 109.1 | AL385: 111.3 | AM385: 112.2 | AN385: 112.2 | AO385: 119.4 | AP385: 119.9 | AQ385: 119.9 | AR385: 117.4 | AS385: 117.4 | AT385: 117.4
K386: 100.8 | L386: 100.8 | M386: 100.8 | N386: 99.9 | O386: 99.9 | P386: 99.9 | Q386: 99.9 | R386: 99.9 | S386: 99.6 | T386: 99.5 | U386: 99.5 | V386: 99.5 | W386: 99.9 | X386: 99.9 | Y386: 100.3 | Z386: 102.5 | AA386: 102.9 | AB386: 102.9 | AC386: 104.8 | AD386: 104.8 | AE386: 108.3 | AF386: 118.1 | AG386: 118.5 | AH386: 118.5 | AI386: 120.7 | AJ386: 120.7 | AK386: 120.7 | AL386: 126.9 | AM386: 126.9 | AN386: 126.9 | AO386: 131.7 | AP386: 132.6 | AQ386: 132.6 | AR386: 148.2 | AS386: 148.2 | AT386: 148.2
K387: 100.6 | L387: 100.6 | M387: 100.6 | N387: 99.9 | O387: 99.9 | P387: 99.9 | Q387: 99.9 | R387: 99.9 | S387: 99.6 | T387: 99.7 | U387: 99.7 | V387: 99.7 | W387: 100.2 | X387: 100.2 | Y387: 100.2 | Z387: 101.1 | AA387: 101.4 | AB387: 101.4 | AC387: 103.7 | AD387: 104.2 | AE387: 106.7 | AF387: 114.5 | AG387: 114.5 | AH387: 114.9 | AI387: 118.2 | AJ387: 118.2 | AK387: 118.6 | AL387: 127.9 | AM387: 127.9 | AN387: 127.6 | AO387: 134 | AP387: 134 | AQ387: 134.9 | AR387: 148 | AS387: 147.9 | AT387: 147.5
K388: 101.9 | L388: 101.5 | M388: 100.9 | N388: 99.8 | O388: 99.5 | P388: 99.1 | Q388: 98.9 | R388: 98.9 | S388: 99 | T388: 99.8 | U388: 100.1 | V388: 100.5 | W388: 101.3 | X388: 101.7 | Y388: 102.5 | Z388: 107.8 | AA388: 108.3 | AB388: 109.1 | AC388: 110.9 | AD388: 112 | AE388: 113 | AF388: 125.1 | AG388: 127.3 | AH388: 128.2 | AI388: 129.6 | AJ388: 132.4 | AK388: 133.5 | AL388: 138.4 | AM388: 141.6 | AN388: 145.2 | AO388: 150.5 | AP388: 152.7 | AQ388: 152.6 | AR388: 163.4 | AS388: 163 | AT388: 163
K389: 101.1 | L389: 101 | M389: 100.5 | N389: 100.3 | O389: 99.7 | P389: 99.7 | Q389: 99.7 | R389: 99.8 | S389: 99.8 | T389: 99.4 | U389: 99.5 | V389: 99.5 | W389: 99.7 | X389: 101 | Y389: 101 | Z389: 107 | AA389: 107.4 | AB389: 108.6 | AC389: 111.8 | AD389: 114.4 | AE389: 115.7 | AF389: 121.4 | AG389: 123.1 | AH389: 123.6 | AI389: 124.5 | AJ389: 124.6 | AK389: 125.1 | AL389: 128 | AM389: 130.9 | AN389: 133.5 | AO389: 136.9 | AP389: 139.6 | AQ389: 140.3 | AR389: 139.9 | AS389: 139.9 | AT389: 140
K390: 101.2 | L390: 101.2 | M390: 100.6 | N390: 100.6 | O390: 99.9 | P390: 99.8 | Q390: 99.8 | R390: 99.8 | S390: 99.8 | T390: 99.1 | U390: 99.1 | V390: 99.1 | W390: 99.3 | X390: 100.8 | Y390: 100.8 | Z390: 108.2 | AA390: 108.7 | AB390: 110.4 | AC390: 114.6 | AD390: 118 | AE390: 119.6 | AF390: 126.3 | AG390: 128.3 | AH390: 129 | AI390: 130.2 | AJ390: 130.2 | AK390: 130.6 | AL390: 133 | AM390: 136.4 | AN390: 139.7 | AO390: 145.3 | AP390: 149.2 | AQ390: 150.4 | AR390: 149.2 | AS390: 149.2 | AT390: 149.2
K391: 100.7 | L391: 100.5 | M391: 100.2 | N391: 99.3 | O391: 99.3 | P391: 99.3 | Q391: 99.3 | R391: 99.6 | S391: 99.9 | T391: 100.4 | U391: 100.7 | V391: 100.7 | W391: 101 | X391: 101.5 | Y391: 101.8 | Z391: 103.5 | AA391: 103.5 | AB391: 103.2 | AC391: 103.5 | AD391: 103.7 | AE391: 104 | AF391: 106.5 | AG391: 107.2 | AH391: 107.2 | AI391: 107.2 | AJ391: 107.8 | AK391: 108.4 | AL391: 113 | AM391: 114.5 | AN391: 115.1 | AO391: 111.7 | AP391: 111 | AQ391: 110.1 | AR391: 112.2 | AS391: 112.2 | AT391: 112.5
K392: 101 | L392: 100.7 | M392: 100.6 | N392: 100 | O392: 99.8 | P392: 99.5 | Q392: 99.3 | R392: 99.3 | S392: 99.4 | T392: 99.8 | U392: 100.2 | V392: 100.3 | W392: 101 | X392: 101.5 | Y392: 101.8 | Z392: 105.5 | AA392: 106.4 | AB392: 107.5 | AC392: 109.7 | AD392: 111.3 | AE392: 112.9 | AF392: 121.3 | AG392: 124 | AH392: 125.1 | AI392: 127.7 | AJ392: 128.5 | AK392: 128.8 | AL392: 132.7 | AM392: 136.4 | AN392: 139.4 | AO392: 143.5 | AP392: 144.7 | AQ392: 146.3 | AR392: 155.4 | AS392: 155.2 | AT392: 154.3
K393: 101.2 | L393: 101.2 | M393: 101.2 | N393: 99.6 | O393: 99.6 | P393: 99.6 | Q393: 99.2 | R393: 99.2 | S393: 99.2 | T393: 100 | U393: 100.1 | V393: 100.1 | W393: 101.2 | X393: 101.2 | Y393: 101.2 | Z393: 111.8 | AA393: 111.8 | AB393: 111.8 | AC393: 112.9 | AD393: 112.9 | AE393: 112.9 | AF393: 132.4 | AG393: 132.4 | AH393: 132.4 | AI393: 134.7 | AJ393: 134.7 | AK393: 135.3 | AL393: 142 | AM393: 142 | AN393: 142 | AO393: 148.8 | AP393: 148.8 | AQ393: 148.8 | AR393: 167.8 | AS393: 167.8 | AT393: 167.8
K394: 101.5 | L394: 101.5 | M394: 101.5 | N394: 100.3 | O394: 100.3 | P394: 99.7 | Q394: 99.2 | R394: 99.2 | S394: 99.2 | T394: 99.3 | U394: 99.3 | V394: 99.3 | W394: 100.6 | X394: 100.6 | Y394: 100.6 | Z394: 101.3 | AA394: 101.5 | AB394: 102.5 | AC394: 103.1 | AD394: 103.2 | AE394: 103.2 | AF394: 118 | AG394: 118 | AH394: 118 | AI394: 123.2 | AJ394: 123.2 | AK394: 123.2 | AL394: 127.8 | AM394: 133.9 | AN394: 133.9 | AO394: 141.8 | AP394: 141.8 | AQ394: 141.8 | AR394: 162.7 | AS394: 160 | AT394: 160
K395: 102.1 | L395: 102.1 | M395: 101.5 | N395: 100.8 | O395: 100.1 | P395: 99.3 | Q395: 99.1 | R395: 98.9 | S395: 98.9 | T395: 98.9 | U395: 99 | V395: 99.4 | W395: 101.5 | X395: 102.3 | Y395: 103.1 | Z395: 108.1 | AA395: 112.4 | AB395: 119.3 | AC395: 128.2 | AD395: 139.1 | AE395: 148.1 | AF395: 151.6 | AG395: 153.3 | AH395: 154.3 | AI395: 154.3 | AJ395: 154.3 | AK395: 154.3 | AL395: 154.3 | AM395: 158.5 | AN395: 166.3 | AO395: 170.4 | AP395: 177.4 | AQ395: 177.8 | AR395: 178.6 | AS395: 178.6 | AT395: 178.6
K396: 101.8 | L396: 101 | M396: 100.4 | N396: 99.4 | O396: 98.7 | P396: 99.1 | Q396: 98.8 | R396: 99 | S396: 99.6 | T396: 100.1 | U396: 100.8 | V396: 101.3 | W396: 101.8 | X396: 102.7 | Y396: 104.4 | Z396: 104.8 | AA396: 105.4 | AB396: 108 | AC396: 111.5 | AD396: 112.7 | AE396: 115.6 | AF396: 119.2 | AG396: 122.6 | AH396: 125 | AI396: 126.2 | AJ396: 128.4 | AK396: 130.3 | AL396: 137.1 | AM396: 147.3 | AN396: 152.9 | AO396: 153.7 | AP396: 154.4 | AQ396: 153.8 | AR396: 162.7 | AS396: 162.7 | AT396: 158.5
K397: 100.5 | L397: 99.4 | M397: 99.5 | N397: 101 | O397: 101.1 | P397: 99.3 | Q397: 99.3 | R397: 99.1 | S397: 99.2 | T397: 99.8 | U397: 101 | V397: 100.9 | W397: 100.9 | X397: 101.1 | Y397: 100.4 | Z397: 102.2 | AA397: 103.5 | AB397: 103.1 | AC397: 104.2 | AD397: 105.4 | AE397: 105.8 | AF397: 109 | AG397: 112.4 | AH397: 112.6 | AI397: 114.1 | AJ397: 114.8 | AK397: 112.2 | AL397: 114.2 | AM397: 116.8 | AN397: 117 | AO397: 118.8 | AP397: 123.5 | AQ397: 128.1 | AR397: 131.9 | AS397: 132 | AT397: 132
K398: 100.1 | L398: 100.1 | M398: 100.1 | N398: 100.1 | O398: 100.1 | P398: 99.9 | Q398: 99.9 | R398: 99.9 | S398: 99.9 | T398: 99.9 | U398: 99.9 | V398: 99.9 | W398: 99.9 | X398: 100.9 | Y398: 100.9 | Z398: 102.2 | AA398: 103.1 | AB398: 103.5 | AC398: 105 | AD398: 106.7 | AE398: 107.7 | AF398: 111.1 | AG398: 116.8 | AH398: 118.5 | AI398: 123.2 | AJ398: 124.1 | AK398: 124.6 | AL398: 125.1 | AM398: 126.2 | AN398: 131.5 | AO398: 135.5 | AP398: 135.5 | AQ398: 140 | AR398: 140 | AS398: 140 | AT398: 140
K399: 100.9 | L399: 100.9 | M399: 100.9 | N399: 99.9 | O399: 99.8 | P399: 99.7 | Q399: 99.5 | R399: 99.7 | S399: 99.7 | T399: 99.7 | U399: 99.7 | V399: 99.8 | W399: 100.9 | X399: 100.9 | Y399: 101.4 | Z399: 108.6 | AA399: 109.1 | AB399: 110.6 | AC399: 113.2 | AD399: 113.6 | AE399: 114.7 | AF399: 131.6 | AG399: 132.4 | AH399: 132.4 | AI399: 135.6 | AJ399: 135.6 | AK399: 136.8 | AL399: 143.9 | AM399: 144.4 | AN399: 145.7 | AO399: 150.4 | AP399: 150.4 | AQ399: 150.4 | AR399: 165.3 | AS399: 166.1 | AT399: 166.1
K400: 101 | L400: 101 | M400: 101 | N400: 99.9 | O400: 99.9 | P400: 99.8 | Q400: 99.6 | R400: 99.6 | S400: 99.6 | T400: 99.5 | U400: 99.6 | V400: 99.7 | W400: 101 | X400: 101 | Y400: 101.5 | Z400: 109.4 | AA400: 110 | AB400: 111.1 | AC400: 114 | AD400: 114.6 | AE400: 115.6 | AF400: 134.3 | AG400: 135.2 | AH400: 135.2 | AI400: 138.8 | AJ400: 138.8 | AK400: 139.6 | AL400: 147.3 | AM400: 147.9 | AN400: 149.1 | AO400: 152.8 | AP400: 152.8 | AQ400: 152.8 | AR400: 169.6 | AS400: 169.6 | AT400: 169.6
K401: 100.1 | L401: 100.1 | M401: 100.1 | N401: 99.3 | O401: 99.3 | P401: 99.3 | Q401: 99.3 | R401: 100.6 | S401: 100.6 | T401: 100.6 | U401: 100.6 | V401: 100.6 | W401: 100.6 | X401: 100.6 | Y401: 100.6 | Z401: 102.9 | AA401: 102.9 | AB401: 106.7 | AC401: 106.7 | AD401: 106.7 | AE401: 108 | AF401: 111.9 | AG401: 111.9 | AH401: 111.9 | AI401: 111.9 | AJ401: 111.9 | AK401: 116.5 | AL401: 118.4 | AM401: 118.4 | AN401: 120.3 | AO401: 133.3 | AP401: 133.3 | AQ401: 133.3 | AR401: 133.3 | AS401: 139.8 | AT401: 139.8
K402: 100.4 | L402: 100.8 | M402: 100.8 | N402: 100.4 | O402: 100.3 | P402: 100.1 | Q402: 99.6 | R402: 99.4 | S402: 99.5 | T402: 99.7 | U402: 99.5 | V402: 99.5 | W402: 100 | X402: 100.2 | Y402: 100.3 | Z402: 102.6 | AA402: 102.9 | AB402: 103.1 | AC402: 103.7 | AD402: 104.9 | AE402: 105.1 | AF402: 108.2 | AG402: 109.5 | AH402: 109.6 | AI402: 110.4 | AJ402: 111.2 | AK402: 111.3 | AL402: 114.5 | AM402: 115.8 | AN402: 116.8 | AO402: 118.9 | AP402: 120.7 | AQ402: 121.5 | AR402: 122.5 | AS402: 122.7 | AT402: 123.1
K403: 100.5 | L403: 100.9 | M403: 100.9 | N403: 100.5 | O403: 100.2 | P403: 100.2 | Q403: 99.6 | R403: 99.3 | S403: 99.3 | T403: 99.7 | U403: 99.4 | V403: 99.4 | W403: 100 | X403: 100.2 | Y403: 100.3 | Z403: 102.7 | AA403: 103.1 | AB403: 103.3 | AC403: 103.9 | AD403: 104.1 | AE403: 104.6 | AF403: 108 | AG403: 109.4 | AH403: 109.4 | AI403: 109.8 | AJ403: 110.5 | AK403: 110.6 | AL403: 114.1 | AM403: 115.4 | AN403: 116.5 | AO403: 118.7 | AP403: 120.6 | AQ403: 121.6 | AR403: 122.8 | AS403: 122.6 | AT403: 122.9
K404: 100 | L404: 100.8 | M404: 100.8 | N404: 100.5 | O404: 100.2 | P404: 100.1 | Q404: 100.1 | R404: 99.8 | S404: 99.8 | T404: 99.6 | U404: 99.2 | V404: 99.1 | W404: 99.1 | X404: 99.2 | Y404: 99.3 | Z404: 99.9 | AA404: 100.1 | AB404: 100.4 | AC404: 100.5 | AD404: 100.6 | AE404: 101.5 | AF404: 103.6 | AG404: 105.6 | AH404: 105.6 | AI404: 105.7 | AJ404: 106.2 | AK404: 106.2 | AL404: 109.1 | AM404: 110.5 | AN404: 112.5 | AO404: 113.5 | AP404: 115.7 | AQ404: 117.2 | AR404: 119.4 | AS404: 120.2 | AT404: 120.7
K405: 101.1 | L405: 101 | M405: 101 | N405: 100.4 | O405: 100.4 | P405: 100.4 | Q405: 98.8 | R405: 98.7 | S405: 98.7 | T405: 99.7 | U405: 99.8 | V405: 99.9 | W405: 101.3 | X405: 101.7 | Y405: 101.7 | Z405: 106.7 | AA405: 107.4 | AB405: 107.4 | AC405: 108.8 | AD405: 109.1 | AE405: 109.1 | AF405: 114.3 | AG405: 114.8 | AH405: 114.8 | AI405: 115.6 | AJ405: 116.5 | AK405: 116.8 | AL405: 121.2 | AM405: 122.2 | AN405: 122.2 | AO405: 126 | AP405: 127.5 | AQ405: 127.8 | AR405: 127.5 | AS405: 125.9 | AT405: 125.9
K406: 99.1 | L406: 99.8 | M406: 100 | N406: 99.1 | O406: 101.1 | P406: 99.4 | Q406: 99.9 | R406: 99.7 | S406: 100.8 | T406: 100.2 | U406: 99.9 | V406: 100.9 | W406: 100.1 | X406: 100 | Y406: 100.4 | Z406: 101.9 | AA406: 100.8 | AB406: 100.3 | AC406: 101.1 | AD406: 112.8 | AE406: 109.7 | AF406: 109.8 | AG406: 110.5 | AH406: 111.6 | AI406: 117 | AJ406: 119 | AK406: 118.4 | AL406: 118.6 | AM406: 120.3 | AN406: 119.9 | AO406: 121.6 | AP406: 121.5 | AQ406: 120.7 | AR406: 119.9 | AS406: 123.8 | AT406: 125.2
K407: 99.1 | L407: 99.8 | M407: 100 | N407: 99.1 | O407: 101.1 | P407: 99.4 | Q407: 99.9 | R407: 99.7 | S407: 100.8 | T407: 100.2 | U407: 99.9 | V407: 100.9 | W407: 100.1 | X407: 100 | Y407: 100.4 | Z407: 101.9 | AA407: 100.8 | AB407: 100.3 | AC407: 101.1 | AD407: 112.8 | AE407: 109.7 | AF407: 109.8 | AG407: 110.5 | AH407: 111.6 | AI407: 117 | AJ407: 119 | AK407: 118.4 | AL407: 118.6 | AM407: 120.3 | AN407: 119.9 | AO407: 121.6 | AP407: 121.5 | AQ407: 120.7 | AR407: 119.9 | AS407: 123.8 | AT407: 125.2
K408: 100.7 | L408: 100.7 | M408: 100.4 | N408: 100.3 | O408: 100.2 | P408: 99.9 | Q408: 99.6 | R408: 99.6 | S408: 99 | T408: 99.3 | U408: 99.5 | V408: 100.8 | W408: 105.4 | X408: 108 | Y408: 109 | Z408: 111.3 | AA408: 116.1 | AB408: 119.6 | AC408: 122.7 | AD408: 124.5 | AE408: 127.3 | AF408: 133.8 | AG408: 135.2 | AH408: 136.3 | AI408: 137.1 | AJ408: 137.3 | AK408: 138.7 | AL408: 144.9 | AM408: 146.4 | AN408: 147.8 | AO408: 149.4 | AP408: 154.7 | AQ408: 154.7 | AR408: 164.5 | AS408: 163.1 | AT408: 162.8
K409: 100.7 | L409: 100.7 | M409: 100.4 | N409: 100.3 | O409: 100.2 | P409: 99.9 | Q409: 99.6 | R409: 99.6 | S409: 99 | T409: 99.3 | U409: 99.5 | V409: 100.8 | W409: 105.4 | X409: 108 | Y409: 109 | Z409: 111.3 | AA409: 116.1 | AB409: 119.6 | AC409: 122.7 | AD409: 124.5 | AE409: 127.3 | AF409: 133.8 | AG409: 135.2 | AH409: 136.3 | AI409: 137.1 | AJ409: 137.3 | AK409: 138.7 | AL409: 144.9 | AM409: 146.4 | AN409: 147.8 | AO409: 149.4 | AP409: 154.7 | AQ409: 154.7 | AR409: 164.5 | AS409: 163.1 | AT409: 162.8
K410: 100.7 | L410: 100.7 | M410: 100.4 | N410: 100.3 | O410: 100.2 | P410: 99.9 | Q410: 99.6 | R410: 99.6 | S410: 99 | T410: 99.3 | U410: 99.5 | V410: 100.8 | W410: 105.4 | X410: 108 | Y410: 109 | Z410: 111.3 | AA410: 116.1 | AB410: 119.6 | AC410: 122.7 | AD410: 124.5 | AE410: 127.3 | AF410: 133.8 | AG410: 135.2 | AH410: 136.3 | AI410: 137.1 | AJ410: 137.3 | AK410: 138.7 | AL410: 144.9 | AM410: 146.4 | AN410: 147.8 | AO410: 149.4 | AP410: 154.7 | AQ410: 154.7 | AR410: 164.5 | AS410: 163.1 | AT410: 162.8
K411: 100.5 | L411: 99.1 | M411: 95.2 | N411: 93.4 | O411: 93.8 | P411: 96.4 | Q411: 99.7 | R411: 101.6 | S411: 102.6 | T411: 103.7 | U411: 104.9 | V411: 109.2 | W411: 112.4 | X411: 115.5 | Y411: 121.4 | Z411: 125 | AA411: 131.7 | AB411: 131.1 | AC411: 130.9 | AD411: 130.4 | AE411: 130.7 | AF411: 136.4 | AG411: 139.6 | AH411: 138.6 | AI411: 142.1 | AJ411: 144.4 | AK411: 149 | AL411: 155.7 | AM411: 153 | AN411: 152.4 | AO411: 144.3 | AP411: 144 | AQ411: 146.5 | AR411: 148 | AS411: 149 | AT411: 149
K412: 100 | L412: 97.8 | M412: 92.1 | N412: 89.7 | O412: 90.3 | P412: 94.3 | Q412: 99.5 | R412: 103.1 | S412: 105.1 | T412: 105.6 | U412: 108.2 | V412: 114.5 | W412: 118.9 | X412: 123.4 | Y412: 130.4 | Z412: 134 | AA412: 144.4 | AB412: 142.9 | AC412: 143 | AD412: 142.6 | AE412: 144 | AF412: 153.2 | AG412: 157.3 | AH412: 155.3 | AI412: 160.3 | AJ412: 162.7 | AK412: 170.8 | AL412: 179.2 | AM412: 173 | AN412: 171 | AO412: 156.2 | AP412: 156.8 | AQ412: 159.9 | AR412: 161.4 | AS412: 163.9 | AT412: 163.4
K413: 100.8 | L413: 95.2 | M413: 85.9 | N413: 83.2 | O413: 86 | P413: 94 | Q413: 103.1 | R413: 104.3 | S413: 107.4 | T413: 107.4 | U413: 111.3 | V413: 121.5 | W413: 124.7 | X413: 132.6 | Y413: 146.9 | Z413: 150 | AA413: 166.5 | AB413: 159.4 | AC413: 156.3 | AD413: 154.4 | AE413: 154.8 | AF413: 165.8 | AG413: 167.4 | AH413: 162.5 | AI413: 169.2 | AJ413: 171.4 | AK413: 181.8 | AL413: 192.2 | AM413: 180.2 | AN413: 182.2 | AO413: 155.6 | AP413: 162.1 | AQ413: 166.4 | AR413: 169.1 | AS413: 172.4 | AT413: 170.1
K414: 100.8 | L414: 95.2 | M414: 85.9 | N414: 83.2 | O414: 86 | P414: 94 | Q414: 103.1 | R414: 104.3 | S414: 107.4 | T414: 107.4 | U414: 111.3 | V414: 121.5 | W414: 124.7 | X414: 132.6 | Y414: 146.9 | Z414: 150 | AA414: 166.5 | AB414: 159.4 | AC414: 156.3 | AD414: 154.4 | AE414: 154.8 | AF414: 165.8 | AG414: 167.4 | AH414: 162.5 | AI414: 169.2 | AJ414: 171.4 | AK414: 181.8 | AL414: 192.2 | AM414: 180.2 | AN414: 182.2 | AO414: 155.6 | AP414: 162.1 | AQ414: 166.4 | AR414: 169.1 | AS414: 172.4 | AT414: 170.1
K415: 102.7 | L415: 102 | M415: 95.9 | N415: 91.6 | O415: 90.2 | P415: 94.8 | Q415: 98.4 | R415: 105.5 | S415: 106.3 | T415: 101.9 | U415: 104 | V415: 106.6 | W415: 109.2 | X415: 115.6 | Y415: 119.4 | Z415: 121.5 | AA415: 127.9 | AB415: 133.9 | AC415: 139.1 | AD415: 141.8 | AE415: 140.8 | AF415: 141.5 | AG415: 145 | AH415: 148.7 | AI415: 151 | AJ415: 154.1 | AK415: 161.2 | AL415: 167.6 | AM415: 165.4 | AN415: 157.2 | AO415: 146.4 | AP415: 140.7 | AQ415: 136.3 | AR415: 138.8 | AS415: 139.9 | AT415: 141.7
K416: 102.7 | L416: 102 | M416: 95.9 | N416: 91.6 | O416: 90.2 | P416: 94.8 | Q416: 98.4 | R416: 105.5 | S416: 106.3 | T416: 101.9 | U416: 104 | V416: 106.6 | W416: 109.2 | X416: 115.6 | Y416: 119.4 | Z416: 121.5 | AA416: 127.9 | AB416: 133.9 | AC416: 139.1 | AD416: 141.8 | AE416: 140.8 | AF416: 141.5 | AG416: 145 | AH416: 148.7 | AI416: 151 | AJ416: 154.1 | AK416: 161.2 | AL416: 167.6 | AM416: 165.4 | AN416: 157.2 | AO416: 146.4 | AP416: 140.7 | AQ416: 136.3 | AR416: 138.8 | AS416: 139.9 | AT416: 141.7
K417: 102.4 | L417: 102.3 | M417: 101 | N417: 96.9 | O417: 94.2 | P417: 94 | Q417: 94.2 | R417: 95.9 | S417: 99.1 | T417: 102.8 | U417: 106 | V417: 111.1 | W417: 118.4 | X417: 119.6 | Y417: 122.3 | Z417: 127.8 | AA417: 132.9 | AB417: 136.1 | AC417: 140.4 | AD417: 142.2 | AE417: 146.3 | AF417: 158.1 | AG417: 165.2 | AH417: 166.3 | AI417: 170.6 | AJ417: 173.1 | AK417: 177.6 | AL417: 184.8 | AM417: 184.9 | AN417: 176.9 | AO417: 172.2 | AP417: 166.8 | AQ417: 170.9 | AR417: 169.9 | AS417: 172 | AT417: 172.5
K418: 102.4 | L418: 102.3 | M418: 101 | N418: 96.9 | O418: 94.2 | P418: 94 | Q418: 94.2 | R418: 95.9 | S418: 99.1 | T418: 102.8 | U418: 106 | V418: 111.1 | W418: 118.4 | X418: 119.6 | Y418: 122.3 | Z418: 127.8 | AA418: 132.9 | AB418: 136.1 | AC418: 140.4 | AD418: 142.2 | AE418: 146.3 | AF418: 158.1 | AG418: 165.2 | AH418: 166.3 | AI418: 170.6 | AJ418: 173.1 | AK418: 177.6 | AL418: 184.8 | AM418: 184.9 | AN418: 176.9 | AO418: 172.2 | AP418: 166.8 | AQ418: 170.9 | AR418: 169.9 | AS418: 172 | AT418: 172.5
K419: 90.3 | L419: 92.1 | M419: 86.7 | N419: 90.1 | O419: 93.2 | P419: 95.6 | Q419: 102.3 | R419: 115.8 | S419: 112.6 | T419: 108.8 | U419: 106.4 | V419: 106.1 | W419: 107.9 | X419: 109.4 | Y419: 106.7 | Z419: 108.3 | AA419: 115.3 | AB419: 114.8 | AC419: 111.9 | AD419: 108.5 | AE419: 107.7 | AF419: 110 | AG419: 114.3 | AH419: 110 | AI419: 113.4 | AJ419: 115.7 | AK419: 125.9 | AL419: 132.6 | AM419: 126.3 | AN419: 130.5 | AO419: 124 | AP419: 124.8 | AQ419: 126 | AR419: 129.6 | AS419: 131.5 | AT419: 132.5
K420: 90.5 | L420: 92.8 | M420: 91 | N420: 95.9 | O420: 97.9 | P420: 98.8 | Q420: 103.7 | R420: 110.5 | S420: 107.8 | T420: 105.9 | U420: 103.3 | V420: 101.9 | W420: 102.6 | X420: 101.2 | Y420: 99.1 | Z420: 101.3 | AA420: 107.2 | AB420: 107.1 | AC420: 105.4 | AD420: 104 | AE420: 104 | AF420: 106.2 | AG420: 110 | AH420: 107.6 | AI420: 110.4 | AJ420: 113 | AK420: 122.1 | AL420: 129.2 | AM420: 125.8 | AN420: 130.1 | AO420: 125.8 | AP420: 126.1 | AQ420: 127.4 | AR420: 129.6 | AS420: 129.8 | AT420: 128.4
K421: 89.9 | L421: 90.1 | M421: 75.2 | N421: 74.7 | O421: 80.8 | P421: 87.2 | Q421: 98.4 | R421: 129.9 | S421: 125.2 | T421: 116.6 | U421: 114.5 | V421: 117.4 | W421: 122 | X421: 131.1 | Y421: 127 | Z421: 126.8 | AA421: 136.8 | AB421: 135.3 | AC421: 129.3 | AD421: 120.4 | AE421: 117.5 | AF421: 120 | AG421: 125.9 | AH421: 116.3 | AI421: 121.3 | AJ421: 122.9 | AK421: 136.1 | AL421: 141.7 | AM421: 127.7 | AN421: 131.4 | AO421: 119.2 | AP421: 121.2 | AQ421: 122.5 | AR421: 129.8 | AS421: 136 | AT421: 143.4
K422: 100.7 | L422: 99.6 | M422: 96.4 | N422: 94.9 | O422: 95.3 | P422: 97.2 | Q422: 99.7 | R422: 100.9 | S422: 101.6 | T422: 102.9 | U422: 103.6 | V422: 107 | W422: 109.8 | X422: 112.2 | Y422: 117.7 | Z422: 121.3 | AA422: 126.6 | AB422: 126.3 | AC422: 126 | AD422: 125.5 | AE422: 125.4 | AF422: 129.5 | AG422: 132.4 | AH422: 131.9 | AI422: 134.8 | AJ422: 137 | AK422: 140.1 | AL422: 146.2 | AM422: 144.9 | AN422: 144.8 | AO422: 139.5 | AP422: 138.8 | AQ422: 141.1 | AR422: 142.6 | AS422: 142.9 | AT422: 143.2
K423: 100 | L423: 96.9 | M423: 91.5 | N423: 89.2 | O423: 90.7 | P423: 95.6 | Q423: 101.7 | R423: 102.9 | S423: 104.8 | T423: 105.6 | U423: 107.3 | V423: 113.9 | W423: 116.6 | X423: 120.7 | Y423: 131.3 | Z423: 134.5 | AA423: 145.5 | AB423: 143.4 | AC423: 139.9 | AD423: 139 | AE423: 138.7 | AF423: 145.3 | AG423: 149.1 | AH423: 145.9 | AI423: 149.9 | AJ423: 151.3 | AK423: 157.1 | AL423: 167.3 | AM423: 161.3 | AN423: 161.5 | AO423: 145.3 | AP423: 146.7 | AQ423: 149.8 | AR423: 154.8 | AS423: 157.1 | AT423: 156.6
K424: 101.4 | L424: 97.9 | M424: 90.4 | N424: 85.4 | O424: 86.2 | P424: 92.2 | Q424: 100.5 | R424: 104.2 | S424: 106.5 | T424: 107.7 | U424: 110 | V424: 117.6 | W424: 123.2 | X424: 128.6 | Y424: 140.4 | Z424: 147.5 | AA424: 158.8 | AB424: 160.2 | AC424: 155.8 | AD424: 153.5 | AE424: 153.2 | AF424: 160.1 | AG424: 164.9 | AH424: 162.1 | AI424: 164.9 | AJ424: 168.5 | AK424: 175.6 | AL424: 185.8 | AM424: 181.6 | AN424: 179.2 | AO424: 163.4 | AP424: 158.4 | AQ424: 163.2 | AR424: 166.4 | AS424: 169.5 | AT424: 169.1
K425: 101.4 | L425: 97.5 | M425: 90.1 | N425: 86.1 | O425: 87.2 | P425: 93.1 | Q425: 100.9 | R425: 103.8 | S425: 106.2 | T425: 107.3 | U425: 109.4 | V425: 117.1 | W425: 121.8 | X425: 127.1 | Y425: 138.8 | Z425: 144.6 | AA425: 156 | AB425: 155.8 | AC425: 151.8 | AD425: 149.8 | AE425: 149.4 | AF425: 156.9 | AG425: 160.7 | AH425: 157.6 | AI425: 161.1 | AJ425: 164 | AK425: 171.2 | AL425: 180.9 | AM425: 175.4 | AN425: 174.1 | AO425: 157.4 | AP425: 154.9 | AQ425: 159.2 | AR425: 162.2 | AS425: 165.1 | AT425: 164.3
K426: 98.8 | L426: 96.2 | M426: 91.8 | N426: 90.1 | O426: 92 | P426: 96.6 | Q426: 102.2 | R426: 102.6 | S426: 104.4 | T426: 105.2 | U426: 106.9 | V426: 113.2 | W426: 115 | X426: 118.7 | Y426: 129.8 | Z426: 131.4 | AA426: 143.2 | AB426: 140.2 | AC426: 136.4 | AD426: 136.3 | AE426: 135.9 | AF426: 143.2 | AG426: 147.8 | AH426: 144.3 | AI426: 148.9 | AJ426: 149.5 | AK426: 154.7 | AL426: 164.3 | AM426: 158.1 | AN426: 158.8 | AO426: 141.8 | AP426: 144.9 | AQ426: 147.7 | AR426: 155.1 | AS426: 157.2 | AT426: 157
K427: 100.7 | L427: 97.8 | M427: 93.4 | N427: 92.2 | O427: 93.5 | P427: 97.1 | Q427: 101.4 | R427: 101.8 | S427: 103.3 | T427: 103.6 | U427: 105 | V427: 110 | W427: 111.5 | X427: 114.7 | Y427: 121.9 | Z427: 126.7 | AA427: 134.3 | AB427: 131.2 | AC427: 129.6 | AD427: 128.7 | AE427: 128.6 | AF427: 134.1 | AG427: 134.9 | AH427: 132.4 | AI427: 135.8 | AJ427: 136.6 | AK427: 141.5 | AL427: 163 | AM427: 157.2 | AN427: 158.5 | AO427: 146 | AP427: 149 | AQ427: 150.9 | AR427: 152.3 | AS427: 153.9 | AT427: 152.7
K428: 100.2 | L428: 96.8 | M428: 91.8 | N428: 90.3 | O428: 92.1 | P428: 96.6 | Q428: 102 | R428: 102.4 | S428: 104.2 | T428: 104.7 | U428: 106.4 | V428: 112.6 | W428: 114.3 | X428: 118.3 | Y428: 128.2 | Z428: 129.8 | AA428: 140.3 | AB428: 136.9 | AC428: 134 | AD428: 133.4 | AE428: 133 | AF428: 138.2 | AG428: 140.9 | AH428: 137.5 | AI428: 142 | AJ428: 142.6 | AK428: 148.3 | AL428: 156 | AM428: 149.2 | AN428: 150.4 | AO428: 134.3 | AP428: 137.9 | AQ428: 140.4 | AR428: 144.4 | AS428: 146.6 | AT428: 145.7
K429: 101.7 | L429: 100.8 | M429: 95.8 | N429: 90.9 | O429: 89.7 | P429: 91.5 | Q429: 98.1 | R429: 102.8 | S429: 104.2 | T429: 106.3 | U429: 106.9 | V429: 111.4 | W429: 117.1 | X429: 119.7 | Y429: 126.1 | Z429: 134.3 | AA429: 139.5 | AB429: 144.9 | AC429: 142.5 | AD429: 140.5 | AE429: 140.5 | AF429: 142.5 | AG429: 148.7 | AH429: 149.1 | AI429: 148.7 | AJ429: 152.4 | AK429: 156.8 | AL429: 164.2 | AM429: 169.3 | AN429: 164.3 | AO429: 159 | AP429: 148.8 | AQ429: 152.1 | AR429: 155.5 | AS429: 156.2 | AT429: 158.5
K430: 101.3 | L430: 100 | M430: 95.9 | N430: 91.4 | O430: 90.9 | P430: 91.6 | Q430: 99.1 | R430: 102.9 | S430: 103.7 | T430: 105.9 | U430: 106.6 | V430: 110.7 | W430: 115.7 | X430: 118.6 | Y430: 124.8 | Z430: 132 | AA430: 137.1 | AB430: 142.1 | AC430: 139.3 | AD430: 137.9 | AE430: 137.1 | AF430: 139.8 | AG430: 144.9 | AH430: 144.3 | AI430: 144 | AJ430: 147.5 | AK430: 150.9 | AL430: 158.5 | AM430: 160.9 | AN430: 156.8 | AO430: 151.8 | AP430: 142.9 | AQ430: 146.7 | AR430: 148.3 | AS430: 150.3 | AT430: 152.7
K431: 102.1 | L431: 101.8 | M431: 95.7 | N431: 90.2 | O431: 88.3 | P431: 91.4 | Q431: 97 | R431: 102.6 | S431: 104.7 | T431: 106.8 | U431: 107.2 | V431: 112.2 | W431: 118.8 | X431: 121 | Y431: 127.6 | Z431: 137.1 | AA431: 142.3 | AB431: 148.4 | AC431: 146.4 | AD431: 143.6 | AE431: 144.6 | AF431: 145.8 | AG431: 153.3 | AH431: 154.8 | AI431: 154.4 | AJ431: 158.4 | AK431: 163.9 | AL431: 171.1 | AM431: 179.5 | AN431: 173.2 | AO431: 167.6 | AP431: 155.9 | AQ431: 158.5 | AR431: 164 | AS431: 163.3 | AT431: 165.5
K432: 101.6 | L432: 101.6 | M432: 101.6 | N432: 101.6 | O432: 101.6 | P432: 101.6 | Q432: 97.8 | R432: 97.3 | S432: 97.5 | T432: 99.3 | U432: 99.1 | V432: 99.3 | W432: 100.8 | X432: 100.8 | Y432: 101 | Z432: 105.2 | AA432: 105.5 | AB432: 105.5 | AC432: 110.3 | AD432: 110.4 | AE432: 110.9 | AF432: 114 | AG432: 115.7 | AH432: 117 | AI432: 120.4 | AJ432: 122.6 | AK432: 123.3 | AL432: 128.1 | AM432: 130.2 | AN432: 130.9 | AO432: 135.6 | AP432: 136.2 | AQ432: 139.5 | AR432: 138.3 | AS432: 134.9 | AT432: 136.4
K433: 101.6 | L433: 101.6 | M433: 101.6 | N433: 101.6 | O433: 101.6 | P433: 101.6 | Q433: 97.8 | R433: 97.3 | S433: 97.5 | T433: 99.3 | U433: 99.1 | V433: 99.3 | W433: 100.8 | X433: 100.8 | Y433: 101 | Z433: 105.2 | AA433: 105.5 | AB433: 105.5 | AC433: 110.3 | AD433: 110.4 | AE433: 110.9 | AF433: 114 | AG433: 115.7 | AH433: 117 | AI433: 120.4 | AJ433: 122.6 | AK433: 123.3 | AL433: 128.1 | AM433: 130.2 | AN433: 130.9 | AO433: 135.6 | AP433: 136.2 | AQ433: 139.5 | AR433: 138.3 | AS433: 134.9 | AT433: 136.4
K434: 100.8 | L434: 101 | M434: 101.1 | N434: 100.8 | O434: 100 | P434: 99.3 | Q434: 99 | R434: 99 | S434: 98.6 | T434: 99.7 | U434: 100 | V434: 100.7 | W434: 102.9 | X434: 104 | Y434: 106.1 | Z434: 107.7 | AA434: 109.4 | AB434: 110 | AC434: 111.5 | AD434: 112.3 | AE434: 112.9 | AF434: 115.2 | AG434: 116.4 | AH434: 118.5 | AI434: 120.4 | AJ434: 122.4 | AK434: 122.4 | AL434: 123.2 | AM434: 124.1 | AN434: 124.8 | AO434: 127.2 | AP434: 126.2 | AQ434: 125.8 | AR434: 122.7 | AS434: 123.2 | AT434: 123.1
K435: 101 | L435: 101 | M435: 102 | N435: 101.4 | O435: 99.4 | P435: 97.8 | Q435: 97.2 | R435: 96.8 | S435: 98 | T435: 100.4 | U435: 101 | V435: 104 | W435: 105.3 | X435: 107.3 | Y435: 113.9 | Z435: 117.5 | AA435: 120.4 | AB435: 122 | AC435: 126.8 | AD435: 127.5 | AE435: 127.2 | AF435: 131.9 | AG435: 133.2 | AH435: 136 | AI435: 139.2 | AJ435: 137.6 | AK435: 138.7 | AL435: 139.4 | AM435: 141.8 | AN435: 144.8 | AO435: 149.4 | AP435: 147.4 | AQ435: 146.4 | AR435: 140.5 | AS435: 141.6 | AT435: 141.6
K436: 100.8 | L436: 101.1 | M436: 100.8 | N436: 100.6 | O436: 100.3 | P436: 99.7 | Q436: 99.8 | R436: 99.9 | S436: 98.7 | T436: 99.3 | U436: 99.5 | V436: 99.5 | W436: 102.3 | X436: 103.3 | Y436: 103.9 | Z436: 105.2 | AA436: 106.7 | AB436: 107.1 | AC436: 107.2 | AD436: 108 | AE436: 109.2 | AF436: 110.8 | AG436: 112.1 | AH436: 114.2 | AI436: 115.8 | AJ436: 119.4 | AK436: 119 | AL436: 118.4 | AM436: 118.8 | AN436: 118.7 | AO436: 120.6 | AP436: 119.8 | AQ436: 119.4 | AR436: 117.3 | AS436: 117.7 | AT436: 117.6
K437: 100.6 | L437: 100.6 | M437: 100.6 | N437: 100.3 | O437: 100.3 | P437: 100.3 | Q437: 99.1 | R437: 99.1 | S437: 99.1 | T437: 100 | U437: 100 | V437: 100 | W437: 100.8 | X437: 100.8 | Y437: 100.8 | Z437: 99 | AA437: 99 | AB437: 99 | AC437: 100.9 | AD437: 100.9 | AE437: 100.9 | AF437: 101.9 | AG437: 102.3 | AH437: 102.3 | AI437: 103.1 | AJ437: 103.6 | AK437: 103.6 | AL437: 113.2 | AM437: 113.6 | AN437: 113.6 | AO437: 113.6 | AP437: 113.6 | AQ437: 114.4 | AR437: 113 | AS437: 112.2 | AT437: 112.2
K438: 98.8 | L438: 102.8 | M438: 86.6 | N438: 86 | O438: 89.6 | P438: 92.4 | Q438: 100.6 | R438: 109.7 | S438: 106.7 | T438: 108 | U438: 106.8 | V438: 111.9 | W438: 116.6 | X438: 125.5 | Y438: 129.4 | Z438: 133 | AA438: 133.4 | AB438: 127.7 | AC438: 123 | AD438: 117.8 | AE438: 111.4 | AF438: 114.9 | AG438: 117.1 | AH438: 112.3 | AI438: 117.1 | AJ438: 126.1 | AK438: 133.7 | AL438: 135 | AM438: 127.8 | AN438: 129.6 | AO438: 125.3 | AP438: 126.3 | AQ438: 128.8 | AR438: 135.2 | AS438: 134.5 | AT438: 132.5
K439: 98.8 | L439: 102.8 | M439: 86.6 | N439: 86 | O439: 89.6 | P439: 92.4 | Q439: 100.6 | R439: 109.7 | S439: 106.7 | T439: 108 | U439: 106.8 | V439: 111.9 | W439: 116.6 | X439: 125.5 | Y439: 129.4 | Z439: 133 | AA439: 133.4 | AB439: 127.7 | AC439: 123 | AD439: 117.8 | AE439: 111.4 | AF439: 114.9 | AG439: 117.1 | AH439: 112.3 | AI439: 117.1 | AJ439: 126.1 | AK439: 133.7 | AL439: 135 | AM439: 127.8 | AN439: 129.6 | AO439: 125.3 | AP439: 126.3 | AQ439: 128.8 | AR439: 135.2 | AS439: 134.5 | AT439: 132.5
K440: 99.8 | L440: 100 | M440: 100.5 | N440: 100.5 | O440: 99.9 | P440: 100.1 | Q440: 100.3 | R440: 100.1 | S440: 99.8 | T440: 99.9 | U440: 99.8 | V440: 99.4 | W440: 99.8 | X440: 100 | Y440: 100 | Z440: 100.1 | AA440: 99.9 | AB440: 100.1 | AC440: 101.5 | AD440: 101.8 | AE440: 102.4 | AF440: 103.4 | AG440: 104.5 | AH440: 105 | AI440: 106.2 | AJ440: 106.7 | AK440: 107.5 | AL440: 108.5 | AM440: 109.5 | AN440: 111.2 | AO440: 114 | AP440: 114.6 | AQ440: 115.5 | AR440: 117.3 | AS440: 118.1 | AT440: 118.4
K441: 99.5 | L441: 100 | M441: 101.1 | N441: 101.1 | O441: 99.8 | P441: 99.9 | Q441: 100.8 | R441: 100.4 | S441: 99.5 | T441: 99.9 | U441: 99.4 | V441: 98.5 | W441: 99.4 | X441: 99.7 | Y441: 99 | Z441: 98.9 | AA441: 98.4 | AB441: 98.7 | AC441: 100.5 | AD441: 100.5 | AE441: 101.9 | AF441: 103.5 | AG441: 105 | AH441: 105.2 | AI441: 106.7 | AJ441: 107 | AK441: 108.5 | AL441: 109.1 | AM441: 110.5 | AN441: 110.9 | AO441: 112 | AP441: 112.8 | AQ441: 113.3 | AR441: 115.5 | AS441: 116.2 | AT441: 116.5
K442: 99.8 | L442: 100.2 | M442: 101.8 | N442: 101.1 | O442: 99.5 | P442: 100.2 | Q442: 101.6 | R442: 100.5 | S442: 99 | T442: 99.7 | U442: 98.9 | V442: 97.6 | W442: 99.3 | X442: 99.6 | Y442: 98 | Z442: 97.8 | AA442: 97.2 | AB442: 97.9 | AC442: 100.3 | AD442: 99.9 | AE442: 102.3 | AF442: 104.2 | AG442: 105.9 | AH442: 107.9 | AI442: 109.3 | AJ442: 110 | AK442: 112.4 | AL442: 112.1 | AM442: 113.3 | AN442: 114.3 | AO442: 115.3 | AP442: 116.8 | AQ442: 117.3 | AR442: 119.2 | AS442: 120.3 | AT442: 121.2
K443: 99.5 | L443: 99.9 | M443: 101.9 | N443: 101.2 | O443: 99.2 | P443: 100.3 | Q443: 102.1 | R443: 100.8 | S443: 99 | T443: 99.6 | U443: 99.2 | V443: 97.5 | W443: 99.7 | X443: 99.8 | Y443: 97.8 | Z443: 97.5 | AA443: 96.6 | AB443: 97.4 | AC443: 100 | AD443: 99.2 | AE443: 102 | AF443: 104.4 | AG443: 106.1 | AH443: 108.8 | AI443: 110.9 | AJ443: 111.2 | AK443: 114.1 | AL443: 113.9 | AM443: 115.4 | AN443: 116.9 | AO443: 118.2 | AP443: 120.2 | AQ443: 120.5 | AR443: 123.1 | AS443: 124.4 | AT443: 125.5
K444: 100.8 | L444: 101.6 | M444: 101.7 | N444: 100.7 | O444: 101.1 | P444: 100.1 | Q444: 99.8 | R444: 99 | S444: 98.9 | T444: 100.5 | U444: 97.8 | V444: 97.9 | W444: 97.8 | X444: 98.8 | Y444: 98.9 | Z444: 99 | AA444: 99.8 | AB444: 100.3 | AC444: 101.8 | AD444: 103.1 | AE444: 103.6 | AF444: 102.9 | AG444: 105.1 | AH444: 104.1 | AI444: 102.6 | AJ444: 105 | AK444: 104.9 | AL444: 104 | AM444: 104.2 | AN444: 102.6 | AO444: 102.4 | AP444: 102.2 | AQ444: 103.4 | AR444: 102.1 | AS444: 102.4 | AT444: 102.3
K445: 99.1 | L445: 99.8 | M445: 100 | N445: 101.1 | O445: 100.3 | P445: 99.3 | Q445: 99.5 | R445: 100.4 | S445: 100.3 | T445: 100.1 | U445: 100.2 | V445: 100 | W445: 99.6 | X445: 99.8 | Y445: 100.6 | Z445: 100.5 | AA445: 100.2 | AB445: 100 | AC445: 100.8 | AD445: 101.5 | AE445: 101.2 | AF445: 102.4 | AG445: 103.6 | AH445: 101.1 | AI445: 102.6 | AJ445: 102.4 | AK445: 102.7 | AL445: 104.6 | AM445: 106.3 | AN445: 105.8 | AO445: 107.1 | AP445: 106.6 | AQ445: 107.2 | AR445: 109.9 | AS445: 109.9 | AT445: 109.4
K446: 99.1 | L446: 99.6 | M446: 99.6 | N446: 100.7 | O446: 99.5 | P446: 99.3 | Q446: 99.5 | R446: 100 | S446: 101 | T446: 101.2 | U446: 100.7 | V446: 99.9 | W446: 99 | X446: 99.2 | Y446: 99.7 | Z446: 100.3 | AA446: 100.4 | AB446: 100.2 | AC446: 100.4 | AD446: 100.6 | AE446: 100.9 | AF446: 101.2 | AG446: 101.8 | AH446: 100.7 | AI446: 100.3 | AJ446: 100.3 | AK446: 101.6 | AL446: 103.2 | AM446: 104.4 | AN446: 106.4 | AO446: 106.5 | AP446: 106.1 | AQ446: 106.5 | AR446: 107.3 | AS446: 107.5 | AT446: 106.9
K447: 99.4 | L447: 99.2 | M447: 101 | N447: 103.1 | O447: 102.4 | P447: 99.2 | Q447: 98.9 | R447: 101 | S447: 98.9 | T447: 98.9 | U447: 99.2 | V447: 98.7 | W447: 98.8 | X447: 100.4 | Y447: 102.1 | Z447: 101.1 | AA447: 99.8 | AB447: 99.9 | AC447: 103 | AD447: 102.5 | AE447: 100.6 | AF447: 105.2 | AG447: 105.8 | AH447: 100.3 | AI447: 104 | AJ447: 103.2 | AK447: 99.6 | AL447: 103.7 | AM447: 106.6 | AN447: 102.4 | AO447: 103.1 | AP447: 104.1 | AQ447: 104.6 | AR447: 107.4 | AS447: 110.3 | AT447: 107.3
K448: 97.5 | L448: 101.7 | M448: 100.7 | N448: 99.3 | O448: 99.2 | P448: 99.1 | Q448: 100.4 | R448: 100.4 | S448: 100.7 | T448: 98.1 | U448: 100 | V448: 102.9 | W448: 103.1 | X448: 99.9 | Y448: 102.4 | Z448: 100.1 | AA448: 99.9 | AB448: 98.9 | AC448: 96.8 | AD448: 101.8 | AE448: 101.2 | AF448: 96.8 | AG448: 102.4 | AH448: 98.8 | AI448: 106.7 | AJ448: 107 | AK448: 109.8 | AL448: 109 | AM448: 108.3 | AN448: 106.3 | AO448: 114.9 | AP448: 109.3 | AQ448: 110.9 | AR448: 118.7 | AS448: 110.4 | AT448: 115.8
K449: 99.4 | L449: 100.1 | M449: 98.9 | N449: 99.8 | O449: 99.3 | P449: 99.5 | Q449: 100 | R449: 100.3 | S449: 100.7 | T449: 100.7 | U449: 100.7 | V449: 100.5 | W449: 100.5 | X449: 100.4 | Y449: 99.4 | Z449: 100.5 | AA449: 100.5 | AB449: 100.5 | AC449: 100.6 | AD449: 101.8 | AE449: 103.4 | AF449: 104.5 | AG449: 105.6 | AH449: 104.8 | AI449: 103.5 | AJ449: 103.8 | AK449: 106.1 | AL449: 107.2 | AM449: 109.5 | AN449: 109.4 | AO449: 110.1 | AP449: 110.5 | AQ449: 111.1 | AR449: 115.4 | AS449: 115.6 | AT449: 115.8
K450: 100.1 | L450: 100 | M450: 100 | N450: 100.1 | O450: 100 | P450: 100.2 | Q450: 99.9 | R450: 99.9 | S450: 100 | T450: 99.9 | U450: 100 | V450: 100 | W450: 100.1 | X450: 100.3 | Y450: 100.6 | Z450: 101 | AA450: 101 | AB450: 101.2 | AC450: 102.3 | AD450: 102.8 | AE450: 102.7 | AF450: 103.3 | AG450: 104.1 | AH450: 104.8 | AI450: 105.9 | AJ450: 106.4 | AK450: 106.7 | AL450: 108.1 | AM450: 108.8 | AN450: 111.5 | AO450: 115.4 | AP450: 116.1 | AQ450: 117.1 | AR450: 118.7 | AS450: 119.5 | AT450: 119.9
K451: 99.6 | L451: 99.5 | M451: 99.8 | N451: 100.2 | O451: 100.2 | P451: 99.6 | Q451: 99.9 | R451: 100.3 | S451: 100.2 | T451: 100.2 | U451: 100.2 | V451: 100.3 | W451: 100.1 | X451: 100 | Y451: 100 | Z451: 101 | AA451: 100.9 | AB451: 100.9 | AC451: 101 | AD451: 101.4 | AE451: 100.7 | AF451: 100.9 | AG451: 101.3 | AH451: 101.2 | AI451: 100.9 | AJ451: 101.2 | AK451: 101.5 | AL451: 102.7 | AM451: 102.6 | AN451: 103 | AO451: 104.6 | AP451: 105.9 | AQ451: 107.7 | AR451: 110.4 | AS451: 109.7 | AT451: 109.7
K452: 99.7 | L452: 99.5 | M452: 100 | N452: 100.2 | O452: 100.3 | P452: 99.7 | Q452: 99.8 | R452: 100.2 | S452: 100.2 | T452: 100 | U452: 100.1 | V452: 100.4 | W452: 100 | X452: 99.9 | Y452: 99.7 | Z452: 101 | AA452: 101 | AB452: 101 | AC452: 101 | AD452: 101.3 | AE452: 100.8 | AF452: 100.6 | AG452: 101.6 | AH452: 101.2 | AI452: 100.9 | AJ452: 101.6 | AK452: 101.7 | AL452: 103.2 | AM452: 103 | AN452: 103.5 | AO452: 105.5 | AP452: 105.5 | AQ452: 106.6 | AR452: 109.9 | AS452: 109.1 | AT452: 109.2
K453: 99.2 | L453: 99.4 | M453: 99.4 | N453: 100.1 | O453: 100.1 | P453: 99.2 | Q453: 100.3 | R453: 100.8 | S453: 100.3 | T453: 101 | U453: 100.3 | V453: 100 | W453: 100.4 | X453: 100.5 | Y453: 100.9 | Z453: 101.2 | AA453: 100.7 | AB453: 100.4 | AC453: 100.8 | AD453: 101.8 | AE453: 100.2 | AF453: 101.6 | AG453: 100.5 | AH453: 101 | AI453: 101 | AJ453: 99.9 | AK453: 101.1 | AL453: 101 | AM453: 101.5 | AN453: 101.4 | AO453: 101.7 | AP453: 107 | AQ453: 111 | AR453: 111.9 | AS453: 111.4 | AT453: 111
K454: 99.7 | L454: 99.7 | M454: 99.7 | N454: 100.1 | O454: 100.1 | P454: 100.1 | Q454: 100.2 | R454: 100.1 | S454: 100.1 | T454: 100 | U454: 100 | V454: 100 | W454: 100 | X454: 99.9 | Y454: 100.1 | Z454: 100.7 | AA454: 100.7 | AB454: 100.7 | AC454: 100.8 | AD454: 101 | AE454: 101 | AF454: 102.3 | AG454: 102.9 | AH454: 103.5 | AI454: 104.3 | AJ454: 104.9 | AK454: 105.4 | AL454: 106.7 | AM454: 107.4 | AN454: 108.3 | AO454: 110.2 | AP454: 111.3 | AQ454: 111.8 | AR454: 113.7 | AS454: 116.1 | AT454: 116.2
K455: 99.8 | L455: 99.8 | M455: 99.9 | N455: 100.1 | O455: 100.1 | P455: 100 | Q455: 100.1 | R455: 100.1 | S455: 100.1 | T455: 100 | U455: 100 | V455: 100 | W455: 100 | X455: 100 | Y455: 100 | Z455: 100 | AA455: 100 | AB455: 100 | AC455: 100 | AD455: 100 | AE455: 99.7 | AF455: 99.5 | AG455: 100 | AH455: 100 | AI455: 100 | AJ455: 100.2 | AK455: 101.2 | AL455: 101.9 | AM455: 102.1 | AN455: 102.1 | AO455: 102.2 | AP455: 102.2 | AQ455: 102.9 | AR455: 105 | AS455: 105.2 | AT455: 105.7
K456: 99.7 | L456: 99.7 | M456: 99.6 | N456: 100.2 | O456: 100.1 | P456: 100.2 | Q456: 100.3 | R456: 100.2 | S456: 100.1 | T456: 100 | U456: 100 | V456: 100 | W456: 99.9 | X456: 99.9 | Y456: 100.2 | Z456: 101.2 | AA456: 101.2 | AB456: 101.3 | AC456: 101.4 | AD456: 101.7 | AE456: 101.9 | AF456: 104.3 | AG456: 105.1 | AH456: 106.2 | AI456: 107.5 | AJ456: 108.3 | AK456: 108.5 | AL456: 110.2 | AM456: 111.3 | AN456: 112.8 | AO456: 116 | AP456: 118 | AQ456: 118.4 | AR456: 120.1 | AS456: 124.2 | AT456: 123.9
K457: 99.9 | L457: 99.9 | M457: 99.9 | N457: 100 | O457: 100 | P457: 99.9 | Q457: 99.9 | R457: 99.9 | S457: 99.8 | T457: 99.9 | U457: 100.4 | V457: 100.5 | W457: 100.5 | X457: 100.5 | Y457: 100.5 | Z457: 100.2 | AA457: 100.1 | AB457: 101.8 | AC457: 102 | AD457: 101.1 | AE457: 101.6 | AF457: 101.6 | AG457: 102.1 | AH457: 106.5 | AI457: 107.5 | AJ457: 107.6 | AK457: 107.8 | AL457: 109.1 | AM457: 109.1 | AN457: 109.3 | AO457: 110.5 | AP457: 112.3 | AQ457: 113.3 | AR457: 116.5 | AS457: 116.7 | AT457: 117.1
K458: 99.5 | L458: 99.6 | M458: 99.6 | N458: 99.9 | O458: 100 | P458: 99.7 | Q458: 99.7 | R458: 99.4 | S458: 99.3 | T458: 99.7 | U458: 101.7 | V458: 102 | W458: 102.4 | X458: 102.3 | Y458: 102.3 | Z458: 102.5 | AA458: 102.3 | AB458: 102.3 | AC458: 102.3 | AD458: 98.4 | AE458: 98.4 | AF458: 98.3 | AG458: 98.3 | AH458: 98.4 | AI458: 98.5 | AJ458: 99 | AK458: 99.8 | AL458: 103.7 | AM458: 103.6 | AN458: 103.7 | AO458: 103.8 | AP458: 103.9 | AQ458: 104.3 | AR458: 106.6 | AS458: 106.8 | AT458: 106.8
K459: 100 | L459: 100 | M459: 100 | N459: 100 | O459: 100 | P459: 100 | Q459: 100 | R459: 100 | S459: 100 | T459: 100 | U459: 100 | V459: 100 | W459: 100 | X459: 100 | Y459: 100 | Z459: 99 | AA459: 99 | AB459: 99 | AC459: 99 | AD459: 99 | AE459: 99 | AF459: 99 | AG459: 99 | AH459: 99 | AI459: 100.5 | AJ459: 100.5 | AK459: 100.5 | AL459: 100.5 | AM459: 100.5 | AN459: 100.5 | AO459: 100.5 | AP459: 100.5 | AQ459: 100.5 | AR459: 102.2 | AS459: 102.2 | AT459: 102.2
K460: 100 | L460: 100 | M460: 100 | N460: 100 | O460: 100 | P460: 100 | Q460: 100 | R460: 100 | S460: 100 | T460: 100 | U460: 100 | V460: 100 | W460: 100 | X460: 100 | Y460: 100 | Z460: 100 | AA460: 100 | AB460: 100 | AC460: 100 | AD460: 100 | AE460: 103.5 | AF460: 103.5 | AG460: 103.5 | AH460: 103.5 | AI460: 103.5 | AJ460: 103.5 | AK460: 103.5 | AL460: 106.5 | AM460: 106.5 | AN460: 106.5 | AO460: 114.8 | AP460: 114.8 | AQ460: 114.8 | AR460: 128.9 | AS460: 128.9 | AT460: 132.3
K461: 100 | L461: 100 | M461: 100 | N461: 100 | O461: 100 | P461: 100 | Q461: 100 | R461: 100 | S461: 100 | T461: 100 | U461: 100 | V461: 100 | W461: 100 | X461: 100 | Y461: 100 | Z461: 100 | AA461: 100 | AB461: 107.5 | AC461: 108.4 | AD461: 108.4 | AE461: 108.4 | AF461: 108.4 | AG461: 110.8 | AH461: 130.1 | AI461: 131.4 | AJ461: 131.4 | AK461: 131.6 | AL461: 131.6 | AM461: 131.8 | AN461: 132.5 | AO461: 132.5 | AP461: 140.7 | AQ461: 144.5 | AR461: 144.8 | AS461: 145.2 | AT461: 145.2
K462: 100.1 | L462: 99.9 | M462: 99.9 | N462: 100.2 | O462: 100 | P462: 100.4 | Q462: 99.9 | R462: 100 | S462: 100.2 | T462: 99.8 | U462: 99.9 | V462: 99.7 | W462: 100.1 | X462: 99.8 | Y462: 100.1 | Z462: 100.1 | AA462: 100 | AB462: 100.2 | AC462: 104.7 | AD462: 104.6 | AE462: 105 | AF462: 104.9 | AG462: 105.8 | AH462: 106.1 | AI462: 106.1 | AJ462: 106.1 | AK462: 106.3 | AL462: 106.8 | AM462: 106.9 | AN462: 115.2 | AO462: 126.6 | AP462: 127 | AQ462: 127 | AR462: 128 | AS462: 128.1 | AT462: 128.9
K463: 99 | L463: 99 | M463: 99 | N463: 100.3 | O463: 100.3 | P463: 100.3 | Q463: 100.3 | R463: 100.3 | S463: 100.3 | T463: 100.3 | U463: 100.3 | V463: 100.3 | W463: 100.3 | X463: 100.3 | Y463: 100.3 | Z463: 99.8 | AA463: 99.8 | AB463: 99.8 | AC463: 99.8 | AD463: 99.8 | AE463: 99.8 | AF463: 99.8 | AG463: 99.8 | AH463: 99.8 | AI463: 99.8 | AJ463: 100.5 | AK463: 100.5 | AL463: 100.5 | AM463: 100.5 | AN463: 101.5 | AO463: 103.8 | AP463: 103.8 | AQ463: 103.8 | AR463: 103.8 | AS463: 103.8 | AT463: 103.8
K464: 100 | L464: 100 | M464: 100 | N464: 100 | O464: 100 | P464: 100 | Q464: 100 | R464: 100 | S464: 100 | T464: 100 | U464: 100 | V464: 100 | W464: 100 | X464: 100 | Y464: 100 | Z464: 100 | AA464: 100 | AB464: 100 | AC464: 113.1 | AD464: 113.1 | AE464: 113.1 | AF464: 113.1 | AG464: 115.9 | AH464: 115.9 | AI464: 115.9 | AJ464: 115.9 | AK464: 115.9 | AL464: 115.9 | AM464: 115.9 | AN464: 135.1 | AO464: 165.7 | AP464: 165.7 | AQ464: 165.7 | AR464: 165.7 | AS464: 165.7 | AT464: 165.7
K465: 101.5 | L465: 99.9 | M465: 99.7 | N465: 100.6 | O465: 99.1 | P465: 102.5 | Q465: 99.1 | R465: 99.7 | S465: 101.3 | T465: 98.6 | U465: 99.8 | V465: 98.2 | W465: 101.1 | X465: 98.6 | Y465: 101.2 | Z465: 100.8 | AA465: 99.9 | AB465: 101.4 | AC465: 101.5 | AD465: 100.5 | AE465: 100.8 | AF465: 98.3 | AG465: 97.4 | AH465: 100.3 | AI465: 99.9 | AJ465: 98.3 | AK465: 97.8 | AL465: 100.8 | AM465: 101.8 | AN465: 114.7 | AO465: 118.8 | AP465: 120.9 | AQ465: 119.1 | AR465: 119.4 | AS465: 116.9 | AT465: 122.6
K466: 100.4 | L466: 100.4 | M466: 100.4 | N466: 100.3 | O466: 100 | P466: 100 | Q466: 99.9 | R466: 100 | S466: 99.9 | T466: 99.7 | U466: 99.6 | V466: 99.6 | W466: 99.5 | X466: 99.5 | Y466: 99.5 | Z466: 100.3 | AA466: 100.3 | AB466: 100.3 | AC466: 100.3 | AD466: 100.3 | AE466: 101.6 | AF466: 102.1 | AG466: 102.2 | AH466: 102.2 | AI466: 102.2 | AJ466: 102.5 | AK466: 103.3 | AL466: 103.8 | AM466: 103.8 | AN466: 103.8 | AO466: 103.8 | AP466: 104.2 | AQ466: 104.9 | AR466: 107.6 | AS466: 109.2 | AT466: 109.3
K467: 100.6 | L467: 100.4 | M467: 100.3 | N467: 99.9 | O467: 99.9 | P467: 100.5 | Q467: 99.6 | R467: 99.4 | S467: 99.9 | T467: 99.7 | U467: 99.9 | V467: 99.8 | W467: 100.2 | X467: 100.9 | Y467: 101.8 | Z467: 102.1 | AA467: 102.1 | AB467: 102.1 | AC467: 102.7 | AD467: 104.2 | AE467: 104 | AF467: 104.7 | AG467: 105.9 | AH467: 106.1 | AI467: 108.8 | AJ467: 109.7 | AK467: 109.9 | AL467: 112.1 | AM467: 113.5 | AN467: 115.9 | AO467: 118.6 | AP467: 118.3 | AQ467: 120.2 | AR467: 121.1 | AS467: 121.8 | AT467: 122.3
K468: 100.9 | L468: 100.3 | M468: 99.8 | N468: 99.5 | O468: 99.6 | P468: 100.4 | Q468: 99.5 | R468: 101.1 | S468: 100.3 | T468: 99.6 | U468: 99.6 | V468: 99.5 | W468: 100.2 | X468: 100.6 | Y468: 100.9 | Z468: 100.5 | AA468: 100.1 | AB468: 100.3 | AC468: 101.5 | AD468: 99.9 | AE468: 99.6 | AF468: 100.4 | AG468: 100.7 | AH468: 100.4 | AI468: 100.6 | AJ468: 100.9 | AK468: 99.6 | AL468: 101.9 | AM468: 103.1 | AN468: 103.2 | AO468: 106.1 | AP468: 106.2 | AQ468: 106.7 | AR468: 107.4 | AS468: 107.1 | AT468: 107.8
K469: 99.7 | L469: 99.7 | M469: 99.7 | N469: 100.1 | O469: 100.1 | P469: 100.1 | Q469: 100.1 | R469: 100.1 | S469: 100.1 | T469: 100.1 | U469: 100.1 | V469: 100.1 | W469: 100.1 | X469: 100.1 | Y469: 100.1 | Z469: 99.6 | AA469: 99.6 | AB469: 99.6 | AC469: 99.6 | AD469: 104.2 | AE469: 104.2 | AF469: 106.7 | AG469: 106.7 | AH469: 106.7 | AI469: 110.9 | AJ469: 110.9 | AK469: 110.9 | AL469: 115 | AM469: 115 | AN469: 124.7 | AO469: 124.7 | AP469: 124.7 | AQ469: 124.7 | AR469: 127.7 | AS469: 127.7 | AT469: 127.7
K470: 100 | L470: 100 | M470: 100 | N470: 100 | O470: 100 | P470: 100 | Q470: 100 | R470: 100 | S470: 100 | T470: 100 | U470: 100 | V470: 100 | W470: 101 | X470: 101 | Y470: 101 | Z470: 101 | AA470: 101 | AB470: 101 | AC470: 101 | AD470: 101 | AE470: 101 | AF470: 101 | AG470: 101 | AH470: 101 | AI470: 104.6 | AJ470: 104.6 | AK470: 104.6 | AL470: 105.3 | AM470: 105.3 | AN470: 105.3 | AO470: 111.1 | AP470: 110.7 | AQ470: 110.7 | AR470: 110.2 | AS470: 110.6 | AT470: 110.6
K471: 102.9 | L471: 102.9 | M471: 102.9 | N471: 100.5 | O471: 100.8 | P471: 99.6 | Q471: 97.6 | R471: 98.6 | S471: 98.6 | T471: 98.6 | U471: 98.6 | V471: 98.6 | W471: 98.6 | X471: 101.2 | Y471: 106.3 | Z471: 108.1 | AA471: 109.6 | AB471: 109.6 | AC471: 115.9 | AD471: 119.3 | AE471: 121.6 | AF471: 123.1 | AG471: 124.1 | AH471: 125.3 | AI471: 133.8 | AJ471: 135.5 | AK471: 139.7 | AL471: 145 | AM471: 146.4 | AN471: 153 | AO471: 153.1 | AP471: 157.8 | AQ471: 164.7 | AR471: 167.1 | AS471: 166.5 | AT471: 166.5
K472: 99.5 | L472: 100.4 | M472: 99.4 | N472: 100.2 | O472: 100.8 | P472: 99.7 | Q472: 100.1 | R472: 99.8 | S472: 99.8 | T472: 99.8 | U472: 100.1 | V472: 100.4 | W472: 100 | X472: 100.9 | Y472: 99.1 | Z472: 101.1 | AA472: 101.1 | AB472: 102.7 | AC472: 99.6 | AD472: 105.1 | AE472: 100.2 | AF472: 103.7 | AG472: 106.2 | AH472: 107.5 | AI472: 108.5 | AJ472: 110.2 | AK472: 110.2 | AL472: 112.4 | AM472: 116.5 | AN472: 120.7 | AO472: 120.1 | AP472: 119.4 | AQ472: 124.3 | AR472: 122.7 | AS472: 125.9 | AT472: 130.5
K473: 100 | L473: 100 | M473: 100 | N473: 100 | O473: 100 | P473: 100 | Q473: 100 | R473: 100 | S473: 100 | T473: 100 | U473: 100 | V473: 100 | W473: 100 | X473: 100 | Y473: 100 | Z473: 101.3 | AA473: 103.9 | AB473: 103.9 | AC473: 103.9 | AD473: 103.9 | AE473: 106.6 | AF473: 106.6 | AG473: 108.7 | AH473: 108.7 | AI473: 112.7 | AJ473: 118.5 | AK473: 115.1 | AL473: 118.5 | AM473: 118.5 | AN473: 118.5 | AO473: 118.5 | AP473: 115.1 | AQ473: 119 | AR473: 119.3 | AS473: 124.2 | AT473: 123.9
K474: 100.3 | L474: 99.4 | M474: 100.1 | N474: 99.7 | O474: 98.6 | P474: 103.1 | Q474: 100.6 | R474: 95.6 | S474: 100 | T474: 100.3 | U474: 101.6 | V474: 100.8 | W474: 100.6 | X474: 101.4 | Y474: 102.7 | Z474: 102.6 | AA474: 100.9 | AB474: 99.9 | AC474: 97.1 | AD474: 101.2 | AE474: 98.7 | AF474: 98.1 | AG474: 102.7 | AH474: 102.4 | AI474: 101.5 | AJ474: 102.6 | AK474: 103 | AL474: 102.6 | AM474: 107 | AN474: 108.6 | AO474: 112.4 | AP474: 107.9 | AQ474: 108.8 | AR474: 111.2 | AS474: 113.3 | AT474: 113.3
K475: 99.9 | L475: 99.4 | M475: 99.6 | N475: 100.3 | O475: 100.5 | P475: 100.2 | Q475: 100.2 | R475: 100.2 | S475: 99.8 | T475: 100.5 | U475: 99.8 | V475: 99.7 | W475: 100.5 | X475: 99.8 | Y475: 99.5 | Z475: 100 | AA475: 100.2 | AB475: 100.9 | AC475: 100.5 | AD475: 100.4 | AE475: 100.2 | AF475: 100.9 | AG475: 101.2 | AH475: 101 | AI475: 101.5 | AJ475: 101.4 | AK475: 101.4 | AL475: 102 | AM475: 102.2 | AN475: 102.4 | AO475: 102.9 | AP475: 102.8 | AQ475: 102.7 | AR475: 103.6 | AS475: 104.2 | AT475: 104.2
K476: 99.9 | L476: 99.4 | M476: 99.6 | N476: 100.3 | O476: 100.5 | P476: 100.2 | Q476: 100.2 | R476: 100.2 | S476: 99.8 | T476: 100.5 | U476: 99.8 | V476: 99.7 | W476: 100.5 | X476: 99.8 | Y476: 99.5 | Z476: 100 | AA476: 100.2 | AB476: 100.9 | AC476: 100.5 | AD476: 100.4 | AE476: 100.2 | AF476: 100.9 | AG476: 101.2 | AH476: 101 | AI476: 101.5 | AJ476: 101.4 | AK476: 101.4 | AL476: 102 | AM476: 102.2 | AN476: 102.4 | AO476: 102.9 | AP476: 102.8 | AQ476: 102.7 | AR476: 103.6 | AS476: 104.2 | AT476: 104.2
K477: 98.9 | L477: 99.5 | M477: 98.2 | N477: 98.5 | O477: 101.4 | P477: 99.1 | Q477: 99 | R477: 98.5 | S477: 99.8 | T477: 103.1 | U477: 102.4 | V477: 101.6 | W477: 102.8 | X477: 100.4 | Y477: 100.4 | Z477: 101.9 | AA477: 101.7 | AB477: 102.1 | AC477: 102.1 | AD477: 101.9 | AE477: 102 | AF477: 100.3 | AG477: 101 | AH477: 100.3 | AI477: 101 | AJ477: 100.2 | AK477: 99.9 | AL477: 100 | AM477: 100.1 | AN477: 99.9 | AO477: 100.1 | AP477: 100.7 | AQ477: 99.8 | AR477: 100.4 | AS477: 100.9 | AT477: 100.9
K478: 98.9 | L478: 99.5 | M478: 98.2 | N478: 98.5 | O478: 101.4 | P478: 99.1 | Q478: 99 | R478: 98.5 | S478: 99.8 | T478: 103.1 | U478: 102.4 | V478: 101.6 | W478: 102.8 | X478: 100.4 | Y478: 100.4 | Z478: 101.9 | AA478: 101.7 | AB478: 102.1 | AC478: 102.1 | AD478: 101.9 | AE478: 102 | AF478: 100.3 | AG478: 101 | AH478: 100.3 | AI478: 101 | AJ478: 100.2 | AK478: 99.9 | AL478: 100 | AM478: 100.1 | AN478: 99.9 | AO478: 100.1 | AP478: 100.7 | AQ478: 99.8 | AR478: 100.4 | AS478: 100.9 | AT478: 100.9
K479: 97.8 | L479: 97.8 | M479: 97.8 | N479: 100.5 | O479: 100.5 | P479: 100.5 | Q479: 100.5 | R479: 100.5 | S479: 100.5 | T479: 101.1 | U479: 101.1 | V479: 101.1 | W479: 102.4 | X479: 99.4 | Y479: 99.4 | Z479: 99.1 | AA479: 99.1 | AB479: 99.1 | AC479: 99.1 | AD479: 99.1 | AE479: 103.9 | AF479: 103 | AG479: 103 | AH479: 105.2 | AI479: 105.1 | AJ479: 105.1 | AK479: 105.1 | AL479: 105.1 | AM479: 105.1 | AN479: 105.1 | AO479: 105.1 | AP479: 104.5 | AQ479: 104.5 | AR479: 104.5 | AS479: 104.5 | AT479: 100.6
K480: 97.8 | L480: 97.8 | M480: 97.8 | N480: 100.5 | O480: 100.5 | P480: 100.5 | Q480: 100.5 | R480: 100.5 | S480: 100.5 | T480: 101.1 | U480: 101.1 | V480: 101.1 | W480: 102.4 | X480: 99.4 | Y480: 99.4 | Z480: 99.1 | AA480: 99.1 | AB480: 99.1 | AC480: 99.1 | AD480: 99.1 | AE480: 103.9 | AF480: 103 | AG480: 103 | AH480: 105.2 | AI480: 105.1 | AJ480: 105.1 | AK480: 105.1 | AL480: 105.1 | AM480: 105.1 | AN480: 105.1 | AO480: 105.1 | AP480: 104.5 | AQ480: 104.5 | AR480: 104.5 | AS480: 104.5 | AT480: 100.6
K481: 100.1 | L481: 100.1 | M481: 100.1 | N481: 100 | O481: 100 | P481: 100 | Q481: 100 | R481: 100 | S481: 100 | T481: 100.1 | U481: 100 | V481: 100 | W481: 101.3 | X481: 101.3 | Y481: 101.3 | Z481: 101.3 | AA481: 101.3 | AB481: 101.3 | AC481: 101.9 | AD481: 101.9 | AE481: 101.9 | AF481: 102 | AG481: 102 | AH481: 102 | AI481: 102.3 | AJ481: 102.3 | AK481: 102.3 | AL481: 102.3 | AM481: 102.3 | AN481: 102.3 | AO481: 103.5 | AP481: 102.1 | AQ481: 102.1 | AR481: 102.2 | AS481: 102.2 | AT481: 102.2
K482: 100.1 | L482: 100.1 | M482: 100.1 | N482: 100 | O482: 100 | P482: 100 | Q482: 100 | R482: 100 | S482: 100 | T482: 100.1 | U482: 100 | V482: 100 | W482: 101.3 | X482: 101.3 | Y482: 101.3 | Z482: 101.3 | AA482: 101.3 | AB482: 101.3 | AC482: 101.9 | AD482: 101.9 | AE482: 101.9 | AF482: 102 | AG482: 102 | AH482: 102 | AI482: 102.3 | AJ482: 102.3 | AK482: 102.3 | AL482: 102.3 | AM482: 102.3 | AN482: 102.3 | AO482: 103.5 | AP482: 102.1 | AQ482: 102.1 | AR482: 102.2 | AS482: 102.2 | AT482: 102.2
K483: 100.2 | L483: 100 | M483: 98.8 | N483: 100.6 | O483: 100.7 | P483: 100 | Q483: 100.6 | R483: 100.6 | S483: 98 | T483: 101.2 | U483: 100 | V483: 99.2 | W483: 99.6 | X483: 99 | Y483: 96.8 | Z483: 99.4 | AA483: 98.2 | AB483: 99.2 | AC483: 98.3 | AD483: 98.4 | AE483: 97.2 | AF483: 100.2 | AG483: 98.9 | AH483: 99 | AI483: 99.9 | AJ483: 100.3 | AK483: 99.5 | AL483: 101.5 | AM483: 101 | AN483: 100.6 | AO483: 101.3 | AP483: 100.3 | AQ483: 99.4 | AR483: 102.8 | AS483: 101.5 | AT483: 102.3
K484: 100.1 | L484: 97.5 | M484: 98.9 | N484: 100.5 | O484: 102.8 | P484: 99 | Q484: 101.5 | R484: 99.8 | S484: 99.4 | T484: 100 | U484: 99.7 | V484: 100.9 | W484: 101.7 | X484: 99.1 | Y484: 98.3 | Z484: 99 | AA484: 101.5 | AB484: 100.5 | AC484: 101.6 | AD484: 100.4 | AE484: 100.8 | AF484: 101.1 | AG484: 99.7 | AH484: 98.9 | AI484: 101.2 | AJ484: 103 | AK484: 102.7 | AL484: 105 | AM484: 102.1 | AN484: 100 | AO484: 102.6 | AP484: 103.6 | AQ484: 103.2 | AR484: 103.8 | AS484: 103.5 | AT484: 108.5
K485: 100.7 | L485: 100.6 | M485: 100 | N485: 100.3 | O485: 99.7 | P485: 99.4 | Q485: 98.9 | R485: 100.3 | S485: 101.6 | T485: 99.1 | U485: 99.5 | V485: 99.7 | W485: 99.6 | X485: 100.4 | Y485: 100.7 | Z485: 100.4 | AA485: 100.4 | AB485: 100.2 | AC485: 99.9 | AD485: 100.3 | AE485: 100.1 | AF485: 100.1 | AG485: 99.1 | AH485: 99.5 | AI485: 102 | AJ485: 104.7 | AK485: 103.1 | AL485: 103.1 | AM485: 106.5 | AN485: 105.4 | AO485: 106.2 | AP485: 108.1 | AQ485: 107.6 | AR485: 108.6 | AS485: 109.1 | AT485: 109.1
K486: 99.6 | L486: 100.3 | M486: 100.5 | N486: 100.2 | O486: 100.2 | P486: 100.7 | Q486: 100.2 | R486: 99.6 | S486: 100.3 | T486: 99.5 | U486: 99.7 | V486: 99.3 | W486: 99.1 | X486: 99.9 | Y486: 100.5 | Z486: 100 | AA486: 99.3 | AB486: 100.1 | AC486: 99.5 | AD486: 99.8 | AE486: 99.9 | AF486: 99.4 | AG486: 101.9 | AH486: 101.3 | AI486: 100.6 | AJ486: 101.7 | AK486: 101 | AL486: 103.2 | AM486: 103.3 | AN486: 103.5 | AO486: 103.2 | AP486: 103.1 | AQ486: 102.3 | AR486: 103.2 | AS486: 103.2 | AT486: 103.6
K487: 100.7 | L487: 99.9 | M487: 99.6 | N487: 100.2 | O487: 100.8 | P487: 100.4 | Q487: 100.2 | R487: 100.1 | S487: 99.8 | T487: 99.7 | U487: 99.6 | V487: 98.9 | W487: 99 | X487: 98.8 | Y487: 98.8 | Z487: 98.6 | AA487: 98.6 | AB487: 98.9 | AC487: 98.6 | AD487: 98.9 | AE487: 99.1 | AF487: 98.5 | AG487: 99.5 | AH487: 99.4 | AI487: 99.4 | AJ487: 99.1 | AK487: 99.6 | AL487: 99.6 | AM487: 100.4 | AN487: 100.4 | AO487: 100.7 | AP487: 101 | AQ487: 100.8 | AR487: 101.4 | AS487: 102.5 | AT487: 102.5
K488: 100.7 | L488: 100.7 | M488: 100.7 | N488: 100.6 | O488: 99.9 | P488: 99.9 | Q488: 99.9 | R488: 99.9 | S488: 99.9 | T488: 99.3 | U488: 99.3 | V488: 99.3 | W488: 99.3 | X488: 99.3 | Y488: 99.3 | Z488: 99.4 | AA488: 99.4 | AB488: 99.4 | AC488: 99.4 | AD488: 99.4 | AE488: 100.6 | AF488: 100.9 | AG488: 100.9 | AH488: 103.8 | AI488: 103.8 | AJ488: 106.7 | AK488: 109.2 | AL488: 109.2 | AM488: 111 | AN488: 111 | AO488: 111 | AP488: 111.2 | AQ488: 110.7 | AR488: 112.1 | AS488: 113.5 | AT488: 116.2
K489: 98.5 | L489: 99.3 | M489: 101.5 | N489: 97 | O489: 104.5 | P489: 100.5 | Q489: 102 | R489: 98.7 | S489: 95.2 | T489: 101.7 | U489: 104.5 | V489: 96.7 | W489: 97.2 | X489: 96.6 | Y489: 92.7 | Z489: 95.1 | AA489: 94.1 | AB489: 100.7 | AC489: 95.5 | AD489: 97.1 | AE489: 96.7 | AF489: 100.5 | AG489: 97.2 | AH489: 97.2 | AI489: 98.6 | AJ489: 95.8 | AK489: 99.7 | AL489: 97.9 | AM489: 100.1 | AN489: 97.3 | AO489: 98.7 | AP489: 93.3 | AQ489: 96.8 | AR489: 102 | AS489: 98.9 | AT489: 98.9
K490: 100.8 | L490: 100.5 | M490: 96.4 | N490: 102.2 | O490: 99.3 | P490: 100 | Q490: 100.5 | R490: 102.2 | S490: 96.6 | T490: 103 | U490: 98.9 | V490: 99.6 | W490: 100.3 | X490: 99.2 | Y490: 95.2 | Z490: 100.8 | AA490: 97.8 | AB490: 97.7 | AC490: 97.4 | AD490: 97.2 | AE490: 93.8 | AF490: 100.3 | AG490: 97.8 | AH490: 97.4 | AI490: 98.5 | AJ490: 98.6 | AK490: 94.8 | AL490: 99.3 | AM490: 97 | AN490: 97.4 | AO490: 98 | AP490: 96.8 | AQ490: 94.1 | AR490: 99.7 | AS490: 96.8 | AT490: 96.8
K491: 99.4 | L491: 98.7 | M491: 99.6 | N491: 101.3 | O491: 101.2 | P491: 100.8 | Q491: 100.9 | R491: 100.7 | S491: 100.3 | T491: 99.6 | U491: 98.1 | V491: 99.5 | W491: 99.8 | X491: 98.6 | Y491: 100 | Z491: 99.4 | AA491: 99.7 | AB491: 100.9 | AC491: 98.8 | AD491: 99.7 | AE491: 99.7 | AF491: 99.9 | AG491: 100.4 | AH491: 101 | AI491: 99.1 | AJ491: 99.7 | AK491: 98.8 | AL491: 99.6 | AM491: 101 | AN491: 101.9 | AO491: 103 | AP491: 102.6 | AQ491: 103.9 | AR491: 103.1 | AS491: 103.1 | AT491: 102.6
K492: 98 | L492: 97.5 | M492: 98.1 | N492: 99.9 | O492: 102.1 | P492: 99.4 | Q492: 101 | R492: 100.2 | S492: 100.3 | T492: 100.8 | U492: 101.8 | V492: 100.7 | W492: 99.3 | X492: 98.8 | Y492: 98.6 | Z492: 99 | AA492: 97.5 | AB492: 99.3 | AC492: 98.5 | AD492: 100.3 | AE492: 98.9 | AF492: 100.5 | AG492: 97.7 | AH492: 100.6 | AI492: 97.1 | AJ492: 98.6 | AK492: 95 | AL492: 95.3 | AM492: 99.6 | AN492: 101.5 | AO492: 98.6 | AP492: 100.8 | AQ492: 100.8 | AR492: 98.5 | AS492: 102.6 | AT492: 99.3
K493: 99.1 | L493: 100.6 | M493: 100.5 | N493: 100.5 | O493: 100.6 | P493: 100.9 | Q493: 101.8 | R493: 101.6 | S493: 101.7 | T493: 99.1 | U493: 97.5 | V493: 96 | W493: 98.9 | X493: 98.5 | Y493: 101.4 | Z493: 101.2 | AA493: 101.1 | AB493: 102.2 | AC493: 101.2 | AD493: 98.5 | AE493: 100.1 | AF493: 99.9 | AG493: 99.8 | AH493: 100.6 | AI493: 102.5 | AJ493: 101 | AK493: 101.5 | AL493: 101.7 | AM493: 102 | AN493: 104.6 | AO493: 110.7 | AP493: 110.3 | AQ493: 107.9 | AR493: 107.3 | AS493: 106.9 | AT493: 106.9
K494: 100 | L494: 100 | M494: 100 | N494: 100 | O494: 100 | P494: 100 | Q494: 100 | R494: 100 | S494: 100 | T494: 100 | U494: 100 | V494: 100 | W494: 100 | X494: 100 | Y494: 100 | Z494: 100 | AA494: 100 | AB494: 100 | AC494: 100 | AD494: 100 | AE494: 100 | AF494: 100 | AG494: 100 | AH494: 100 | AI494: 100 | AJ494: 100 | AK494: 100 | AL494: 100.8 | AM494: 100.8 | AN494: 100.8 | AO494: 100.8 | AP494: 100.8 | AQ494: 109.9 | AR494: 109.9 | AS494: 109.9 | AT494: 109.9
K495: 99.8 | L495: 98.2 | M495: 99.6 | N495: 102.2 | O495: 101.3 | P495: 101.3 | Q495: 100.7 | R495: 100.6 | S495: 99.8 | T495: 99.4 | U495: 97 | V495: 100.3 | W495: 100.3 | X495: 98.4 | Y495: 99.9 | Z495: 98.7 | AA495: 99.8 | AB495: 101.1 | AC495: 97.9 | AD495: 99.9 | AE495: 99.7 | AF495: 99.7 | AG495: 101.5 | AH495: 101.3 | AI495: 98.4 | AJ495: 99.5 | AK495: 98.8 | AL495: 100 | AM495: 101 | AN495: 101.2 | AO495: 101.8 | AP495: 100.7 | AQ495: 102.4 | AR495: 102 | AS495: 101 | AT495: 101
K496: 100.6 | L496: 99 | M496: 100.8 | N496: 99.8 | O496: 100.4 | P496: 100.1 | Q496: 100.3 | R496: 100.3 | S496: 100.1 | T496: 100.3 | U496: 99.3 | V496: 99 | W496: 100.4 | X496: 100.7 | Y496: 100.3 | Z496: 100.1 | AA496: 100.4 | AB496: 101 | AC496: 101 | AD496: 100.8 | AE496: 99.9 | AF496: 101.3 | AG496: 101.8 | AH496: 100 | AI496: 102.4 | AJ496: 101.2 | AK496: 102.1 | AL496: 101.5 | AM496: 101.1 | AN496: 101.3 | AO496: 101.6 | AP496: 101.6 | AQ496: 101.9 | AR496: 102.3 | AS496: 102.9 | AT496: 102.9
K497: 100 | L497: 100 | M497: 100 | N497: 100 | O497: 100 | P497: 100 | Q497: 100 | R497: 100 | S497: 100 | T497: 100 | U497: 100 | V497: 100 | W497: 100 | X497: 100 | Y497: 100 | Z497: 100 | AA497: 100 | AB497: 100 | AC497: 100 | AD497: 100 | AE497: 100 | AF497: 103.4 | AG497: 103.4 | AH497: 103.4 | AI497: 103.4 | AJ497: 103.4 | AK497: 103.4 | AL497: 103.4 | AM497: 103.4 | AN497: 103.4 | AO497: 103.4 | AP497: 103.4 | AQ497: 103.4 | AR497: 106.1 | AS497: 106.1 | AT497: 106.1
K498: 100.1 | L498: 99 | M498: 100.2 | N498: 99 | O498: 98.8 | P498: 97 | Q498: 99.1 | R498: 102 | S498: 102.7 | T498: 101.4 | U498: 100.3 | V498: 100.4 | W498: 101.3 | X498: 100.6 | Y498: 99.6 | Z498: 100.4 | AA498: 99.1 | AB498: 99.9 | AC498: 99.3 | AD498: 100 | AE498: 100.2 | AF498: 99 | AG498: 99.3 | AH498: 99.1 | AI498: 99.4 | AJ498: 99.5 | AK498: 99.2 | AL498: 98 | AM498: 99.1 | AN498: 101.9 | AO498: 101.6 | AP498: 101.9 | AQ498: 102.4 | AR498: 101.8 | AS498: 102.1 | AT498: 102.1
K499: 101 | L499: 98.6 | M499: 101.2 | N499: 99.8 | O499: 100.8 | P499: 100.5 | Q499: 100.6 | R499: 100.2 | S499: 99.8 | T499: 100.2 | U499: 98.9 | V499: 98.3 | W499: 100.4 | X499: 101.1 | Y499: 100.5 | Z499: 100 | AA499: 100.9 | AB499: 101.6 | AC499: 101.7 | AD499: 101.2 | AE499: 99.7 | AF499: 100.6 | AG499: 101.3 | AH499: 98.5 | AI499: 102.3 | AJ499: 100.5 | AK499: 101.8 | AL499: 101.2 | AM499: 100.3 | AN499: 100.1 | AO499: 100.7 | AP499: 100.6 | AQ499: 101.1 | AR499: 100.6 | AS499: 101.5 | AT499: 101.5
K500: 99.9 | L500: 100 | M500: 100.1 | N500: 99.9 | O500: 99.9 | P500: 100 | Q500: 100 | R500: 100.1 | S500: 100.1 | T500: 100.1 | U500: 100.1 | V500: 100.1 | W500: 100.1 | X500: 100.1 | Y500: 99.7 | Z500: 99.7 | AA500: 99.7 | AB500: 101.3 | AC500: 101.3 | AD500: 101.3 | AE500: 101.3 | AF500: 101.6 | AG500: 101.8 | AH500: 101.8 | AI500: 102 | AJ500: 102.2 | AK500: 103.2 | AL500: 103.5 | AM500: 104.1 | AN500: 104.3 | AO500: 104.5 | AP500: 104.5 | AQ500: 105.4 | AR500: 106.2 | AS500: 106.2 | AT500: 106.8
K501: 100 | L501: 100.1 | M501: 100.1 | N501: 99.9 | O501: 99.9 | P501: 100 | Q501: 100 | R501: 100 | S501: 100 | T501: 100 | U501: 100 | V501: 100 | W501: 100 | X501: 100 | Y501: 99.5 | Z501: 99.5 | AA501: 99.5 | AB501: 102 | AC501: 102 | AD501: 102 | AE501: 102 | AF501: 102.5 | AG501: 102.6 | AH501: 102.6 | AI501: 102.7 | AJ501: 102.7 | AK501: 103.7 | AL501: 104 | AM501: 104.5 | AN501: 104.7 | AO501: 104.7 | AP501: 104.7 | AQ501: 105.4 | AR501: 106.4 | AS501: 106.2 | AT501: 106.7
K502: 99.6 | L502: 99.6 | M502: 99.9 | N502: 100 | O502: 100 | P502: 100 | Q502: 100 | R502: 100.2 | S502: 100.2 | T502: 100.2 | U502: 100.2 | V502: 100.2 | W502: 100.2 | X502: 100.2 | Y502: 100.1 | Z502: 100.1 | AA502: 100.1 | AB502: 100.1 | AC502: 100 | AD502: 100 | AE502: 100 | AF502: 100.1 | AG502: 100.5 | AH502: 100.5 | AI502: 100.7 | AJ502: 101.3 | AK502: 102.3 | AL502: 102.5 | AM502: 103.6 | AN502: 103.8 | AO502: 104.1 | AP502: 104.1 | AQ502: 105.3 | AR502: 105.9 | AS502: 106.2 | AT502: 106.9
K503: 100 | L503: 99.9 | M503: 100 | N503: 100.7 | O503: 100.1 | P503: 100.5 | Q503: 100 | R503: 100.1 | S503: 100.2 | T503: 99.5 | U503: 99.5 | V503: 99.4 | W503: 100.2 | X503: 99.3 | Y503: 99.2 | Z503: 100.2 | AA503: 101.3 | AB503: 101.7 | AC503: 101.9 | AD503: 101 | AE503: 100.5 | AF503: 101.1 | AG503: 102.4 | AH503: 102.3 | AI503: 103 | AJ503: 102.8 | AK503: 103.1 | AL503: 104.5 | AM503: 105.2 | AN503: 105.6 | AO503: 105.8 | AP503: 106.8 | AQ503: 105.6 | AR503: 106.7 | AS503: 110.5 | AT503: 111.1
K504: 99.7 | L504: 99.4 | M504: 99.3 | N504: 101.4 | O504: 101 | P504: 99.6 | Q504: 99 | R504: 100.3 | S504: 100.7 | T504: 100.1 | U504: 100 | V504: 99.5 | W504: 99.8 | X504: 98.1 | Y504: 98.9 | Z504: 99.9 | AA504: 102 | AB504: 101.5 | AC504: 100.4 | AD504: 100.3 | AE504: 100.3 | AF504: 104.1 | AG504: 106.6 | AH504: 104.4 | AI504: 106.1 | AJ504: 106.1 | AK504: 106.1 | AL504: 106.1 | AM504: 106.1 | AN504: 106.1 | AO504: 106.4 | AP504: 108.9 | AQ504: 104.9 | AR504: 104.2 | AS504: 113.1 | AT504: 113.1
K505: 100 | L505: 100 | M505: 100 | N505: 100 | O505: 100 | P505: 100 | Q505: 100 | R505: 100 | S505: 100 | T505: 100 | U505: 100 | V505: 100 | W505: 100 | X505: 100 | Y505: 100 | Z505: 100 | AA505: 100 | AB505: 100 | AC505: 100 | AD505: 100 | AE505: 100 | AF505: 100 | AG505: 100 | AH505: 100 | AI505: 102.4 | AJ505: 102.4 | AK505: 102.4 | AL505: 103 | AM505: 103 | AN505: 103 | AO505: 103.3 | AP505: 103.3 | AQ505: 103.3 | AR505: 103.9 | AS505: 103.9 | AT505: 110.7
K506: 96.7 | L506: 96.6 | M506: 98.1 | N506: 106 | O506: 101.3 | P506: 106 | Q506: 100.9 | R506: 99.9 | S506: 97.4 | T506: 100.1 | U506: 98.6 | V506: 98.3 | W506: 100.5 | X506: 99 | Y506: 98.7 | Z506: 103.4 | AA506: 100.3 | AB506: 101.9 | AC506: 104.7 | AD506: 95.8 | AE506: 93.9 | AF506: 93.7 | AG506: 93.3 | AH506: 100 | AI506: 97.8 | AJ506: 95.4 | AK506: 96.9 | AL506: 97.3 | AM506: 98.4 | AN506: 95.9 | AO506: 98.2 | AP506: 96.4 | AQ506: 93.8 | AR506: 97.1 | AS506: 101 | AT506: 101
K507: 100.4 | L507: 99.4 | M507: 98.6 | N507: 100.2 | O507: 101.1 | P507: 100.2 | Q507: 102 | R507: 100.3 | S507: 101 | T507: 98.2 | U507: 97.5 | V507: 101.2 | W507: 99.5 | X507: 99.5 | Y507: 98.1 | Z507: 102.5 | AA507: 96.9 | AB507: 104.4 | AC507: 104 | AD507: 100.3 | AE507: 96.8 | AF507: 92 | AG507: 93.3 | AH507: 93 | AI507: 96.2 | AJ507: 104.1 | AK507: 102.5 | AL507: 106.6 | AM507: 107.5 | AN507: 111.3 | AO507: 113.4 | AP507: 112.5 | AQ507: 107.9 | AR507: 115.1 | AS507: 112.6 | AT507: 114.1
K508: 101 | L508: 101.1 | M508: 101.3 | N508: 99.3 | O508: 99.1 | P508: 100.3 | Q508: 100.3 | R508: 100.1 | S508: 100.5 | T508: 98.7 | U508: 99.3 | V508: 99 | W508: 100.6 | X508: 100 | Y508: 99.3 | Z508: 99.4 | AA508: 102.6 | AB508: 102.7 | AC508: 103.3 | AD508: 103.6 | AE508: 103.1 | AF508: 102.5 | AG508: 104.3 | AH508: 104 | AI508: 104.2 | AJ508: 103 | AK508: 103.8 | AL508: 106.8 | AM508: 108.5 | AN508: 109.7 | AO508: 109 | AP508: 110.7 | AQ508: 111.7 | AR508: 112.7 | AS508: 116 | AT508: 115.7
K509: 100 | L509: 100 | M509: 100 | N509: 100 | O509: 100 | P509: 100 | Q509: 100 | R509: 100 | S509: 100 | T509: 100 | U509: 100 | V509: 100 | W509: 100 | X509: 100 | Y509: 100 | Z509: 100 | AA509: 100 | AB509: 100 | AC509: 100 | AD509: 100 | AE509: 100.4 | AF509: 100.4 | AG509: 100.4 | AH509: 100.4 | AI509: 100.6 | AJ509: 100.7 | AK509: 100.7 | AL509: 100.7 | AM509: 100.7 | AN509: 100.7 | AO509: 100.7 | AP509: 100.4 | AQ509: 100.4 | AR509: 103.5 | AS509: 103.5 | AT509: 103.5
K510: 100.1 | L510: 100.1 | M510: 100.1 | N510: 100.1 | O510: 100 | P510: 100 | Q510: 100 | R510: 100 | S510: 100 | T510: 100 | U510: 100 | V510: 100 | W510: 100 | X510: 100 | Y510: 100 | Z510: 100 | AA510: 100 | AB510: 100 | AC510: 100 | AD510: 100 | AE510: 100 | AF510: 100 | AG510: 100 | AH510: 100 | AI510: 100 | AJ510: 100 | AK510: 100 | AL510: 100 | AM510: 100 | AN510: 100 | AO510: 100 | AP510: 100 | AQ510: 100 | AR510: 100 | AS510: 100 | AT510: 100
K511: 100.9 | L511: 101.1 | M511: 100.5 | N511: 99.5 | O511: 100.2 | P511: 99.6 | Q511: 99.4 | R511: 99.6 | S511: 99.9 | T511: 99.8 | U511: 99.7 | V511: 99.8 | W511: 99 | X511: 99.2 | Y511: 99.4 | Z511: 100.4 | AA511: 100.1 | AB511: 99.9 | AC511: 100.5 | AD511: 101 | AE511: 100.4 | AF511: 100.6 | AG511: 100.4 | AH511: 100.8 | AI511: 101.6 | AJ511: 102 | AK511: 102.7 | AL511: 102.3 | AM511: 102.6 | AN511: 103.5 | AO511: 104.8 | AP511: 103.8 | AQ511: 104.3 | AR511: 105.4 | AS511: 105.6 | AT511: 105.3
K512: 100.9 | L512: 101.1 | M512: 100.5 | N512: 99.5 | O512: 100.2 | P512: 99.6 | Q512: 99.4 | R512: 99.6 | S512: 99.9 | T512: 99.8 | U512: 99.7 | V512: 99.8 | W512: 99 | X512: 99.2 | Y512: 99.4 | Z512: 100.4 | AA512: 100.1 | AB512: 99.9 | AC512: 100.5 | AD512: 101 | AE512: 100.4 | AF512: 100.6 | AG512: 100.4 | AH512: 100.8 | AI512: 101.6 | AJ512: 102 | AK512: 102.7 | AL512: 102.3 | AM512: 102.6 | AN512: 103.5 | AO512: 104.8 | AP512: 103.8 | AQ512: 104.3 | AR512: 105.4 | AS512: 105.6 | AT512: 105.3
K513: 99.9 | L513: 100 | M513: 98.7 | N513: 99.8 | O513: 99 | P513: 99.1 | Q513: 100 | R513: 100.1 | S513: 100.5 | T513: 100.9 | U513: 100.4 | V513: 101.6 | W513: 101.6 | X513: 101.4 | Y513: 100.6 | Z513: 100.8 | AA513: 101.5 | AB513: 98.3 | AC513: 100.7 | AD513: 101.6 | AE513: 100.4 | AF513: 100.7 | AG513: 100 | AH513: 100 | AI513: 100.8 | AJ513: 101.3 | AK513: 101.7 | AL513: 102 | AM513: 100.8 | AN513: 101.4 | AO513: 102.9 | AP513: 103.4 | AQ513: 102.7 | AR513: 103.7 | AS513: 103 | AT513: 102.3
K514: 100.9 | L514: 100.6 | M514: 97.5 | N514: 99.4 | O514: 97.9 | P514: 99.6 | Q514: 100.1 | R514: 100.2 | S514: 100.7 | T514: 100.6 | U514: 99.9 | V514: 102.4 | W514: 101.6 | X514: 102 | Y514: 100.5 | Z514: 100.7 | AA514: 102.6 | AB514: 98.1 | AC514: 101.8 | AD514: 102.7 | AE514: 101.7 | AF514: 101.6 | AG514: 101.1 | AH514: 101.2 | AI514: 102.4 | AJ514: 101.7 | AK514: 102 | AL514: 102.8 | AM514: 101.2 | AN514: 101.4 | AO514: 104.1 | AP514: 103.6 | AQ514: 103.7 | AR514: 105.2 | AS514: 104.4 | AT514: 104.1
K515: 100.7 | L515: 100.9 | M515: 101.4 | N515: 102 | O515: 99.1 | P515: 98 | Q515: 98.1 | R515: 98.4 | S515: 98.6 | T515: 100.8 | U515: 101.5 | V515: 100.5 | W515: 103.2 | X515: 102.1 | Y515: 102 | Z515: 101.1 | AA515: 98.9 | AB515: 98.2 | AC515: 98.4 | AD515: 98.7 | AE515: 99.8 | AF515: 98.2 | AG515: 100.4 | AH515: 99.7 | AI515: 100.5 | AJ515: 101.1 | AK515: 100.9 | AL515: 101.9 | AM515: 100 | AN515: 98 | AO515: 99.9 | AP515: 102.3 | AQ515: 100.6 | AR515: 101.3 | AS515: 101.3 | AT515: 100.8
K516: 97.2 | L516: 98.1 | M516: 99 | N516: 98.8 | O516: 101.2 | P516: 99 | Q516: 101.3 | R516: 101.1 | S516: 101.3 | T516: 101.5 | U516: 100.7 | V516: 100.9 | W516: 100.6 | X516: 99.6 | Y516: 99.8 | Z516: 101 | AA516: 101.4 | AB516: 98.8 | AC516: 100 | AD516: 101.5 | AE516: 98.4 | AF516: 100.6 | AG516: 97.6 | AH516: 97.8 | AI516: 97.7 | AJ516: 100.8 | AK516: 101.7 | AL516: 100.3 | AM516: 100.5 | AN516: 104 | AO516: 102.9 | AP516: 103.8 | AQ516: 102.2 | AR516: 102.3 | AS516: 101.5 | AT516: 99.9
K517: 99.3 | L517: 100.1 | M517: 99 | N517: 98.9 | O517: 99.6 | P517: 100.2 | Q517: 99 | R517: 100.9 | S517: 100.4 | T517: 101 | U517: 100.7 | V517: 100.8 | W517: 100.6 | X517: 101.5 | Y517: 101 | Z517: 100.5 | AA517: 99.3 | AB517: 99.8 | AC517: 100.2 | AD517: 100.2 | AE517: 99 | AF517: 99.7 | AG517: 99.5 | AH517: 99.5 | AI517: 101.6 | AJ517: 102 | AK517: 101.6 | AL517: 101 | AM517: 101.8 | AN517: 103.6 | AO517: 104.4 | AP517: 105 | AQ517: 105.6 | AR517: 106 | AS517: 106.2 | AT517: 106
K518: 99.1 | L518: 100.5 | M518: 99.2 | N518: 98.9 | O518: 99 | P518: 100 | Q518: 99.2 | R518: 100.9 | S518: 100.7 | T518: 100.9 | U518: 100.7 | V518: 100.7 | W518: 100.6 | X518: 102.2 | Y518: 101.2 | Z518: 100.6 | AA518: 99 | AB518: 99.5 | AC518: 100.1 | AD518: 100.2 | AE518: 98.7 | AF518: 99.5 | AG518: 99.2 | AH518: 99.1 | AI518: 101.6 | AJ518: 101.9 | AK518: 102.5 | AL518: 101 | AM518: 102.2 | AN518: 104.2 | AO518: 105.3 | AP518: 106 | AQ518: 106.7 | AR518: 106.8 | AS518: 106.9 | AT518: 106.6
K519: 99.8 | L519: 99.3 | M519: 98.2 | N519: 98.4 | O519: 102 | P519: 100.8 | Q519: 97.6 | R519: 100.9 | S519: 99.4 | T519: 101.5 | U519: 100.7 | V519: 101.4 | W519: 101.2 | X519: 99.1 | Y519: 100.2 | Z519: 99.9 | AA519: 99.3 | AB519: 100.2 | AC519: 99.9 | AD519: 99.5 | AE519: 99 | AF519: 99.5 | AG519: 99.7 | AH519: 100.2 | AI519: 100.8 | AJ519: 101.9 | AK519: 97.9 | AL519: 100.4 | AM519: 99.6 | AN519: 102 | AO519: 102.1 | AP519: 100.5 | AQ519: 101.4 | AR519: 103.5 | AS519: 103.9 | AT519: 103.6
K520: 97.6 | L520: 97.7 | M520: 97.6 | N520: 99 | O520: 99 | P520: 101 | Q520: 100 | R520: 102 | S520: 101.7 | T520: 101.4 | U520: 101.4 | V520: 101.4 | W520: 100.5 | X520: 102.1 | Y520: 103.2 | Z520: 103.2 | AA520: 102.5 | AB520: 102.5 | AC520: 101.8 | AD520: 102.7 | AE520: 101.1 | AF520: 101.1 | AG520: 101.1 | AH520: 101.1 | AI520: 103.5 | AJ520: 103.9 | AK520: 101.2 | AL520: 101.2 | AM520: 102.4 | AN520: 102.4 | AO520: 101.8 | AP520: 106.7 | AQ520: 104.9 | AR520: 104.9 | AS520: 108 | AT520: 110.3
K521: 100.1 | L521: 99.7 | M521: 100.2 | N521: 100.1 | O521: 100.2 | P521: 100 | Q521: 99.8 | R521: 100 | S521: 99.7 | T521: 100.1 | U521: 99.7 | V521: 100.4 | W521: 100.5 | X521: 100.5 | Y521: 100.3 | Z521: 100.1 | AA521: 100.1 | AB521: 100.2 | AC521: 100.9 | AD521: 100.6 | AE521: 100.9 | AF521: 100.7 | AG521: 100.7 | AH521: 100.9 | AI521: 101.7 | AJ521: 101.9 | AK521: 102 | AL521: 101.7 | AM521: 101.7 | AN521: 101.9 | AO521: 102.6 | AP521: 103.7 | AQ521: 103.8 | AR521: 103.9 | AS521: 104 | AT521: 104.1
K522: 97.4 | L522: 98.3 | M522: 98.7 | N522: 99.6 | O522: 100.3 | P522: 101.6 | Q522: 101.7 | R522: 99.2 | S522: 100 | T522: 100.5 | U522: 101.2 | V522: 101.6 | W522: 99.8 | X522: 99.8 | Y522: 99.6 | Z522: 99.1 | AA522: 100.9 | AB522: 100.9 | AC522: 100.4 | AD522: 102.3 | AE522: 103.6 | AF522: 100.2 | AG522: 101.4 | AH522: 101.3 | AI522: 102.8 | AJ522: 103.5 | AK522: 102.2 | AL522: 101.3 | AM522: 101.4 | AN522: 102.6 | AO522: 104.2 | AP522: 102.2 | AQ522: 103.4 | AR522: 105.3 | AS522: 103.9 | AT522: 105.2
K523: 101.1 | L523: 100 | M523: 99.6 | N523: 100.1 | O523: 99.6 | P523: 98.9 | Q523: 99.1 | R523: 100.6 | S523: 98.7 | T523: 99.9 | U523: 100.5 | V523: 102.1 | W523: 102.7 | X523: 101.4 | Y523: 102.1 | Z523: 103 | AA523: 102.7 | AB523: 102.8 | AC523: 101.7 | AD523: 102.7 | AE523: 103.2 | AF523: 102.6 | AG523: 101.9 | AH523: 100.2 | AI523: 101.9 | AJ523: 101.2 | AK523: 103 | AL523: 102.3 | AM523: 106 | AN523: 105.1 | AO523: 103.6 | AP523: 104.8 | AQ523: 104.3 | AR523: 106.2 | AS523: 106.3 | AT523: 106.3
K524: 100.1 | L524: 103.5 | M524: 98 | N524: 99 | O524: 96.9 | P524: 99.7 | Q524: 101.3 | R524: 102.6 | S524: 101.2 | T524: 101.2 | U524: 98.7 | V524: 97.8 | W524: 100.5 | X524: 98.1 | Y524: 98.8 | Z524: 98.4 | AA524: 106.4 | AB524: 108 | AC524: 95.4 | AD524: 99.9 | AE524: 110.6 | AF524: 94.6 | AG524: 108.4 | AH524: 108.4 | AI524: 106.1 | AJ524: 106.1 | AK524: 106.7 | AL524: 110 | AM524: 109.8 | AN524: 110.1 | AO524: 108.5 | AP524: 104.9 | AQ524: 109.4 | AR524: 111.5 | AS524: 111.4 | AT524: 109.3
K525: 91.9 | L525: 93.3 | M525: 95.2 | N525: 99.4 | O525: 99.9 | P525: 98.3 | Q525: 97.3 | R525: 104.1 | S525: 100.5 | T525: 103.4 | U525: 106 | V525: 110.6 | W525: 105.3 | X525: 113.8 | Y525: 106.7 | Z525: 106.4 | AA525: 107.7 | AB525: 108.7 | AC525: 103 | AD525: 107.4 | AE525: 102.5 | AF525: 112.4 | AG525: 101.5 | AH525: 102.5 | AI525: 101 | AJ525: 104.5 | AK525: 104.8 | AL525: 106.3 | AM525: 106.4 | AN525: 108.9 | AO525: 107.8 | AP525: 108 | AQ525: 103.8 | AR525: 108.2 | AS525: 107.9 | AT525: 107.9
K526: 97.7 | L526: 98.5 | M526: 96.5 | N526: 101.6 | O526: 98.1 | P526: 99.2 | Q526: 101 | R526: 100.2 | S526: 102 | T526: 100.6 | U526: 101.9 | V526: 102.6 | W526: 99 | X526: 98.1 | Y526: 99.3 | Z526: 98.9 | AA526: 102.3 | AB526: 104.4 | AC526: 105 | AD526: 103 | AE526: 104.9 | AF526: 104.4 | AG526: 105.7 | AH526: 104.7 | AI526: 105.7 | AJ526: 106.4 | AK526: 106.7 | AL526: 108.2 | AM526: 107.4 | AN526: 108.7 | AO526: 109 | AP526: 106.5 | AQ526: 105 | AR526: 109.3 | AS526: 110 | AT526: 108
K527: 97 | L527: 97.8 | M527: 100 | N527: 98.8 | O527: 101.9 | P527: 103.6 | Q527: 102.8 | R527: 97.5 | S527: 99.1 | T527: 100.1 | U527: 100.9 | V527: 100.6 | W527: 99.1 | X527: 99 | Y527: 98.7 | Z527: 97.9 | AA527: 98.4 | AB527: 97.2 | AC527: 98.7 | AD527: 101.7 | AE527: 102.1 | AF527: 97.5 | AG527: 98.4 | AH527: 98.8 | AI527: 101.4 | AJ527: 102 | AK527: 99.1 | AL527: 96.3 | AM527: 96.4 | AN527: 97.8 | AO527: 101.2 | AP527: 99.1 | AQ527: 101.7 | AR527: 102.2 | AS527: 99.5 | AT527: 102.9
K528: 100.4 | L528: 97.9 | M528: 101.5 | N528: 97.8 | O528: 100.4 | P528: 98.3 | Q528: 101.4 | R528: 104 | S528: 103.7 | T528: 97.3 | U528: 97.3 | V528: 100 | W528: 98.8 | X528: 98.4 | Y528: 98 | Z528: 99.6 | AA528: 97.8 | AB528: 98.9 | AC528: 100.9 | AD528: 100.5 | AE528: 100.9 | AF528: 99.6 | AG528: 97.4 | AH528: 98.4 | AI528: 99.3 | AJ528: 98.8 | AK528: 101.2 | AL528: 102.4 | AM528: 101.9 | AN528: 100.4 | AO528: 106.2 | AP528: 101.1 | AQ528: 100.8 | AR528: 102.5 | AS528: 101.4 | AT528: 101.1
K529: 100.4 | L529: 97.9 | M529: 101.5 | N529: 97.8 | O529: 100.4 | P529: 98.3 | Q529: 101.4 | R529: 104 | S529: 103.7 | T529: 97.3 | U529: 97.3 | V529: 100 | W529: 98.8 | X529: 98.4 | Y529: 98 | Z529: 99.6 | AA529: 97.8 | AB529: 98.9 | AC529: 100.9 | AD529: 100.5 | AE529: 100.9 | AF529: 99.6 | AG529: 97.4 | AH529: 98.4 | AI529: 99.3 | AJ529: 98.8 | AK529: 101.2 | AL529: 102.4 | AM529: 101.9 | AN529: 100.4 | AO529: 106.2 | AP529: 101.1 | AQ529: 100.8 | AR529: 102.5 | AS529: 101.4 | AT529: 101.1
K530: 104.4 | L530: 100.6 | M530: 98.8 | N530: 98.7 | O530: 98.3 | P530: 98.7 | Q530: 99.4 | R530: 101.2 | S530: 98.9 | T530: 100.4 | U530: 99 | V530: 101.5 | W530: 100 | X530: 99.8 | Y530: 97.9 | Z530: 101.1 | AA530: 101.1 | AB530: 99.3 | AC530: 98.8 | AD530: 103.1 | AE530: 102.4 | AF530: 102.1 | AG530: 104.9 | AH530: 102 | AI530: 101.1 | AJ530: 99.9 | AK530: 100.7 | AL530: 100.2 | AM530: 100.1 | AN530: 100.7 | AO530: 98.3 | AP530: 99.3 | AQ530: 101.8 | AR530: 99.2 | AS530: 99.7 | AT530: 100
K531: 94.8 | L531: 96.8 | M531: 99.2 | N531: 105.1 | O531: 102.9 | P531: 102.6 | Q531: 101.2 | R531: 101.2 | S531: 97.7 | T531: 98.6 | U531: 99.6 | V531: 100.4 | W531: 94.1 | X531: 96 | Y531: 94.9 | Z531: 94.1 | AA531: 97.2 | AB531: 92.8 | AC531: 96.6 | AD531: 96.4 | AE531: 95 | AF531: 96.5 | AG531: 98.8 | AH531: 99 | AI531: 101.6 | AJ531: 98.4 | AK531: 101.1 | AL531: 98.7 | AM531: 102.3 | AN531: 103 | AO531: 106.2 | AP531: 99.5 | AQ531: 99.8 | AR531: 104.4 | AS531: 107.9 | AT531: 107.9
K532: 106.3 | L532: 101.4 | M532: 98.7 | N532: 97.4 | O532: 97.3 | P532: 98 | Q532: 99.1 | R532: 101.2 | S532: 99.2 | T532: 100.8 | U532: 98.9 | V532: 101.7 | W532: 101.2 | X532: 100.5 | Y532: 98.5 | Z532: 102.5 | AA532: 101.8 | AB532: 100.6 | AC532: 99.3 | AD532: 104.5 | AE532: 103.9 | AF532: 103.2 | AG532: 106.1 | AH532: 102.6 | AI532: 101 | AJ532: 100.2 | AK532: 100.6 | AL532: 100.5 | AM532: 99.7 | AN532: 100.3 | AO532: 96.7 | AP532: 99.3 | AQ532: 102.2 | AR532: 98.2 | AS532: 98 | AT532: 98.4
K533: 102 | L533: 101.9 | M533: 100.3 | N533: 99.6 | O533: 100.2 | P533: 100.3 | Q533: 100.4 | R533: 98.8 | S533: 98.7 | T533: 98.7 | U533: 100.2 | V533: 98.9 | W533: 97.9 | X533: 98 | Y533: 99.2 | Z533: 98.9 | AA533: 100.6 | AB533: 99.7 | AC533: 99.9 | AD533: 101.3 | AE533: 100.5 | AF533: 101.5 | AG533: 101.5 | AH533: 101.7 | AI533: 100.7 | AJ533: 100 | AK533: 101.3 | AL533: 102.1 | AM533: 102.9 | AN533: 106.6 | AO533: 106.3 | AP533: 106.9 | AQ533: 106.2 | AR533: 105.5 | AS533: 108.3 | AT533: 108.5
K534: 101.9 | L534: 101.6 | M534: 100.5 | N534: 99.5 | O534: 101 | P534: 101.1 | Q534: 100.1 | R534: 99 | S534: 97.7 | T534: 99 | U534: 100.4 | V534: 98.1 | W534: 96.4 | X534: 97.5 | Y534: 98.3 | Z534: 98.7 | AA534: 99.3 | AB534: 98.2 | AC534: 99 | AD534: 101.5 | AE534: 99.6 | AF534: 101.2 | AG534: 101.7 | AH534: 102.2 | AI534: 97.5 | AJ534: 97.6 | AK534: 101.4 | AL534: 99.6 | AM534: 100.7 | AN534: 106.9 | AO534: 108.3 | AP534: 108.2 | AQ534: 108.6 | AR534: 105.6 | AS534: 109.1 | AT534: 109.1
K535: 102.8 | L535: 100.8 | M535: 100.2 | N535: 100.2 | O535: 100.2 | P535: 100 | Q535: 100.5 | R535: 100.2 | S535: 98.9 | T535: 98.9 | U535: 99.5 | V535: 97.8 | W535: 98.4 | X535: 95.6 | Y535: 99.2 | Z535: 98.8 | AA535: 98.8 | AB535: 99.6 | AC535: 99.4 | AD535: 101 | AE535: 100.8 | AF535: 100.8 | AG535: 100.5 | AH535: 101.9 | AI535: 101.2 | AJ535: 97.5 | AK535: 101.1 | AL535: 104.9 | AM535: 104.6 | AN535: 105.6 | AO535: 104.3 | AP535: 104.7 | AQ535: 104.1 | AR535: 106.6 | AS535: 107.9 | AT535: 108.8
K536: 101.6 | L536: 103.1 | M536: 99.9 | N536: 99.4 | O536: 99.1 | P536: 99.4 | Q536: 100.7 | R536: 97.4 | S536: 99.8 | T536: 98.3 | U536: 100.6 | V536: 100.7 | W536: 99.7 | X536: 100.5 | Y536: 100.4 | Z536: 99.4 | AA536: 103.8 | AB536: 101.8 | AC536: 101.5 | AD536: 101.1 | AE536: 101.6 | AF536: 102.5 | AG536: 101.9 | AH536: 100.8 | AI536: 104.4 | AJ536: 105.2 | AK536: 101.4 | AL536: 103.1 | AM536: 104.4 | AN536: 106.9 | AO536: 105.2 | AP536: 107.1 | AQ536: 104.8 | AR536: 104.6 | AS536: 107.4 | AT536: 107.5
K537: 101 | L537: 100.6 | M537: 102.4 | N537: 101 | O537: 100.8 | P537: 101.4 | Q537: 98.2 | R537: 98.8 | S537: 99.2 | T537: 99.4 | U537: 99.2 | V537: 98.3 | W537: 98.7 | X537: 95.9 | Y537: 96.1 | Z537: 96.1 | AA537: 95.4 | AB537: 93.7 | AC537: 95.3 | AD537: 98.5 | AE537: 97 | AF537: 100.9 | AG537: 98 | AH537: 96.5 | AI537: 97.6 | AJ537: 98.5 | AK537: 97.5 | AL537: 102.4 | AM537: 102.2 | AN537: 103 | AO537: 104.4 | AP537: 101.8 | AQ537: 103.6 | AR537: 102.3 | AS537: 106 | AT537: 103.9
K538: 100.3 | L538: 99.4 | M538: 102.9 | N538: 101.2 | O538: 101.2 | P538: 101.6 | Q538: 99.3 | R538: 99.5 | S538: 98.9 | T538: 98.2 | U538: 99.3 | V538: 98 | W538: 99 | X538: 94.1 | Y538: 94.2 | Z538: 95.4 | AA538: 93.8 | AB538: 90.6 | AC538: 93.9 | AD538: 100.6 | AE538: 96 | AF538: 103.1 | AG538: 99.2 | AH538: 96.4 | AI538: 96.7 | AJ538: 98.1 | AK538: 97.8 | AL538: 99.9 | AM538: 98.8 | AN538: 101 | AO538: 105 | AP538: 100.7 | AQ538: 102.9 | AR538: 99 | AS538: 103.7 | AT538: 100.1
K539: 100.4 | L539: 101 | M539: 99.8 | N539: 101.8 | O539: 100.9 | P539: 102.7 | Q539: 93.9 | R539: 95.9 | S539: 100 | T539: 104.2 | U539: 100.2 | V539: 99.3 | W539: 98.7 | X539: 99.4 | Y539: 100.2 | Z539: 97.9 | AA539: 99 | AB539: 100.5 | AC539: 98.1 | AD539: 94.5 | AE539: 100.5 | AF539: 94.9 | AG539: 92.6 | AH539: 93.3 | AI539: 97.6 | AJ539: 97.9 | AK539: 94.2 | AL539: 102 | AM539: 104.8 | AN539: 102.1 | AO539: 95.6 | AP539: 95.3 | AQ539: 97.6 | AR539: 95.1 | AS539: 96.7 | AT539: 96.6
K540: 103.5 | L540: 103.5 | M540: 103.5 | N540: 99.3 | O540: 99.3 | P540: 99.3 | Q540: 99.3 | R540: 99.3 | S540: 99.3 | T540: 97.9 | U540: 97.9 | V540: 97.9 | W540: 97.9 | X540: 97.9 | Y540: 97.9 | Z540: 96.5 | AA540: 96.5 | AB540: 96.5 | AC540: 96.5 | AD540: 96.5 | AE540: 96.5 | AF540: 100.1 | AG540: 100.1 | AH540: 100.1 | AI540: 100.1 | AJ540: 100.1 | AK540: 100.1 | AL540: 110.1 | AM540: 110.1 | AN540: 110.1 | AO540: 111.6 | AP540: 111.6 | AQ540: 111.6 | AR540: 119.4 | AS540: 122.3 | AT540: 122.3
K541: 99.8 | L541: 100.4 | M541: 100.7 | N541: 100.2 | O541: 100.4 | P541: 99.2 | Q541: 100 | R541: 99.3 | S541: 99.9 | T541: 99.7 | U541: 100.2 | V541: 100.2 | W541: 100.5 | X541: 100.1 | Y541: 100.4 | Z541: 100.1 | AA541: 100.4 | AB541: 100 | AC541: 100.4 | AD541: 99.9 | AE541: 98.9 | AF541: 99.8 | AG541: 100 | AH541: 99.9 | AI541: 100 | AJ541: 100.1 | AK541: 100.6 | AL541: 100 | AM541: 99.7 | AN541: 100.1 | AO541: 101.2 | AP541: 101.9 | AQ541: 101.8 | AR541: 103.5 | AS541: 105.1 | AT541: 104.5
K542: 99.8 | L542: 100.1 | M542: 101.3 | N542: 99.3 | O542: 100.9 | P542: 100.8 | Q542: 99.8 | R542: 97.7 | S542: 100.4 | T542: 99.9 | U542: 99.9 | V542: 100.1 | W542: 100.8 | X542: 99.6 | Y542: 100.8 | Z542: 99.5 | AA542: 99 | AB542: 100.1 | AC542: 99.4 | AD542: 100 | AE542: 99.6 | AF542: 99.4 | AG542: 99.9 | AH542: 99.5 | AI542: 100.8 | AJ542: 99 | AK542: 100.6 | AL542: 99.9 | AM542: 100.1 | AN542: 99.9 | AO542: 99.4 | AP542: 101.7 | AQ542: 101.3 | AR542: 101.3 | AS542: 106 | AT542: 106
K543: 100 | L543: 100 | M543: 100 | N543: 100 | O543: 100 | P543: 100 | Q543: 100 | R543: 100 | S543: 100 | T543: 100 | U543: 100 | V543: 100 | W543: 100 | X543: 100 | Y543: 100 | Z543: 100 | AA543: 100 | AB543: 100 | AC543: 100 | AD543: 100 | AE543: 100 | AF543: 100 | AG543: 100 | AH543: 100 | AI543: 100 | AJ543: 100 | AK543: 100 | AL543: 100 | AM543: 100 | AN543: 100 | AO543: 100 | AP543: 100 | AQ543: 100 | AR543: 105.2 | AS543: 105.2 | AT543: 105.2
K544: 102.9 | L544: 103.3 | M544: 102.3 | N544: 102.4 | O544: 100.3 | P544: 95.8 | Q544: 97.4 | R544: 99.8 | S544: 99 | T544: 97.4 | U544: 99 | V544: 100.4 | W544: 102.7 | X544: 100.5 | Y544: 101.7 | Z544: 101 | AA544: 103.8 | AB544: 100.9 | AC544: 105.1 | AD544: 100.8 | AE544: 98.3 | AF544: 99.5 | AG544: 99.2 | AH544: 99.7 | AI544: 99.3 | AJ544: 102.7 | AK544: 105.3 | AL544: 104.2 | AM544: 100.3 | AN544: 100.7 | AO544: 101.3 | AP544: 103.3 | AQ544: 105.4 | AR544: 101.9 | AS544: 107.4 | AT544: 100.8
K545: 99 | L545: 100.1 | M545: 100.8 | N545: 100.1 | O545: 100.7 | P545: 98.7 | Q545: 100.6 | R545: 99 | S545: 99.8 | T545: 100 | U545: 100.9 | V545: 100.3 | W545: 100.4 | X545: 100.1 | Y545: 100.3 | Z545: 100.2 | AA545: 100.5 | AB545: 99.6 | AC545: 99.9 | AD545: 99.5 | AE545: 98 | AF545: 99.9 | AG545: 100.2 | AH545: 99.9 | AI545: 99.9 | AJ545: 100 | AK545: 100.1 | AL545: 99.1 | AM545: 99.2 | AN545: 100 | AO545: 102.8 | AP545: 103.2 | AQ545: 102.7 | AR545: 103.1 | AS545: 104.2 | AT545: 104.2
K546: 105.2 | L546: 103.6 | M546: 102.4 | N546: 100.4 | O546: 103.7 | P546: 99.2 | Q546: 96.5 | R546: 99.2 | S546: 99.4 | T546: 100.1 | U546: 96 | V546: 94.4 | W546: 93.7 | X546: 95.3 | Y546: 92.1 | Z546: 96 | AA546: 91.8 | AB546: 95.9 | AC546: 98.6 | AD546: 100.7 | AE546: 93.4 | AF546: 96.8 | AG546: 99 | AH546: 99.3 | AI546: 99 | AJ546: 99.1 | AK546: 99.7 | AL546: 97.8 | AM546: 97.9 | AN546: 100 | AO546: 99.9 | AP546: 97.1 | AQ546: 95.5 | AR546: 96.2 | AS546: 96.4 | AT546: 96.1
K547: 105.2 | L547: 103.6 | M547: 102.4 | N547: 100.4 | O547: 103.7 | P547: 99.2 | Q547: 96.5 | R547: 99.2 | S547: 99.4 | T547: 100.1 | U547: 96 | V547: 94.4 | W547: 93.7 | X547: 95.3 | Y547: 92.1 | Z547: 96 | AA547: 91.8 | AB547: 95.9 | AC547: 98.6 | AD547: 100.7 | AE547: 93.4 | AF547: 96.8 | AG547: 99 | AH547: 99.3 | AI547: 99 | AJ547: 99.1 | AK547: 99.7 | AL547: 97.8 | AM547: 97.9 | AN547: 100 | AO547: 99.9 | AP547: 97.1 | AQ547: 95.5 | AR547: 96.2 | AS547: 96.4 | AT547: 96.1
K548: 103 | L548: 104.7 | M548: 102.2 | N548: 100.1 | O548: 99.1 | P548: 98.3 | Q548: 97.1 | R548: 96.6 | S548: 98.2 | T548: 100.8 | U548: 100.1 | V548: 99.8 | W548: 98.6 | X548: 99.4 | Y548: 101.3 | Z548: 104.8 | AA548: 106 | AB548: 104 | AC548: 102.9 | AD548: 102.9 | AE548: 103.4 | AF548: 103 | AG548: 102 | AH548: 105.4 | AI548: 106.8 | AJ548: 107 | AK548: 110 | AL548: 109.8 | AM548: 110.1 | AN548: 111.3 | AO548: 112.6 | AP548: 111.6 | AQ548: 112.2 | AR548: 115.4 | AS548: 114.7 | AT548: 113.7
K549: 103 | L549: 104.7 | M549: 102.2 | N549: 100.1 | O549: 99.1 | P549: 98.3 | Q549: 97.1 | R549: 96.6 | S549: 98.2 | T549: 100.8 | U549: 100.1 | V549: 99.8 | W549: 98.6 | X549: 99.4 | Y549: 101.3 | Z549: 104.8 | AA549: 106 | AB549: 104 | AC549: 102.9 | AD549: 102.9 | AE549: 103.4 | AF549: 103 | AG549: 102 | AH549: 105.4 | AI549: 106.8 | AJ549: 107 | AK549: 110 | AL549: 109.8 | AM549: 110.1 | AN549: 111.3 | AO549: 112.6 | AP549: 111.6 | AQ549: 112.2 | AR549: 115.4 | AS549: 114.7 | AT549: 113.7
K550: 100.7 | L550: 99 | M550: 99 | N550: 99.4 | O550: 101.6 | P550: 100.1 | Q550: 100.9 | R550: 99.7 | S550: 99.3 | T550: 98.7 | U550: 100.7 | V550: 100.9 | W550: 101.1 | X550: 98.9 | Y550: 98.1 | Z550: 98.4 | AA550: 99.3 | AB550: 98.1 | AC550: 98.6 | AD550: 98.6 | AE550: 99.7 | AF550: 99.4 | AG550: 100.3 | AH550: 100.4 | AI550: 99 | AJ550: 99.5 | AK550: 100.1 | AL550: 99.6 | AM550: 101.3 | AN550: 102.3 | AO550: 100.1 | AP550: 104.4 | AQ550: 103.2 | AR550: 103.5 | AS550: 103.7 | AT550: 102.1
K551: 100.7 | L551: 99 | M551: 99 | N551: 99.4 | O551: 101.6 | P551: 100.1 | Q551: 100.9 | R551: 99.7 | S551: 99.3 | T551: 98.7 | U551: 100.7 | V551: 100.9 | W551: 101.1 | X551: 98.9 | Y551: 98.1 | Z551: 98.4 | AA551: 99.3 | AB551: 98.1 | AC551: 98.6 | AD551: 98.6 | AE551: 99.7 | AF551: 99.4 | AG551: 100.3 | AH551: 100.4 | AI551: 99 | AJ551: 99.5 | AK551: 100.1 | AL551: 99.6 | AM551: 101.3 | AN551: 102.3 | AO551: 100.1 | AP551: 104.4 | AQ551: 103.2 | AR551: 103.5 | AS551: 103.7 | AT551: 102.1
K552: 99.2 | L552: 101.2 | M552: 100.2 | N552: 98.9 | O552: 101.1 | P552: 100.9 | Q552: 101.3 | R552: 100.2 | S552: 100 | T552: 97.7 | U552: 99.6 | V552: 99.8 | W552: 98.2 | X552: 98.8 | Y552: 100.9 | Z552: 100.1 | AA552: 98.9 | AB552: 97.9 | AC552: 101.2 | AD552: 98.6 | AE552: 100.1 | AF552: 101.4 | AG552: 100.6 | AH552: 98.7 | AI552: 99 | AJ552: 101.3 | AK552: 100.5 | AL552: 98.2 | AM552: 99.2 | AN552: 98.2 | AO552: 99.3 | AP552: 97.9 | AQ552: 101.3 | AR552: 101 | AS552: 102.4 | AT552: 101.2
K553: 99.2 | L553: 101.2 | M553: 100.2 | N553: 98.9 | O553: 101.1 | P553: 100.9 | Q553: 101.3 | R553: 100.2 | S553: 100 | T553: 97.7 | U553: 99.6 | V553: 99.8 | W553: 98.2 | X553: 98.8 | Y553: 100.9 | Z553: 100.1 | AA553: 98.9 | AB553: 97.9 | AC553: 101.2 | AD553: 98.6 | AE553: 100.1 | AF553: 101.4 | AG553: 100.6 | AH553: 98.7 | AI553: 99 | AJ553: 101.3 | AK553: 100.5 | AL553: 98.2 | AM553: 99.2 | AN553: 98.2 | AO553: 99.3 | AP553: 97.9 | AQ553: 101.3 | AR553: 101 | AS553: 102.4 | AT553: 101.2
K554: 100.8 | L554: 100.7 | M554: 100.6 | N554: 100.8 | O554: 100.3 | P554: 100.2 | Q554: 99.5 | R554: 99.3 | S554: 99.3 | T554: 99.5 | U554: 99.6 | V554: 99.4 | W554: 100.7 | X554: 100.2 | Y554: 100.4 | Z554: 100.5 | AA554: 100.4 | AB554: 101 | AC554: 101.2 | AD554: 101 | AE554: 101 | AF554: 101.2 | AG554: 101.5 | AH554: 101.8 | AI554: 101.4 | AJ554: 100.7 | AK554: 101.2 | AL554: 101.2 | AM554: 101.3 | AN554: 101.5 | AO554: 100.8 | AP554: 101.9 | AQ554: 102.4 | AR554: 102.8 | AS554: 102.8 | AT554: 102.9
K555: 100.8 | L555: 100.7 | M555: 100.6 | N555: 100.8 | O555: 100.3 | P555: 100.2 | Q555: 99.5 | R555: 99.3 | S555: 99.3 | T555: 99.5 | U555: 99.6 | V555: 99.4 | W555: 100.7 | X555: 100.2 | Y555: 100.4 | Z555: 100.5 | AA555: 100.4 | AB555: 101 | AC555: 101.2 | AD555: 101 | AE555: 101 | AF555: 101.2 | AG555: 101.5 | AH555: 101.8 | AI555: 101.4 | AJ555: 100.7 | AK555: 101.2 | AL555: 101.2 | AM555: 101.3 | AN555: 101.5 | AO555: 100.8 | AP555: 101.9 | AQ555: 102.4 | AR555: 102.8 | AS555: 102.8 | AT555: 102.9
K556: 101.4 | L556: 99.9 | M556: 100.4 | N556: 100.5 | O556: 100.5 | P556: 100.6 | Q556: 99.3 | R556: 99.1 | S556: 99.7 | T556: 99.7 | U556: 99.5 | V556: 99.4 | W556: 100.3 | X556: 99.8 | Y556: 100.3 | Z556: 100.5 | AA556: 100.2 | AB556: 100.8 | AC556: 101.3 | AD556: 101.7 | AE556: 101.8 | AF556: 102.4 | AG556: 101.7 | AH556: 102.3 | AI556: 102.6 | AJ556: 101.5 | AK556: 101.6 | AL556: 102 | AM556: 102 | AN556: 102.7 | AO556: 103.3 | AP556: 103.5 | AQ556: 103.5 | AR556: 104.6 | AS556: 104.7 | AT556: 104.7
K557: 100.2 | L557: 99.5 | M557: 100.1 | N557: 100.1 | O557: 100.6 | P557: 100.7 | Q557: 99.7 | R557: 99.1 | S557: 99.8 | T557: 99.8 | U557: 100 | V557: 100.3 | W557: 100.4 | X557: 98.7 | Y557: 100.8 | Z557: 101.3 | AA557: 101.3 | AB557: 100.9 | AC557: 101.3 | AD557: 101.2 | AE557: 101.7 | AF557: 101.1 | AG557: 101.8 | AH557: 103 | AI557: 104.4 | AJ557: 104.3 | AK557: 105.3 | AL557: 109.1 | AM557: 107.4 | AN557: 109.2 | AO557: 110.1 | AP557: 110.7 | AQ557: 110.7 | AR557: 112.5 | AS557: 112.5 | AT557: 112.6
K558: 101.8 | L558: 100 | M558: 100.5 | N558: 100.6 | O558: 100.6 | P558: 100.6 | Q558: 99.2 | R558: 99 | S558: 99.7 | T558: 99.7 | U558: 99.3 | V558: 99.3 | W558: 100.3 | X558: 99.8 | Y558: 100.3 | Z558: 100.3 | AA558: 99.9 | AB558: 100.6 | AC558: 101.2 | AD558: 101.8 | AE558: 101.8 | AF558: 102.5 | AG558: 101.7 | AH558: 102.2 | AI558: 102.2 | AJ558: 101 | AK558: 100.9 | AL558: 100.8 | AM558: 101.1 | AN558: 101.7 | AO558: 102.3 | AP558: 102.5 | AQ558: 102.5 | AR558: 103.6 | AS558: 103.8 | AT558: 103.8
K559: 99.1 | L559: 99.1 | M559: 99.1 | N559: 100.3 | O559: 100.3 | P559: 100.3 | Q559: 100.3 | R559: 100.3 | S559: 100.3 | T559: 100.3 | U559: 100.3 | V559: 100.3 | W559: 100.3 | X559: 100.3 | Y559: 100.3 | Z559: 102.1 | AA559: 102.1 | AB559: 102.1 | AC559: 102.1 | AD559: 102.1 | AE559: 102.1 | AF559: 102.1 | AG559: 102.1 | AH559: 102.1 | AI559: 104.1 | AJ559: 104.1 | AK559: 104.1 | AL559: 105.8 | AM559: 105.8 | AN559: 105.8 | AO559: 105.8 | AP559: 105.8 | AQ559: 105.8 | AR559: 105.8 | AS559: 105.8 | AT559: 105.8
... 855 more rows

Sheet グラフ・労務費データソース (hidden)
A1: 計算式 | B1: =IF(ISERROR(G2),"",IF(G2=0,"",ABS(ROUND(G2,1)))) -> 10 | C1: =IFERROR(IF(B2="","",IF(ISERROR(B1),"",IF(G2>0,"％ｕｐ",IF(G2<0,"％ｄｏｗｎ","")))),"") -> ％ｕｐ | D1: 比較開始月 | E1: =DATE(YEAR(B3),MONTH(F1),1) -> 2020-02-01 | F1: 2026-02-01 | G1: 差分
A2: チラシシート日付 | B2: =IFERROR(IF(B3="","",Reiwa漢字(F1) &"比"),"") -> 令和8年2月比 | C2: =IFERROR(IF(B3="","",Reiwa漢字(E1)&"と"&Reiwa漢字(F1)&"の比較"),"") -> 令和2年2月と令和8年2月の比較 | D2: =IFERROR(IF(B3="","",Reiwa漢字(E1) &"比"),"") -> 令和2年2月比 | E2: =IFERROR(INDEX($C$6:$FX$6, MATCH($E$1, $C$11:$FX$11, 0)), "") -> 341152 | F2: =IFERROR(INDEX($C$6:$FX$6, MATCH($F$1, $C$11:$FX$11, 0)), "") -> 375148 | G2: =($F$2-$E$2)/$E$2*100 -> 9.965059563 | K2: =IF(COUNTA(B6:FX6)=1,"",INDEX(B11:FX11,1,COUNTA(B6:FX6)))
A3: 比較月 | B3: =DATE(YEAR(C11),MONTH(I2),1) -> 2020-01-01
C4: 1年目 | O4: 2年目 | AA4: 3年目 | AM4: 4年目 | AY4: 5年目 | BK4: 6年目 | BW4: 7年目 | CI4: 8年目 | CU4: 9年目 | DG4: 10年目 | DS4: 11年目 | EE4: 12年目 | EQ4: 13年目 | FC4: 14年目 | FO4: 15年目
A5: 表示 | B5: 種別 | C5: =IF(C11="","",reiwa(C11)) -> R2.2 | D5: =IF(D11="","",reiwa(D11)) -> R2.3 | E5: =IF(E11="","",reiwa(E11)) -> R2.4 | F5: =IF(F11="","",reiwa(F11)) -> R2.5 | G5: =IF(G11="","",reiwa(G11)) -> R2.6 | H5: =IF(H11="","",reiwa(H11)) -> R2.7 | I5: =IF(I11="","",reiwa(I11)) -> R2.8 | J5: =IF(J11="","",reiwa(J11)) -> R2.9 | K5: =IF(K11="","",reiwa(K11)) -> R2.10 | L5: =IF(L11="","",reiwa(L11)) -> R2.11 | M5: =IF(M11="","",reiwa(M11)) -> R2.12 | N5: =IF(N11="","",reiwa(N11)) -> R3.1 | O5: =IF(O11="","",reiwa(O11)) -> R3.2 | P5: =IF(P11="","",reiwa(P11)) -> R3.3 | Q5: =IF(Q11="","",reiwa(Q11)) -> R3.4 | R5: =IF(R11="","",reiwa(R11)) -> R3.5 | S5: =IF(S11="","",reiwa(S11)) -> R3.6 | T5: =IF(T11="","",reiwa(T11)) -> R3.7 | U5: =IF(U11="","",reiwa(U11)) -> R3.8 | V5: =IF(V11="","",reiwa(V11)) -> R3.9 | W5: =IF(W11="","",reiwa(W11)) -> R3.10 | X5: =IF(X11="","",reiwa(X11)) -> R3.11 | Y5: =IF(Y11="","",reiwa(Y11)) -> R3.12 | Z5: =IF(Z11="","",reiwa(Z11)) -> R4.1 | AA5: =IF(AA11="","",reiwa(AA11)) -> R4.2 | AB5: =IF(AB11="","",reiwa(AB11)) -> R4.3 | AC5: =IF(AC11="","",reiwa(AC11)) -> R4.4 | AD5: =IF(AD11="","",reiwa(AD11)) -> R4.5 | AE5: =IF(AE11="","",reiwa(AE11)) -> R4.6 | AF5: =IF(AF11="","",reiwa(AF11)) -> R4.7 | AG5: =IF(AG11="","",reiwa(AG11)) -> R4.8 | AH5: =IF(AH11="","",reiwa(AH11)) -> R4.9 | AI5: =IF(AI11="","",reiwa(AI11)) -> R4.10 | AJ5: =IF(AJ11="","",reiwa(AJ11)) -> R4.11 | AK5: =IF(AK11="","",reiwa(AK11)) -> R4.12 | AL5: =IF(AL11="","",reiwa(AL11)) -> R5.1 | AM5: =IF(AM11="","",reiwa(AM11)) -> R5.2 | AN5: =IF(AN11="","",reiwa(AN11)) -> R5.3 | AO5: =IF(AO11="","",reiwa(AO11)) -> R5.4 | AP5: =IF(AP11="","",reiwa(AP11)) -> R5.5 | AQ5: =IF(AQ11="","",reiwa(AQ11)) -> R5.6 | AR5: =IF(AR11="","",reiwa(AR11)) -> R5.7 | AS5: =IF(AS11="","",reiwa(AS11)) -> R5.8 | AT5: =IF(AT11="","",reiwa(AT11)) -> R5.9 | AU5: =IF(AU11="","",reiwa(AU11)) -> R5.10 | AV5: =IF(AV11="","",reiwa(AV11)) -> R5.11 | AW5: =IF(AW11="","",reiwa(AW11)) -> R5.12 | AX5: =IF(AX11="","",reiwa(AX11)) -> R6.1 | AY5: =IF(AY11="","",reiwa(AY11)) -> R6.2 | AZ5: =IF(AZ11="","",reiwa(AZ11)) -> R6.3 | BA5: =IF(BA11="","",reiwa(BA11)) -> R6.4 | BB5: =IF(BB11="","",reiwa(BB11)) -> R6.5 | BC5: =IF(BC11="","",reiwa(BC11)) -> R6.6 | BD5: =IF(BD11="","",reiwa(BD11)) -> R6.7 | BE5: =IF(BE11="","",reiwa(BE11)) -> R6.8 | BF5: =IF(BF11="","",reiwa(BF11)) -> R6.9 | BG5: =IF(BG11="","",reiwa(BG11)) -> R6.10 | BH5: =IF(BH11="","",reiwa(BH11)) -> R6.11 | BI5: =IF(BI11="","",reiwa(BI11)) -> R6.12 | BJ5: =IF(BJ11="","",reiwa(BJ11)) -> R7.1 | BK5: =IF(BK11="","",reiwa(BK11)) -> R7.2 | BL5: =IF(BL11="","",reiwa(BL11)) -> R7.3 | BM5: =IF(BM11="","",reiwa(BM11)) -> R7.4 | BN5: =IF(BN11="","",reiwa(BN11)) -> R7.5 | BO5: =IF(BO11="","",reiwa(BO11)) -> R7.6 | BP5: =IF(BP11="","",reiwa(BP11)) -> R7.7 | BQ5: =IF(BQ11="","",reiwa(BQ11)) -> R7.8 | BR5: =IF(BR11="","",reiwa(BR11)) -> R7.9 | BS5: =IF(BS11="","",reiwa(BS11)) -> R7.10 | BT5: =IF(BT11="","",reiwa(BT11)) -> R7.11 | BU5: =IF(BU11="","",reiwa(BU11)) -> R7.12 | BV5: =IF(BV11="","",reiwa(BV11)) -> R8.1 | BW5: =IF(BW11="","",reiwa(BW11)) -> R8.2 | BX5: =IF(BX11="","",reiwa(BX11)) -> R8.2 | BY5: =IF(BY11="","",reiwa(BY11)) -> R8.3 | BZ5: =IF(BZ11="","",reiwa(BZ11)) -> R8.4 | CA5: =IF(CA11="","",reiwa(CA11)) -> R8.5 | CB5: =IF(CB11="","",reiwa(CB11)) -> R8.6 | CC5: =IF(CC11="","",reiwa(CC11)) -> R8.7 | CD5: =IF(CD11="","",reiwa(CD11)) -> R8.8 | CE5: =IF(CE11="","",reiwa(CE11)) -> R8.9 | CF5: =IF(CF11="","",reiwa(CF11)) -> R8.10 | CG5: =IF(CG11="","",reiwa(CG11)) -> R8.11 | CH5: =IF(CH11="","",reiwa(CH11)) -> R8.12 | CI5: =IF(CI11="","",reiwa(CI11)) -> R9.1 | CJ5: =IF(CJ11="","",reiwa(CJ11)) -> R9.2 | CK5: =IF(CK11="","",reiwa(CK11)) -> R9.3 | CL5: =IF(CL11="","",reiwa(CL11)) -> R9.4 | CM5: =IF(CM11="","",reiwa(CM11)) -> R9.5 | CN5: =IF(CN11="","",reiwa(CN11)) -> R9.6 | CO5: =IF(CO11="","",reiwa(CO11)) -> R9.7 | CP5: =IF(CP11="","",reiwa(CP11)) -> R9.8 | CQ5: =IF(CQ11="","",reiwa(CQ11)) -> R9.9 | CR5: =IF(CR11="","",reiwa(CR11)) -> R9.10 | CS5: =IF(CS11="","",reiwa(CS11)) -> R9.11 | CT5: =IF(CT11="","",reiwa(CT11)) -> R9.12 | CU5: =IF(CU11="","",reiwa(CU11)) -> R10.1 | CV5: =IF(CV11="","",reiwa(CV11)) -> R10.2 | CW5: =IF(CW11="","",reiwa(CW11)) -> R10.3 | CX5: =IF(CX11="","",reiwa(CX11)) -> R10.4 | CY5: =IF(CY11="","",reiwa(CY11)) -> R10.5 | CZ5: =IF(CZ11="","",reiwa(CZ11)) -> R10.6 | DA5: =IF(DA11="","",reiwa(DA11)) -> R10.7 | DB5: =IF(DB11="","",reiwa(DB11)) -> R10.8 | DC5: =IF(DC11="","",reiwa(DC11)) -> R10.9 | DD5: =IF(DD11="","",reiwa(DD11)) -> R10.10 | DE5: =IF(DE11="","",reiwa(DE11)) -> R10.11 | DF5: =IF(DF11="","",reiwa(DF11)) -> R10.12 | DG5: =IF(DG11="","",reiwa(DG11)) -> R11.1 | DH5: =IF(DH11="","",reiwa(DH11)) -> R11.2 | DI5: =IF(DI11="","",reiwa(DI11)) -> R11.3 | DJ5: =IF(DJ11="","",reiwa(DJ11)) -> R11.4 | DK5: =IF(DK11="","",reiwa(DK11)) -> R11.5 | DL5: =IF(DL11="","",reiwa(DL11)) -> R11.6 | DM5: =IF(DM11="","",reiwa(DM11)) -> R11.7 | DN5: =IF(DN11="","",reiwa(DN11)) -> R11.8 | DO5: =IF(DO11="","",reiwa(DO11)) -> R11.9 | DP5: =IF(DP11="","",reiwa(DP11)) -> R11.10 | DQ5: =IF(DQ11="","",reiwa(DQ11)) -> R11.11 | DR5: =IF(DR11="","",reiwa(DR11)) -> R11.12 | DS5: =IF(DS11="","",reiwa(DS11)) -> R12.1 | DT5: =IF(DT11="","",reiwa(DT11)) -> R12.2 | DU5: =IF(DU11="","",reiwa(DU11)) -> R12.3 | DV5: =IF(DV11="","",reiwa(DV11)) -> R12.4 | DW5: =IF(DW11="","",reiwa(DW11)) -> R12.5 | DX5: =IF(DX11="","",reiwa(DX11)) -> R12.6 | DY5: =IF(DY11="","",reiwa(DY11)) -> R12.7 | DZ5: =IF(DZ11="","",reiwa(DZ11)) -> R12.8 | EA5: =IF(EA11="","",reiwa(EA11)) -> R12.9 | EB5: =IF(EB11="","",reiwa(EB11)) -> R12.10 | EC5: =IF(EC11="","",reiwa(EC11)) -> R12.11 | ED5: =IF(ED11="","",reiwa(ED11)) -> R12.12 | EE5: =IF(EE11="","",reiwa(EE11)) -> R13.1 | EF5: =IF(EF11="","",reiwa(EF11)) -> R13.2 | EG5: =IF(EG11="","",reiwa(EG11)) -> R13.3 | EH5: =IF(EH11="","",reiwa(EH11)) -> R13.4 | EI5: =IF(EI11="","",reiwa(EI11)) -> R13.5 | EJ5: =IF(EJ11="","",reiwa(EJ11)) -> R13.6 | EK5: =IF(EK11="","",reiwa(EK11)) -> R13.7 | EL5: =IF(EL11="","",reiwa(EL11)) -> R13.8 | EM5: =IF(EM11="","",reiwa(EM11)) -> R13.9 | EN5: =IF(EN11="","",reiwa(EN11)) -> R13.10 | EO5: =IF(EO11="","",reiwa(EO11)) -> R13.11 | EP5: =IF(EP11="","",reiwa(EP11)) -> R13.12 | EQ5: =IF(EQ11="","",reiwa(EQ11)) -> R14.1 | ER5: =IF(ER11="","",reiwa(ER11)) -> R14.2 | ES5: =IF(ES11="","",reiwa(ES11)) -> R14.3 | ET5: =IF(ET11="","",reiwa(ET11)) -> R14.4 | EU5: =IF(EU11="","",reiwa(EU11)) -> R14.5 | EV5: =IF(EV11="","",reiwa(EV11)) -> R14.6 | EW5: =IF(EW11="","",reiwa(EW11)) -> R14.7 | EX5: =IF(EX11="","",reiwa(EX11)) -> R14.8 | EY5: =IF(EY11="","",reiwa(EY11)) -> R14.9 | EZ5: =IF(EZ11="","",reiwa(EZ11)) -> R14.10 | FA5: =IF(FA11="","",reiwa(FA11)) -> R14.11 | FB5: =IF(FB11="","",reiwa(FB11)) -> R14.12 | FC5: =IF(FC11="","",reiwa(FC11)) -> R15.1 | FD5: =IF(FD11="","",reiwa(FD11)) -> R15.2 | FE5: =IF(FE11="","",reiwa(FE11)) -> R15.3 | FF5: =IF(FF11="","",reiwa(FF11)) -> R15.4 | FG5: =IF(FG11="","",reiwa(FG11)) -> R15.5 | FH5: =IF(FH11="","",reiwa(FH11)) -> R15.6 | FI5: =IF(FI11="","",reiwa(FI11)) -> R15.7 | FJ5: =IF(FJ11="","",reiwa(FJ11)) -> R15.8 | FK5: =IF(FK11="","",reiwa(FK11)) -> R15.9 | FL5: =IF(FL11="","",reiwa(FL11)) -> R15.10 | FM5: =IF(FM11="","",reiwa(FM11)) -> R15.11 | FN5: =IF(FN11="","",reiwa(FN11)) -> R15.12 | FO5: =IF(FO11="","",reiwa(FO11)) -> R16.1 | FP5: =IF(FP11="","",reiwa(FP11)) -> R16.2 | FQ5: =IF(FQ11="","",reiwa(FQ11)) -> R16.3 | FR5: =IF(FR11="","",reiwa(FR11)) -> R16.4 | FS5: =IF(FS11="","",reiwa(FS11)) -> R16.5 | FT5: =IF(FT11="","",reiwa(FT11)) -> R16.6 | FU5: =IF(FU11="","",reiwa(FU11)) -> R16.7 | FV5: =IF(FV11="","",reiwa(FV11)) -> R16.8 | FW5: =IF(FW11="","",reiwa(FW11)) -> R16.9 | FX5: =IF(FX11="","",reiwa(FX11)) -> R16.10 | FY5: =IF(FY11="","",reiwa(FY11)) -> R16.11 | FZ5: =IF(FZ11="","",reiwa(FZ11)) -> R16.12
A6: メモリ1 | B6: 製造業 | C6: 341152 | D6: 356400 | E6: 346083 | F6: 340760 | G6: 533008 | H6: 565697 | I6: 346280 | J6: 339714 | K6: 341857 | L6: 368849 | M6: 777442 | N6: 347981 | O6: 342054 | P6: 362220 | Q6: 353347 | R6: 349750 | S6: 555702 | T6: 577931 | U6: 356401 | V6: 346578 | W6: 345537 | X6: 375352 | Y6: 791811 | Z6: 348342 | AA6: 343850 | AB6: 363043 | AC6: 359354 | AD6: 347391 | AE6: 567833 | AF6: 601706 | AG6: 356405 | AH6: 349100 | AI6: 349338 | AJ6: 381721 | AK6: 821367 | AL6: 351061 | AM6: 343706 | AN6: 369387 | AO6: 358173 | AP6: 361796 | AQ6: 588339 | AR6: 609323 | AS6: 362704 | AT6: 354983 | AU6: 353954 | AV6: 379393 | AW6: 841131 | AX6: 355035 | AY6: 348568 | AZ6: 370371 | BA6: 366910 | BB6: 364107 | BC6: 620302 | BD6: 638121 | BE6: 370415 | BF6: 364721 | BG6: 365340 | BH6: 391087 | BI6: 890018 | BJ6: 366396 | BK6: 361630 | BL6: 387537 | BM6: 378899 | BN6: 374851 | BO6: 664380 | BP6: 666273 | BQ6: 382677 | BR6: 376373 | BS6: 378760 | BT6: 406260 | BU6: 927021 | BV6: 379862 | BW6: 375148
A7: メモリ2 | B7: 運輸業、郵便業 | C7: 338800 | D7: 345205 | E7: 342280 | F7: 332478 | G7: 503460 | H7: 457887 | I7: 337469 | J7: 338182 | K7: 343416 | L7: 352951 | M7: 647140 | N7: 337399 | O7: 329018 | P7: 337000 | Q7: 351812 | R7: 337814 | S7: 482039 | T7: 480611 | U7: 337263 | V7: 334977 | W7: 339900 | X7: 356058 | Y7: 636637 | Z7: 344249 | AA7: 334490 | AB7: 351256 | AC7: 354805 | AD7: 343534 | AE7: 525388 | AF7: 478888 | AG7: 354009 | AH7: 352146 | AI7: 356144 | AJ7: 366547 | AK7: 741572 | AL7: 359526 | AM7: 351612 | AN7: 369027 | AO7: 378399 | AP7: 358837 | AQ7: 588175 | AR7: 483699 | AS7: 364867 | AT7: 363608 | AU7: 363204 | AV7: 376439 | AW7: 748625 | AX7: 367400 | AY7: 355938 | AZ7: 369111 | BA7: 376729 | BB7: 376379 | BC7: 618549 | BD7: 481044 | BE7: 373330 | BF7: 368429 | BG7: 373284 | BH7: 384352 | BI7: 764658 | BJ7: 365314 | BK7: 354105 | BL7: 366561 | BM7: 374011 | BN7: 365946 | BO7: 603200 | BP7: 518306 | BQ7: 375808 | BR7: 369255 | BS7: 375425 | BT7: 385321 | BU7: 764358 | BV7: 376964 | BW7: 367850
C11: 2020-02-01 | D11: 2020-03-01 | E11: 2020-04-01 | F11: 2020-05-01 | G11: 2020-06-01 | H11: 2020-07-01 | I11: 2020-08-01 | J11: 2020-09-01 | K11: 2020-10-01 | L11: 2020-11-01 | M11: 2020-12-01 | N11: 2021-01-01 | O11: 2021-02-01 | P11: 2021-03-01 | Q11: 2021-04-01 | R11: 2021-05-01 | S11: 2021-06-01 | T11: 2021-07-01 | U11: 2021-08-01 | V11: 2021-09-01 | W11: 2021-10-01 | X11: 2021-11-01 | Y11: 2021-12-01 | Z11: 2022-01-01 | AA11: 2022-02-01 | AB11: 2022-03-01 | AC11: 2022-04-01 | AD11: 2022-05-01 | AE11: 2022-06-01 | AF11: 2022-07-01 | AG11: 2022-08-01 | AH11: 2022-09-01 | AI11: 2022-10-01 | AJ11: 2022-11-01 | AK11: 2022-12-01 | AL11: 2023-01-01 | AM11: 2023-02-01 | AN11: 2023-03-01 | AO11: 2023-04-01 | AP11: 2023-05-01 | AQ11: 2023-06-01 | AR11: 2023-07-01 | AS11: 2023-08-01 | AT11: 2023-09-01 | AU11: 2023-10-01 | AV11: 2023-11-01 | AW11: 2023-12-01 | AX11: 2024-01-01 | AY11: 2024-02-01 | AZ11: 2024-03-01 | BA11: 2024-04-01 | BB11: 2024-05-01 | BC11: 2024-06-01 | BD11: 2024-07-01 | BE11: 2024-08-01 | BF11: 2024-09-01 | BG11: 2024-10-01 | BH11: 2024-11-01 | BI11: 2024-12-01 | BJ11: 2025-01-01 | BK11: 2025-02-01 | BL11: 2025-03-01 | BM11: 2025-04-01 | BN11: 2025-05-01 | BO11: 2025-06-01 | BP11: 2025-07-01 | BQ11: 2025-08-01 | BR11: 2025-09-01 | BS11: 2025-10-01 | BT11: 2025-11-01 | BU11: 2025-12-01 | BV11: 2026-01-01 | BW11: 2026-02-01 | BX11: 2026-02-01 | BY11: 2026-03-01 | BZ11: 2026-04-01 | CA11: 2026-05-01 | CB11: 2026-06-01 | CC11: 2026-07-01 | CD11: 2026-08-01 | CE11: 2026-09-01 | CF11: 2026-10-01 | CG11: 2026-11-01 | CH11: 2026-12-01 | CI11: 2027-01-01 | CJ11: 2027-02-01 | CK11: 2027-03-01 | CL11: 2027-04-01 | CM11: 2027-05-01 | CN11: 2027-06-01 | CO11: 2027-07-01 | CP11: 2027-08-01 | CQ11: 2027-09-01 | CR11: 2027-10-01 | CS11: 2027-11-01 | CT11: 2027-12-01 | CU11: 2028-01-01 | CV11: 2028-02-01 | CW11: 2028-03-01 | CX11: 2028-04-01 | CY11: 2028-05-01 | CZ11: 2028-06-01 | DA11: 2028-07-01 | DB11: 2028-08-01 | DC11: 2028-09-01 | DD11: 2028-10-01 | DE11: 2028-11-01 | DF11: 2028-12-01 | DG11: 2029-01-01 | DH11: 2029-02-01 | DI11: 2029-03-01 | DJ11: 2029-04-01 | DK11: 2029-05-01 | DL11: 2029-06-01 | DM11: 2029-07-01 | DN11: 2029-08-01 | DO11: 2029-09-01 | DP11: 2029-10-01 | DQ11: 2029-11-01 | DR11: 2029-12-01 | DS11: 2030-01-01 | DT11: 2030-02-01 | DU11: 2030-03-01 | DV11: 2030-04-01 | DW11: 2030-05-01 | DX11: 2030-06-01 | DY11: 2030-07-01 | DZ11: 2030-08-01 | EA11: 2030-09-01 | EB11: 2030-10-01 | EC11: 2030-11-01 | ED11: 2030-12-01 | EE11: 2031-01-01 | EF11: 2031-02-01 | EG11: 2031-03-01 | EH11: 2031-04-01 | EI11: 2031-05-01 | EJ11: 2031-06-01 | EK11: 2031-07-01 | EL11: 2031-08-01 | EM11: 2031-09-01 | EN11: 2031-10-01 | EO11: 2031-11-01 | EP11: 2031-12-01 | EQ11: 2032-01-01 | ER11: 2032-02-01 | ES11: 2032-03-01 | ET11: 2032-04-01 | EU11: 2032-05-01 | EV11: 2032-06-01 | EW11: 2032-07-01 | EX11: 2032-08-01 | EY11: 2032-09-01 | EZ11: 2032-10-01 | FA11: 2032-11-01 | FB11: 2032-12-01 | FC11: 2033-01-01 | FD11: 2033-02-01 | FE11: 2033-03-01 | FF11: 2033-04-01 | FG11: 2033-05-01 | FH11: 2033-06-01 | FI11: 2033-07-01 | FJ11: 2033-08-01 | FK11: 2033-09-01 | FL11: 2033-10-01 | FM11: 2033-11-01 | FN11: 2033-12-01 | FO11: 2034-01-01 | FP11: 2034-02-01 | FQ11: 2034-03-01 | FR11: 2034-04-01 | FS11: 2034-05-01 | FT11: 2034-06-01 | FU11: 2034-07-01 | FV11: 2034-08-01 | FW11: 2034-09-01 | FX11: 2034-10-01 | FY11: 2034-11-01 | FZ11: 2034-12-01

Sheet グラフ・人件費データソース (hidden)
A1: 計算式 | B1: =IF(ISERROR(G2),"",IF(G2=0,"",ABS(ROUND(G2,1)))) -> 23.2 | C1: =IF(B1="","",IF(ISERROR(B1),"",IF(G2>0,"％ｕｐ",IF(G2<0,"％ｄｏｗｎ","")))) -> ％ｕｐ | E1: =HLOOKUP($B$3,$C$11:$L$11,1) -> 2020-01-01 | F1: 2026-02-01 | G1: 差分
A2: チラシシート日付 | B2: =IFERROR(IF(B3="","",Reiwa漢字年(E1) &"比"),"") -> 令和2年比 | C2: =IFERROR(IF(B3="","",Reiwa漢字年(E1)&"と"&Reiwa漢字年(F1)&"の比較"),"") -> 令和2年と令和8年の比較 | E2: =IFERROR(INDEX($C$6:$L$6, MATCH($B$3, $C$11:$L$11, 0)), "") -> 926 | F2: =IFERROR(LOOKUP(9.99999999999E+307,B6:L6),"") -> 1141 | G2: =($F$2-$E$2)/$E$2*100 -> 23.21814255
A3: 選択年 | B3: =労務費!$Q$5 -> 2020-01-01 | E3: ↑期間設定シートの年
C4: 1年目 | D4: 2年目 | E4: 3年目 | F4: 4年目 | G4: 5年目 | H4: 6年目 | I4: 7年目 | J4: 8年目 | K4: 9年目 | L4: 10年目 | M4: 11年目 | N4: 12年目 | O4: 13年目 | P4: 14年目 | Q4: 15年目
A5: グラフ表示 | B5: 県 | C5: =IF(C11="","",reiwa年(C11)) -> R2 | D5: =IF(D11="","",reiwa年(D11)) -> R3 | E5: =IF(E11="","",reiwa年(E11)) -> R4 | F5: =IF(F11="","",reiwa年(F11)) -> R5 | G5: =IF(G11="","",reiwa年(G11)) -> R6 | H5: =IF(H11="","",reiwa年(H11)) -> R7 | I5: =IF(I11="","",reiwa年(I11)) -> R8 | J5: =IF(J11="","",reiwa年(J11)) ->  | K5: =IF(K11="","",reiwa年(K11)) ->  | L5: =IF(L11="","",reiwa年(L11)) ->  | M5: =IF(M11="","",reiwa年(M11)) ->  | N5: =IF(N11="","",reiwa年(N11)) ->  | O5: =IF(O11="","",reiwa年(O11)) ->  | P5: =IF(P11="","",reiwa年(P11)) ->  | Q5: =IF(Q11="","",reiwa年(Q11)) -> 
A6: 1 | B6: 埼玉 | C6: 926 | D6: 928 | E6: 956 | F6: 987 | G6: 1028 | H6: 1078 | I6: 1141
A7: 2 | B7: 全国平均 | C7: 901 | D7: 902 | E7: 930 | F7: 961 | G7: 1004 | H7: 1055 | I7: 1121
A8: 3 | B8: 神奈川 | C8: 1011 | D8: 1012 | E8: 1040 | F8: 1071 | G8: 1112 | H8: 1162 | I8: 1225
A9: 4 | B9: 茨城 | C9: 849 | D9: 851 | E9: 879 | F9: 911 | G9: 953 | H9: 1005 | I9: 1074
A10: 5 | B10: 群馬 | C10: 835 | D10: 837 | E10: 865 | F10: 895 | G10: 935 | H10: 985 | I10: 1063
C11: 2020-01-01 | D11: 2021-01-01 | E11: 2022-01-01 | F11: 2023-01-01 | G11: 2024-01-01 | H11: 2025-01-01 | I11: 2026-01-01

Sheet グラフ・男女差データソース (hidden)
A1: 計算式 | B1: =IFERROR(ABS(ROUND(C5/C4*100,1)),"") -> 84 | C1: =IF(B1="","",IF(ISERROR(B1),"",IF(B1>0,"％ｕｐ",IF(B1<0,"％ｄｏｗｎ","")))) -> ％ｕｐ | D1: ←IF(B1="","",IF(ISERROR(B1),"",IF(B1>0,"％ｕｐ",IF(B1<0,"％ｄｏｗｎ",""))))
G2: 1年目 | H2: 2年目 | I2: 3年目 | J2: 4年目 | K2: 5年目 | L2: 6年目 | M2: 7年目 | N2: 8年目 | O2: 9年目 | P2: 10年目 | Q2: 11年目 | R2: 12年目 | S2: 13年目 | T2: 14年目 | U2: 15年目 | V2: 16年目 | W2: 17年目 | X2: 18年目 | Y2: 19年目 | Z2: 20年目
A3: グラフ表示 | B3: =G3 -> 2020-01-01 | C3: =IF(COUNTA(E4:Z4)=1,"",INDEX(E3:Z3,1,COUNTA(E4:Z4))) -> 2025-01-01 | D3: 差分 | E3: 表題 | F3: 系列名称 | G3: =IF(G7="","",G7) -> 2020-01-01 | H3: =IF(H7="","",H7) -> 2021-01-01 | I3: 2022-01-01 | J3: 2023-01-01 | K3: 2024-01-01 | L3: 2025-01-01
A4: 1 | B4: =G4 -> 413.8 | C4: =IF(COUNTA(E4:Z4)=1,"",INDEX(E4:Z4,1,COUNTA(E4:Z4))) -> 454.5 | D4: =IF($B$3=$C$3,G4,C4-B4) -> 40.7 | E4: 男性 | F4: 電気・ガス・熱供給・水道業 | G4: 413.8 | H4: 433.7 | I4: 413.7 | J4: 421.6 | K4: 451.5 | L4: 454.5
A5: 2 | B5: =G5 -> 320 | C5: =IF(COUNTA(E5:Z5)=1,"",INDEX(E5:Z5,1,COUNTA(E5:Z5))) -> 382 | D5: =IF($B$3=$C$3,G5,C5-B5) -> 62 | E5: 女性 | F5: 電気・ガス・熱供給・水道業 | G5: 320 | H5: 327.7 | I5: 326.5 | J5: 341.2 | K5: 348.6 | L5: 382
A6: 3 | B6: =G6 -> 402.5 | C6: =IF(COUNTA(E6:Z6)=1,"",INDEX(E6:Z6,1,COUNTA(E6:Z6))) -> 444 | D6: =IF($B$3=$C$3,G6,C6-B6) -> 41.5 | E6: 男女計 | F6: 電気・ガス・熱供給・水道業 | G6: 402.5 | H6: 419.7 | I6: 402 | J6: 410.2 | K6: 437.5 | L6: 444
G7: 2020-01-01 | H7: 2021-01-01 | I7: 2022-01-01 | J7: 2023-01-01 | K7: 2024-01-01 | L7: 2025-01-01
B9: 女÷男×１００

Sheet 詳細分析グラフ (hidden)
C3: 1月 | E3: 2月 | G3: 3月 | I3: 4月 | K3: 5月 | M3: 6月 | O3: 7月 | Q3: 8月 | S3: 9月 | U3: 10月 | W3: 11月 | Y3: 12月 | AD3: グラフ１のデータコード
D4: 前月比 | F4: 前月比 | H4: 前月比 | J4: 前月比 | L4: 前月比 | N4: 前月比 | P4: 前月比 | R4: 前月比 | T4: 前月比 | V4: 前月比 | X4: 前月比 | Z4: 前月比 | AD4: =原材料!Q26 -> PR01'PRCG20_2202040001
B5: 令和2年 | C5: =VLOOKUP($AD$4,元データ!$C:$DP,16,0) -> 102.7 | E5: =VLOOKUP($AD$4,元データ!$C:$DP,17,0) -> 102.3 | G5: =VLOOKUP($AD$4,元データ!$C:$DP,18,0) -> 102.3 | I5: =VLOOKUP($AD$4,元データ!$C:$DP,19,0) -> 102 | K5: =VLOOKUP($AD$4,元データ!$C:$DP,20,0) -> 101.8 | M5: =VLOOKUP($AD$4,元データ!$C:$DP,21,0) -> 100.9 | O5: =VLOOKUP($AD$4,元データ!$C:$DP,22,0) -> 100.3 | Q5: =VLOOKUP($AD$4,元データ!$C:$DP,23,0) -> 100 | S5: =VLOOKUP($AD$4,元データ!$C:$DP,24,0) -> 97.2 | U5: =VLOOKUP($AD$4,元データ!$C:$DP,25,0) -> 97.4 | W5: =VLOOKUP($AD$4,元データ!$C:$DP,26,0) -> 96.9 | Y5: =VLOOKUP($AD$4,元データ!$C:$DP,27,0) -> 96
D6: ｰ | F6: =IF(E5>C5,"↗",(IF(E5<C5,"↘","→"))) -> ↘ | H6: =IF(G5>E5,"↗",(IF(G5<E5,"↘","→"))) -> → | J6: =IF(I5>G5,"↗",(IF(I5<G5,"↘","→"))) -> ↘ | L6: =IF(K5>I5,"↗",(IF(K5<I5,"↘","→"))) -> ↘ | N6: =IF(M5>K5,"↗",(IF(M5<K5,"↘","→"))) -> ↘ | P6: =IF(O5>M5,"↗",(IF(O5<M5,"↘","→"))) -> ↘ | R6: =IF(Q5>O5,"↗",(IF(Q5<O5,"↘","→"))) -> ↘ | T6: =IF(S5>Q5,"↗",(IF(S5<Q5,"↘","→"))) -> ↘ | V6: =IF(U5>S5,"↗",(IF(U5<S5,"↘","→"))) -> ↗ | X6: =IF(W5>U5,"↗",(IF(W5<U5,"↘","→"))) -> ↘ | Z6: =IF(Y5>W5,"↗",(IF(Y5<W5,"↘","→"))) -> ↘
B7: 令和3年 | C7: =VLOOKUP($AD$4,元データ!$C:$DP,28,0) -> 96.6 | E7: =VLOOKUP($AD$4,元データ!$C:$DP,29,0) -> 95.1 | G7: =VLOOKUP($AD$4,元データ!$C:$DP,30,0) -> 95.2 | I7: =VLOOKUP($AD$4,元データ!$C:$DP,31,0) -> 94.6 | K7: =VLOOKUP($AD$4,元データ!$C:$DP,32,0) -> 94.3 | M7: =VLOOKUP($AD$4,元データ!$C:$DP,33,0) -> 91.6 | O7: =VLOOKUP($AD$4,元データ!$C:$DP,34,0) -> 89.6 | Q7: =VLOOKUP($AD$4,元データ!$C:$DP,35,0) -> 88.1 | S7: =VLOOKUP($AD$4,元データ!$C:$DP,36,0) -> 85.8 | U7: =VLOOKUP($AD$4,元データ!$C:$DP,37,0) -> 83.9 | W7: =VLOOKUP($AD$4,元データ!$C:$DP,38,0) -> 83.7 | Y7: =VLOOKUP($AD$4,元データ!$C:$DP,39,0) -> 83
D8: =IF(C7>Y5,"↗",(IF(C7<Y5,"↘","→"))) -> ↗ | F8: =IF(E7>C7,"↗",(IF(E7<C7,"↘","→"))) -> ↘ | H8: =IF(G7>E7,"↗",(IF(G7<E7,"↘","→"))) -> ↗ | J8: =IF(I7>G7,"↗",(IF(I7<G7,"↘","→"))) -> ↘ | L8: =IF(K7>I7,"↗",(IF(K7<I7,"↘","→"))) -> ↘ | N8: =IF(M7>K7,"↗",(IF(M7<K7,"↘","→"))) -> ↘ | P8: =IF(O7>M7,"↗",(IF(O7<M7,"↘","→"))) -> ↘ | R8: =IF(Q7>O7,"↗",(IF(Q7<O7,"↘","→"))) -> ↘ | T8: =IF(S7>Q7,"↗",(IF(S7<Q7,"↘","→"))) -> ↘ | V8: =IF(U7>S7,"↗",(IF(U7<S7,"↘","→"))) -> ↘ | X8: =IF(W7>U7,"↗",(IF(W7<U7,"↘","→"))) -> ↘ | Z8: =IF(Y7>W7,"↗",(IF(Y7<W7,"↘","→"))) -> ↘
B9: 令和4年 | C9: =VLOOKUP($AD$4,元データ!$C:$DP,40,0) -> 82.4 | E9: =VLOOKUP($AD$4,元データ!$C:$DP,41,0) -> 83.5 | G9: =VLOOKUP($AD$4,元データ!$C:$DP,42,0) -> 81.5 | I9: =VLOOKUP($AD$4,元データ!$C:$DP,43,0) -> 81.8 | K9: =VLOOKUP($AD$4,元データ!$C:$DP,44,0) -> 80.9 | M9: =VLOOKUP($AD$4,元データ!$C:$DP,45,0) -> 81.1 | O9: =VLOOKUP($AD$4,元データ!$C:$DP,46,0) -> 81.6 | Q9: =VLOOKUP($AD$4,元データ!$C:$DP,47,0) -> 82.2 | S9: =VLOOKUP($AD$4,元データ!$C:$DP,48,0) -> 89.3 | U9: =VLOOKUP($AD$4,元データ!$C:$DP,49,0) -> 90.4 | W9: =VLOOKUP($AD$4,元データ!$C:$DP,50,0) -> 90.3 | Y9: =VLOOKUP($AD$4,元データ!$C:$DP,51,0) -> 90.3
D10: =IF(C9>Y7,"↗",(IF(C9<Y7,"↘","→"))) -> ↘ | F10: =IF(E9>C9,"↗",(IF(E9<C9,"↘","→"))) -> ↗ | H10: =IF(G9>E9,"↗",(IF(G9<E9,"↘","→"))) -> ↘ | J10: =IF(I9>G9,"↗",(IF(I9<G9,"↘","→"))) -> ↗ | L10: =IF(K9>I9,"↗",(IF(K9<I9,"↘","→"))) -> ↘ | N10: =IF(M9>K9,"↗",(IF(M9<K9,"↘","→"))) -> ↗ | P10: =IF(O9>M9,"↗",(IF(O9<M9,"↘","→"))) -> ↗ | R10: =IF(Q9>O9,"↗",(IF(Q9<O9,"↘","→"))) -> ↗ | T10: =IF(S9>Q9,"↗",(IF(S9<Q9,"↘","→"))) -> ↗ | V10: =IF(U9>S9,"↗",(IF(U9<S9,"↘","→"))) -> ↗ | X10: =IF(W9>U9,"↗",(IF(W9<U9,"↘","→"))) -> ↘ | Z10: =IF(Y9>W9,"↗",(IF(Y9<W9,"↘","→"))) -> →
B11: 令和5年 | C11: =VLOOKUP($AD$4,元データ!$C:$DP,52,0) -> 90.8 | E11: =VLOOKUP($AD$4,元データ!$C:$DP,53,0) -> 90.5 | G11: =VLOOKUP($AD$4,元データ!$C:$DP,54,0) -> 90 | I11: =VLOOKUP($AD$4,元データ!$C:$DP,55,0) -> 89.9 | K11: =VLOOKUP($AD$4,元データ!$C:$DP,56,0) -> 90 | M11: =VLOOKUP($AD$4,元データ!$C:$DP,57,0) -> 90.1 | O11: =VLOOKUP($AD$4,元データ!$C:$DP,58,0) -> 89.2 | Q11: =VLOOKUP($AD$4,元データ!$C:$DP,59,0) -> 89.2 | S11: =VLOOKUP($AD$4,元データ!$C:$DP,60,0) -> 98 | U11: =VLOOKUP($AD$4,元データ!$C:$DP,61,0) -> 98.1 | W11: =VLOOKUP($AD$4,元データ!$C:$DP,62,0) -> 98.6 | Y11: =VLOOKUP($AD$4,元データ!$C:$DP,63,0) -> 99.5
D12: =IF(C11>Y9,"↗",(IF(C11<Y9,"↘","→"))) -> ↗ | F12: =IF(E11>C11,"↗",(IF(E11<C11,"↘","→"))) -> ↘ | H12: =IF(G11>E11,"↗",(IF(G11<E11,"↘","→"))) -> ↘ | J12: =IF(I11>G11,"↗",(IF(I11<G11,"↘","→"))) -> ↘ | L12: =IF(K11>I11,"↗",(IF(K11<I11,"↘","→"))) -> ↗ | N12: =IF(M11>K11,"↗",(IF(M11<K11,"↘","→"))) -> ↗ | P12: =IF(O11>M11,"↗",(IF(O11<M11,"↘","→"))) -> ↘ | R12: =IF(Q11>O11,"↗",(IF(Q11<O11,"↘","→"))) -> → | T12: =IF(S11>Q11,"↗",(IF(S11<Q11,"↘","→"))) -> ↗ | V12: =IF(U11>S11,"↗",(IF(U11<S11,"↘","→"))) -> ↗ | X12: =IF(W11>U11,"↗",(IF(W11<U11,"↘","→"))) -> ↗ | Z12: =IF(Y11>W11,"↗",(IF(Y11<W11,"↘","→"))) -> ↗
B13: 令和6年 | C13: =VLOOKUP($AD$4,元データ!$C:$DP,64,0) -> 99.1 | E13: =VLOOKUP($AD$4,元データ!$C:$DP,65,0) -> 99.3 | G13: =VLOOKUP($AD$4,元データ!$C:$DP,66,0) -> 99.6 | I13: =VLOOKUP($AD$4,元データ!$C:$DP,67,0) -> 100.8 | K13: =VLOOKUP($AD$4,元データ!$C:$DP,68,0) -> 101.3 | M13: =VLOOKUP($AD$4,元データ!$C:$DP,69,0) -> 102.1 | O13: =IF((VLOOKUP($AD$4,元データ!$C:$DP,70,0))="","",(VLOOKUP($AD$4,元データ!$C:$DP,70,0))) -> 101.4 | Q13: =IF((VLOOKUP($AD$4,元データ!$C:$DP,71,0))="","",(VLOOKUP($AD$4,元データ!$C:$DP,71,0))) -> 102.9 | S13: =IF((VLOOKUP($AD$4,元データ!$C:$DP,72,0))="","",(VLOOKUP($AD$4,元データ!$C:$DP,72,0))) -> 143.7 | U13: =IF((VLOOKUP($AD$4,元データ!$C:$DP,73,0))="","",(VLOOKUP($AD$4,元データ!$C:$DP,73,0))) -> 157.8 | W13: =IF((VLOOKUP($AD$4,元データ!$C:$DP,74,0))="","",(VLOOKUP($AD$4,元データ!$C:$DP,74,0))) -> 156.3 | Y13: =IF((VLOOKUP($AD$4,元データ!$C:$DP,75,0))="","",(VLOOKUP($AD$4,元データ!$C:$DP,75,0))) -> 162.5
D14: =IF(C13>Y11,"↗",(IF(C13<Y11,"↘","→"))) -> ↘ | F14: =IF(E13>C13,"↗",(IF(E13<C13,"↘","→"))) -> ↗ | H14: =IF(G13>E13,"↗",(IF(G13<E13,"↘","→"))) -> ↗ | J14: =IF(I13>G13,"↗",(IF(I13<G13,"↘","→"))) -> ↗ | L14: =IF(K13>I13,"↗",(IF(K13<I13,"↘","→"))) -> ↗ | N14: =IF(M13>K13,"↗",(IF(M13<K13,"↘","→"))) -> ↗ | P14: =IF(O13="","",(IF(O13>M13,"↗",(IF(O13<M13,"↘","→"))))) -> ↘ | R14: =IF(Q13="","",(IF(Q13>O13,"↗",(IF(Q13<O13,"↘","→"))))) -> ↗ | T14: =IF(S13="","",(IF(S13>Q13,"↗",(IF(S13<Q13,"↘","→"))))) -> ↗ | V14: =IF(U13="","",(IF(U13>S13,"↗",(IF(U13<S13,"↘","→"))))) -> ↗ | X14: =IF(W13="","",(IF(W13>U13,"↗",(IF(W13<U13,"↘","→"))))) -> ↘ | Z14: =IF(Y13="","",(IF(Y13>W13,"↗",(IF(Y13<W13,"↘","→"))))) -> ↗
B15: 令和7年 | C15: =IF((VLOOKUP($AD$4,元データ!$C:$DP,76,0))="","",(VLOOKUP($AD$4,元データ!$C:$DP,76,0))) -> 172 | E15: =IF((VLOOKUP($AD$4,元データ!$C:$DP,77,0))="","",(VLOOKUP($AD$4,元データ!$C:$DP,77,0))) -> 175.3 | G15: =IF((VLOOKUP($AD$4,元データ!$C:$DP,78,0))="","",(VLOOKUP($AD$4,元データ!$C:$DP,78,0))) -> 169 | I15: =IF((VLOOKUP($AD$4,元データ!$C:$DP,79,0))="","",(VLOOKUP($AD$4,元データ!$C:$DP,79,0))) -> 179.9 | K15: =IF((VLOOKUP($AD$4,元データ!$C:$DP,80,0))="","",(VLOOKUP($AD$4,元データ!$C:$DP,80,0))) -> 182.3 | M15: =IF((VLOOKUP($AD$4,元データ!$C:$DP,81,0))="","",(VLOOKUP($AD$4,元データ!$C:$DP,81,0))) -> 177.4 | O15: =IF((VLOOKUP($AD$4,元データ!$C:$DP,82,0))="","",(VLOOKUP($AD$4,元データ!$C:$DP,82,0))) -> 173.2 | Q15: =IF((VLOOKUP($AD$4,元データ!$C:$DP,83,0))="","",(VLOOKUP($AD$4,元データ!$C:$DP,83,0))) -> 178.5 | S15: =IF((VLOOKUP($AD$4,元データ!$C:$DP,84,0))="","",(VLOOKUP($AD$4,元データ!$C:$DP,84,0))) -> 229.8 | U15: =IF((VLOOKUP($AD$4,元データ!$C:$DP,85,0))="","",(VLOOKUP($AD$4,元データ!$C:$DP,85,0))) -> 240.5 | W15: =IF((VLOOKUP($AD$4,元データ!$C:$DP,86,0))="","",(VLOOKUP($AD$4,元データ!$C:$DP,86,0))) -> 237.9 | Y15: =IF((VLOOKUP($AD$4,元データ!$C:$DP,87,0))="","",(VLOOKUP($AD$4,元データ!$C:$DP,87,0))) -> 232.7
D16: =IF(C15="","",(IF(C15>Y13,"↗",(IF(C15<Y13,"↘","→"))))) -> ↗ | F16: =IF(E15="","",(IF(E15>C15,"↗",(IF(E15<C15,"↘","→"))))) -> ↗ | H16: =IF(G15="","",(IF(G15>E15,"↗",(IF(G15<E15,"↘","→"))))) -> ↘ | J16: =IF(I15="","",(IF(I15>G15,"↗",(IF(I15<G15,"↘","→"))))) -> ↗ | L16: =IF(K15="","",(IF(K15>I15,"↗",(IF(K15<I15,"↘","→"))))) -> ↗ | N16: =IF(M15="","",(IF(M15>K15,"↗",(IF(M15<K15,"↘","→"))))) -> ↘ | P16: =IF(O15="","",(IF(O15>M15,"↗",(IF(O15<M15,"↘","→"))))) -> ↘ | R16: =IF(Q15="","",(IF(Q15>O15,"↗",(IF(Q15<O15,"↘","→"))))) -> ↗ | T16: =IF(S15="","",(IF(S15>Q15,"↗",(IF(S15<Q15,"↘","→"))))) -> ↗ | V16: =IF(U15="","",(IF(U15>S15,"↗",(IF(U15<S15,"↘","→"))))) -> ↗ | X16: =IF(W15="","",(IF(W15>U15,"↗",(IF(W15<U15,"↘","→"))))) -> ↘ | Z16: =IF(Y15="","",(IF(Y15>W15,"↗",(IF(Y15<W15,"↘","→"))))) -> ↘
B17: 令和8年 | C17: =IF((VLOOKUP($AD$4,元データ!$C:$DP,88,0))="","",(VLOOKUP($AD$4,元データ!$C:$DP,88,0))) -> 229.5 | E17: =IF((VLOOKUP($AD$4,元データ!$C:$DP,89,0))="","",(VLOOKUP($AD$4,元データ!$C:$DP,89,0))) -> 227.9 | G17: =IF((VLOOKUP($AD$4,元データ!$C:$DP,90,0))="","",(VLOOKUP($AD$4,元データ!$C:$DP,90,0))) -> 223.8 | I17: =IF((VLOOKUP($AD$4,元データ!$C:$DP,91,0))="","",(VLOOKUP($AD$4,元データ!$C:$DP,91,0))) ->  | K17: =IF((VLOOKUP($AD$4,元データ!$C:$DP,92,0))="","",(VLOOKUP($AD$4,元データ!$C:$DP,92,0))) ->  | M17: =IF((VLOOKUP($AD$4,元データ!$C:$DP,93,0))="","",(VLOOKUP($AD$4,元データ!$C:$DP,93,0))) ->  | O17: =IF((VLOOKUP($AD$4,元データ!$C:$DP,94,0))="","",(VLOOKUP($AD$4,元データ!$C:$DP,94,0))) ->  | Q17: =IF((VLOOKUP($AD$4,元データ!$C:$DP,95,0))="","",(VLOOKUP($AD$4,元データ!$C:$DP,95,0))) ->  | S17: =IF((VLOOKUP($AD$4,元データ!$C:$DP,96,0))="","",(VLOOKUP($AD$4,元データ!$C:$DP,96,0))) ->  | U17: =IF((VLOOKUP($AD$4,元データ!$C:$DP,97,0))="","",(VLOOKUP($AD$4,元データ!$C:$DP,97,0))) ->  | W17: =IF((VLOOKUP($AD$4,元データ!$C:$DP,98,0))="","",(VLOOKUP($AD$4,元データ!$C:$DP,98,0))) ->  | Y17: =IF((VLOOKUP($AD$4,元データ!$C:$DP,99,0))="","",(VLOOKUP($AD$4,元データ!$C:$DP,99,0))) -> 
D18: =IF(C17="","",(IF(C17>Y15,"↗",(IF(C17<Y15,"↘","→"))))) -> ↘ | F18: =IF(E17="","",(IF(E17>C17,"↗",(IF(E17<C17,"↘","→"))))) -> ↘ | H18: =IF(G17="","",(IF(G17>E17,"↗",(IF(G17<E17,"↘","→"))))) -> ↘ | J18: =IF(I17="","",(IF(I17>G17,"↗",(IF(I17<G17,"↘","→"))))) ->  | L18: =IF(K17="","",(IF(K17>I17,"↗",(IF(K17<I17,"↘","→"))))) ->  | N18: =IF(M17="","",(IF(M17>K17,"↗",(IF(M17<K17,"↘","→"))))) ->  | P18: =IF(O17="","",(IF(O17>M17,"↗",(IF(O17<M17,"↘","→"))))) ->  | R18: =IF(Q17="","",(IF(Q17>O17,"↗",(IF(Q17<O17,"↘","→"))))) ->  | T18: =IF(S17="","",(IF(S17>Q17,"↗",(IF(S17<Q17,"↘","→"))))) ->  | V18: =IF(U17="","",(IF(U17>S17,"↗",(IF(U17<S17,"↘","→"))))) ->  | X18: =IF(W17="","",(IF(W17>U17,"↗",(IF(W17<U17,"↘","→"))))) ->  | Z18: =IF(Y17="","",(IF(Y17>W17,"↗",(IF(Y17<W17,"↘","→"))))) -> 

Sheet 元データ (hidden)
A1: 項番 | B1: 種別 | C1: データコード | D1: 類別 | E1: 系列名称 | F1: 2019-01-01 | G1: 2019-02-01 | H1: 2019-03-01 | I1: 2019-04-01 | J1: 2019-05-01 | K1: 2019-06-01 | L1: 2019-07-01 | M1: 2019-08-01 | N1: 2019-09-01 | O1: 2019-10-01 | P1: 2019-11-01 | Q1: 2019-12-01 | R1: 2020-01-01 | S1: 2020-02-01 | T1: 2020-03-01 | U1: 2020-04-01 | V1: 2020-05-01 | W1: 2020-06-01 | X1: 2020-07-01 | Y1: 2020-08-01 | Z1: 2020-09-01 | AA1: 2020-10-01 | AB1: 2020-11-01 | AC1: 2020-12-01 | AD1: 2021-01-01 | AE1: 2021-02-01 | AF1: 2021-03-01 | AG1: 2021-04-01 | AH1: 2021-05-01 | AI1: 2021-06-01 | AJ1: 2021-07-01 | AK1: 2021-08-01 | AL1: 2021-09-01 | AM1: 2021-10-01 | AN1: 2021-11-01 | AO1: 2021-12-01 | AP1: 2022-01-01 | AQ1: 2022-02-01 | AR1: 2022-03-01 | AS1: 2022-04-01 | AT1: 2022-05-01 | AU1: 2022-06-01 | AV1: 2022-07-01 | AW1: 2022-08-01 | AX1: 2022-09-01 | AY1: 2022-10-01 | AZ1: 2022-11-01 | BA1: 2022-12-01 | BB1: 2023-01-01 | BC1: 2023-02-01 | BD1: 2023-03-01 | BE1: 2023-04-01 | BF1: 2023-05-01 | BG1: 2023-06-01 | BH1: 2023-07-01 | BI1: 2023-08-01 | BJ1: 2023-09-01 | BK1: 2023-10-01 | BL1: 2023-11-01 | BM1: 2023-12-01 | BN1: 2024-01-01 | BO1: 2024-02-01 | BP1: 2024-03-01 | BQ1: 2024-04-01 | BR1: 2024-05-01 | BS1: 2024-06-01 | BT1: 2024-07-01 | BU1: 2024-08-01 | BV1: 2024-09-01 | BW1: 2024-10-01 | BX1: 2024-11-01 | BY1: 2024-12-01 | BZ1: 2025-01-01 | CA1: 2025-02-01 | CB1: 2025-03-01 | CC1: 2025-04-01 | CD1: 2025-05-01 | CE1: 2025-06-01 | CF1: 2025-07-01 | CG1: 2025-08-01 | CH1: 2025-09-01 | CI1: 2025-10-01 | CJ1: 2025-11-01 | CK1: 2025-12-01 | CL1: 2026-01-01 | CM1: 2026-02-01 | CN1: 2026-03-01
A2: 1 | B2: 1国内 | C2: PR01'PRCG20_2200120001 | D2: 国内類別1/_飲食料品 | E2: 類別/_飲食料品 | R2: 99.7 | S2: 99.9 | T2: 99.9 | U2: 99.9 | V2: 99.7 | W2: 100.1 | X2: 100 | Y2: 99.6 | Z2: 99.8 | AA2: 100.6 | AB2: 100.3 | AC2: 100.6 | AD2: 100.5 | AE2: 100.8 | AF2: 100.9 | AG2: 101.7 | AH2: 101.2 | AI2: 101.4 | AJ2: 102.2 | AK2: 102.5 | AL2: 102.5 | AM2: 103 | AN2: 103.2 | AO2: 103.4 | AP2: 103.7 | AQ2: 104.1 | AR2: 105 | AS2: 105.8 | AT2: 105.7 | AU2: 106.4 | AV2: 108.4 | AW2: 108.9 | AX2: 109.7 | AY2: 110.8 | AZ2: 111.8 | BA2: 111.9 | BB2: 112.5 | BC2: 113.4 | BD2: 113.8 | BE2: 115 | BF2: 115 | BG2: 115.7 | BH2: 116 | BI2: 116.3 | BJ2: 116.7 | BK2: 117 | BL2: 117.2 | BM2: 117.4 | BN2: 117.1 | BO2: 117.5 | BP2: 117.7 | BQ2: 118 | BR2: 117.9 | BS2: 118.1 | BT2: 118.7 | BU2: 118.7 | BV2: 119.1 | BW2: 119.4 | BX2: 119.7 | BY2: 120 | BZ2: 120.6 | CA2: 121.2 | CB2: 122 | CC2: 123.2 | CD2: 123.4 | CE2: 123.7 | CF2: 124.5 | CG2: 124.5 | CH2: 124.9 | CI2: 125.1 | CJ2: 125.6 | CK2: 126.1 | CL2: 126.7 | CM2: 127 | CN2: 127.2
A3: 2 | B3: 1国内 | C3: PR01'PRCG20_2200130001 | D3: 国内類別1/_飲食料品 | E3: 小類別/__食料品 | R3: 99.7 | S3: 99.9 | T3: 99.9 | U3: 100 | V3: 99.8 | W3: 100.3 | X3: 100.3 | Y3: 99.8 | Z3: 100 | AA3: 100.3 | AB3: 99.8 | AC3: 100.2 | AD3: 99.7 | AE3: 100 | AF3: 100.1 | AG3: 100.5 | AH3: 100 | AI3: 100.4 | AJ3: 100.7 | AK3: 101.1 | AL3: 101.3 | AM3: 101.4 | AN3: 101.5 | AO3: 101.8 | AP3: 101.9 | AQ3: 102.5 | AR3: 103.5 | AS3: 104.2 | AT3: 104 | AU3: 105 | AV3: 106.3 | AW3: 107 | AX3: 108.1 | AY3: 108.7 | AZ3: 109.9 | BA3: 109.9 | BB3: 110.8 | BC3: 111.6 | BD3: 112.1 | BE3: 113.8 | BF3: 113.7 | BG3: 114.6 | BH3: 115.1 | BI3: 115.5 | BJ3: 115.9 | BK3: 116.4 | BL3: 116.6 | BM3: 116.9 | BN3: 116.5 | BO3: 116.9 | BP3: 117.3 | BQ3: 117.9 | BR3: 118 | BS3: 118.3 | BT3: 118.9 | BU3: 119 | BV3: 119.5 | BW3: 120.1 | BX3: 120.3 | BY3: 120.8 | BZ3: 121.1 | CA3: 122 | CB3: 123.1 | CC3: 124.2 | CD3: 124.3 | CE3: 124.6 | CF3: 125.5 | CG3: 125.4 | CH3: 126 | CI3: 126.2 | CJ3: 126.3 | CK3: 126.8 | CL3: 127.1 | CM3: 127.4 | CN3: 127.6
A4: 3 | B4: 1国内 | C4: PR01'PRCG20_2200140001 | D4: 国内類別1/_飲食料品 | E4: 商品群/___酪農品 | R4: 99.9 | S4: 100.1 | T4: 99.7 | U4: 99.4 | V4: 100.2 | W4: 100.3 | X4: 100 | Y4: 100 | Z4: 100.1 | AA4: 100.4 | AB4: 100 | AC4: 99.9 | AD4: 99.8 | AE4: 99.9 | AF4: 99.7 | AG4: 100.1 | AH4: 99.8 | AI4: 100 | AJ4: 99.9 | AK4: 99.9 | AL4: 99.8 | AM4: 99.8 | AN4: 99.9 | AO4: 100.1 | AP4: 99.8 | AQ4: 99.8 | AR4: 99.7 | AS4: 100.4 | AT4: 100.3 | AU4: 100.7 | AV4: 101 | AW4: 101.3 | AX4: 101 | AY4: 101.8 | AZ4: 105.6 | BA4: 105.7 | BB4: 106.3 | BC4: 106.1 | BD4: 106.9 | BE4: 109.5 | BF4: 110.2 | BG4: 110.1 | BH4: 110.2 | BI4: 112.2 | BJ4: 113.3 | BK4: 113 | BL4: 113.4 | BM4: 113.8 | BN4: 114.4 | BO4: 114.3 | BP4: 114.5 | BQ4: 114.3 | BR4: 114.4 | BS4: 114.5 | BT4: 114.7 | BU4: 114.5 | BV4: 115.1 | BW4: 115.3 | BX4: 115.4 | BY4: 115.3 | BZ4: 115.4 | CA4: 115.2 | CB4: 116 | CC4: 117.5 | CD4: 117.1 | CE4: 117.9 | CF4: 118.7 | CG4: 121 | CH4: 122.4 | CI4: 122.5 | CJ4: 122.2 | CK4: 122.7 | CL4: 123.4 | CM4: 123.3 | CN4: 123.3
A5: 4 | B5: 1国内 | C5: PR01'PRCG20_2200150001 | D5: 国内類別1/_飲食料品 | E5: 品目/____処理牛乳 | R5: 100.3 | S5: 100.3 | T5: 100.1 | U5: 99.1 | V5: 100 | W5: 100 | X5: 100.1 | Y5: 100 | Z5: 100 | AA5: 100.1 | AB5: 100 | AC5: 100.1 | AD5: 100.1 | AE5: 100.1 | AF5: 100.1 | AG5: 100.5 | AH5: 100.2 | AI5: 100.5 | AJ5: 100.3 | AK5: 100.3 | AL5: 100.3 | AM5: 100.4 | AN5: 100.5 | AO5: 100.5 | AP5: 100.5 | AQ5: 100.5 | AR5: 100.3 | AS5: 100.5 | AT5: 100.4 | AU5: 100.5 | AV5: 100.4 | AW5: 100.4 | AX5: 100.4 | AY5: 100.5 | AZ5: 107.2 | BA5: 107.8 | BB5: 107.8 | BC5: 107.8 | BD5: 107.9 | BE5: 108 | BF5: 107.6 | BG5: 107.9 | BH5: 107.9 | BI5: 116.8 | BJ5: 117.3 | BK5: 117.8 | BL5: 117.5 | BM5: 117.7 | BN5: 117.7 | BO5: 117.8 | BP5: 117.7 | BQ5: 117.3 | BR5: 117.8 | BS5: 118 | BT5: 118.1 | BU5: 117.9 | BV5: 117.8 | BW5: 117.8 | BX5: 117.8 | BY5: 117.8 | BZ5: 117.8 | CA5: 117.8 | CB5: 117.8 | CC5: 118.9 | CD5: 119.1 | CE5: 119.1 | CF5: 119 | CG5: 124.5 | CH5: 124.9 | CI5: 124.9 | CJ5: 125 | CK5: 124.9 | CL5: 124.8 | CM5: 124.9 | CN5: 124.9
A6: 5 | B6: 1国内 | C6: PR01'PRCG20_2200150002 | D6: 国内類別1/_飲食料品 | E6: 品目/____乳飲料・乳酸菌飲料 | R6: 99.5 | S6: 99.7 | T6: 99.4 | U6: 99.7 | V6: 100.3 | W6: 100 | X6: 100.1 | Y6: 100.3 | Z6: 100.5 | AA6: 100.3 | AB6: 100.3 | AC6: 99.9 | AD6: 100.1 | AE6: 100.4 | AF6: 100.1 | AG6: 100.1 | AH6: 99.9 | AI6: 100 | AJ6: 99.8 | AK6: 99.7 | AL6: 100.2 | AM6: 100.3 | AN6: 100.4 | AO6: 100.2 | AP6: 100.2 | AQ6: 100.2 | AR6: 100.9 | AS6: 101.2 | AT6: 101.4 | AU6: 101.5 | AV6: 102.1 | AW6: 101.9 | AX6: 102 | AY6: 102.9 | AZ6: 104 | BA6: 104.7 | BB6: 104.9 | BC6: 105.3 | BD6: 107.4 | BE6: 108.6 | BF6: 107.7 | BG6: 108.4 | BH6: 108 | BI6: 109.5 | BJ6: 114.3 | BK6: 114 | BL6: 113.8 | BM6: 114.1 | BN6: 114.5 | BO6: 114.2 | BP6: 114.9 | BQ6: 114.4 | BR6: 114.6 | BS6: 114.3 | BT6: 114.3 | BU6: 114.3 | BV6: 114.7 | BW6: 115 | BX6: 115 | BY6: 115.1 | BZ6: 115.3 | CA6: 114.9 | CB6: 116.5 | CC6: 117.6 | CD6: 117.7 | CE6: 117.4 | CF6: 118.3 | CG6: 118.8 | CH6: 119 | CI6: 119.7 | CJ6: 119.2 | CK6: 119.7 | CL6: 120.8 | CM6: 120.1 | CN6: 120.2
A7: 6 | B7: 1国内 | C7: PR01'PRCG20_2200150003 | D7: 国内類別1/_飲食料品 | E7: 品目/____粉乳 | R7: 100.6 | S7: 100.5 | T7: 100.1 | U7: 100.7 | V7: 100.1 | W7: 99.9 | X7: 99.9 | Y7: 99.8 | Z7: 99.8 | AA7: 99.6 | AB7: 99.4 | AC7: 99.5 | AD7: 99.4 | AE7: 99.4 | AF7: 99.5 | AG7: 99.4 | AH7: 99.4 | AI7: 98.9 | AJ7: 98.8 | AK7: 98.8 | AL7: 99 | AM7: 99 | AN7: 99 | AO7: 99 | AP7: 99 | AQ7: 99 | AR7: 99 | AS7: 98.8 | AT7: 98.8 | AU7: 98.8 | AV7: 98.8 | AW7: 98.8 | AX7: 98.8 | AY7: 98.8 | AZ7: 101 | BA7: 101.1 | BB7: 101.1 | BC7: 101.1 | BD7: 101.2 | BE7: 107.8 | BF7: 110.5 | BG7: 111.1 | BH7: 111.1 | BI7: 111.5 | BJ7: 110.8 | BK7: 111 | BL7: 111.1 | BM7: 112.1 | BN7: 112.1 | BO7: 112.1 | BP7: 112.2 | BQ7: 112.2 | BR7: 112.2 | BS7: 112.1 | BT7: 112.1 | BU7: 112.1 | BV7: 112.1 | BW7: 113.6 | BX7: 113.8 | BY7: 114 | BZ7: 114 | CA7: 114.2 | CB7: 114.4 | CC7: 114.3 | CD7: 114.4 | CE7: 114.3 | CF7: 115.4 | CG7: 116.1 | CH7: 116.3 | CI7: 116.2 | CJ7: 116.2 | CK7: 118.5 | CL7: 118.5 | CM7: 118.5 | CN7: 118.5
A8: 7 | B8: 1国内 | C8: PR01'PRCG20_2200150004 | D8: 国内類別1/_飲食料品 | E8: 品目/____バター | R8: 100.1 | S8: 100.1 | T8: 100.1 | U8: 100 | V8: 100 | W8: 100 | X8: 100 | Y8: 100 | Z8: 100 | AA8: 99.9 | AB8: 99.9 | AC8: 99.9 | AD8: 100.2 | AE8: 100.2 | AF8: 100.3 | AG8: 100.1 | AH8: 100.1 | AI8: 100.1 | AJ8: 100 | AK8: 100 | AL8: 100.1 | AM8: 99.8 | AN8: 99.7 | AO8: 99.8 | AP8: 99.8 | AQ8: 99.8 | AR8: 99.9 | AS8: 99.3 | AT8: 99.7 | AU8: 99.9 | AV8: 99.7 | AW8: 99.6 | AX8: 99.5 | AY8: 99.2 | AZ8: 99.2 | BA8: 99 | BB8: 99.5 | BC8: 99.3 | BD8: 97.8 | BE8: 106.8 | BF8: 107.5 | BG8: 110.8 | BH8: 111 | BI8: 110.4 | BJ8: 109.9 | BK8: 110.1 | BL8: 110.2 | BM8: 114.2 | BN8: 117.2 | BO8: 118.1 | BP8: 118.8 | BQ8: 118.4 | BR8: 119.3 | BS8: 118.6 | BT8: 120.2 | BU8: 119.9 | BV8: 119.8 | BW8: 119.5 | BX8: 119.6 | BY8: 119.3 | BZ8: 119.4 | CA8: 119.3 | CB8: 118.3 | CC8: 122.8 | CD8: 123.4 | CE8: 127.9 | CF8: 134.3 | CG8: 134.6 | CH8: 133.9 | CI8: 133.5 | CJ8: 134 | CK8: 133.7 | CL8: 133.8 | CM8: 134 | CN8: 134
A9: 8 | B9: 1国内 | C9: PR01'PRCG20_2200150005 | D9: 国内類別1/_飲食料品 | E9: 品目/____チーズ | R9: 99.3 | S9: 101 | T9: 99.3 | U9: 99.9 | V9: 99.8 | W9: 101 | X9: 99.6 | Y9: 99.4 | Z9: 100 | AA9: 101.5 | AB9: 99.4 | AC9: 99.6 | AD9: 99 | AE9: 100.6 | AF9: 99.4 | AG9: 100.7 | AH9: 99.3 | AI9: 100.4 | AJ9: 100.4 | AK9: 100.9 | AL9: 100.1 | AM9: 100.5 | AN9: 99.6 | AO9: 100.8 | AP9: 100.2 | AQ9: 100.1 | AR9: 99 | AS9: 103.2 | AT9: 102.9 | AU9: 101.9 | AV9: 103.2 | AW9: 105.8 | AX9: 101.7 | AY9: 107.5 | AZ9: 116.3 | BA9: 113.1 | BB9: 115.1 | BC9: 113.4 | BD9: 113.1 | BE9: 116.4 | BF9: 116.7 | BG9: 117 | BH9: 117.6 | BI9: 112.8 | BJ9: 116.1 | BK9: 113.4 | BL9: 114.5 | BM9: 115.1 | BN9: 114.7 | BO9: 115 | BP9: 117 | BQ9: 116.9 | BR9: 116.7 | BS9: 117.1 | BT9: 117.2 | BU9: 116.9 | BV9: 115.9 | BW9: 115.8 | BX9: 115.9 | BY9: 115 | BZ9: 115.8 | CA9: 114.2 | CB9: 117.2 | CC9: 122.5 | CD9: 118.7 | CE9: 119.1 | CF9: 122.3 | CG9: 122.3 | CH9: 123.2 | CI9: 122.3 | CJ9: 119.4 | CK9: 123.5 | CL9: 124.3 | CM9: 124.5 | CN9: 124.5
A10: 9 | B10: 1国内 | C10: PR01'PRCG20_2200150006 | D10: 国内類別1/_飲食料品 | E10: 品目/____生クリーム | R10: 100.3 | S10: 100.3 | T10: 100.2 | U10: 100.2 | V10: 99.9 | W10: 99.8 | X10: 99.8 | Y10: 99.8 | Z10: 99.9 | AA10: 100 | AB10: 99.9 | AC10: 99.8 | AD10: 99.6 | AE10: 99.7 | AF10: 99.6 | AG10: 100 | AH10: 99.5 | AI10: 99.5 | AJ10: 99.4 | AK10: 99.4 | AL10: 99.6 | AM10: 99.6 | AN10: 99.9 | AO10: 100 | AP10: 99.8 | AQ10: 100 | AR10: 100.3 | AS10: 100.3 | AT10: 100.4 | AU10: 100.4 | AV10: 100.1 | AW10: 100.5 | AX10: 101.3 | AY10: 101.6 | AZ10: 101.5 | BA10: 102.1 | BB10: 101.9 | BC10: 101.9 | BD10: 102 | BE10: 110 | BF10: 110.3 | BG10: 111.3 | BH10: 111.9 | BI10: 111.8 | BJ10: 111.7 | BK10: 111.9 | BL10: 112.4 | BM10: 114.2 | BN10: 117.2 | BO10: 116.6 | BP10: 116.8 | BQ10: 116.7 | BR10: 116.7 | BS10: 116.9 | BT10: 116.6 | BU10: 116.6 | BV10: 116.6 | BW10: 116.5 | BX10: 116.5 | BY10: 116.6 | BZ10: 116.8 | CA10: 116.9 | CB10: 116.8 | CC10: 117.1 | CD10: 117.4 | CE10: 124.5 | CF10: 125.3 | CG10: 125.6 | CH10: 125.4 | CI10: 125.1 | CJ10: 125.3 | CK10: 125.7 | CL10: 125.2 | CM10: 125.3 | CN10: 125.3
A11: 10 | B11: 1国内 | C11: PR01'PRCG20_2200150007 | D11: 国内類別1/_飲食料品 | E11: 品目/____アイスクリーム | R11: 99.2 | S11: 99.2 | T11: 99 | U11: 98.2 | V11: 101 | W11: 101.1 | X11: 100.2 | Y11: 100.3 | Z11: 100.5 | AA11: 101 | AB11: 100.4 | AC11: 100.2 | AD11: 99.7 | AE11: 98.9 | AF11: 99.2 | AG11: 99.8 | AH11: 99.8 | AI11: 99.9 | AJ11: 100.3 | AK11: 100.1 | AL11: 99.3 | AM11: 99.1 | AN11: 99.3 | AO11: 100.3 | AP11: 98.8 | AQ11: 98.7 | AR11: 98.8 | AS11: 100.1 | AT11: 99.4 | AU11: 102.1 | AV11: 103.1 | AW11: 103.3 | AX11: 104 | AY11: 103.9 | AZ11: 104.4 | BA11: 104.4 | BB11: 106.4 | BC11: 106 | BD11: 109 | BE11: 109.2 | BF11: 113.3 | BG11: 109.4 | BH11: 110 | BI11: 109.5 | BJ11: 109.5 | BK11: 109.4 | BL11: 110 | BM11: 109.6 | BN11: 110.7 | BO11: 110.3 | BP11: 110 | BQ11: 110.5 | BR11: 110.2 | BS11: 110.4 | BT11: 111.2 | BU11: 110.9 | BV11: 114.4 | BW11: 115.1 | BX11: 115.7 | BY11: 115.8 | BZ11: 115.3 | CA11: 115.2 | CB11: 116.4 | CC11: 117.4 | CD11: 116.7 | CE11: 117.9 | CF11: 117.7 | CG11: 118 | CH11: 124.2 | CI11: 124.7 | CJ11: 125 | CK11: 124.1 | CL11: 127.2 | CM11: 127.1 | CN11: 127.1
A12: 11 | B12: 1国内 | C12: PR01'PRCG20_2200150008 | D12: 国内類別1/_飲食料品 | E12: 品目/____ヨーグルト | R12: 100.3 | S12: 100.1 | T12: 99.8 | U12: 99.8 | V12: 99.9 | W12: 100 | X12: 100.2 | Y12: 100 | Z12: 99.9 | AA12: 100.2 | AB12: 100 | AC12: 99.7 | AD12: 99.9 | AE12: 99.7 | AF12: 99.6 | AG12: 99.6 | AH12: 99.6 | AI12: 99.5 | AJ12: 99.4 | AK12: 99.3 | AL12: 99.2 | AM12: 99.5 | AN12: 99.4 | AO12: 99.4 | AP12: 99.3 | AQ12: 99.3 | AR12: 99.3 | AS12: 98.6 | AT12: 98.7 | AU12: 98.7 | AV12: 98.8 | AW12: 98.7 | AX12: 98.7 | AY12: 98.7 | AZ12: 103.1 | BA12: 104.5 | BB12: 104.6 | BC12: 104.5 | BD12: 104.6 | BE12: 109.5 | BF12: 108.8 | BG12: 109.8 | BH12: 109.6 | BI12: 111 | BJ12: 111 | BK12: 110.6 | BL12: 111.9 | BM12: 111.9 | BN12: 112 | BO12: 112 | BP12: 111.6 | BQ12: 110.6 | BR12: 110.7 | BS12: 110.7 | BT12: 110.6 | BU12: 110.6 | BV12: 110.7 | BW12: 110.5 | BX12: 110.6 | BY12: 110.5 | BZ12: 110.7 | CA12: 111.1 | CB12: 111.4 | CC12: 112 | CD12: 112 | CE12: 112.1 | CF12: 112 | CG12: 116.7 | CH12: 117.7 | CI12: 117.5 | CJ12: 117.4 | CK12: 117.4 | CL12: 117.3 | CM12: 117.2 | CN12: 117.2
A13: 12 | B13: 1国内 | C13: PR01'PRCG20_2200140002 | D13: 国内類別1/_飲食料品 | E13: 商品群/___その他の畜産食料品 | R13: 100.3 | S13: 100.7 | T13: 99.9 | U13: 99.4 | V13: 99.4 | W13: 99.9 | X13: 100.4 | Y13: 99.8 | Z13: 99.7 | AA13: 99.7 | AB13: 100.2 | AC13: 100.8 | AD13: 99.8 | AE13: 100.2 | AF13: 99.8 | AG13: 99.9 | AH13: 99.8 | AI13: 100 | AJ13: 100 | AK13: 99.4 | AL13: 100 | AM13: 99.9 | AN13: 99.6 | AO13: 99.7 | AP13: 99.1 | AQ13: 99.5 | AR13: 100.8 | AS13: 101.8 | AT13: 102.1 | AU13: 102.5 | AV13: 102.6 | AW13: 102.3 | AX13: 102.6 | AY13: 104.7 | AZ13: 104.8 | BA13: 105 | BB13: 106.9 | BC13: 107 | BD13: 107 | BE13: 108.4 | BF13: 109.1 | BG13: 111 | BH13: 111.5 | BI13: 110.9 | BJ13: 111.2 | BK13: 111.1 | BL13: 111.4 | BM13: 111.6 | BN13: 111 | BO13: 111.6 | BP13: 111.6 | BQ13: 111.9 | BR13: 116 | BS13: 116.2 | BT13: 116.4 | BU13: 116.7 | BV13: 117.3 | BW13: 119.6 | BX13: 119.8 | BY13: 121.5 | BZ13: 121.4 | CA13: 121.9 | CB13: 121.3 | CC13: 121.6 | CD13: 121.7 | CE13: 122.1 | CF13: 122.2 | CG13: 122.3 | CH13: 122.2 | CI13: 122.1 | CJ13: 122.4 | CK13: 122.2 | CL13: 122.2 | CM13: 122.1 | CN13: 122
A14: 13 | B14: 1国内 | C14: PR01'PRCG20_2200150009 | D14: 国内類別1/_飲食料品 | E14: 品目/____肉製品 | R14: 100.3 | S14: 100.7 | T14: 99.9 | U14: 99.4 | V14: 99.4 | W14: 99.9 | X14: 100.4 | Y14: 99.8 | Z14: 99.7 | AA14: 99.7 | AB14: 100.2 | AC14: 100.8 | AD14: 99.8 | AE14: 100.2 | AF14: 99.8 | AG14: 99.9 | AH14: 99.8 | AI14: 100 | AJ14: 100 | AK14: 99.4 | AL14: 100 | AM14: 99.9 | AN14: 99.6 | AO14: 99.7 | AP14: 99.1 | AQ14: 99.5 | AR14: 100.8 | AS14: 101.8 | AT14: 102.1 | AU14: 102.5 | AV14: 102.6 | AW14: 102.3 | AX14: 102.6 | AY14: 104.7 | AZ14: 104.8 | BA14: 105 | BB14: 106.9 | BC14: 107 | BD14: 107 | BE14: 108.4 | BF14: 109.1 | BG14: 111 | BH14: 111.5 | BI14: 110.9 | BJ14: 111.2 | BK14: 111.1 | BL14: 111.4 | BM14: 111.6 | BN14: 111 | BO14: 111.6 | BP14: 111.6 | BQ14: 111.9 | BR14: 116 | BS14: 116.2 | BT14: 116.4 | BU14: 116.7 | BV14: 117.3 | BW14: 119.6 | BX14: 119.8 | BY14: 121.5 | BZ14: 121.4 | CA14: 121.9 | CB14: 121.3 | CC14: 121.6 | CD14: 121.7 | CE14: 122.1 | CF14: 122.2 | CG14: 122.3 | CH14: 122.2 | CI14: 122.1 | CJ14: 122.4 | CK14: 122.2 | CL14: 122.2 | CM14: 122.1 | CN14: 122
A15: 14 | B15: 1国内 | C15: PR01'PRCG20_2200140003 | D15: 国内類別1/_飲食料品 | E15: 商品群/___水産びん・かん詰 | R15: 100.1 | S15: 99.8 | T15: 100.2 | U15: 100.2 | V15: 99 | W15: 99.6 | X15: 101 | Y15: 100.4 | Z15: 100 | AA15: 101.7 | AB15: 99.3 | AC15: 98.7 | AD15: 99.2 | AE15: 100.2 | AF15: 99.9 | AG15: 98.6 | AH15: 97.6 | AI15: 96.6 | AJ15: 98.2 | AK15: 98.7 | AL15: 98.4 | AM15: 99.4 | AN15: 99.9 | AO15: 102 | AP15: 100.8 | AQ15: 100.8 | AR15: 100.8 | AS15: 103.2 | AT15: 103.8 | AU15: 103 | AV15: 105.8 | AW15: 106.2 | AX15: 109.8 | AY15: 108 | AZ15: 112.9 | BA15: 110.4 | BB15: 114.9 | BC15: 120.4 | BD15: 123.2 | BE15: 130.7 | BF15: 131.9 | BG15: 130.9 | BH15: 131 | BI15: 130.9 | BJ15: 131.2 | BK15: 134.6 | BL15: 132.1 | BM15: 134.3 | BN15: 132.1 | BO15: 130.6 | BP15: 132 | BQ15: 131 | BR15: 129.2 | BS15: 128.1 | BT15: 128.8 | BU15: 129.3 | BV15: 128.4 | BW15: 130.2 | BX15: 128.8 | BY15: 131.4 | BZ15: 128.9 | CA15: 128.4 | CB15: 130.6 | CC15: 129.5 | CD15: 130.6 | CE15: 129.3 | CF15: 132.2 | CG15: 131.7 | CH15: 129.5 | CI15: 131.3 | CJ15: 125.8 | CK15: 127.3 | CL15: 126.7 | CM15: 128.5 | CN15: 128.5
A16: 15 | B16: 1国内 | C16: PR01'PRCG20_2200150010 | D16: 国内類別1/_飲食料品 | E16: 品目/____水産びん・かん詰 | R16: 100.1 | S16: 99.8 | T16: 100.2 | U16: 100.2 | V16: 99 | W16: 99.6 | X16: 101 | Y16: 100.4 | Z16: 100 | AA16: 101.7 | AB16: 99.3 | AC16: 98.7 | AD16: 99.2 | AE16: 100.2 | AF16: 99.9 | AG16: 98.6 | AH16: 97.6 | AI16: 96.6 | AJ16: 98.2 | AK16: 98.7 | AL16: 98.4 | AM16: 99.4 | AN16: 99.9 | AO16: 102 | AP16: 100.8 | AQ16: 100.8 | AR16: 100.8 | AS16: 103.2 | AT16: 103.8 | AU16: 103 | AV16: 105.8 | AW16: 106.2 | AX16: 109.8 | AY16: 108 | AZ16: 112.9 | BA16: 110.4 | BB16: 114.9 | BC16: 120.4 | BD16: 123.2 | BE16: 130.7 | BF16: 131.9 | BG16: 130.9 | BH16: 131 | BI16: 130.9 | BJ16: 131.2 | BK16: 134.6 | BL16: 132.1 | BM16: 134.3 | BN16: 132.1 | BO16: 130.6 | BP16: 132 | BQ16: 131 | BR16: 129.2 | BS16: 128.1 | BT16: 128.8 | BU16: 129.3 | BV16: 128.4 | BW16: 130.2 | BX16: 128.8 | BY16: 131.4 | BZ16: 128.9 | CA16: 128.4 | CB16: 130.6 | CC16: 129.5 | CD16: 130.6 | CE16: 129.3 | CF16: 132.2 | CG16: 131.7 | CH16: 129.5 | CI16: 131.3 | CJ16: 125.8 | CK16: 127.3 | CL16: 126.7 | CM16: 128.5 | CN16: 128.5
A17: 16 | B17: 1国内 | C17: PR01'PRCG20_2200140004 | D17: 国内類別1/_飲食料品 | E17: 商品群/___ねり製品 | R17: 99.8 | S17: 99.4 | T17: 100 | U17: 100.5 | V17: 100.5 | W17: 100 | X17: 100 | Y17: 99.9 | Z17: 100 | AA17: 99.8 | AB17: 100 | AC17: 100 | AD17: 99.8 | AE17: 99.8 | AF17: 99.8 | AG17: 99.2 | AH17: 100.2 | AI17: 101 | AJ17: 100.3 | AK17: 100.4 | AL17: 101.2 | AM17: 100.3 | AN17: 100.2 | AO17: 101.1 | AP17: 102 | AQ17: 100.9 | AR17: 103.2 | AS17: 106.6 | AT17: 106.4 | AU17: 107.4 | AV17: 106.1 | AW17: 106.3 | AX17: 111.1 | AY17: 114.3 | AZ17: 114.9 | BA17: 114.3 | BB17: 114 | BC17: 114.3 | BD17: 117.2 | BE17: 121.5 | BF17: 121.9 | BG17: 122.6 | BH17: 122.8 | BI17: 121.9 | BJ17: 121 | BK17: 123.5 | BL17: 122.5 | BM17: 122.9 | BN17: 122.3 | BO17: 120.3 | BP17: 121 | BQ17: 121.9 | BR17: 121.9 | BS17: 121 | BT17: 121 | BU17: 121.1 | BV17: 120.8 | BW17: 121.4 | BX17: 122.3 | BY17: 121.9 | BZ17: 119.6 | CA17: 121.3 | CB17: 121.5 | CC17: 122.2 | CD17: 124.7 | CE17: 123.3 | CF17: 123.7 | CG17: 123.8 | CH17: 123.9 | CI17: 124.9 | CJ17: 124.4 | CK17: 125.9 | CL17: 123.5 | CM17: 125.2 | CN17: 125.2
A18: 17 | B18: 1国内 | C18: PR01'PRCG20_2200150011 | D18: 国内類別1/_飲食料品 | E18: 品目/____ねり製品 | R18: 99.8 | S18: 99.4 | T18: 100 | U18: 100.5 | V18: 100.5 | W18: 100 | X18: 100 | Y18: 99.9 | Z18: 100 | AA18: 99.8 | AB18: 100 | AC18: 100 | AD18: 99.8 | AE18: 99.8 | AF18: 99.8 | AG18: 99.2 | AH18: 100.2 | AI18: 101 | AJ18: 100.3 | AK18: 100.4 | AL18: 101.2 | AM18: 100.3 | AN18: 100.2 | AO18: 101.1 | AP18: 102 | AQ18: 100.9 | AR18: 103.2 | AS18: 106.6 | AT18: 106.4 | AU18: 107.4 | AV18: 106.1 | AW18: 106.3 | AX18: 111.1 | AY18: 114.3 | AZ18: 114.9 | BA18: 114.3 | BB18: 114 | BC18: 114.3 | BD18: 117.2 | BE18: 121.5 | BF18: 121.9 | BG18: 122.6 | BH18: 122.8 | BI18: 121.9 | BJ18: 121 | BK18: 123.5 | BL18: 122.5 | BM18: 122.9 | BN18: 122.3 | BO18: 120.3 | BP18: 121 | BQ18: 121.9 | BR18: 121.9 | BS18: 121 | BT18: 121 | BU18: 121.1 | BV18: 120.8 | BW18: 121.4 | BX18: 122.3 | BY18: 121.9 | BZ18: 119.6 | CA18: 121.3 | CB18: 121.5 | CC18: 122.2 | CD18: 124.7 | CE18: 123.3 | CF18: 123.7 | CG18: 123.8 | CH18: 123.9 | CI18: 124.9 | CJ18: 124.4 | CK18: 125.9 | CL18: 123.5 | CM18: 125.2 | CN18: 125.2
A19: 18 | B19: 1国内 | C19: PR01'PRCG20_2200140005 | D19: 国内類別1/_飲食料品 | E19: 商品群/___その他の水産食料品 | R19: 97.8 | S19: 99.9 | T19: 100 | U19: 100 | V19: 98.9 | W19: 99.4 | X19: 99.7 | Y19: 99.6 | Z19: 101.3 | AA19: 101.3 | AB19: 100.8 | AC19: 101.2 | AD19: 100.8 | AE19: 100.9 | AF19: 101.6 | AG19: 101.6 | AH19: 100.7 | AI19: 101.4 | AJ19: 102 | AK19: 102.9 | AL19: 101.8 | AM19: 102.3 | AN19: 102 | AO19: 102.2 | AP19: 103 | AQ19: 103.4 | AR19: 102.6 | AS19: 105.5 | AT19: 107.8 | AU19: 108.3 | AV19: 108.6 | AW19: 108.9 | AX19: 108.8 | AY19: 109.6 | AZ19: 111.4 | BA19: 113.1 | BB19: 112.8 | BC19: 113.5 | BD19: 115.4 | BE19: 117 | BF19: 116.7 | BG19: 117.4 | BH19: 117.2 | BI19: 118.3 | BJ19: 119.1 | BK19: 118.2 | BL19: 119.1 | BM19: 119.3 | BN19: 118.5 | BO19: 120.4 | BP19: 121.6 | BQ19: 122.3 | BR19: 122.2 | BS19: 120.8 | BT19: 121.5 | BU19: 122.3 | BV19: 122.1 | BW19: 124.3 | BX19: 124.9 | BY19: 125.5 | BZ19: 123.5 | CA19: 124.8 | CB19: 125.7 | CC19: 126.7 | CD19: 126.5 | CE19: 126.3 | CF19: 127.4 | CG19: 128.6 | CH19: 129.4 | CI19: 128.1 | CJ19: 128.6 | CK19: 128.7 | CL19: 128.1 | CM19: 127.2 | CN19: 127.4
A20: 19 | B20: 1国内 | C20: PR01'PRCG20_2200150012 | D20: 国内類別1/_飲食料品 | E20: 品目/____かつおパック | R20: 96.8 | S20: 101.2 | T20: 102.4 | U20: 103.1 | V20: 100.5 | W20: 100.3 | X20: 100.5 | Y20: 101 | Z20: 99.2 | AA20: 98.4 | AB20: 97.6 | AC20: 99 | AD20: 97.1 | AE20: 97.2 | AF20: 99.9 | AG20: 100.4 | AH20: 96.4 | AI20: 98.1 | AJ20: 99.2 | AK20: 103 | AL20: 101.1 | AM20: 101.4 | AN20: 100.6 | AO20: 102.1 | AP20: 103.4 | AQ20: 105.1 | AR20: 103.6 | AS20: 107 | AT20: 106 | AU20: 107.8 | AV20: 109 | AW20: 109.9 | AX20: 110.1 | AY20: 112.2 | AZ20: 111.7 | BA20: 117.4 | BB20: 116.6 | BC20: 119 | BD20: 125.2 | BE20: 129.8 | BF20: 128.4 | BG20: 131.6 | BH20: 130.2 | BI20: 134.3 | BJ20: 135.9 | BK20: 138 | BL20: 137.4 | BM20: 137.2 | BN20: 132.4 | BO20: 139.9 | BP20: 142.7 | BQ20: 142.2 | BR20: 139.7 | BS20: 136.7 | BT20: 138.3 | BU20: 141.5 | BV20: 140.3 | BW20: 140.7 | BX20: 141.6 | BY20: 142.8 | BZ20: 137.5 | CA20: 140.1 | CB20: 142.1 | CC20: 142.7 | CD20: 141.4 | CE20: 141.3 | CF20: 141.6 | CG20: 143.9 | CH20: 145.2 | CI20: 141.5 | CJ20: 142.2 | CK20: 141.5 | CL20: 139.2 | CM20: 137.9 | CN20: 137.9
A21: 20 | B21: 1国内 | C21: PR01'PRCG20_2200150013 | D21: 国内類別1/_飲食料品 | E21: 品目/____水産物漬物 | R21: 99 | S21: 100.6 | T21: 100 | U21: 100.1 | V21: 99.5 | W21: 100.3 | X21: 100.7 | Y21: 100.3 | Z21: 100.5 | AA21: 100.4 | AB21: 99.5 | AC21: 98.9 | AD21: 100.3 | AE21: 100.1 | AF21: 99.9 | AG21: 99.8 | AH21: 100.4 | AI21: 100.8 | AJ21: 101 | AK21: 100.4 | AL21: 99.1 | AM21: 100.6 | AN21: 100.2 | AO21: 99.2 | AP21: 100.8 | AQ21: 100.7 | AR21: 99.4 | AS21: 103.5 | AT21: 110.4 | AU21: 110.3 | AV21: 110.1 | AW21: 110.4 | AX21: 110.2 | AY21: 110.4 | AZ21: 114.6 | BA21: 114.9 | BB21: 115.3 | BC21: 115 | BD21: 115.4 | BE21: 114 | BF21: 113.7 | BG21: 113.2 | BH21: 113.4 | BI21: 113.7 | BJ21: 113.3 | BK21: 111 | BL21: 112.1 | BM21: 112.3 | BN21: 113.7 | BO21: 113.6 | BP21: 113.9 | BQ21: 115.5 | BR21: 115.9 | BS21: 115.3 | BT21: 115.2 | BU21: 115.4 | BV21: 115.9 | BW21: 120.2 | BX21: 120.3 | BY21: 120.6 | BZ21: 119.9 | CA21: 120.3 | CB21: 119.8 | CC21: 119.9 | CD21: 120 | CE21: 120.4 | CF21: 120.2 | CG21: 120.3 | CH21: 120.2 | CI21: 120.2 | CJ21: 120.1 | CK21: 120.5 | CL21: 120.3 | CM21: 120.3 | CN21: 120.4
A22: 21 | B22: 1国内 | C22: PR01'PRCG20_2200150014 | D22: 国内類別1/_飲食料品 | E22: 品目/____つくだ煮 | R22: 97.3 | S22: 97.7 | T22: 97.4 | U22: 96.9 | V22: 96.4 | W22: 97.2 | X22: 97.6 | Y22: 97.3 | Z22: 104.5 | AA22: 105.4 | AB22: 105.8 | AC22: 106.5 | AD22: 105 | AE22: 105.6 | AF22: 105.6 | AG22: 105.1 | AH22: 105.5 | AI22: 105.5 | AJ22: 106.1 | AK22: 106.1 | AL22: 105.9 | AM22: 105.6 | AN22: 105.9 | AO22: 106.3 | AP22: 105.5 | AQ22: 105.4 | AR22: 105.8 | AS22: 106.5 | AT22: 106.2 | AU22: 106.2 | AV22: 106.4 | AW22: 106.1 | AX22: 105.6 | AY22: 106 | AZ22: 106.8 | BA22: 106.4 | BB22: 105.8 | BC22: 106.1 | BD22: 105.6 | BE22: 108.2 | BF22: 109.1 | BG22: 108.8 | BH22: 109.1 | BI22: 108.4 | BJ22: 110.1 | BK22: 107.8 | BL22: 110.3 | BM22: 110.7 | BN22: 111 | BO22: 110 | BP22: 110.7 | BQ22: 111.3 | BR22: 113 | BS22: 112.1 | BT22: 113.2 | BU22: 112.4 | BV22: 112 | BW22: 113.4 | BX22: 114.4 | BY22: 114.7 | BZ22: 114.1 | CA22: 115.6 | CB22: 117.1 | CC22: 119.6 | CD22: 120.1 | CE22: 119.3 | CF22: 122.8 | CG22: 124.3 | CH22: 125.7 | CI22: 125.3 | CJ22: 126.4 | CK22: 127 | CL22: 127.4 | CM22: 125.6 | CN22: 126.2
A23: 22 | B23: 1国内 | C23: PR01'PRCG20_2200140006 | D23: 国内類別1/_飲食料品 | E23: 商品群/___製粉 | R23: 99.3 | S23: 98.8 | T23: 99.7 | U23: 97.4 | V23: 97.6 | W23: 98.4 | X23: 101.3 | Y23: 100.4 | Z23: 102.1 | AA23: 104 | AB23: 100.4 | AC23: 100.5 | AD23: 98.2 | AE23: 98.9 | AF23: 98.5 | AG23: 98.4 | AH23: 98.1 | AI23: 98.9 | AJ23: 101.2 | AK23: 101.7 | AL23: 100.8 | AM23: 102.8 | AN23: 103.4 | AO23: 103.5 | AP23: 110 | AQ23: 114.4 | AR23: 115 | AS23: 114.3 | AT23: 115.4 | AU23: 114.8 | AV23: 124.5 | AW23: 128.7 | AX23: 127.3 | AY23: 126.6 | AZ23: 127.3 | BA23: 127.7 | BB23: 127 | BC23: 127.5 | BD23: 130.5 | BE23: 127.4 | BF23: 127.3 | BG23: 127.7 | BH23: 132.5 | BI23: 134.2 | BJ23: 135.4 | BK23: 134.3 | BL23: 134 | BM23: 134.5 | BN23: 126.6 | BO23: 124.5 | BP23: 124.4 | BQ23: 124.5 | BR23: 124.2 | BS23: 124.5 | BT23: 125.2 | BU23: 125.1 | BV23: 126.2 | BW23: 126.4 | BX23: 126 | BY23: 126.2 | BZ23: 125.2 | CA23: 125.9 | CB23: 126 | CC23: 125.6 | CD23: 124.8 | CE23: 124.8 | CF23: 123.2 | CG23: 122.7 | CH23: 123 | CI23: 122.7 | CJ23: 122.2 | CK23: 123.4 | CL23: 120.7 | CM23: 122.3 | CN23: 122.3
A24: 23 | B24: 1国内 | C24: PR01'PRCG20_2200150015 | D24: 国内類別1/_飲食料品 | E24: 品目/____小麦粉 | R24: 99.3 | S24: 98.8 | T24: 99.7 | U24: 97.4 | V24: 97.6 | W24: 98.4 | X24: 101.3 | Y24: 100.4 | Z24: 102.1 | AA24: 104 | AB24: 100.4 | AC24: 100.5 | AD24: 98.2 | AE24: 98.9 | AF24: 98.5 | AG24: 98.4 | AH24: 98.1 | AI24: 98.9 | AJ24: 101.2 | AK24: 101.7 | AL24: 100.8 | AM24: 102.8 | AN24: 103.4 | AO24: 103.5 | AP24: 110 | AQ24: 114.4 | AR24: 115 | AS24: 114.3 | AT24: 115.4 | AU24: 114.8 | AV24: 124.5 | AW24: 128.7 | AX24: 127.3 | AY24: 126.6 | AZ24: 127.3 | BA24: 127.7 | BB24: 127 | BC24: 127.5 | BD24: 130.5 | BE24: 127.4 | BF24: 127.3 | BG24: 127.7 | BH24: 132.5 | BI24: 134.2 | BJ24: 135.4 | BK24: 134.3 | BL24: 134 | BM24: 134.5 | BN24: 126.6 | BO24: 124.5 | BP24: 124.4 | BQ24: 124.5 | BR24: 124.2 | BS24: 124.5 | BT24: 125.2 | BU24: 125.1 | BV24: 126.2 | BW24: 126.4 | BX24: 126 | BY24: 126.2 | BZ24: 125.2 | CA24: 125.9 | CB24: 126 | CC24: 125.6 | CD24: 124.8 | CE24: 124.8 | CF24: 123.2 | CG24: 122.7 | CH24: 123 | CI24: 122.7 | CJ24: 122.2 | CK24: 123.4 | CL24: 120.7 | CM24: 122.3 | CN24: 122.3
A25: 24 | B25: 1国内 | C25: PR01'PRCG20_2200140007 | D25: 国内類別1/_飲食料品 | E25: 商品群/___めん類 | R25: 99.8 | S25: 99.5 | T25: 99.5 | U25: 102.6 | V25: 99.8 | W25: 99.8 | X25: 100.5 | Y25: 99.8 | Z25: 100.2 | AA25: 99.6 | AB25: 100.1 | AC25: 98.8 | AD25: 98.7 | AE25: 98.6 | AF25: 99.2 | AG25: 100.6 | AH25: 99.7 | AI25: 100.4 | AJ25: 100.4 | AK25: 100.6 | AL25: 100.6 | AM25: 100 | AN25: 100.5 | AO25: 99.3 | AP25: 100.8 | AQ25: 100.5 | AR25: 102.4 | AS25: 105.1 | AT25: 105.4 | AU25: 109.7 | AV25: 109.8 | AW25: 110.7 | AX25: 111.5 | AY25: 111.1 | AZ25: 111 | BA25: 110.6 | BB25: 110.3 | BC25: 112.4 | BD25: 113.1 | BE25: 115.4 | BF25: 115.3 | BG25: 118.6 | BH25: 119.2 | BI25: 118.9 | BJ25: 119 | BK25: 118.8 | BL25: 120.2 | BM25: 118.6 | BN25: 118.7 | BO25: 120.2 | BP25: 120.4 | BQ25: 120 | BR25: 120.6 | BS25: 120.1 | BT25: 120.7 | BU25: 121.2 | BV25: 121.5 | BW25: 121 | BX25: 121.2 | BY25: 120.5 | BZ25: 121.3 | CA25: 122 | CB25: 122.5 | CC25: 122.9 | CD25: 122.9 | CE25: 123.1 | CF25: 123.4 | CG25: 123 | CH25: 123.3 | CI25: 122.8 | CJ25: 122.9 | CK25: 121.8 | CL25: 122.1 | CM25: 121.8 | CN25: 121.8
A26: 25 | B26: 1国内 | C26: PR01'PRCG20_2200150016 | D26: 国内類別1/_飲食料品 | E26: 品目/____即席めん | R26: 99.2 | S26: 98.7 | T26: 98.7 | U26: 107.1 | V26: 100.6 | W26: 99.6 | X26: 100.2 | Y26: 98.6 | Z26: 100.1 | AA26: 99.4 | AB26: 100.6 | AC26: 97.4 | AD26: 99.1 | AE26: 98.2 | AF26: 97.7 | AG26: 99.8 | AH26: 98.8 | AI26: 99.9 | AJ26: 98.9 | AK26: 99.3 | AL26: 99.9 | AM26: 98.8 | AN26: 99.7 | AO26: 96.2 | AP26: 101.4 | AQ26: 101.1 | AR26: 99.5 | AS26: 100.3 | AT26: 100.4 | AU26: 110.5 | AV26: 110.2 | AW26: 109.7 | AX26: 110.9 | AY26: 110.4 | AZ26: 110 | BA26: 108.9 | BB26: 108.3 | BC26: 110 | BD26: 110.6 | BE26: 110.4 | BF26: 111 | BG26: 118.7 | BH26: 118.8 | BI26: 118.6 | BJ26: 119.7 | BK26: 117.7 | BL26: 119.2 | BM26: 115.3 | BN26: 116.4 | BO26: 119.3 | BP26: 120 | BQ26: 118.9 | BR26: 120.3 | BS26: 119.2 | BT26: 119.9 | BU26: 120.2 | BV26: 120.6 | BW26: 118.9 | BX26: 118.9 | BY26: 117.4 | BZ26: 118.4 | CA26: 119.4 | CB26: 119.1 | CC26: 119.6 | CD26: 120.3 | CE26: 120.4 | CF26: 120.7 | CG26: 118.7 | CH26: 119.4 | CI26: 119 | CJ26: 118.3 | CK26: 117.2 | CL26: 117.3 | CM26: 117.3 | CN26: 117.3
A27: 26 | B27: 1国内 | C27: PR01'PRCG20_2200150017 | D27: 国内類別1/_飲食料品 | E27: 品目/____和風めん | R27: 99.8 | S27: 99.3 | T27: 100 | U27: 99.2 | V27: 99.4 | W27: 100.1 | X27: 101.6 | Y27: 101.6 | Z27: 100.7 | AA27: 99.5 | AB27: 99.7 | AC27: 99.3 | AD27: 96.4 | AE27: 98.1 | AF27: 100.2 | AG27: 102.4 | AH27: 100.2 | AI27: 101 | AJ27: 102.8 | AK27: 102.6 | AL27: 101.5 | AM27: 100.9 | AN27: 101.6 | AO27: 102.1 | AP27: 99.2 | AQ27: 98.8 | AR27: 101.8 | AS27: 107.2 | AT27: 108 | AU27: 108 | AV27: 109.2 | AW27: 109.1 | AX27: 108.9 | AY27: 108.7 | AZ27: 108.7 | BA27: 109 | BB27: 109.2 | BC27: 111.7 | BD27: 112.3 | BE27: 117.6 | BF27: 116.3 | BG27: 116.4 | BH27: 118.3 | BI27: 118 | BJ27: 117.3 | BK27: 118 | BL27: 118.3 | BM27: 118 | BN27: 116.9 | BO27: 117.9 | BP27: 118.5 | BQ27: 117.7 | BR27: 117.3 | BS27: 118 | BT27: 118.4 | BU27: 119.2 | BV27: 118.7 | BW27: 118.8 | BX27: 118.9 | BY27: 118.6 | BZ27: 119.6 | CA27: 120.6 | CB27: 121.2 | CC27: 121.5 | CD27: 120.4 | CE27: 121.4 | CF27: 121.8 | CG27: 122 | CH27: 121.8 | CI27: 120.6 | CJ27: 122.1 | CK27: 119.3 | CL27: 120.6 | CM27: 119.9 | CN27: 119.9
A28: 27 | B28: 1国内 | C28: PR01'PRCG20_2200150018 | D28: 国内類別1/_飲食料品 | E28: 品目/____中華めん | R28: 100.2 | S28: 100.7 | T28: 100.2 | U28: 99.1 | V28: 99.1 | W28: 100.2 | X28: 100.2 | Y28: 100.2 | Z28: 100.2 | AA28: 100.2 | AB28: 99.7 | AC28: 100.2 | AD28: 100.2 | AE28: 100.2 | AF28: 100.7 | AG28: 100.2 | AH28: 100.7 | AI28: 100.7 | AJ28: 100.7 | AK28: 100.2 | AL28: 100.2 | AM28: 100.2 | AN28: 100.2 | AO28: 100.2 | AP28: 100.2 | AQ28: 100.2 | AR28: 106.4 | AS28: 109.2 | AT28: 109.2 | AU28: 109.2 | AV28: 108.7 | AW28: 109.2 | AX28: 110.2 | AY28: 110.8 | AZ28: 110.8 | BA28: 110.2 | BB28: 110.2 | BC28: 113.9 | BD28: 113.9 | BE28: 119.3 | BF28: 119.3 | BG28: 119.3 | BH28: 119.8 | BI28: 119.3 | BJ28: 119.3 | BK28: 121.3 | BL28: 124.4 | BM28: 124.4 | BN28: 124.9 | BO28: 124.9 | BP28: 124.4 | BQ28: 125 | BR28: 126 | BS28: 125.5 | BT28: 126 | BU28: 126 | BV28: 127.5 | BW28: 128.3 | BX28: 128.3 | BY28: 128.3 | BZ28: 128.3 | CA28: 129.4 | CB28: 131.5 | CC28: 132 | CD28: 132 | CE28: 132.5 | CF28: 133.1 | CG28: 133.1 | CH28: 133.1 | CI28: 133.1 | CJ28: 133.1 | CK28: 133.1 | CL28: 133.1 | CM28: 133.1 | CN28: 133.1
A29: 28 | B29: 1国内 | C29: PR01'PRCG20_2200150019 | D29: 国内類別1/_飲食料品 | E29: 品目/____洋風めん | R29: 101.3 | S29: 101 | T29: 100.6 | U29: 99.4 | V29: 99.1 | W29: 99.4 | X29: 99.4 | Y29: 99.5 | Z29: 99.3 | AA29: 99.5 | AB29: 100.3 | AC29: 101.2 | AD29: 100.6 | AE29: 99 | AF29: 99.9 | AG29: 100.1 | AH29: 100.3 | AI29: 99.9 | AJ29: 99.4 | AK29: 101.4 | AL29: 101.9 | AM29: 102.4 | AN29: 102 | AO29: 103.4 | AP29: 104 | AQ29: 104.1 | AR29: 109.2 | AS29: 112.7 | AT29: 112.3 | AU29: 112.3 | AV29: 112.5 | AW29: 123.4 | AX29: 125.6 | AY29: 122.4 | AZ29: 123.4 | BA29: 124.1 | BB29: 123.4 | BC29: 123.2 | BD29: 125.4 | BE29: 124.3 | BF29: 124.2 | BG29: 123.2 | BH29: 122.5 | BI29: 121.8 | BJ29: 120.7 | BK29: 120.9 | BL29: 121 | BM29: 123.3 | BN29: 121.5 | BO29: 121.4 | BP29: 119.7 | BQ29: 121.1 | BR29: 120.8 | BS29: 119.7 | BT29: 120.6 | BU29: 121.3 | BV29: 121.4 | BW29: 122.4 | BX29: 123.6 | BY29: 124.1 | BZ29: 124.9 | CA29: 122.1 | CB29: 123.5 | CC29: 123.2 | CD29: 123.5 | CE29: 120.8 | CF29: 120.7 | CG29: 124.4 | CH29: 125.3 | CI29: 125.2 | CJ29: 125.5 | CK29: 127.1 | CL29: 125.7 | CM29: 124.4 | CN29: 124.4
A30: 29 | B30: 1国内 | C30: PR01'PRCG20_2200140008 | D30: 国内類別1/_飲食料品 | E30: 商品群/___パン類 | R30: 100.1 | S30: 100 | T30: 100 | U30: 99.9 | V30: 100 | W30: 100.2 | X30: 100.1 | Y30: 100.2 | Z30: 99.9 | AA30: 99.7 | AB30: 99.8 | AC30: 100.1 | AD30: 99.9 | AE30: 99.8 | AF30: 99.9 | AG30: 99.7 | AH30: 99.8 | AI30: 100 | AJ30: 99.9 | AK30: 99.9 | AL30: 99.9 | AM30: 99.8 | AN30: 100.4 | AO30: 100.5 | AP30: 101.6 | AQ30: 103.3 | AR30: 103.8 | AS30: 104 | AT30: 104.1 | AU30: 104.4 | AV30: 105.8 | AW30: 106.1 | AX30: 106.4 | AY30: 106.5 | AZ30: 107.2 | BA30: 107.1 | BB30: 109.3 | BC30: 110.1 | BD30: 110.7 | BE30: 111.8 | BF30: 112.6 | BG30: 113 | BH30: 115 | BI30: 115.7 | BJ30: 115.7 | BK30: 117.5 | BL30: 117.7 | BM30: 117.7 | BN30: 116.4 | BO30: 117.4 | BP30: 117.4 | BQ30: 117.9 | BR30: 117.9 | BS30: 117.8 | BT30: 119.2 | BU30: 119.3 | BV30: 119.1 | BW30: 119.2 | BX30: 119.7 | BY30: 119.7 | BZ30: 120.8 | CA30: 121 | CB30: 121.7 | CC30: 123.8 | CD30: 124 | CE30: 124.1 | CF30: 124.7 | CG30: 124.6 | CH30: 124.2 | CI30: 124.3 | CJ30: 124.8 | CK30: 125.3 | CL30: 125.1 | CM30: 125.1 | CN30: 125.2
A31: 30 | B31: 1国内 | C31: PR01'PRCG20_2200150020 | D31: 国内類別1/_飲食料品 | E31: 品目/____食パン | R31: 100 | S31: 100.2 | T31: 100 | U31: 100 | V31: 100.1 | W31: 100 | X31: 100.1 | Y31: 100 | Z31: 100 | AA31: 100.1 | AB31: 99.8 | AC31: 99.8 | AD31: 99.9 | AE31: 99.7 | AF31: 99.7 | AG31: 99.8 | AH31: 99.8 | AI31: 99.7 | AJ31: 99.4 | AK31: 99.3 | AL31: 99.4 | AM31: 99.5 | AN31: 100.3 | AO31: 100.4 | AP31: 102.1 | AQ31: 104.1 | AR31: 104 | AS31: 104.7 | AT31: 104.5 | AU31: 105.1 | AV31: 108.8 | AW31: 110.5 | AX31: 109.4 | AY31: 109.6 | AZ31: 110.6 | BA31: 111.1 | BB31: 112.1 | BC31: 111.7 | BD31: 111.8 | BE31: 112.4 | BF31: 112.4 | BG31: 112.5 | BH31: 117.4 | BI31: 118.2 | BJ31: 117.8 | BK31: 118.2 | BL31: 118.8 | BM31: 118.7 | BN31: 118 | BO31: 117.8 | BP31: 118.5 | BQ31: 118.6 | BR31: 118.6 | BS31: 118.3 | BT31: 119.1 | BU31: 119.2 | BV31: 118.8 | BW31: 118.6 | BX31: 119.1 | BY31: 119.1 | BZ31: 120.9 | CA31: 121.5 | CB31: 121.2 | CC31: 122.1 | CD31: 122.2 | CE31: 122.3 | CF31: 123 | CG31: 123.2 | CH31: 122.8 | CI31: 122.9 | CJ31: 122.9 | CK31: 123.7 | CL31: 123.6 | CM31: 122.9 | CN31: 122.9
A32: 31 | B32: 1国内 | C32: PR01'PRCG20_2200150021 | D32: 国内類別1/_飲食料品 | E32: 品目/____菓子パン | R32: 100.2 | S32: 100 | T32: 100 | U32: 100 | V32: 99.9 | W32: 100.3 | X32: 100.2 | Y32: 100.3 | Z32: 99.8 | AA32: 99.5 | AB32: 99.8 | AC32: 100.1 | AD32: 99.9 | AE32: 99.6 | AF32: 99.9 | AG32: 99.5 | AH32: 99.7 | AI32: 100 | AJ32: 99.9 | AK32: 100 | AL32: 100.1 | AM32: 99.9 | AN32: 100.5 | AO32: 100.6 | AP32: 101.8 | AQ32: 103.6 | AR32: 104.4 | AS32: 103.9 | AT32: 104.2 | AU32: 104.3 | AV32: 105.3 | AW32: 105.2 | AX32: 105.3 | AY32: 105.4 | AZ32: 106.2 | BA32: 105.9 | BB32: 108.1 | BC32: 108.7 | BD32: 109.7 | BE32: 110.5 | BF32: 111.3 | BG32: 111.9 | BH32: 113.3 | BI32: 113.8 | BJ32: 113.7 | BK32: 116.5 | BL32: 116.6 | BM32: 116.6 | BN32: 114.6 | BO32: 116.4 | BP32: 116.2 | BQ32: 116.7 | BR32: 116.7 | BS32: 116.7 | BT32: 118.3 | BU32: 118.4 | BV32: 118.3 | BW32: 118.5 | BX32: 119 | BY32: 119 | BZ32: 119.9 | CA32: 120 | CB32: 120.6 | CC32: 123.2 | CD32: 123.6 | CE32: 123.8 | CF32: 124.1 | CG32: 124.1 | CH32: 123.7 | CI32: 123.7 | CJ32: 124.6 | CK32: 125.1 | CL32: 124.7 | CM32: 125 | CN32: 125.1
A33: 32 | B33: 1国内 | C33: PR01'PRCG20_2200150022 | D33: 国内類別1/_飲食料品 | E33: 品目/____調理パン・サンドイッチ | R33: 100.1 | S33: 100.1 | T33: 99.9 | U33: 99.6 | V33: 100.2 | W33: 100.3 | X33: 100.1 | Y33: 100 | Z33: 99.9 | AA33: 99.9 | AB33: 99.8 | AC33: 100.2 | AD33: 100.1 | AE33: 100.3 | AF33: 100.2 | AG33: 100 | AH33: 100.1 | AI33: 100.1 | AJ33: 100.3 | AK33: 100.1 | AL33: 100 | AM33: 99.6 | AN33: 100 | AO33: 100.3 | AP33: 100.3 | AQ33: 101.1 | AR33: 101.7 | AS33: 103.2 | AT33: 103.3 | AU33: 103.6 | AV33: 104.1 | AW33: 104.2 | AX33: 106.5 | AY33: 106.4 | AZ33: 106.5 | BA33: 106.4 | BB33: 109.9 | BC33: 112.7 | BD33: 112.9 | BE33: 115.7 | BF33: 116.9 | BG33: 117.3 | BH33: 117.7 | BI33: 119.1 | BJ33: 119.5 | BK33: 120.1 | BL33: 120.1 | BM33: 120.4 | BN33: 120.3 | BO33: 120.3 | BP33: 120.5 | BQ33: 121.1 | BR33: 120.9 | BS33: 121 | BT33: 122.5 | BU33: 122.5 | BV33: 122.3 | BW33: 122.4 | BX33: 122.7 | BY33: 122.8 | BZ33: 123.7 | CA33: 123.7 | CB33: 125.9 | CC33: 127.5 | CD33: 127.7 | CE33: 127.5 | CF33: 128.4 | CG33: 127.8 | CH33: 127.3 | CI33: 127.8 | CJ33: 128 | CK33: 128.1 | CL33: 128.1 | CM33: 128.1 | CN33: 128.1
A34: 33 | B34: 1国内 | C34: PR01'PRCG20_2200140009 | D34: 国内類別1/_飲食料品 | E34: 商品群/___菓子類 | R34: 99.4 | S34: 100.4 | T34: 99.8 | U34: 100 | V34: 100.2 | W34: 100 | X34: 100.3 | Y34: 100 | Z34: 99.8 | AA34: 100.2 | AB34: 99.5 | AC34: 100.4 | AD34: 99.9 | AE34: 100.2 | AF34: 99.8 | AG34: 100.1 | AH34: 99.8 | AI34: 99.9 | AJ34: 100.3 | AK34: 100.5 | AL34: 100.1 | AM34: 100.7 | AN34: 100.7 | AO34: 101.1 | AP34: 100.6 | AQ34: 101.7 | AR34: 101.6 | AS34: 101.8 | AT34: 101.1 | AU34: 101.6 | AV34: 103.3 | AW34: 103.7 | AX34: 104.7 | AY34: 105.2 | AZ34: 106.5 | BA34: 106.1 | BB34: 106.1 | BC34: 106.7 | BD34: 107.5 | BE34: 108.7 | BF34: 109.3 | BG34: 109.2 | BH34: 110.1 | BI34: 110.9 | BJ34: 111.4 | BK34: 111.6 | BL34: 111.8 | BM34: 111.8 | BN34: 112.3 | BO34: 112.4 | BP34: 112.1 | BQ34: 113.5 | BR34: 113.3 | BS34: 113.5 | BT34: 115.1 | BU34: 116.2 | BV34: 116.8 | BW34: 117.6 | BX34: 119.5 | BY34: 120.1 | BZ34: 121.6 | CA34: 122 | CB34: 122.4 | CC34: 124.2 | CD34: 124.3 | CE34: 125.4 | CF34: 127.4 | CG34: 127.1 | CH34: 129.4 | CI34: 130.4 | CJ34: 130.7 | CK34: 130.2 | CL34: 130.2 | CM34: 131 | CN34: 131.6
A35: 34 | B35: 1国内 | C35: PR01'PRCG20_2200150023 | D35: 国内類別1/_飲食料品 | E35: 品目/____洋生菓子 | R35: 100 | S35: 99.9 | T35: 100.4 | U35: 98.9 | V35: 100.5 | W35: 100.4 | X35: 99.4 | Y35: 100.1 | Z35: 100.4 | AA35: 100.2 | AB35: 99.5 | AC35: 100.3 | AD35: 99.8 | AE35: 99.6 | AF35: 99.8 | AG35: 100.2 | AH35: 99.9 | AI35: 99.7 | AJ35: 100.1 | AK35: 99.8 | AL35: 100.7 | AM35: 102.2 | AN35: 102.3 | AO35: 102 | AP35: 102 | AQ35: 102.6 | AR35: 103 | AS35: 102.8 | AT35: 103 | AU35: 103.1 | AV35: 104.2 | AW35: 104.1 | AX35: 104.5 | AY35: 105 | AZ35: 107 | BA35: 107.1 | BB35: 107.1 | BC35: 107.4 | BD35: 107.4 | BE35: 108.4 | BF35: 108.4 | BG35: 108.5 | BH35: 108.8 | BI35: 109 | BJ35: 109 | BK35: 109.5 | BL35: 109.9 | BM35: 110.5 | BN35: 109.9 | BO35: 110 | BP35: 109.9 | BQ35: 110.1 | BR35: 110 | BS35: 110.1 | BT35: 111.1 | BU35: 110.9 | BV35: 111.2 | BW35: 111 | BX35: 111.6 | BY35: 111.7 | BZ35: 113.7 | CA35: 114.2 | CB35: 113.9 | CC35: 115.7 | CD35: 115.8 | CE35: 115.9 | CF35: 115.9 | CG35: 115.8 | CH35: 115.8 | CI35: 116.1 | CJ35: 116 | CK35: 115.9 | CL35: 115.7 | CM35: 115.8 | CN35: 115.2
A36: 35 | B36: 1国内 | C36: PR01'PRCG20_2200150024 | D36: 国内類別1/_飲食料品 | E36: 品目/____和生菓子 | R36: 99.9 | S36: 99.9 | T36: 99.9 | U36: 100 | V36: 100.1 | W36: 100 | X36: 100.1 | Y36: 100.1 | Z36: 99.9 | AA36: 100 | AB36: 100 | AC36: 100.1 | AD36: 100 | AE36: 100 | AF36: 100.1 | AG36: 100 | AH36: 100.1 | AI36: 100 | AJ36: 100.5 | AK36: 100.5 | AL36: 100.4 | AM36: 102.7 | AN36: 102.9 | AO36: 102.9 | AP36: 102.8 | AQ36: 103.2 | AR36: 103.2 | AS36: 103.5 | AT36: 103.6 | AU36: 103.5 | AV36: 105.1 | AW36: 105.1 | AX36: 105.8 | AY36: 105.9 | AZ36: 105.9 | BA36: 105.9 | BB36: 108.3 | BC36: 108.2 | BD36: 109.6 | BE36: 109.7 | BF36: 111.3 | BG36: 111.3 | BH36: 111.8 | BI36: 111.8 | BJ36: 111.7 | BK36: 112.4 | BL36: 112.5 | BM36: 112.5 | BN36: 111.9 | BO36: 111.7 | BP36: 111.8 | BQ36: 112.7 | BR36: 112.9 | BS36: 112.9 | BT36: 115.6 | BU36: 115.7 | BV36: 115.7 | BW36: 116.1 | BX36: 116.2 | BY36: 116.2 | BZ36: 118.2 | CA36: 118.5 | CB36: 118.5 | CC36: 121 | CD36: 121.1 | CE36: 121 | CF36: 121.1 | CG36: 121.1 | CH36: 121 | CI36: 120.9 | CJ36: 122.1 | CK36: 122.1 | CL36: 122.1 | CM36: 122 | CN36: 122
A37: 36 | B37: 1国内 | C37: PR01'PRCG20_2200150025 | D37: 国内類別1/_飲食料品 | E37: 品目/____ビスケット類 | R37: 99 | S37: 101 | T37: 101.5 | U37: 100.3 | V37: 100.1 | W37: 100.2 | X37: 100.8 | Y37: 99.6 | Z37: 98.3 | AA37: 99.8 | AB37: 99.2 | AC37: 100.3 | AD37: 99.7 | AE37: 100.9 | AF37: 99.2 | AG37: 99.8 | AH37: 99.9 | AI37: 99.2 | AJ37: 101.2 | AK37: 101.8 | AL37: 97.9 | AM37: 100.1 | AN37: 99.6 | AO37: 99.7 | AP37: 99.8 | AQ37: 99.7 | AR37: 99.1 | AS37: 100.5 | AT37: 100 | AU37: 99.8 | AV37: 101.4 | AW37: 103.9 | AX37: 105.9 | AY37: 104.5 | AZ37: 104 | BA37: 102.7 | BB37: 103.7 | BC37: 105 | BD37: 106.4 | BE37: 105.9 | BF37: 105.7 | BG37: 105.5 | BH37: 105.9 | BI37: 105.2 | BJ37: 105.8 | BK37: 105.6 | BL37: 104.6 | BM37: 105 | BN37: 105.7 | BO37: 107 | BP37: 106.6 | BQ37: 109 | BR37: 108.8 | BS37: 108.3 | BT37: 109 | BU37: 109 | BV37: 110.4 | BW37: 111.4 | BX37: 111.6 | BY37: 110.4 | BZ37: 112.2 | CA37: 111.1 | CB37: 111.2 | CC37: 111.2 | CD37: 112.9 | CE37: 113.6 | CF37: 112.9 | CG37: 112.8 | CH37: 113.1 | CI37: 113.6 | CJ37: 114.6 | CK37: 112.4 | CL37: 113.9 | CM37: 117.6 | CN37: 117.2
A38: 37 | B38: 1国内 | C38: PR01'PRCG20_2200150026 | D38: 国内類別1/_飲食料品 | E38: 品目/____米菓 | R38: 99.1 | S38: 99.8 | T38: 99.8 | U38: 101.1 | V38: 99.5 | W38: 100 | X38: 100.4 | Y38: 99.5 | Z38: 99.9 | AA38: 100.3 | AB38: 99.8 | AC38: 100.8 | AD38: 99.7 | AE38: 101 | AF38: 99.6 | AG38: 100 | AH38: 99.3 | AI38: 99.9 | AJ38: 99.5 | AK38: 98.5 | AL38: 99.6 | AM38: 99 | AN38: 99.1 | AO38: 99.8 | AP38: 98.7 | AQ38: 99.4 | AR38: 99.9 | AS38: 100 | AT38: 99.4 | AU38: 100.1 | AV38: 100.1 | AW38: 99.6 | AX38: 100.2 | AY38: 100.6 | AZ38: 103.4 | BA38: 103.2 | BB38: 101.7 | BC38: 103.1 | BD38: 103.5 | BE38: 103.4 | BF38: 102.9 | BG38: 104 | BH38: 104.2 | BI38: 106.7 | BJ38: 107.4 | BK38: 107.3 | BL38: 108.2 | BM38: 108 | BN38: 110.2 | BO38: 110.8 | BP38: 110.9 | BQ38: 110.9 | BR38: 110.3 | BS38: 110.8 | BT38: 109.5 | BU38: 114.6 | BV38: 114.7 | BW38: 117.4 | BX38: 118.2 | BY38: 117.2 | BZ38: 117.2 | CA38: 117.6 | CB38: 118.2 | CC38: 118.3 | CD38: 117.4 | CE38: 118.6 | CF38: 123.8 | CG38: 123.7 | CH38: 127.4 | CI38: 127.6 | CJ38: 128 | CK38: 127.1 | CL38: 129.2 | CM38: 129.4 | CN38: 134.8
A39: 38 | B39: 1国内 | C39: PR01'PRCG20_2200150027 | D39: 国内類別1/_飲食料品 | E39: 品目/____キャンデー | R39: 100.4 | S39: 100.4 | T39: 99.9 | U39: 96.8 | V39: 99.5 | W39: 101.3 | X39: 100.8 | Y39: 99.4 | Z39: 99.9 | AA39: 101.2 | AB39: 100.6 | AC39: 99.8 | AD39: 100 | AE39: 100.5 | AF39: 100.3 | AG39: 100.1 | AH39: 100.3 | AI39: 100.4 | AJ39: 100.6 | AK39: 99.5 | AL39: 100 | AM39: 100.9 | AN39: 100.5 | AO39: 100.4 | AP39: 98.8 | AQ39: 99.2 | AR39: 100.7 | AS39: 99.8 | AT39: 99.7 | AU39: 99.9 | AV39: 98.9 | AW39: 100.5 | AX39: 99.4 | AY39: 108.1 | AZ39: 105.9 | BA39: 105.7 | BB39: 104.1 | BC39: 105.6 | BD39: 105.9 | BE39: 107.3 | BF39: 108.5 | BG39: 107.8 | BH39: 108.4 | BI39: 108.2 | BJ39: 105.8 | BK39: 111.2 | BL39: 111.1 | BM39: 111.3 | BN39: 114 | BO39: 111.1 | BP39: 111.8 | BQ39: 111.8 | BR39: 111.2 | BS39: 108.2 | BT39: 112.4 | BU39: 116.7 | BV39: 117.8 | BW39: 116.4 | BX39: 117.9 | BY39: 117.4 | BZ39: 117.5 | CA39: 116.6 | CB39: 117.3 | CC39: 118.2 | CD39: 117.2 | CE39: 116.9 | CF39: 120.9 | CG39: 119.3 | CH39: 121.1 | CI39: 121.8 | CJ39: 124.5 | CK39: 124.2 | CL39: 123.7 | CM39: 124 | CN39: 123.4
A40: 39 | B40: 1国内 | C40: PR01'PRCG20_2200150028 | D40: 国内類別1/_飲食料品 | E40: 品目/____チョコレート | R40: 98.2 | S40: 101.7 | T40: 98.8 | U40: 100 | V40: 101.1 | W40: 99.8 | X40: 101.1 | Y40: 100.9 | Z40: 99.7 | AA40: 100.4 | AB40: 97.6 | AC40: 100.7 | AD40: 99.9 | AE40: 100.2 | AF40: 100.3 | AG40: 99.2 | AH40: 99.6 | AI40: 100.5 | AJ40: 99.9 | AK40: 103 | AL40: 100.4 | AM40: 99 | AN40: 98.9 | AO40: 100.4 | AP40: 100.1 | AQ40: 101.3 | AR40: 100.8 | AS40: 98.9 | AT40: 97.2 | AU40: 97.3 | AV40: 103.6 | AW40: 103.7 | AX40: 103.2 | AY40: 104.3 | AZ40: 104.9 | BA40: 103.8 | BB40: 103.5 | BC40: 102.7 | BD40: 105.5 | BE40: 108.1 | BF40: 111 | BG40: 108.7 | BH40: 110.3 | BI40: 114.1 | BJ40: 115.1 | BK40: 113.6 | BL40: 114.5 | BM40: 114.3 | BN40: 115.4 | BO40: 115.2 | BP40: 114.7 | BQ40: 118 | BR40: 118.8 | BS40: 118.6 | BT40: 123.5 | BU40: 125.8 | BV40: 127.2 | BW40: 129.4 | BX40: 138.9 | BY40: 143.9 | BZ40: 148.7 | CA40: 149.8 | CB40: 152.1 | CC40: 155.4 | CD40: 157.2 | CE40: 162.8 | CF40: 167.7 | CG40: 168.1 | CH40: 175.3 | CI40: 179.4 | CJ40: 179.8 | CK40: 179.4 | CL40: 177.6 | CM40: 177.9 | CN40: 179.3
A41: 40 | B41: 1国内 | C41: PR01'PRCG20_2200150029 | D41: 国内類別1/_飲食料品 | E41: 品目/____チューインガム | R41: 100.2 | S41: 99.9 | T41: 99.9 | U41: 99.9 | V41: 100.2 | W41: 100 | X41: 99.8 | Y41: 100 | Z41: 99.9 | AA41: 100 | AB41: 100.2 | AC41: 100 | AD41: 100 | AE41: 99.9 | AF41: 100.2 | AG41: 100 | AH41: 100 | AI41: 100 | AJ41: 100 | AK41: 100 | AL41: 100 | AM41: 100.2 | AN41: 100.2 | AO41: 100 | AP41: 100 | AQ41: 99.9 | AR41: 100 | AS41: 100.1 | AT41: 100.1 | AU41: 100.1 | AV41: 99.9 | AW41: 100.4 | AX41: 103.7 | AY41: 103.9 | AZ41: 104.3 | BA41: 104.5 | BB41: 103 | BC41: 104.6 | BD41: 104.7 | BE41: 104.7 | BF41: 104.7 | BG41: 104.6 | BH41: 108.8 | BI41: 109.3 | BJ41: 109.2 | BK41: 108.9 | BL41: 108.6 | BM41: 104 | BN41: 112.4 | BO41: 108.6 | BP41: 113.1 | BQ41: 112.6 | BR41: 112.2 | BS41: 112.9 | BT41: 111.8 | BU41: 112 | BV41: 112.4 | BW41: 112.6 | BX41: 112.4 | BY41: 112.6 | BZ41: 112.9 | CA41: 110.6 | CB41: 111.4 | CC41: 112.8 | CD41: 112.2 | CE41: 112 | CF41: 123.4 | CG41: 121.3 | CH41: 122.2 | CI41: 122.4 | CJ41: 121.3 | CK41: 123 | CL41: 122.1 | CM41: 120.3 | CN41: 121.1
A42: 41 | B42: 1国内 | C42: PR01'PRCG20_2200150030 | D42: 国内類別1/_飲食料品 | E42: 品目/____スナック菓子 | R42: 99.5 | S42: 100.5 | T42: 97.7 | U42: 102.1 | V42: 99.2 | W42: 98.9 | X42: 100.8 | Y42: 99.4 | Z42: 100.3 | AA42: 99.8 | AB42: 100.9 | AC42: 101 | AD42: 100.1 | AE42: 100.1 | AF42: 99 | AG42: 102.4 | AH42: 100.7 | AI42: 100.3 | AJ42: 101.5 | AK42: 100.4 | AL42: 101.4 | AM42: 100.5 | AN42: 100.4 | AO42: 101.3 | AP42: 99.7 | AQ42: 105 | AR42: 104.2 | AS42: 107.2 | AT42: 105.1 | AU42: 107.3 | AV42: 107.3 | AW42: 107.4 | AX42: 112.1 | AY42: 111.1 | AZ42: 116.9 | BA42: 116.3 | BB42: 114.7 | BC42: 116.3 | BD42: 115.1 | BE42: 119.5 | BF42: 117.7 | BG42: 120.4 | BH42: 121.2 | BI42: 121 | BJ42: 122.7 | BK42: 123 | BL42: 122.8 | BM42: 122.8 | BN42: 120.6 | BO42: 122 | BP42: 120.6 | BQ42: 124.2 | BR42: 122.2 | BS42: 125.1 | BT42: 126.4 | BU42: 126.2 | BV42: 126.5 | BW42: 126.7 | BX42: 126.9 | BY42: 126.7 | BZ42: 125 | CA42: 126.7 | CB42: 125.9 | CC42: 129.5 | CD42: 127.2 | CE42: 126.2 | CF42: 129 | CG42: 127.5 | CH42: 130 | CI42: 132 | CJ42: 131.4 | CK42: 130.4 | CL42: 130.4 | CM42: 132.6 | CN42: 132.6
A43: 42 | B43: 1国内 | C43: PR01'PRCG20_2200150031 | D43: 国内類別1/_飲食料品 | E43: 品目/____氷菓 | R43: 100.1 | S43: 99.9 | T43: 99.9 | U43: 99.7 | V43: 100.2 | W43: 100.1 | X43: 99.2 | Y43: 98.8 | Z43: 99.8 | AA43: 100.7 | AB43: 101 | AC43: 100.5 | AD43: 101.1 | AE43: 100.7 | AF43: 101 | AG43: 99.5 | AH43: 99.7 | AI43: 99.8 | AJ43: 98.5 | AK43: 98.9 | AL43: 100.6 | AM43: 100.6 | AN43: 100.7 | AO43: 100.6 | AP43: 101 | AQ43: 100.7 | AR43: 100.9 | AS43: 100.1 | AT43: 99.6 | AU43: 102.4 | AV43: 103.4 | AW43: 103.4 | AX43: 104.2 | AY43: 105 | AZ43: 105.4 | BA43: 105.4 | BB43: 105.5 | BC43: 105.4 | BD43: 105.8 | BE43: 105.9 | BF43: 112 | BG43: 109.4 | BH43: 112.9 | BI43: 112.3 | BJ43: 113.6 | BK43: 113.5 | BL43: 112.8 | BM43: 112.4 | BN43: 113.5 | BO43: 112.8 | BP43: 112.5 | BQ43: 111.4 | BR43: 111.1 | BS43: 112.1 | BT43: 112.9 | BU43: 113.1 | BV43: 115.4 | BW43: 116.1 | BX43: 115.9 | BY43: 116.3 | BZ43: 116.2 | CA43: 116.3 | CB43: 119 | CC43: 119.1 | CD43: 120.2 | CE43: 118.9 | CF43: 116.6 | CG43: 116.6 | CH43: 125.5 | CI43: 124.5 | CJ43: 121.4 | CK43: 121.6 | CL43: 122 | CM43: 122.3 | CN43: 122.1
A44: 43 | B44: 1国内 | C44: PR01'PRCG20_2200150032 | D44: 国内類別1/_飲食料品 | E44: 品目/____豆菓子 | R44: 99.4 | S44: 99.7 | T44: 100.1 | U44: 100.8 | V44: 99.6 | W44: 99.9 | X44: 100.2 | Y44: 99.7 | Z44: 99.9 | AA44: 100.1 | AB44: 99.8 | AC44: 100.7 | AD44: 99.8 | AE44: 99.7 | AF44: 99.8 | AG44: 99.9 | AH44: 99.5 | AI44: 99.9 | AJ44: 99.6 | AK44: 99 | AL44: 99.7 | AM44: 99.3 | AN44: 99.2 | AO44: 99.9 | AP44: 99.3 | AQ44: 99.5 | AR44: 100.2 | AS44: 100.2 | AT44: 100.1 | AU44: 100.5 | AV44: 100.5 | AW44: 101.7 | AX44: 103.5 | AY44: 104.5 | AZ44: 105 | BA44: 104.7 | BB44: 103.9 | BC44: 105.1 | BD44: 105.5 | BE44: 105.4 | BF44: 105.6 | BG44: 106.6 | BH44: 110.2 | BI44: 109.9 | BJ44: 111.4 | BK44: 111.3 | BL44: 111.8 | BM44: 111.7 | BN44: 114.9 | BO44: 115.3 | BP44: 113.4 | BQ44: 113.3 | BR44: 112.7 | BS44: 113.2 | BT44: 111.9 | BU44: 113.4 | BV44: 114.3 | BW44: 114.7 | BX44: 115.1 | BY44: 114.7 | BZ44: 114.7 | CA44: 114.9 | CB44: 115.5 | CC44: 115.4 | CD44: 114.7 | CE44: 119.1 | CF44: 124.9 | CG44: 125 | CH44: 125.3 | CI44: 125.4 | CJ44: 125.8 | CK44: 125.1 | CL44: 125.8 | CM44: 125.9 | CN44: 125.9
A45: 44 | B45: 1国内 | C45: PR01'PRCG20_2200150033 | D45: 国内類別1/_飲食料品 | E45: 品目/____シリアル | R45: 97.9 | S45: 101.8 | T45: 98.1 | U45: 102.8 | V45: 99.9 | W45: 99.8 | X45: 101 | Y45: 100.7 | Z45: 100 | AA45: 98.7 | AB45: 98.5 | AC45: 100.9 | AD45: 97.8 | AE45: 99.6 | AF45: 98.9 | AG45: 102 | AH45: 97.1 | AI45: 99.6 | AJ45: 99.8 | AK45: 99 | AL45: 100.6 | AM45: 99 | AN45: 100.5 | AO45: 103 | AP45: 99.2 | AQ45: 101.8 | AR45: 99 | AS45: 102 | AT45: 98.6 | AU45: 100.6 | AV45: 104.2 | AW45: 103.7 | AX45: 104.4 | AY45: 104.7 | AZ45: 104.8 | BA45: 104.4 | BB45: 105.8 | BC45: 108.6 | BD45: 112.9 | BE45: 115.3 | BF45: 112.3 | BG45: 113.8 | BH45: 112.7 | BI45: 115.5 | BJ45: 116.5 | BK45: 117.4 | BL45: 120 | BM45: 119.5 | BN45: 117 | BO45: 119.5 | BP45: 116.4 | BQ45: 121 | BR45: 118.5 | BS45: 120.1 | BT45: 118.3 | BU45: 118.9 | BV45: 117.2 | BW45: 119.4 | BX45: 118.7 | BY45: 120.8 | BZ45: 116.4 | CA45: 121.8 | CB45: 117.7 | CC45: 123.1 | CD45: 120 | CE45: 119.7 | CF45: 119.1 | CG45: 117.3 | CH45: 119.2 | CI45: 119.4 | CJ45: 121 | CK45: 119.9 | CL45: 119.4 | CM45: 124.6 | CN45: 124.6
A46: 45 | B46: 1国内 | C46: PR01'PRCG20_2200140010 | D46: 国内類別1/_飲食料品 | E46: 商品群/___農産保存食料品 | R46: 99.2 | S46: 101.6 | T46: 100.7 | U46: 100.4 | V46: 100.4 | W46: 99.6 | X46: 101.2 | Y46: 98.1 | Z46: 99.8 | AA46: 99 | AB46: 99.2 | AC46: 100.7 | AD46: 99 | AE46: 99.8 | AF46: 99.5 | AG46: 100.8 | AH46: 99.1 | AI46: 99.4 | AJ46: 100.6 | AK46: 100.7 | AL46: 100.3 | AM46: 99.9 | AN46: 99.7 | AO46: 101.3 | AP46: 99.8 | AQ46: 100.5 | AR46: 101.2 | AS46: 101.3 | AT46: 100 | AU46: 100.6 | AV46: 102 | AW46: 103.3 | AX46: 104 | AY46: 105.7 | AZ46: 105.9 | BA46: 106.5 | BB46: 105.1 | BC46: 107 | BD46: 106.3 | BE46: 107.1 | BF46: 106.7 | BG46: 106.7 | BH46: 108.1 | BI46: 107.6 | BJ46: 110.4 | BK46: 108.4 | BL46: 108.7 | BM46: 110.8 | BN46: 109.8 | BO46: 108.5 | BP46: 110.4 | BQ46: 111.5 | BR46: 111 | BS46: 112.3 | BT46: 111.6 | BU46: 111 | BV46: 112.7 | BW46: 115.3 | BX46: 114.1 | BY46: 115.3 | BZ46: 114.6 | CA46: 116.2 | CB46: 115.7 | CC46: 117.2 | CD46: 116.6 | CE46: 117.1 | CF46: 116.9 | CG46: 118.3 | CH46: 121 | CI46: 117.6 | CJ46: 118.5 | CK46: 119.5 | CL46: 120 | CM46: 120.3 | CN46: 120.3
A47: 46 | B47: 1国内 | C47: PR01'PRCG20_2200150034 | D47: 国内類別1/_飲食料品 | E47: 品目/____果実・野菜缶詰 | R47: 100.7 | S47: 100.6 | T47: 100.6 | U47: 100.5 | V47: 99.6 | W47: 99.6 | X47: 100.8 | Y47: 99.8 | Z47: 99.1 | AA47: 99.1 | AB47: 99.1 | AC47: 100.6 | AD47: 100.6 | AE47: 100.7 | AF47: 100.5 | AG47: 100.3 | AH47: 100.6 | AI47: 100.5 | AJ47: 101.4 | AK47: 100.8 | AL47: 100.7 | AM47: 100.7 | AN47: 100.7 | AO47: 101.8 | AP47: 101.8 | AQ47: 101.8 | AR47: 107.1 | AS47: 107.3 | AT47: 107.8 | AU47: 107.4 | AV47: 108 | AW47: 109.2 | AX47: 111.9 | AY47: 113.2 | AZ47: 113.9 | BA47: 114 | BB47: 114.1 | BC47: 114 | BD47: 113.6 | BE47: 117.4 | BF47: 117.5 | BG47: 117.5 | BH47: 117.6 | BI47: 117.5 | BJ47: 122.1 | BK47: 123.2 | BL47: 123.7 | BM47: 123.7 | BN47: 123.7 | BO47: 123.6 | BP47: 123.1 | BQ47: 133.1 | BR47: 133.2 | BS47: 134.1 | BT47: 134.2 | BU47: 134.3 | BV47: 141.8 | BW47: 142.4 | BX47: 142.4 | BY47: 142 | BZ47: 142.5 | CA47: 147.1 | CB47: 147 | CC47: 148.4 | CD47: 148.7 | CE47: 147.3 | CF47: 147.3 | CG47: 147.8 | CH47: 147.8 | CI47: 147.9 | CJ47: 148.9 | CK47: 148.6 | CL47: 154 | CM47: 153.9 | CN47: 153.9
A48: 47 | B48: 1国内 | C48: PR01'PRCG20_2200150035 | D48: 国内類別1/_飲食料品 | E48: 品目/____漬物 | R48: 98.9 | S48: 101.8 | T48: 100.8 | U48: 100.4 | V48: 100.6 | W48: 99.6 | X48: 101.3 | Y48: 97.7 | Z48: 100 | AA48: 99 | AB48: 99.2 | AC48: 100.7 | AD48: 98.7 | AE48: 99.6 | AF48: 99.2 | AG48: 100.9 | AH48: 98.8 | AI48: 99.1 | AJ48: 100.4 | AK48: 100.7 | AL48: 100.2 | AM48: 99.7 | AN48: 99.5 | AO48: 101.2 | AP48: 99.4 | AQ48: 100.1 | AR48: 99.8 | AS48: 99.8 | AT48: 98.1 | AU48: 99 | AV48: 100.6 | AW48: 101.9 | AX48: 102.2 | AY48: 103.9 | AZ48: 104 | BA48: 104.7 | BB48: 103.1 | BC48: 105.4 | BD48: 104.6 | BE48: 104.7 | BF48: 104.1 | BG48: 104.2 | BH48: 105.8 | BI48: 105.3 | BJ48: 107.6 | BK48: 105 | BL48: 105.1 | BM48: 107.8 | BN48: 106.5 | BO48: 105 | BP48: 107.4 | BQ48: 106.4 | BR48: 105.8 | BS48: 107.2 | BT48: 106.3 | BU48: 105.5 | BV48: 105.9 | BW48: 108.9 | BX48: 107.5 | BY48: 109 | BZ48: 108 | CA48: 108.9 | CB48: 108.4 | CC48: 109.8 | CD48: 109.1 | CE48: 110 | CF48: 109.7 | CG48: 111.3 | CH48: 114.7 | CI48: 110.5 | CJ48: 111.4 | CK48: 112.7 | CL48: 112 | CM48: 112.4 | CN48: 112.4
A49: 48 | B49: 1国内 | C49: PR01'PRCG20_2200140011 | D49: 国内類別1/_飲食料品 | E49: 商品群/___砂糖 | R49: 100.2 | S49: 100.6 | T49: 99.6 | U49: 99.6 | V49: 100.7 | W49: 99.9 | X49: 99.8 | Y49: 99.1 | Z49: 99.6 | AA49: 100.5 | AB49: 99.8 | AC49: 100.7 | AD49: 100.6 | AE49: 101.5 | AF49: 102.9 | AG49: 103 | AH49: 103.3 | AI49: 103.7 | AJ49: 104.5 | AK49: 105.3 | AL49: 105.3 | AM49: 106 | AN49: 105.9 | AO49: 111.3 | AP49: 112.1 | AQ49: 111.9 | AR49: 112.1 | AS49: 112 | AT49: 111.3 | AU49: 111.9 | AV49: 114.5 | AW49: 116.7 | AX49: 117.8 | AY49: 117.2 | AZ49: 117.5 | BA49: 123.5 | BB49: 125.6 | BC49: 125.9 | BD49: 126.8 | BE49: 126.1 | BF49: 126.5 | BG49: 126.1 | BH49: 129.4 | BI49: 132.6 | BJ49: 132.5 | BK49: 132.7 | BL49: 135.9 | BM49: 136.1 | BN49: 142.1 | BO49: 141.9 | BP49: 142.8 | BQ49: 140.7 | BR49: 141.3 | BS49: 140.7 | BT49: 139.5 | BU49: 139.1 | BV49: 140 | BW49: 141.1 | BX49: 139.2 | BY49: 139.1 | BZ49: 140.9 | CA49: 141 | CB49: 141.3 | CC49: 140 | CD49: 139.3 | CE49: 139.7 | CF49: 138.4 | CG49: 138.4 | CH49: 139.7 | CI49: 139.4 | CJ49: 135.8 | CK49: 134 | CL49: 132.7 | CM49: 133.4 | CN49: 133.4
A50: 49 | B50: 1国内 | C50: PR01'PRCG20_2200150036 | D50: 国内類別1/_飲食料品 | E50: 品目/____砂糖 | R50: 100.2 | S50: 100.6 | T50: 99.6 | U50: 99.6 | V50: 100.7 | W50: 99.9 | X50: 99.8 | Y50: 99.1 | Z50: 99.6 | AA50: 100.5 | AB50: 99.8 | AC50: 100.7 | AD50: 100.6 | AE50: 101.5 | AF50: 102.9 | AG50: 103 | AH50: 103.3 | AI50: 103.7 | AJ50: 104.5 | AK50: 105.3 | AL50: 105.3 | AM50: 106 | AN50: 105.9 | AO50: 111.3 | AP50: 112.1 | AQ50: 111.9 | AR50: 112.1 | AS50: 112 | AT50: 111.3 | AU50: 111.9 | AV50: 114.5 | AW50: 116.7 | AX50: 117.8 | AY50: 117.2 | AZ50: 117.5 | BA50: 123.5 | BB50: 125.6 | BC50: 125.9 | BD50: 126.8 | BE50: 126.1 | BF50: 126.5 | BG50: 126.1 | BH50: 129.4 | BI50: 132.6 | BJ50: 132.5 | BK50: 132.7 | BL50: 135.9 | BM50: 136.1 | BN50: 142.1 | BO50: 141.9 | BP50: 142.8 | BQ50: 140.7 | BR50: 141.3 | BS50: 140.7 | BT50: 139.5 | BU50: 139.1 | BV50: 140 | BW50: 141.1 | BX50: 139.2 | BY50: 139.1 | BZ50: 140.9 | CA50: 141 | CB50: 141.3 | CC50: 140 | CD50: 139.3 | CE50: 139.7 | CF50: 138.4 | CG50: 138.4 | CH50: 139.7 | CI50: 139.4 | CJ50: 135.8 | CK50: 134 | CL50: 132.7 | CM50: 133.4 | CN50: 133.4
A51: 50 | B51: 1国内 | C51: PR01'PRCG20_2200140012 | D51: 国内類別1/_飲食料品 | E51: 商品群/___でん粉 | R51: 100.5 | S51: 100.5 | T51: 100.5 | U51: 100.3 | V51: 100.3 | W51: 99.9 | X51: 99.9 | Y51: 99.7 | Z51: 99.5 | AA51: 99.5 | AB51: 99.5 | AC51: 99.9 | AD51: 100.7 | AE51: 101 | AF51: 101.4 | AG51: 105.8 | AH51: 106.6 | AI51: 107 | AJ51: 107.4 | AK51: 107.8 | AL51: 108.1 | AM51: 108.5 | AN51: 108.5 | AO51: 108.5 | AP51: 117.5 | AQ51: 117.5 | AR51: 117.9 | AS51: 118.7 | AT51: 123.4 | AU51: 125.6 | AV51: 126.3 | AW51: 128.7 | AX51: 129.4 | AY51: 129.8 | AZ51: 129.8 | BA51: 130.2 | BB51: 143 | BC51: 143.3 | BD51: 143.8 | BE51: 144.2 | BF51: 145 | BG51: 145.3 | BH51: 145.7 | BI51: 145.7 | BJ51: 145.7 | BK51: 145.7 | BL51: 145.7 | BM51: 145.7 | BN51: 137.4 | BO51: 137.4 | BP51: 137 | BQ51: 137.8 | BR51: 136.6 | BS51: 136.6 | BT51: 137.8 | BU51: 137.8 | BV51: 137.8 | BW51: 137 | BX51: 137 | BY51: 138.1 | BZ51: 138.3 | CA51: 138.3 | CB51: 138.3 | CC51: 138.3 | CD51: 138.3 | CE51: 138.3 | CF51: 138 | CG51: 137.6 | CH51: 136.8 | CI51: 137.6 | CJ51: 137.6 | CK51: 138 | CL51: 138.6 | CM51: 138.2 | CN51: 138.2
A52: 51 | B52: 1国内 | C52: PR01'PRCG20_2200150037 | D52: 国内類別1/_飲食料品 | E52: 品目/____でん粉 | R52: 100.5 | S52: 100.5 | T52: 100.5 | U52: 100.3 | V52: 100.3 | W52: 99.9 | X52: 99.9 | Y52: 99.7 | Z52: 99.5 | AA52: 99.5 | AB52: 99.5 | AC52: 99.9 | AD52: 100.7 | AE52: 101 | AF52: 101.4 | AG52: 105.8 | AH52: 106.6 | AI52: 107 | AJ52: 107.4 | AK52: 107.8 | AL52: 108.1 | AM52: 108.5 | AN52: 108.5 | AO52: 108.5 | AP52: 117.5 | AQ52: 117.5 | AR52: 117.9 | AS52: 118.7 | AT52: 123.4 | AU52: 125.6 | AV52: 126.3 | AW52: 128.7 | AX52: 129.4 | AY52: 129.8 | AZ52: 129.8 | BA52: 130.2 | BB52: 143 | BC52: 143.3 | BD52: 143.8 | BE52: 144.2 | BF52: 145 | BG52: 145.3 | BH52: 145.7 | BI52: 145.7 | BJ52: 145.7 | BK52: 145.7 | BL52: 145.7 | BM52: 145.7 | BN52: 137.4 | BO52: 137.4 | BP52: 137 | BQ52: 137.8 | BR52: 136.6 | BS52: 136.6 | BT52: 137.8 | BU52: 137.8 | BV52: 137.8 | BW52: 137 | BX52: 137 | BY52: 138.1 | BZ52: 138.3 | CA52: 138.3 | CB52: 138.3 | CC52: 138.3 | CD52: 138.3 | CE52: 138.3 | CF52: 138 | CG52: 137.6 | CH52: 136.8 | CI52: 137.6 | CJ52: 137.6 | CK52: 138 | CL52: 138.6 | CM52: 138.2 | CN52: 138.2
A53: 52 | B53: 1国内 | C53: PR01'PRCG20_2200140013 | D53: 国内類別1/_飲食料品 | E53: 商品群/___ぶどう糖・水あめ・異性化糖 | R53: 101.6 | S53: 101.6 | T53: 100.7 | U53: 100.2 | V53: 100.2 | W53: 100 | X53: 99.5 | Y53: 99 | Z53: 98.5 | AA53: 98.7 | AB53: 99.6 | AC53: 100.3 | AD53: 101.2 | AE53: 100.9 | AF53: 103.8 | AG53: 106.3 | AH53: 106.9 | AI53: 110.1 | AJ53: 109.6 | AK53: 110.8 | AL53: 114.2 | AM53: 112.8 | AN53: 112.2 | AO53: 112.4 | AP53: 114.3 | AQ53: 114.8 | AR53: 114.5 | AS53: 115.1 | AT53: 117.9 | AU53: 121.2 | AV53: 125.1 | AW53: 128.1 | AX53: 128.3 | AY53: 133.1 | AZ53: 132.1 | BA53: 131.5 | BB53: 143.1 | BC53: 143 | BD53: 142.9 | BE53: 137.9 | BF53: 137.7 | BG53: 137.3 | BH53: 136.7 | BI53: 136.5 | BJ53: 136.4 | BK53: 133.3 | BL53: 132.5 | BM53: 132.2 | BN53: 131.9 | BO53: 132.1 | BP53: 131.2 | BQ53: 131 | BR53: 131.2 | BS53: 131 | BT53: 132.9 | BU53: 132 | BV53: 131.6 | BW53: 130.9 | BX53: 128.1 | BY53: 128.3 | BZ53: 131.4 | CA53: 130.8 | CB53: 131.4 | CC53: 130.8 | CD53: 129.9 | CE53: 131 | CF53: 128.9 | CG53: 129.7 | CH53: 130.8 | CI53: 129.4 | CJ53: 128 | CK53: 128.9 | CL53: 131.7 | CM53: 132.2 | CN53: 132.1
A54: 53 | B54: 1国内 | C54: PR01'PRCG20_2200150038 | D54: 国内類別1/_飲食料品 | E54: 品目/____ぶどう糖・水あめ | R54: 101.7 | S54: 101.7 | T54: 101.7 | U54: 100 | V54: 100 | W54: 100 | X54: 99.4 | Y54: 98.6 | Z54: 98.6 | AA54: 98.7 | AB54: 99.2 | AC54: 100.4 | AD54: 101.3 | AE54: 101.3 | AF54: 104.7 | AG54: 105.9 | AH54: 105.9 | AI54: 110.1 | AJ54: 110.1 | AK54: 112.3 | AL54: 112.3 | AM54: 109.8 | AN54: 110.4 | AO54: 112.7 | AP54: 114.4 | AQ54: 114.4 | AR54: 114.4 | AS54: 118.2 | AT54: 121 | AU54: 123.1 | AV54: 129.8 | AW54: 128.8 | AX54: 128.8 | AY54: 137.1 | AZ54: 137.1 | BA54: 137.1 | BB54: 137.6 | BC54: 137.5 | BD54: 137.5 | BE54: 135.4 | BF54: 135.4 | BG54: 135.4 | BH54: 135.2 | BI54: 135.2 | BJ54: 135.2 | BK54: 134.3 | BL54: 134.3 | BM54: 134.3 | BN54: 134.5 | BO54: 134.5 | BP54: 134.5 | BQ54: 134 | BR54: 134 | BS54: 134 | BT54: 136.8 | BU54: 136.8 | BV54: 136.8 | BW54: 134.6 | BX54: 134.6 | BY54: 134.6 | BZ54: 136 | CA54: 136 | CB54: 136 | CC54: 138 | CD54: 138 | CE54: 138 | CF54: 138.7 | CG54: 138.3 | CH54: 138.3 | CI54: 137.9 | CJ54: 137.9 | CK54: 137.9 | CL54: 139.5 | CM54: 139.5 | CN54: 139.5
A55: 54 | B55: 1国内 | C55: PR01'PRCG20_2200150039 | D55: 国内類別1/_飲食料品 | E55: 品目/____異性化糖 | R55: 101.6 | S55: 101.6 | T55: 100.2 | U55: 100.4 | V55: 100.3 | W55: 99.9 | X55: 99.6 | Y55: 99.2 | Z55: 98.5 | AA55: 98.7 | AB55: 99.8 | AC55: 100.3 | AD55: 101.2 | AE55: 100.7 | AF55: 103.4 | AG55: 106.5 | AH55: 107.4 | AI55: 110 | AJ55: 109.4 | AK55: 110.1 | AL55: 115.2 | AM55: 114.2 | AN55: 113 | AO55: 112.2 | AP55: 114.2 | AQ55: 115.1 | AR55: 114.6 | AS55: 113.5 | AT55: 116.4 | AU55: 120.2 | AV55: 122.7 | AW55: 127.8 | AX55: 128.1 | AY55: 131.2 | AZ55: 129.6 | BA55: 128.7 | BB55: 145.9 | BC55: 145.7 | BD55: 145.6 | BE55: 139.2 | BF55: 138.8 | BG55: 138.2 | BH55: 137.4 | BI55: 137.2 | BJ55: 137.1 | BK55: 132.8 | BL55: 131.5 | BM55: 131.1 | BN55: 130.7 | BO55: 130.9 | BP55: 129.6 | BQ55: 129.5 | BR55: 129.9 | BS55: 129.6 | BT55: 130.9 | BU55: 129.6 | BV55: 129 | BW55: 129 | BX55: 124.8 | BY55: 125.1 | BZ55: 129.1 | CA55: 128.2 | CB55: 129.1 | CC55: 127.2 | CD55: 125.8 | CE55: 127.4 | CF55: 124 | CG55: 125.5 | CH55: 127 | CI55: 125.1 | CJ55: 123 | CK55: 124.4 | CL55: 127.8 | CM55: 128.6 | CN55: 128.4
A56: 55 | B56: 1国内 | C56: PR01'PRCG20_2200140014 | D56: 国内類別1/_飲食料品 | E56: 商品群/___動植物油脂 | R56: 101.1 | S56: 100.1 | T56: 99.1 | U56: 100.1 | V56: 99.8 | W56: 100.1 | X56: 99.6 | Y56: 99.2 | Z56: 98.3 | AA56: 100.3 | AB56: 101.2 | AC56: 101.2 | AD56: 102.5 | AE56: 103.6 | AF56: 103.7 | AG56: 106.9 | AH56: 110.4 | AI56: 109.8 | AJ56: 115.1 | AK56: 122.5 | AL56: 122.5 | AM56: 123.9 | AN56: 128.7 | AO56: 127.9 | AP56: 132 | AQ56: 133.2 | AR56: 136.4 | AS56: 139.9 | AT56: 145.9 | AU56: 146.4 | AV56: 155.6 | AW56: 158.9 | AX56: 165.5 | AY56: 167.4 | AZ56: 166.3 | BA56: 167.3 | BB56: 164.2 | BC56: 162.8 | BD56: 161.5 | BE56: 160.3 | BF56: 159.3 | BG56: 157.7 | BH56: 152.2 | BI56: 151.1 | BJ56: 150 | BK56: 150.4 | BL56: 152.9 | BM56: 153.5 | BN56: 153.1 | BO56: 153.8 | BP56: 153.4 | BQ56: 147 | BR56: 147.2 | BS56: 147.4 | BT56: 147.7 | BU56: 145.9 | BV56: 146.7 | BW56: 144.1 | BX56: 145.7 | BY56: 146.9 | BZ56: 146.2 | CA56: 146.3 | CB56: 146.8 | CC56: 146.9 | CD56: 147.9 | CE56: 149.1 | CF56: 148.2 | CG56: 147.2 | CH56: 147.4 | CI56: 146.9 | CJ56: 149.5 | CK56: 150.6 | CL56: 154.9 | CM56: 154.5 | CN56: 154.6
A57: 56 | B57: 1国内 | C57: PR01'PRCG20_2200150040 | D57: 国内類別1/_飲食料品 | E57: 品目/____植物油脂（除混合植物油脂） | R57: 100.6 | S57: 100 | T57: 99.9 | U57: 102.7 | V57: 100.1 | W57: 101.4 | X57: 100.6 | Y57: 97.7 | Z57: 98 | AA57: 98.2 | AB57: 100.2 | AC57: 100.7 | AD57: 99.3 | AE57: 100.3 | AF57: 100.9 | AG57: 101.7 | AH57: 109.9 | AI57: 108.5 | AJ57: 115.1 | AK57: 128.3 | AL57: 129.1 | AM57: 130.4 | AN57: 134.4 | AO57: 132.6 | AP57: 139.2 | AQ57: 141.5 | AR57: 144.1 | AS57: 146.4 | AT57: 149.1 | AU57: 151.6 | AV57: 160.4 | AW57: 164.3 | AX57: 172.6 | AY57: 170.4 | AZ57: 168.5 | BA57: 169.2 | BB57: 161.9 | BC57: 160.7 | BD57: 160.2 | BE57: 156.8 | BF57: 153.5 | BG57: 153 | BH57: 144.6 | BI57: 141.6 | BJ57: 141.2 | BK57: 141.7 | BL57: 145.5 | BM57: 147.3 | BN57: 146.8 | BO57: 145.6 | BP57: 145.1 | BQ57: 141 | BR57: 139.9 | BS57: 143.8 | BT57: 143.7 | BU57: 137.7 | BV57: 143.1 | BW57: 146.1 | BX57: 146.5 | BY57: 148.6 | BZ57: 144.9 | CA57: 147.2 | CB57: 145.3 | CC57: 147.3 | CD57: 146.8 | CE57: 147.5 | CF57: 149.2 | CG57: 150.5 | CH57: 150.7 | CI57: 152.3 | CJ57: 155.1 | CK57: 154.2 | CL57: 154.3 | CM57: 153.6 | CN57: 153.6
A58: 57 | B58: 1国内 | C58: PR01'PRCG20_2200150041 | D58: 国内類別1/_飲食料品 | E58: 品目/____混合植物油脂 | R58: 101.5 | S58: 99.5 | T58: 98 | U58: 98.6 | V58: 101.6 | W58: 99.8 | X58: 99.4 | Y58: 101 | Z58: 99 | AA58: 100.2 | AB58: 100.9 | AC58: 100.5 | AD58: 98.9 | AE58: 100.4 | AF58: 100.1 | AG58: 102.8 | AH58: 106.6 | AI58: 106.1 | AJ58: 111.8 | AK58: 120.7 | AL58: 120.3 | AM58: 126.3 | AN58: 137.5 | AO58: 135.5 | AP58: 138.5 | AQ58: 137.9 | AR58: 143.8 | AS58: 142.6 | AT58: 152.6 | AU58: 149.7 | AV58: 156.8 | AW58: 161 | AX58: 170.4 | AY58: 172.6 | AZ58: 170.1 | BA58: 171.9 | BB58: 172.6 | BC58: 169.9 | BD58: 167.2 | BE58: 166.4 | BF58: 165.8 | BG58: 159.6 | BH58: 158.7 | BI58: 158 | BJ58: 154.4 | BK58: 150.2 | BL58: 152.5 | BM58: 152.4 | BN58: 148.5 | BO58: 150.1 | BP58: 150.3 | BQ58: 148.3 | BR58: 149.4 | BS58: 147.2 | BT58: 145.2 | BU58: 144.6 | BV58: 142.2 | BW58: 141 | BX58: 146.3 | BY58: 147.2 | BZ58: 149.3 | CA58: 147.6 | CB58: 149.6 | CC58: 148.6 | CD58: 151.3 | CE58: 152.9 | CF58: 152.3 | CG58: 149.1 | CH58: 146.9 | CI58: 147.7 | CJ58: 152.3 | CK58: 156.9 | CL58: 160 | CM58: 158.2 | CN58: 158.2
A59: 58 | B59: 1国内 | C59: PR01'PRCG20_2200150042 | D59: 国内類別1/_飲食料品 | E59: 品目/____植物油搾かす | R59: 100.5 | S59: 100.5 | T59: 100.5 | U59: 97.7 | V59: 97.7 | W59: 97.7 | X59: 97.3 | Y59: 97.3 | Z59: 97.3 | AA59: 104.5 | AB59: 104.5 | AC59: 104.5 | AD59: 121.5 | AE59: 121.5 | AF59: 121.5 | AG59: 133.1 | AH59: 133.1 | AI59: 133.1 | AJ59: 137.6 | AK59: 137.6 | AL59: 137.6 | AM59: 132.5 | AN59: 132.5 | AO59: 132.5 | AP59: 140.8 | AQ59: 140.8 | AR59: 140.8 | AS59: 159.4 | AT59: 159.4 | AU59: 159.4 | AV59: 185 | AW59: 185 | AX59: 185 | AY59: 190.8 | AZ59: 190.8 | BA59: 190.8 | BB59: 186 | BC59: 186 | BD59: 186 | BE59: 185.2 | BF59: 185.2 | BG59: 185.2 | BH59: 169.3 | BI59: 169.3 | BJ59: 169.3 | BK59: 177.4 | BL59: 179.8 | BM59: 179.8 | BN59: 189.1 | BO59: 189.1 | BP59: 189.1 | BQ59: 162.7 | BR59: 162.7 | BS59: 162.7 | BT59: 167.6 | BU59: 167.6 | BV59: 167.6 | BW59: 147 | BX59: 147 | BY59: 147 | BZ59: 144.9 | CA59: 144.9 | CB59: 144.9 | CC59: 138.8 | CD59: 138.8 | CE59: 138.8 | CF59: 129.9 | CG59: 129.9 | CH59: 129.9 | CI59: 125.5 | CJ59: 124.7 | CK59: 123.9 | CL59: 145 | CM59: 145 | CN59: 145
A60: 59 | B60: 1国内 | C60: PR01'PRCG20_2200150043 | D60: 国内類別1/_飲食料品 | E60: 品目/____ショートニング | R60: 101.1 | S60: 100.9 | T60: 98.9 | U60: 99.3 | V60: 96.2 | W60: 102.2 | X60: 98.7 | Y60: 101.3 | Z60: 98.3 | AA60: 100.9 | AB60: 101.3 | AC60: 101 | AD60: 99.7 | AE60: 97.1 | AF60: 100.7 | AG60: 102.3 | AH60: 102.4 | AI60: 100.6 | AJ60: 106.7 | AK60: 112.4 | AL60: 112.4 | AM60: 111.6 | AN60: 113.7 | AO60: 114.2 | AP60: 114.2 | AQ60: 117.5 | AR60: 122.7 | AS60: 121.1 | AT60: 134.8 | AU60: 137.9 | AV60: 136.6 | AW60: 143.9 | AX60: 153.2 | AY60: 155.6 | AZ60: 157.4 | BA60: 158.3 | BB60: 152.3 | BC60: 153.6 | BD60: 152.9 | BE60: 154 | BF60: 153.7 | BG60: 154.2 | BH60: 149.8 | BI60: 151.5 | BJ60: 152.9 | BK60: 153.6 | BL60: 157 | BM60: 158.4 | BN60: 153.7 | BO60: 154.2 | BP60: 154.3 | BQ60: 154.6 | BR60: 155.9 | BS60: 154.7 | BT60: 155.8 | BU60: 156.4 | BV60: 156.9 | BW60: 161.8 | BX60: 158.2 | BY60: 161.1 | BZ60: 160 | CA60: 161.7 | CB60: 161.4 | CC60: 169.8 | CD60: 169.3 | CE60: 171.8 | CF60: 177 | CG60: 173.3 | CH60: 179.6 | CI60: 176.7 | CJ60: 180 | CK60: 180.1 | CL60: 179.7 | CM60: 179.5 | CN60: 179.3
A61: 60 | B61: 1国内 | C61: PR01'PRCG20_2200150044 | D61: 国内類別1/_飲食料品 | E61: 品目/____マーガリン | R61: 101.7 | S61: 101.1 | T61: 98.3 | U61: 101 | V61: 99.9 | W61: 99.4 | X61: 101.4 | Y61: 99.1 | Z61: 98.4 | AA61: 99.5 | AB61: 100.1 | AC61: 100.1 | AD61: 97.1 | AE61: 100.8 | AF61: 99.5 | AG61: 99.3 | AH61: 97.9 | AI61: 99.3 | AJ61: 101 | AK61: 102.1 | AL61: 101.4 | AM61: 100.5 | AN61: 99.4 | AO61: 101.8 | AP61: 100.7 | AQ61: 103.7 | AR61: 104.5 | AS61: 107.3 | AT61: 113.1 | AU61: 116.2 | AV61: 118.6 | AW61: 119.3 | AX61: 122.3 | AY61: 127.4 | AZ61: 127.9 | BA61: 129.2 | BB61: 129.9 | BC61: 128.2 | BD61: 126.3 | BE61: 126.9 | BF61: 128.3 | BG61: 132.7 | BH61: 134.3 | BI61: 133.4 | BJ61: 133.8 | BK61: 135.7 | BL61: 135.5 | BM61: 135.1 | BN61: 134.5 | BO61: 138.1 | BP61: 135.5 | BQ61: 133.8 | BR61: 134.3 | BS61: 133.3 | BT61: 133.5 | BU61: 134.7 | BV61: 134 | BW61: 133.2 | BX61: 133.3 | BY61: 133.5 | BZ61: 135.2 | CA61: 133.3 | CB61: 136.7 | CC61: 137.7 | CD61: 140.1 | CE61: 142.4 | CF61: 141.1 | CG61: 140.8 | CH61: 142.6 | CI61: 140.9 | CJ61: 141.8 | CK61: 141.8 | CL61: 140.8 | CM61: 144.4 | CN61: 144.8
A62: 61 | B62: 1国内 | C62: PR01'PRCG20_2200140015 | D62: 国内類別1/_飲食料品 | E62: 商品群/___調味料 | R62: 99.2 | S62: 100 | T62: 100.1 | U62: 100.6 | V62: 99.6 | W62: 100.1 | X62: 100.5 | Y62: 99.7 | Z62: 99.9 | AA62: 100.3 | AB62: 99.8 | AC62: 100.2 | AD62: 98.4 | AE62: 100 | AF62: 99.3 | AG62: 100.7 | AH62: 98.7 | AI62: 99.7 | AJ62: 100.7 | AK62: 100 | AL62: 100.7 | AM62: 100.3 | AN62: 100.6 | AO62: 100.7 | AP62: 98.6 | AQ62: 100 | AR62: 101.4 | AS62: 103.4 | AT62: 101.6 | AU62: 103.2 | AV62: 103.5 | AW62: 104.1 | AX62: 104.1 | AY62: 104.9 | AZ62: 105.3 | BA62: 106.4 | BB62: 104.6 | BC62: 107.4 | BD62: 106.9 | BE62: 111.3 | BF62: 110.7 | BG62: 112.4 | BH62: 113.2 | BI62: 113 | BJ62: 113.2 | BK62: 114.8 | BL62: 115.4 | BM62: 115.7 | BN62: 115.2 | BO62: 115.8 | BP62: 114.7 | BQ62: 117.7 | BR62: 117.2 | BS62: 117.1 | BT62: 117.1 | BU62: 116.8 | BV62: 116.3 | BW62: 117.7 | BX62: 117 | BY62: 117.3 | BZ62: 114.7 | CA62: 116.3 | CB62: 115.6 | CC62: 116.8 | CD62: 117.5 | CE62: 117.7 | CF62: 118 | CG62: 117.4 | CH62: 117.6 | CI62: 119 | CJ62: 121.9 | CK62: 122 | CL62: 120.6 | CM62: 121.5 | CN62: 121.6
A63: 62 | B63: 1国内 | C63: PR01'PRCG20_2200150045 | D63: 国内類別1/_飲食料品 | E63: 品目/____みそ | R63: 92.3 | S63: 99.8 | T63: 101 | U63: 102.2 | V63: 95.3 | W63: 99.7 | X63: 102.8 | Y63: 99.3 | Z63: 100.7 | AA63: 103.2 | AB63: 99.3 | AC63: 104.4 | AD63: 92.2 | AE63: 100.9 | AF63: 94.4 | AG63: 105.4 | AH63: 92.3 | AI63: 99.5 | AJ63: 102.2 | AK63: 99.5 | AL63: 100.9 | AM63: 98.9 | AN63: 100.8 | AO63: 104.1 | AP63: 89.8 | AQ63: 99 | AR63: 97.2 | AS63: 105.9 | AT63: 93.3 | AU63: 102.2 | AV63: 102.3 | AW63: 102.9 | AX63: 102.7 | AY63: 102.3 | AZ63: 104.6 | BA63: 110.7 | BB63: 97.7 | BC63: 106 | BD63: 96.9 | BE63: 113.8 | BF63: 109.8 | BG63: 108.6 | BH63: 111.6 | BI63: 111.5 | BJ63: 109.7 | BK63: 119.3 | BL63: 122.6 | BM63: 124.9 | BN63: 122.1 | BO63: 123.3 | BP63: 118 | BQ63: 130.8 | BR63: 126.1 | BS63: 124 | BT63: 124.7 | BU63: 123.4 | BV63: 119.8 | BW63: 129.1 | BX63: 124.6 | BY63: 127.4 | BZ63: 110.4 | CA63: 122.4 | CB63: 118.5 | CC63: 120.6 | CD63: 117.7 | CE63: 118.6 | CF63: 118.1 | CG63: 118.1 | CH63: 117.9 | CI63: 128.9 | CJ63: 141.6 | CK63: 144.5 | CL63: 132.4 | CM63: 142.1 | CN63: 142.1
A64: 63 | B64: 1国内 | C64: PR01'PRCG20_2200150046 | D64: 国内類別1/_飲食料品 | E64: 品目/____しょう油 | R64: 99.9 | S64: 100.5 | T64: 99.7 | U64: 99.7 | V64: 100.6 | W64: 99.8 | X64: 99.8 | Y64: 100.6 | Z64: 99.9 | AA64: 99.9 | AB64: 99.6 | AC64: 100 | AD64: 99 | AE64: 100.2 | AF64: 99.5 | AG64: 99.9 | AH64: 99.4 | AI64: 98.6 | AJ64: 99.5 | AK64: 99.4 | AL64: 101.6 | AM64: 99.3 | AN64: 100.2 | AO64: 99.6 | AP64: 99.1 | AQ64: 99 | AR64: 100.2 | AS64: 104.3 | AT64: 104.8 | AU64: 105.6 | AV64: 105.3 | AW64: 105.6 | AX64: 105.5 | AY64: 106.6 | AZ64: 106.4 | BA64: 106.6 | BB64: 106.6 | BC64: 108.1 | BD64: 108.6 | BE64: 112.4 | BF64: 112.5 | BG64: 112.7 | BH64: 112.5 | BI64: 113.8 | BJ64: 114 | BK64: 115.7 | BL64: 115.6 | BM64: 115.4 | BN64: 116.4 | BO64: 115.8 | BP64: 116.7 | BQ64: 117.6 | BR64: 117.7 | BS64: 117.6 | BT64: 117.7 | BU64: 117.7 | BV64: 117.5 | BW64: 117.6 | BX64: 117.7 | BY64: 117.4 | BZ64: 117.7 | CA64: 117.5 | CB64: 117.9 | CC64: 117.7 | CD64: 118.1 | CE64: 117.8 | CF64: 117.3 | CG64: 117.7 | CH64: 118 | CI64: 118.3 | CJ64: 117.4 | CK64: 117.4 | CL64: 118 | CM64: 117.7 | CN64: 117.6
A65: 64 | B65: 1国内 | C65: PR01'PRCG20_2200150047 | D65: 国内類別1/_飲食料品 | E65: 品目/____ソース | R65: 100.8 | S65: 99.8 | T65: 100.5 | U65: 100.6 | V65: 100.1 | W65: 100 | X65: 100 | Y65: 100.1 | Z65: 99.8 | AA65: 99.4 | AB65: 99.9 | AC65: 99 | AD65: 99.4 | AE65: 99.7 | AF65: 99.9 | AG65: 99.5 | AH65: 98.5 | AI65: 99 | AJ65: 101.6 | AK65: 102.1 | AL65: 102 | AM65: 102.1 | AN65: 102.4 | AO65: 101.5 | AP65: 101.5 | AQ65: 102.1 | AR65: 109.2 | AS65: 110 | AT65: 109.7 | AU65: 109.9 | AV65: 110.9 | AW65: 110.6 | AX65: 110.7 | AY65: 112.4 | AZ65: 111.8 | BA65: 113.2 | BB65: 112.1 | BC65: 118.4 | BD65: 120 | BE65: 123.9 | BF65: 124.5 | BG65: 127.1 | BH65: 127.6 | BI65: 127.7 | BJ65: 128 | BK65: 128.3 | BL65: 128.6 | BM65: 129.1 | BN65: 129.4 | BO65: 129.5 | BP65: 127.3 | BQ65: 133 | BR65: 133.3 | BS65: 133.1 | BT65: 133.3 | BU65: 134.2 | BV65: 133.3 | BW65: 133 | BX65: 132.1 | BY65: 131.8 | BZ65: 131 | CA65: 131.6 | CB65: 131.4 | CC65: 133.4 | CD65: 132.7 | CE65: 132.7 | CF65: 132.9 | CG65: 133.1 | CH65: 134.7 | CI65: 133.2 | CJ65: 138.8 | CK65: 137.3 | CL65: 138.1 | CM65: 137.3 | CN65: 137.6
A66: 65 | B66: 1国内 | C66: PR01'PRCG20_2200150048 | D66: 国内類別1/_飲食料品 | E66: 品目/____食酢 | R66: 99.7 | S66: 96.8 | T66: 100.6 | U66: 101 | V66: 100.3 | W66: 100.2 | X66: 100.2 | Y66: 97.5 | Z66: 101.2 | AA66: 100.4 | AB66: 100.6 | AC66: 101.4 | AD66: 97.3 | AE66: 98.2 | AF66: 101.9 | AG66: 101.2 | AH66: 100.5 | AI66: 100.7 | AJ66: 100.8 | AK66: 97.7 | AL66: 100.4 | AM66: 101.2 | AN66: 100.7 | AO66: 101.1 | AP66: 99.9 | AQ66: 97.8 | AR66: 101.8 | AS66: 101.1 | AT66: 100.5 | AU66: 102.9 | AV66: 103.3 | AW66: 100.7 | AX66: 103.6 | AY66: 103.9 | AZ66: 103.7 | BA66: 105 | BB66: 101.3 | BC66: 101.3 | BD66: 104.9 | BE66: 107.1 | BF66: 107.6 | BG66: 109 | BH66: 108.4 | BI66: 106.6 | BJ66: 110 | BK66: 110.2 | BL66: 109.7 | BM66: 110.5 | BN66: 107.7 | BO66: 107.5 | BP66: 109.8 | BQ66: 108.7 | BR66: 110.5 | BS66: 110.9 | BT66: 109.3 | BU66: 107.4 | BV66: 110.9 | BW66: 111.8 | BX66: 111.9 | BY66: 111.6 | BZ66: 110.4 | CA66: 108 | CB66: 109.2 | CC66: 109.3 | CD66: 110.1 | CE66: 109.8 | CF66: 109.1 | CG66: 108.9 | CH66: 108.3 | CI66: 110.5 | CJ66: 109.5 | CK66: 109.4 | CL66: 107.4 | CM66: 107.7 | CN66: 107.7
A67: 66 | B67: 1国内 | C67: PR01'PRCG20_2200150049 | D67: 国内類別1/_飲食料品 | E67: 品目/____香辛料 | R67: 100.6 | S67: 100.5 | T67: 100.4 | U67: 100.2 | V67: 100.1 | W67: 99.9 | X67: 99.9 | Y67: 99.9 | Z67: 99.8 | AA67: 99.7 | AB67: 99.6 | AC67: 99.4 | AD67: 99.5 | AE67: 99.4 | AF67: 99.5 | AG67: 99.3 | AH67: 99.4 | AI67: 99.5 | AJ67: 99.5 | AK67: 99.9 | AL67: 99.5 | AM67: 99.5 | AN67: 99.2 | AO67: 99.2 | AP67: 99.5 | AQ67: 99.3 | AR67: 99.3 | AS67: 99.3 | AT67: 99 | AU67: 98.9 | AV67: 98.1 | AW67: 98.4 | AX67: 98.5 | AY67: 98.6 | AZ67: 98.6 | BA67: 99.1 | BB67: 98.4 | BC67: 98.4 | BD67: 97.5 | BE67: 99 | BF67: 98.6 | BG67: 97.5 | BH67: 100.4 | BI67: 99.5 | BJ67: 100.6 | BK67: 101.3 | BL67: 101.7 | BM67: 102.5 | BN67: 101.8 | BO67: 102.1 | BP67: 101.3 | BQ67: 102.7 | BR67: 102.7 | BS67: 102.4 | BT67: 102 | BU67: 102.3 | BV67: 102.4 | BW67: 102.3 | BX67: 102.5 | BY67: 103.2 | BZ67: 102.5 | CA67: 102.1 | CB67: 101.1 | CC67: 102.4 | CD67: 102.4 | CE67: 102.5 | CF67: 101.7 | CG67: 101.7 | CH67: 101.2 | CI67: 102.1 | CJ67: 102.2 | CK67: 102.9 | CL67: 102.5 | CM67: 102.5 | CN67: 102.5
A68: 67 | B68: 1国内 | C68: PR01'PRCG20_2200150050 | D68: 国内類別1/_飲食料品 | E68: 品目/____ルウ | R68: 100 | S68: 100.3 | T68: 100.1 | U68: 100.5 | V68: 100.5 | W68: 100.5 | X68: 100.5 | Y68: 100 | Z68: 99.5 | AA68: 99.3 | AB68: 99.3 | AC68: 99.4 | AD68: 99.3 | AE68: 99.5 | AF68: 99.1 | AG68: 99.9 | AH68: 99.8 | AI68: 100 | AJ68: 99.9 | AK68: 99.9 | AL68: 99.2 | AM68: 99.1 | AN68: 99.2 | AO68: 99.2 | AP68: 98.9 | AQ68: 99.1 | AR68: 98.9 | AS68: 99.6 | AT68: 99.3 | AU68: 99.5 | AV68: 99.1 | AW68: 107.5 | AX68: 107.1 | AY68: 106.5 | AZ68: 106.5 | BA68: 107.6 | BB68: 106.8 | BC68: 107.5 | BD68: 106.9 | BE68: 107.7 | BF68: 107.2 | BG68: 119.4 | BH68: 117.8 | BI68: 117.6 | BJ68: 117 | BK68: 117.4 | BL68: 117.7 | BM68: 118.8 | BN68: 118 | BO68: 117.9 | BP68: 117.7 | BQ68: 118.7 | BR68: 118.6 | BS68: 118.9 | BT68: 118 | BU68: 118.2 | BV68: 118 | BW68: 117.7 | BX68: 118.4 | BY68: 118.8 | BZ68: 117.6 | CA68: 118.1 | CB68: 117.7 | CC68: 118.6 | CD68: 131.6 | CE68: 131.6 | CF68: 131.2 | CG68: 130.8 | CH68: 129.5 | CI68: 130.4 | CJ68: 130.7 | CK68: 131.2 | CL68: 129.6 | CM68: 129.6 | CN68: 129.6
A69: 68 | B69: 1国内 | C69: PR01'PRCG20_2200150051 | D69: 国内類別1/_飲食料品 | E69: 品目/____うま味・風味調味料 | R69: 98 | S69: 99.9 | T69: 99 | U69: 101.2 | V69: 99 | W69: 100.4 | X69: 101.6 | Y69: 99.3 | Z69: 99.6 | AA69: 100.6 | AB69: 100.8 | AC69: 100.4 | AD69: 97.5 | AE69: 100.4 | AF69: 100.1 | AG69: 101.7 | AH69: 100.6 | AI69: 100.8 | AJ69: 101.4 | AK69: 99.6 | AL69: 100.3 | AM69: 101.2 | AN69: 100.9 | AO69: 101.4 | AP69: 98.2 | AQ69: 100.5 | AR69: 99.8 | AS69: 101.1 | AT69: 100.2 | AU69: 102 | AV69: 102.8 | AW69: 102.3 | AX69: 101.8 | AY69: 104.6 | AZ69: 106.9 | BA69: 106.8 | BB69: 106 | BC69: 109.3 | BD69: 109.2 | BE69: 110.6 | BF69: 109.8 | BG69: 109.9 | BH69: 111.2 | BI69: 110.5 | BJ69: 110.2 | BK69: 110.4 | BL69: 110.8 | BM69: 110.6 | BN69: 109 | BO69: 110.4 | BP69: 110.4 | BQ69: 111.5 | BR69: 111 | BS69: 111.4 | BT69: 111.3 | BU69: 111 | BV69: 110 | BW69: 111.7 | BX69: 111.8 | BY69: 111.9 | BZ69: 109.1 | CA69: 110.7 | CB69: 110 | CC69: 111.6 | CD69: 110.7 | CE69: 110.8 | CF69: 115.8 | CG69: 112.1 | CH69: 112.8 | CI69: 111.5 | CJ69: 114.3 | CK69: 114 | CL69: 114 | CM69: 113.4 | CN69: 114
A70: 69 | B70: 1国内 | C70: PR01'PRCG20_2200150052 | D70: 国内類別1/_飲食料品 | E70: 品目/____たれ・めんつゆ | R70: 100.6 | S70: 100.2 | T70: 100 | U70: 100.2 | V70: 100.2 | W70: 100.6 | X70: 99.8 | Y70: 99.6 | Z70: 99.2 | AA70: 100.4 | AB70: 99.8 | AC70: 99.3 | AD70: 100.5 | AE70: 100.2 | AF70: 100.6 | AG70: 100 | AH70: 100 | AI70: 100.7 | AJ70: 100.1 | AK70: 99.7 | AL70: 100 | AM70: 100.1 | AN70: 100.4 | AO70: 99.7 | AP70: 100.1 | AQ70: 100.2 | AR70: 100.1 | AS70: 100.3 | AT70: 99.6 | AU70: 100 | AV70: 101.1 | AW70: 99.7 | AX70: 100 | AY70: 100 | AZ70: 100.3 | BA70: 99.8 | BB70: 101.6 | BC70: 101.6 | BD70: 101.9 | BE70: 105.8 | BF70: 105.1 | BG70: 105.8 | BH70: 106.7 | BI70: 106.4 | BJ70: 106.6 | BK70: 106.7 | BL70: 107.2 | BM70: 105.9 | BN70: 106.8 | BO70: 108.5 | BP70: 107.5 | BQ70: 107.6 | BR70: 107 | BS70: 107.6 | BT70: 107.9 | BU70: 107 | BV70: 107.5 | BW70: 108 | BX70: 107.3 | BY70: 107.2 | BZ70: 107.6 | CA70: 107.8 | CB70: 107.4 | CC70: 108.1 | CD70: 107.8 | CE70: 108.5 | CF70: 108.1 | CG70: 107.2 | CH70: 107.2 | CI70: 108.3 | CJ70: 109.3 | CK70: 109.1 | CL70: 109.5 | CM70: 109.6 | CN70: 109.6
A71: 70 | B71: 1国内 | C71: PR01'PRCG20_2200140016 | D71: 国内類別1/_飲食料品 | E71: 商品群/___冷凍調理食品 | R71: 99.1 | S71: 97 | T71: 101.2 | U71: 99.6 | V71: 96.2 | W71: 103.1 | X71: 101.5 | Y71: 98.7 | Z71: 101.8 | AA71: 102.8 | AB71: 98.7 | AC71: 100.1 | AD71: 99.3 | AE71: 98.2 | AF71: 102 | AG71: 101.9 | AH71: 95.4 | AI71: 99.3 | AJ71: 96.4 | AK71: 97.9 | AL71: 101.7 | AM71: 101.1 | AN71: 97.5 | AO71: 99.2 | AP71: 98.1 | AQ71: 97.6 | AR71: 103.8 | AS71: 104 | AT71: 99 | AU71: 102 | AV71: 101.6 | AW71: 103.4 | AX71: 110.2 | AY71: 108.7 | AZ71: 111.5 | BA71: 110.5 | BB71: 116 | BC71: 119.7 | BD71: 116.4 | BE71: 123 | BF71: 116 | BG71: 120.8 | BH71: 119.7 | BI71: 120 | BJ71: 121.2 | BK71: 124.8 | BL71: 122.1 | BM71: 123.3 | BN71: 119.6 | BO71: 122 | BP71: 127.8 | BQ71: 128.4 | BR71: 125.4 | BS71: 125.7 | BT71: 127.1 | BU71: 125.5 | BV71: 128.8 | BW71: 129.9 | BX71: 125.6 | BY71: 127.6 | BZ71: 126 | CA71: 127.2 | CB71: 131.4 | CC71: 131.3 | CD71: 126.2 | CE71: 129.1 | CF71: 129.6 | CG71: 126.1 | CH71: 129.9 | CI71: 130.3 | CJ71: 124.2 | CK71: 127 | CL71: 127.3 | CM71: 126.2 | CN71: 126.2
A72: 71 | B72: 1国内 | C72: PR01'PRCG20_2200150053 | D72: 国内類別1/_飲食料品 | E72: 品目/____冷凍調理食品 | R72: 99.1 | S72: 97 | T72: 101.2 | U72: 99.6 | V72: 96.2 | W72: 103.1 | X72: 101.5 | Y72: 98.7 | Z72: 101.8 | AA72: 102.8 | AB72: 98.7 | AC72: 100.1 | AD72: 99.3 | AE72: 98.2 | AF72: 102 | AG72: 101.9 | AH72: 95.4 | AI72: 99.3 | AJ72: 96.4 | AK72: 97.9 | AL72: 101.7 | AM72: 101.1 | AN72: 97.5 | AO72: 99.2 | AP72: 98.1 | AQ72: 97.6 | AR72: 103.8 | AS72: 104 | AT72: 99 | AU72: 102 | AV72: 101.6 | AW72: 103.4 | AX72: 110.2 | AY72: 108.7 | AZ72: 111.5 | BA72: 110.5 | BB72: 116 | BC72: 119.7 | BD72: 116.4 | BE72: 123 | BF72: 116 | BG72: 120.8 | BH72: 119.7 | BI72: 120 | BJ72: 121.2 | BK72: 124.8 | BL72: 122.1 | BM72: 123.3 | BN72: 119.6 | BO72: 122 | BP72: 127.8 | BQ72: 128.4 | BR72: 125.4 | BS72: 125.7 | BT72: 127.1 | BU72: 125.5 | BV72: 128.8 | BW72: 129.9 | BX72: 125.6 | BY72: 127.6 | BZ72: 126 | CA72: 127.2 | CB72: 131.4 | CC72: 131.3 | CD72: 126.2 | CE72: 129.1 | CF72: 129.6 | CG72: 126.1 | CH72: 129.9 | CI72: 130.3 | CJ72: 124.2 | CK72: 127 | CL72: 127.3 | CM72: 126.2 | CN72: 126.2
A73: 72 | B73: 1国内 | C73: PR01'PRCG20_2200140017 | D73: 国内類別1/_飲食料品 | E73: 商品群/___レトルト食品 | R73: 99.4 | S73: 99.7 | T73: 99.4 | U73: 100.1 | V73: 101.3 | W73: 100.7 | X73: 100 | Y73: 100 | Z73: 99.2 | AA73: 99.5 | AB73: 100.1 | AC73: 100.9 | AD73: 99.4 | AE73: 99.2 | AF73: 98.9 | AG73: 100.1 | AH73: 98.1 | AI73: 99.7 | AJ73: 99.4 | AK73: 99.8 | AL73: 100 | AM73: 100.6 | AN73: 103.1 | AO73: 103.1 | AP73: 102.2 | AQ73: 102.8 | AR73: 102.3 | AS73: 103 | AT73: 103 | AU73: 102.3 | AV73: 102.8 | AW73: 104.8 | AX73: 104.1 | AY73: 104.7 | AZ73: 105.2 | BA73: 105.6 | BB73: 105.8 | BC73: 105.6 | BD73: 105.6 | BE73: 105.6 | BF73: 105.2 | BG73: 107.8 | BH73: 108 | BI73: 107.6 | BJ73: 108.4 | BK73: 108.7 | BL73: 108.6 | BM73: 108.8 | BN73: 108 | BO73: 108 | BP73: 108.2 | BQ73: 109.4 | BR73: 109.6 | BS73: 107.9 | BT73: 107.8 | BU73: 106.2 | BV73: 107.6 | BW73: 108.5 | BX73: 108.3 | BY73: 107.9 | BZ73: 107.4 | CA73: 108 | CB73: 107.1 | CC73: 107.6 | CD73: 110.5 | CE73: 111 | CF73: 114.2 | CG73: 113.6 | CH73: 112.8 | CI73: 114.5 | CJ73: 113.8 | CK73: 114.3 | CL73: 113.5 | CM73: 114 | CN73: 113.6
A74: 73 | B74: 1国内 | C74: PR01'PRCG20_2200150054 | D74: 国内類別1/_飲食料品 | E74: 品目/____レトルト食品 | R74: 99.4 | S74: 99.7 | T74: 99.4 | U74: 100.1 | V74: 101.3 | W74: 100.7 | X74: 100 | Y74: 100 | Z74: 99.2 | AA74: 99.5 | AB74: 100.1 | AC74: 100.9 | AD74: 99.4 | AE74: 99.2 | AF74: 98.9 | AG74: 100.1 | AH74: 98.1 | AI74: 99.7 | AJ74: 99.4 | AK74: 99.8 | AL74: 100 | AM74: 100.6 | AN74: 103.1 | AO74: 103.1 | AP74: 102.2 | AQ74: 102.8 | AR74: 102.3 | AS74: 103 | AT74: 103 | AU74: 102.3 | AV74: 102.8 | AW74: 104.8 | AX74: 104.1 | AY74: 104.7 | AZ74: 105.2 | BA74: 105.6 | BB74: 105.8 | BC74: 105.6 | BD74: 105.6 | BE74: 105.6 | BF74: 105.2 | BG74: 107.8 | BH74: 108 | BI74: 107.6 | BJ74: 108.4 | BK74: 108.7 | BL74: 108.6 | BM74: 108.8 | BN74: 108 | BO74: 108 | BP74: 108.2 | BQ74: 109.4 | BR74: 109.6 | BS74: 107.9 | BT74: 107.8 | BU74: 106.2 | BV74: 107.6 | BW74: 108.5 | BX74: 108.3 | BY74: 107.9 | BZ74: 107.4 | CA74: 108 | CB74: 107.1 | CC74: 107.6 | CD74: 110.5 | CE74: 111 | CF74: 114.2 | CG74: 113.6 | CH74: 112.8 | CI74: 114.5 | CJ74: 113.8 | CK74: 114.3 | CL74: 113.5 | CM74: 114 | CN74: 113.6
A75: 74 | B75: 1国内 | C75: PR01'PRCG20_2200140018 | D75: 国内類別1/_飲食料品 | E75: 商品群/___そう菜・すし・弁当 | R75: 99.7 | S75: 99.9 | T75: 99.9 | U75: 99.7 | V75: 100.1 | W75: 100.4 | X75: 100.1 | Y75: 100.2 | Z75: 100.1 | AA75: 100 | AB75: 99.7 | AC75: 100.3 | AD75: 99.8 | AE75: 100.3 | AF75: 100.3 | AG75: 99.8 | AH75: 99.9 | AI75: 100 | AJ75: 100.1 | AK75: 100.3 | AL75: 100.1 | AM75: 100.2 | AN75: 100.1 | AO75: 100.6 | AP75: 100 | AQ75: 100.2 | AR75: 100.9 | AS75: 100.9 | AT75: 101.3 | AU75: 103.3 | AV75: 103.6 | AW75: 104.3 | AX75: 104.6 | AY75: 105.6 | AZ75: 105.9 | BA75: 106 | BB75: 107.6 | BC75: 108.2 | BD75: 109.1 | BE75: 110.3 | BF75: 110.9 | BG75: 112.1 | BH75: 112.7 | BI75: 112.6 | BJ75: 112.4 | BK75: 112.3 | BL75: 112.3 | BM75: 112.8 | BN75: 113.2 | BO75: 113.6 | BP75: 114 | BQ75: 115.6 | BR75: 116.6 | BS75: 118.3 | BT75: 117.9 | BU75: 118.6 | BV75: 118.3 | BW75: 119 | BX75: 119.5 | BY75: 120.1 | BZ75: 120.8 | CA75: 124.4 | CB75: 127.6 | CC75: 128.9 | CD75: 130.2 | CE75: 128.6 | CF75: 131 | CG75: 130.6 | CH75: 128.1 | CI75: 127.6 | CJ75: 128.6 | CK75: 130.8 | CL75: 132.7 | CM75: 133.1 | CN75: 133.2
A76: 75 | B76: 1国内 | C76: PR01'PRCG20_2200150055 | D76: 国内類別1/_飲食料品 | E76: 品目/____そう菜 | R76: 99.6 | S76: 99.9 | T76: 99.9 | U76: 100 | V76: 100.2 | W76: 100.5 | X76: 100 | Y76: 100 | Z76: 100.1 | AA76: 99.9 | AB76: 99.7 | AC76: 100.1 | AD76: 99.8 | AE76: 100.2 | AF76: 100.3 | AG76: 100.1 | AH76: 100.3 | AI76: 100.5 | AJ76: 100.3 | AK76: 100.4 | AL76: 100.3 | AM76: 100.2 | AN76: 100.2 | AO76: 100.5 | AP76: 100.2 | AQ76: 100.4 | AR76: 101.1 | AS76: 101.2 | AT76: 102.5 | AU76: 104.3 | AV76: 105 | AW76: 106.2 | AX76: 106.2 | AY76: 106 | AZ76: 106.3 | BA76: 106.2 | BB76: 106.7 | BC76: 106.7 | BD76: 106.9 | BE76: 106.5 | BF76: 107.6 | BG76: 108.7 | BH76: 108.9 | BI76: 108.7 | BJ76: 108.4 | BK76: 108.2 | BL76: 108.3 | BM76: 108.9 | BN76: 110.6 | BO76: 110.8 | BP76: 110.9 | BQ76: 112.3 | BR76: 112.4 | BS76: 112.4 | BT76: 111.5 | BU76: 112.9 | BV76: 112.1 | BW76: 112 | BX76: 112.5 | BY76: 113.4 | BZ76: 113.9 | CA76: 117.1 | CB76: 119.5 | CC76: 122.7 | CD76: 123.4 | CE76: 119.5 | CF76: 122.5 | CG76: 121.2 | CH76: 118.7 | CI76: 116.5 | CJ76: 117 | CK76: 117.9 | CL76: 118.1 | CM76: 118.5 | CN76: 118.5
A77: 76 | B77: 1国内 | C77: PR01'PRCG20_2200150056 | D77: 国内類別1/_飲食料品 | E77: 品目/____すし・弁当・おにぎり | R77: 99.8 | S77: 99.9 | T77: 99.9 | U77: 99.3 | V77: 100 | W77: 100.2 | X77: 100.2 | Y77: 100.3 | Z77: 100.2 | AA77: 100 | AB77: 99.8 | AC77: 100.5 | AD77: 99.8 | AE77: 100.3 | AF77: 100.3 | AG77: 99.6 | AH77: 99.7 | AI77: 99.6 | AJ77: 100 | AK77: 100.2 | AL77: 99.9 | AM77: 100.2 | AN77: 100.1 | AO77: 100.6 | AP77: 99.9 | AQ77: 100.1 | AR77: 100.8 | AS77: 100.6 | AT77: 100.3 | AU77: 102.4 | AV77: 102.5 | AW77: 102.7 | AX77: 103.3 | AY77: 105.3 | AZ77: 105.6 | BA77: 105.7 | BB77: 108.3 | BC77: 109.4 | BD77: 110.9 | BE77: 113.5 | BF77: 113.7 | BG77: 114.8 | BH77: 115.8 | BI77: 115.8 | BJ77: 115.7 | BK77: 115.7 | BL77: 115.7 | BM77: 116 | BN77: 115.4 | BO77: 116 | BP77: 116.6 | BQ77: 118.4 | BR77: 120 | BS77: 123.1 | BT77: 123.1 | BU77: 123.3 | BV77: 123.5 | BW77: 124.8 | BX77: 125.3 | BY77: 125.7 | BZ77: 126.4 | CA77: 130.3 | CB77: 134.2 | CC77: 134 | CD77: 135.9 | CE77: 136.1 | CF77: 138.1 | CG77: 138.3 | CH77: 135.9 | CI77: 136.7 | CJ77: 138.2 | CK77: 141.5 | CL77: 144.8 | CM77: 145.2 | CN77: 145.4
A78: 77 | B78: 1国内 | C78: PR01'PRCG20_2200140019 | D78: 国内類別1/_飲食料品 | E78: 商品群/___その他の食料品 | R78: 99.4 | S78: 99.4 | T78: 99.4 | U78: 100.4 | V78: 99.9 | W78: 100.3 | X78: 100.3 | Y78: 100 | Z78: 100.3 | AA78: 100.2 | AB78: 100.1 | AC78: 100.2 | AD78: 99.8 | AE78: 99.7 | AF78: 99.9 | AG78: 100.3 | AH78: 99.7 | AI78: 99.9 | AJ78: 100 | AK78: 99.7 | AL78: 99.9 | AM78: 99.9 | AN78: 99.8 | AO78: 100 | AP78: 100 | AQ78: 99.7 | AR78: 101.3 | AS78: 101.4 | AT78: 101.1 | AU78: 101.3 | AV78: 101.7 | AW78: 101 | AX78: 102.3 | AY78: 102.8 | AZ78: 104.1 | BA78: 104.3 | BB78: 104 | BC78: 103.9 | BD78: 106.2 | BE78: 107.4 | BF78: 107.4 | BG78: 108.1 | BH78: 108.4 | BI78: 108.3 | BJ78: 108.7 | BK78: 109.1 | BL78: 109.2 | BM78: 109.9 | BN78: 109.8 | BO78: 109.7 | BP78: 110.4 | BQ78: 111.8 | BR78: 111.8 | BS78: 112.2 | BT78: 112.3 | BU78: 111.7 | BV78: 112.3 | BW78: 112.9 | BX78: 112.8 | BY78: 113 | BZ78: 113.4 | CA78: 113.6 | CB78: 115.4 | CC78: 116.2 | CD78: 117.4 | CE78: 117.6 | CF78: 116.4 | CG78: 116.5 | CH78: 116.1 | CI78: 116.5 | CJ78: 116.4 | CK78: 116.3 | CL78: 115.9 | CM78: 116.2 | CN78: 116.1
A79: 78 | B79: 1国内 | C79: PR01'PRCG20_2200150057 | D79: 国内類別1/_飲食料品 | E79: 品目/____豆腐・しみ豆腐・油揚げ類 | R79: 98.6 | S79: 98.6 | T79: 98.6 | U79: 100.5 | V79: 100.6 | W79: 100.6 | X79: 100.4 | Y79: 100.6 | Z79: 100.5 | AA79: 100.4 | AB79: 100.3 | AC79: 100.3 | AD79: 100.3 | AE79: 100.4 | AF79: 100.4 | AG79: 100.7 | AH79: 100.8 | AI79: 100.7 | AJ79: 100.7 | AK79: 100.7 | AL79: 100.7 | AM79: 100.7 | AN79: 100.6 | AO79: 100.7 | AP79: 100.6 | AQ79: 100.7 | AR79: 104.6 | AS79: 104.8 | AT79: 104.8 | AU79: 104.6 | AV79: 104.9 | AW79: 103.7 | AX79: 104.9 | AY79: 106 | AZ79: 106.7 | BA79: 106.7 | BB79: 106.7 | BC79: 107.8 | BD79: 112.5 | BE79: 112.6 | BF79: 113.8 | BG79: 114 | BH79: 114 | BI79: 114 | BJ79: 114 | BK79: 114 | BL79: 114 | BM79: 114 | BN79: 114 | BO79: 114 | BP79: 114 | BQ79: 116.4 | BR79: 116.6 | BS79: 116.5 | BT79: 116.5 | BU79: 116.5 | BV79: 117.3 | BW79: 117.3 | BX79: 117.2 | BY79: 117.2 | BZ79: 117.2 | CA79: 117.1 | CB79: 117.3 | CC79: 120.8 | CD79: 120.8 | CE79: 120.9 | CF79: 121.1 | CG79: 121 | CH79: 121 | CI79: 121.2 | CJ79: 121.6 | CK79: 121.6 | CL79: 121.5 | CM79: 121.5 | CN79: 121.5
A80: 79 | B80: 1国内 | C80: PR01'PRCG20_2200150058 | D80: 国内類別1/_飲食料品 | E80: 品目/____あん | R80: 100 | S80: 100 | T80: 100 | U80: 100 | V80: 100 | W80: 100 | X80: 100 | Y80: 100 | Z80: 100 | AA80: 100 | AB80: 100 | AC80: 100 | AD80: 100 | AE80: 100 | AF80: 100 | AG80: 100 | AH80: 100 | AI80: 100 | AJ80: 100 | AK80: 100 | AL80: 100 | AM80: 100 | AN80: 100 | AO80: 100 | AP80: 101.3 | AQ80: 101.3 | AR80: 101.3 | AS80: 101.3 | AT80: 101.3 | AU80: 101.3 | AV80: 101.3 | AW80: 101.3 | AX80: 109.4 | AY80: 109.4 | AZ80: 109.4 | BA80: 109.4 | BB80: 109.4 | BC80: 109.4 | BD80: 109.4 | BE80: 114.5 | BF80: 114.5 | BG80: 114.5 | BH80: 112.9 | BI80: 112.9 | BJ80: 111.4 | BK80: 112.9 | BL80: 113.3 | BM80: 113.3 | BN80: 113.3 | BO80: 113.3 | BP80: 113.3 | BQ80: 114.1 | BR80: 114.1 | BS80: 114.1 | BT80: 114.1 | BU80: 114.1 | BV80: 114.1 | BW80: 114.1 | BX80: 114.1 | BY80: 114.1 | BZ80: 114.1 | CA80: 114.1 | CB80: 114.1 | CC80: 114.1 | CD80: 114.1 | CE80: 114.1 | CF80: 114.1 | CG80: 114.8 | CH80: 114.8 | CI80: 114.8 | CJ80: 114.8 | CK80: 114.8 | CL80: 114.8 | CM80: 114.8 | CN80: 114.8
A81: 80 | B81: 1国内 | C81: PR01'PRCG20_2200150059 | D81: 国内類別1/_飲食料品 | E81: 品目/____サプリメント | R81: 100.2 | S81: 100.2 | T81: 100.2 | U81: 100.2 | V81: 100.2 | W81: 100.1 | X81: 100.1 | Y81: 100.1 | Z81: 100.1 | AA81: 100.1 | AB81: 99.4 | AC81: 99.4 | AD81: 99.4 | AE81: 99.4 | AF81: 99.4 | AG81: 99.4 | AH81: 99.1 | AI81: 99.1 | AJ81: 99.1 | AK81: 99.1 | AL81: 99.1 | AM81: 99.1 | AN81: 99.1 | AO81: 99.1 | AP81: 99.1 | AQ81: 99.1 | AR81: 99.1 | AS81: 99.1 | AT81: 99.1 | AU81: 98.8 | AV81: 98.8 | AW81: 98.8 | AX81: 98.8 | AY81: 98.8 | AZ81: 100.8 | BA81: 100.8 | BB81: 100.8 | BC81: 100.8 | BD81: 100.8 | BE81: 101.3 | BF81: 101.3 | BG81: 101.3 | BH81: 101.1 | BI81: 101.1 | BJ81: 101.1 | BK81: 101.1 | BL81: 101.1 | BM81: 101.9 | BN81: 101.9 | BO81: 101.9 | BP81: 102.2 | BQ81: 102.3 | BR81: 102.3 | BS81: 102.3 | BT81: 102.3 | BU81: 102.3 | BV81: 102.3 | BW81: 103.4 | BX81: 103 | BY81: 103 | BZ81: 103 | CA81: 104.7 | CB81: 107.4 | CC81: 107.4 | CD81: 107.4 | CE81: 107.4 | CF81: 107.4 | CG81: 107.4 | CH81: 107.4 | CI81: 107.4 | CJ81: 107.4 | CK81: 106.5 | CL81: 106.5 | CM81: 106.5 | CN81: 106.5
A82: 81 | B82: 1国内 | C82: PR01'PRCG20_2200150060 | D82: 国内類別1/_飲食料品 | E82: 品目/____こんにゃく | R82: 100 | S82: 100 | T82: 100 | U82: 100 | V82: 100 | W82: 100 | X82: 100 | Y82: 100 | Z82: 100 | AA82: 100 | AB82: 100 | AC82: 100 | AD82: 100 | AE82: 100 | AF82: 100 | AG82: 100 | AH82: 100 | AI82: 100 | AJ82: 100 | AK82: 100 | AL82: 99.3 | AM82: 100 | AN82: 100 | AO82: 98.4 | AP82: 100 | AQ82: 98 | AR82: 100 | AS82: 100 | AT82: 100 | AU82: 100 | AV82: 100 | AW82: 100 | AX82: 100 | AY82: 100 | AZ82: 100 | BA82: 100 | BB82: 100 | BC82: 100 | BD82: 100 | BE82: 100 | BF82: 101.8 | BG82: 103.3 | BH82: 101.9 | BI82: 105.1 | BJ82: 106.7 | BK82: 108.6 | BL82: 110.3 | BM82: 110.9 | BN82: 111.2 | BO82: 111.2 | BP82: 105.7 | BQ82: 110 | BR82: 110.2 | BS82: 111.7 | BT82: 111 | BU82: 111.3 | BV82: 110.3 | BW82: 110.3 | BX82: 110.2 | BY82: 111.4 | BZ82: 114.1 | CA82: 113.3 | CB82: 113.9 | CC82: 117.9 | CD82: 115.1 | CE82: 113.5 | CF82: 110.9 | CG82: 112.5 | CH82: 110.8 | CI82: 112.8 | CJ82: 111.1 | CK82: 110.9 | CL82: 111.4 | CM82: 111.5 | CN82: 111.5
A83: 82 | B83: 1国内 | C83: PR01'PRCG20_2200150061 | D83: 国内類別1/_飲食料品 | E83: 品目/____即席みそ汁・インスタントスープ | R83: 98.8 | S83: 99.9 | T83: 99.9 | U83: 100.1 | V83: 99.2 | W83: 100.7 | X83: 100.7 | Y83: 100.6 | Z83: 99.9 | AA83: 100 | AB83: 100 | AC83: 100.4 | AD83: 98.7 | AE83: 99.5 | AF83: 98.9 | AG83: 101.4 | AH83: 99.7 | AI83: 100.9 | AJ83: 100.6 | AK83: 101 | AL83: 100.7 | AM83: 100.8 | AN83: 100.4 | AO83: 100.4 | AP83: 100.3 | AQ83: 100.1 | AR83: 100.8 | AS83: 101.1 | AT83: 100.5 | AU83: 101.4 | AV83: 102.3 | AW83: 101.8 | AX83: 102.2 | AY83: 101.7 | AZ83: 103.5 | BA83: 104 | BB83: 104.4 | BC83: 104.1 | BD83: 104.8 | BE83: 108.2 | BF83: 108.3 | BG83: 109.9 | BH83: 111.2 | BI83: 111.6 | BJ83: 111.8 | BK83: 112.5 | BL83: 112.6 | BM83: 112.8 | BN83: 113.1 | BO83: 113.4 | BP83: 113 | BQ83: 115.9 | BR83: 115.8 | BS83: 116 | BT83: 116 | BU83: 115.5 | BV83: 115.7 | BW83: 115.9 | BX83: 115.9 | BY83: 115.9 | BZ83: 117.1 | CA83: 117.9 | CB83: 121.1 | CC83: 121.3 | CD83: 121.5 | CE83: 121.5 | CF83: 121.5 | CG83: 121.5 | CH83: 121.2 | CI83: 121.6 | CJ83: 121.4 | CK83: 121.2 | CL83: 120.9 | CM83: 121.3 | CN83: 121.2
A84: 83 | B84: 1国内 | C84: PR01'PRCG20_2200150062 | D84: 国内類別1/_飲食料品 | E84: 品目/____茶づけ・ふりかけ | R84: 97.8 | S84: 101 | T84: 99.6 | U84: 100.8 | V84: 97.4 | W84: 99.9 | X84: 100.7 | Y84: 100.2 | Z84: 99.9 | AA84: 99.8 | AB84: 100.1 | AC84: 102.9 | AD84: 98.7 | AE84: 101.8 | AF84: 100.2 | AG84: 101.7 | AH84: 98.3 | AI84: 100.6 | AJ84: 100.7 | AK84: 100.4 | AL84: 99.5 | AM84: 100.4 | AN84: 100.2 | AO84: 101.9 | AP84: 98.6 | AQ84: 101 | AR84: 100.4 | AS84: 101.6 | AT84: 99.9 | AU84: 100.6 | AV84: 101 | AW84: 101 | AX84: 100.1 | AY84: 99.9 | AZ84: 107.8 | BA84: 107.6 | BB84: 104.9 | BC84: 106 | BD84: 106.4 | BE84: 106.6 | BF84: 104.5 | BG84: 106.3 | BH84: 110.4 | BI84: 110.3 | BJ84: 110 | BK84: 110.1 | BL84: 110.2 | BM84: 111.2 | BN84: 109.4 | BO84: 118 | BP84: 117.2 | BQ84: 118.5 | BR84: 116.7 | BS84: 117.6 | BT84: 117.8 | BU84: 117.8 | BV84: 117.1 | BW84: 119.8 | BX84: 120.6 | BY84: 122.3 | BZ84: 118.6 | CA84: 121.2 | CB84: 118.5 | CC84: 121.4 | CD84: 119 | CE84: 123.8 | CF84: 124.5 | CG84: 124.5 | CH84: 123.4 | CI84: 124.1 | CJ84: 123.1 | CK84: 127.3 | CL84: 121.5 | CM84: 124.6 | CN84: 124.6
A85: 84 | B85: 1国内 | C85: PR01'PRCG20_2200150063 | D85: 国内類別1/_飲食料品 | E85: 品目/____納豆 | R85: 100.3 | S85: 96.4 | T85: 97.4 | U85: 101.7 | V85: 100.3 | W85: 100.5 | X85: 100.5 | Y85: 96.9 | Z85: 101.2 | AA85: 101.3 | AB85: 101.3 | AC85: 102.3 | AD85: 102.9 | AE85: 98.1 | AF85: 102.2 | AG85: 100.7 | AH85: 100.1 | AI85: 99.4 | AJ85: 99.9 | AK85: 96.7 | AL85: 100.5 | AM85: 99.8 | AN85: 99.1 | AO85: 100.3 | AP85: 100.3 | AQ85: 96.2 | AR85: 99.9 | AS85: 100.2 | AT85: 99.5 | AU85: 100.8 | AV85: 99.8 | AW85: 95.4 | AX85: 99.1 | AY85: 102.5 | AZ85: 101.3 | BA85: 102.5 | BB85: 101.4 | BC85: 95.4 | BD85: 105.5 | BE85: 107 | BF85: 102.6 | BG85: 105.5 | BH85: 106.7 | BI85: 101.4 | BJ85: 106.2 | BK85: 106.2 | BL85: 105.8 | BM85: 106.3 | BN85: 106.3 | BO85: 100.9 | BP85: 111.9 | BQ85: 111.3 | BR85: 112 | BS85: 114.3 | BT85: 116 | BU85: 109.8 | BV85: 114.4 | BW85: 116.2 | BX85: 116.6 | BY85: 116.1 | BZ85: 119.7 | CA85: 115.1 | CB85: 121.9 | CC85: 115.3 | CD85: 132.1 | CE85: 131.8 | CF85: 118.6 | CG85: 117.9 | CH85: 117.7 | CI85: 118.1 | CJ85: 118.5 | CK85: 117.5 | CL85: 117.4 | CM85: 117.3 | CN85: 117.3
A86: 85 | B86: 1国内 | C86: PR01'PRCG20_2200150064 | D86: 国内類別1/_飲食料品 | E86: 品目/____パン粉 | R86: 100.1 | S86: 100.3 | T86: 99.9 | U86: 100.1 | V86: 99.7 | W86: 100.1 | X86: 100.1 | Y86: 100.3 | Z86: 100.4 | AA86: 100.3 | AB86: 100.6 | AC86: 98.1 | AD86: 97.8 | AE86: 97.9 | AF86: 97.9 | AG86: 98.1 | AH86: 97.5 | AI86: 97.9 | AJ86: 98.8 | AK86: 98.7 | AL86: 98.3 | AM86: 97.4 | AN86: 98.4 | AO86: 98.7 | AP86: 100.3 | AQ86: 100.9 | AR86: 102.1 | AS86: 102 | AT86: 101.1 | AU86: 101.6 | AV86: 106.6 | AW86: 106.4 | AX86: 108.4 | AY86: 107.8 | AZ86: 108.8 | BA86: 108.8 | BB86: 107.5 | BC86: 110 | BD86: 110.4 | BE86: 110.9 | BF86: 111.6 | BG86: 111.6 | BH86: 112 | BI86: 114.7 | BJ86: 115.2 | BK86: 115.5 | BL86: 115.5 | BM86: 122 | BN86: 120.7 | BO86: 119.4 | BP86: 119.5 | BQ86: 120.2 | BR86: 119.6 | BS86: 120.4 | BT86: 119.9 | BU86: 120.1 | BV86: 120.9 | BW86: 120.1 | BX86: 120 | BY86: 121 | BZ86: 119.9 | CA86: 120.4 | CB86: 120.9 | CC86: 122.9 | CD86: 121.9 | CE86: 120.7 | CF86: 122.2 | CG86: 122.7 | CH86: 120.7 | CI86: 122.2 | CJ86: 121 | CK86: 121.1 | CL86: 121.8 | CM86: 121.7 | CN86: 121.7
A87: 86 | B87: 1国内 | C87: PR01'PRCG20_2200130002 | D87: 国内類別1/_飲食料品 | E87: 小類別/__飲料 | R87: 99.9 | S87: 100 | T87: 100.2 | U87: 100 | V87: 99.9 | W87: 100.2 | X87: 100.2 | Y87: 100 | Z87: 100 | AA87: 99.9 | AB87: 99.8 | AC87: 100.1 | AD87: 99.7 | AE87: 100.1 | AF87: 100 | AG87: 100 | AH87: 99.8 | AI87: 99.9 | AJ87: 100.1 | AK87: 100 | AL87: 100.1 | AM87: 100.1 | AN87: 100.3 | AO87: 100.3 | AP87: 100.5 | AQ87: 100.5 | AR87: 100.8 | AS87: 101.3 | AT87: 101.3 | AU87: 101.2 | AV87: 101.3 | AW87: 101.5 | AX87: 101.7 | AY87: 104.9 | AZ87: 106 | BA87: 106.3 | BB87: 106.4 | BC87: 107.8 | BD87: 108 | BE87: 108.8 | BF87: 109.4 | BG87: 109.6 | BH87: 110.1 | BI87: 109.8 | BJ87: 110.4 | BK87: 111.8 | BL87: 112.2 | BM87: 112.1 | BN87: 111.1 | BO87: 111.4 | BP87: 111.6 | BQ87: 112 | BR87: 111.6 | BS87: 111.7 | BT87: 111.3 | BU87: 111.2 | BV87: 111.6 | BW87: 112.6 | BX87: 113.1 | BY87: 113.3 | BZ87: 113.9 | CA87: 113.9 | CB87: 114.1 | CC87: 116.3 | CD87: 117 | CE87: 117.1 | CF87: 117.9 | CG87: 117.9 | CH87: 118.3 | CI87: 119.5 | CJ87: 122.1 | CK87: 122.5 | CL87: 123 | CM87: 123.1 | CN87: 123.3
A88: 87 | B88: 1国内 | C88: PR01'PRCG20_2200140020 | D88: 国内類別1/_飲食料品 | E88: 商品群/___清酒 | R88: 98.4 | S88: 99.5 | T88: 100.1 | U88: 100.1 | V88: 100.3 | W88: 100.5 | X88: 101 | Y88: 100.5 | Z88: 101 | AA88: 100.1 | AB88: 99.7 | AC88: 98.8 | AD88: 97.9 | AE88: 99.4 | AF88: 100.3 | AG88: 99.7 | AH88: 97.8 | AI88: 99.2 | AJ88: 99.6 | AK88: 98.7 | AL88: 98.3 | AM88: 99 | AN88: 99.5 | AO88: 99.1 | AP88: 96.3 | AQ88: 99.1 | AR88: 99.7 | AS88: 100.1 | AT88: 98.4 | AU88: 99.4 | AV88: 101.5 | AW88: 100.4 | AX88: 100.2 | AY88: 107.2 | AZ88: 113.7 | BA88: 112.4 | BB88: 106.9 | BC88: 110.8 | BD88: 110.7 | BE88: 110.5 | BF88: 108.2 | BG88: 110.8 | BH88: 110.6 | BI88: 108.9 | BJ88: 109.2 | BK88: 111.4 | BL88: 111.9 | BM88: 110.7 | BN88: 114.5 | BO88: 116.9 | BP88: 116.5 | BQ88: 113.5 | BR88: 112.7 | BS88: 113.2 | BT88: 113.8 | BU88: 113 | BV88: 113.4 | BW88: 118.7 | BX88: 118.9 | BY88: 117.4 | BZ88: 117.1 | CA88: 118.9 | CB88: 119.1 | CC88: 114.6 | CD88: 113.6 | CE88: 113.1 | CF88: 115.5 | CG88: 113.3 | CH88: 115.5 | CI88: 116.3 | CJ88: 122.5 | CK88: 122.3 | CL88: 122.2 | CM88: 122.7 | CN88: 123.9
A89: 88 | B89: 1国内 | C89: PR01'PRCG20_2200150065 | D89: 国内類別1/_飲食料品 | E89: 品目/____清酒 | R89: 98.4 | S89: 99.5 | T89: 100.1 | U89: 100.1 | V89: 100.3 | W89: 100.5 | X89: 101 | Y89: 100.5 | Z89: 101 | AA89: 100.1 | AB89: 99.7 | AC89: 98.8 | AD89: 97.9 | AE89: 99.4 | AF89: 100.3 | AG89: 99.7 | AH89: 97.8 | AI89: 99.2 | AJ89: 99.6 | AK89: 98.7 | AL89: 98.3 | AM89: 99 | AN89: 99.5 | AO89: 99.1 | AP89: 96.3 | AQ89: 99.1 | AR89: 99.7 | AS89: 100.1 | AT89: 98.4 | AU89: 99.4 | AV89: 101.5 | AW89: 100.4 | AX89: 100.2 | AY89: 107.2 | AZ89: 113.7 | BA89: 112.4 | BB89: 106.9 | BC89: 110.8 | BD89: 110.7 | BE89: 110.5 | BF89: 108.2 | BG89: 110.8 | BH89: 110.6 | BI89: 108.9 | BJ89: 109.2 | BK89: 111.4 | BL89: 111.9 | BM89: 110.7 | BN89: 114.5 | BO89: 116.9 | BP89: 116.5 | BQ89: 113.5 | BR89: 112.7 | BS89: 113.2 | BT89: 113.8 | BU89: 113 | BV89: 113.4 | BW89: 118.7 | BX89: 118.9 | BY89: 117.4 | BZ89: 117.1 | CA89: 118.9 | CB89: 119.1 | CC89: 114.6 | CD89: 113.6 | CE89: 113.1 | CF89: 115.5 | CG89: 113.3 | CH89: 115.5 | CI89: 116.3 | CJ89: 122.5 | CK89: 122.3 | CL89: 122.2 | CM89: 122.7 | CN89: 123.9
A90: 89 | B90: 1国内 | C90: PR01'PRCG20_2200140021 | D90: 国内類別1/_飲食料品 | E90: 商品群/___ビール類 | R90: 99.9 | S90: 99.8 | T90: 99.9 | U90: 99.9 | V90: 99.9 | W90: 100 | X90: 99.9 | Y90: 99.9 | Z90: 99.9 | AA90: 100.2 | AB90: 100.4 | AC90: 100.3 | AD90: 100.1 | AE90: 100 | AF90: 100.3 | AG90: 100.3 | AH90: 100.2 | AI90: 100.3 | AJ90: 100.3 | AK90: 100.2 | AL90: 100.2 | AM90: 100.2 | AN90: 100.4 | AO90: 100.4 | AP90: 100.5 | AQ90: 100.1 | AR90: 100.3 | AS90: 100.4 | AT90: 100.4 | AU90: 100.4 | AV90: 100.3 | AW90: 100.5 | AX90: 100.4 | AY90: 104.3 | AZ90: 104.4 | BA90: 104.2 | BB90: 106.7 | BC90: 106.9 | BD90: 106.9 | BE90: 106.9 | BF90: 106.9 | BG90: 106.9 | BH90: 106.9 | BI90: 106.9 | BJ90: 106.9 | BK90: 109.5 | BL90: 110 | BM90: 109.9 | BN90: 109.9 | BO90: 109.9 | BP90: 110 | BQ90: 110 | BR90: 110 | BS90: 110 | BT90: 110 | BU90: 110 | BV90: 110 | BW90: 110 | BX90: 110 | BY90: 110.2 | BZ90: 109.9 | CA90: 109.8 | CB90: 110 | CC90: 115.6 | CD90: 115.6 | CE90: 115.6 | CF90: 115.6 | CG90: 115.8 | CH90: 115.8 | CI90: 115.8 | CJ90: 115.8 | CK90: 115.8 | CL90: 115.9 | CM90: 115.5 | CN90: 115.5
A91: 90 | B91: 1国内 | C91: PR01'PRCG20_2200150066 | D91: 国内類別1/_飲食料品 | E91: 品目/____ビール | R91: 101.1 | S91: 101 | T91: 101.2 | U91: 101.2 | V91: 101.2 | W91: 101.2 | X91: 101.2 | Y91: 101.2 | Z91: 101.2 | AA91: 96.5 | AB91: 96.6 | AC91: 96.5 | AD91: 96.4 | AE91: 96.4 | AF91: 96.5 | AG91: 96.6 | AH91: 96.6 | AI91: 96.5 | AJ91: 96.6 | AK91: 96.4 | AL91: 96.4 | AM91: 96.4 | AN91: 96.6 | AO91: 96.6 | AP91: 96.7 | AQ91: 96.4 | AR91: 96.6 | AS91: 96.6 | AT91: 96.7 | AU91: 96.6 | AV91: 96.6 | AW91: 96.6 | AX91: 96.5 | AY91: 99.6 | AZ91: 99.7 | BA91: 99.6 | BB91: 102.3 | BC91: 102.4 | BD91: 102.5 | BE91: 102.4 | BF91: 102.5 | BG91: 102.5 | BH91: 102.5 | BI91: 102.5 | BJ91: 102.4 | BK91: 102.8 | BL91: 101.9 | BM91: 101.8 | BN91: 101.7 | BO91: 101.8 | BP91: 101.9 | BQ91: 101.9 | BR91: 101.9 | BS91: 101.9 | BT91: 101.9 | BU91: 101.8 | BV91: 101.8 | BW91: 101.9 | BX91: 101.8 | BY91: 102.1 | BZ91: 101.8 | CA91: 101.7 | CB91: 101.8 | CC91: 106.6 | CD91: 106.6 | CE91: 106.6 | CF91: 106.6 | CG91: 106.5 | CH91: 106.5 | CI91: 106.5 | CJ91: 106.5 | CK91: 106.5 | CL91: 106.7 | CM91: 106.3 | CN91: 106.3
A92: 91 | B92: 1国内 | C92: PR01'PRCG20_2200150067 | D92: 国内類別1/_飲食料品 | E92: 品目/____発泡酒・新ジャンル | R92: 98.3 | S92: 98.1 | T92: 98.2 | U92: 98.2 | V92: 98.2 | W92: 98.3 | X92: 98.3 | Y92: 98.3 | Z92: 98.2 | AA92: 105.2 | AB92: 105.4 | AC92: 105.3 | AD92: 105 | AE92: 104.9 | AF92: 105.3 | AG92: 105.3 | AH92: 105.1 | AI92: 105.3 | AJ92: 105.1 | AK92: 105.2 | AL92: 105.2 | AM92: 105.2 | AN92: 105.3 | AO92: 105.3 | AP92: 105.4 | AQ92: 105 | AR92: 105.3 | AS92: 105.3 | AT92: 105.3 | AU92: 105.3 | AV92: 105.3 | AW92: 105.6 | AX92: 105.5 | AY92: 110.4 | AZ92: 110.5 | BA92: 110.4 | BB92: 112.6 | BC92: 112.8 | BD92: 112.8 | BE92: 112.8 | BF92: 112.8 | BG92: 112.8 | BH92: 112.8 | BI92: 112.7 | BJ92: 112.8 | BK92: 118.4 | BL92: 120.8 | BM92: 120.7 | BN92: 120.7 | BO92: 120.7 | BP92: 120.8 | BQ92: 120.8 | BR92: 120.8 | BS92: 120.8 | BT92: 120.8 | BU92: 120.8 | BV92: 120.8 | BW92: 120.8 | BX92: 120.8 | BY92: 120.8 | BZ92: 120.7 | CA92: 120.6 | CB92: 120.8 | CC92: 127.6 | CD92: 127.6 | CE92: 127.6 | CF92: 127.6 | CG92: 128 | CH92: 128 | CI92: 128 | CJ92: 128 | CK92: 128 | CL92: 128 | CM92: 127.7 | CN92: 127.7
A93: 92 | B93: 1国内 | C93: PR01'PRCG20_2200140022 | D93: 国内類別1/_飲食料品 | E93: 商品群/___ウイスキー類 | R93: 99.8 | S93: 99.8 | T93: 99.8 | U93: 99.8 | V93: 99.8 | W93: 99.8 | X93: 99.8 | Y93: 99.8 | Z93: 99.8 | AA93: 100.6 | AB93: 100.6 | AC93: 100.6 | AD93: 100.6 | AE93: 100.6 | AF93: 100.6 | AG93: 100.2 | AH93: 100.1 | AI93: 100.1 | AJ93: 100.1 | AK93: 100.1 | AL93: 100.1 | AM93: 100.1 | AN93: 100.1 | AO93: 100.1 | AP93: 100.1 | AQ93: 100.1 | AR93: 100.1 | AS93: 100.1 | AT93: 100.1 | AU93: 100.1 | AV93: 100.1 | AW93: 100.1 | AX93: 100.1 | AY93: 100.1 | AZ93: 100.1 | BA93: 100.1 | BB93: 100.1 | BC93: 100.1 | BD93: 100.1 | BE93: 100.1 | BF93: 100.1 | BG93: 100.1 | BH93: 115.1 | BI93: 115.1 | BJ93: 115.1 | BK93: 115.4 | BL93: 115.4 | BM93: 115.4 | BN93: 115.4 | BO93: 115.4 | BP93: 115.4 | BQ93: 115.4 | BR93: 115.4 | BS93: 115.4 | BT93: 115.4 | BU93: 114.8 | BV93: 114.8 | BW93: 114.8 | BX93: 114.8 | BY93: 114.8 | BZ93: 115.1 | CA93: 115.1 | CB93: 115.1 | CC93: 115.1 | CD93: 115.1 | CE93: 115.1 | CF93: 115.1 | CG93: 118.7 | CH93: 118.7 | CI93: 118.7 | CJ93: 118.7 | CK93: 118.7 | CL93: 118.7 | CM93: 118.7 | CN93: 118.7
A94: 93 | B94: 1国内 | C94: PR01'PRCG20_2200150068 | D94: 国内類別1/_飲食料品 | E94: 品目/____ウイスキー | R94: 99.8 | S94: 99.8 | T94: 99.8 | U94: 99.8 | V94: 99.8 | W94: 99.8 | X94: 99.8 | Y94: 99.8 | Z94: 99.8 | AA94: 100.6 | AB94: 100.6 | AC94: 100.6 | AD94: 100.6 | AE94: 100.6 | AF94: 100.6 | AG94: 100.2 | AH94: 100.1 | AI94: 100.1 | AJ94: 100.1 | AK94: 100.1 | AL94: 100.1 | AM94: 100.1 | AN94: 100.1 | AO94: 100.1 | AP94: 100.1 | AQ94: 100.1 | AR94: 100.1 | AS94: 100.1 | AT94: 100.1 | AU94: 100.1 | AV94: 100.1 | AW94: 100.1 | AX94: 100.1 | AY94: 100.1 | AZ94: 100.1 | BA94: 100.1 | BB94: 100.1 | BC94: 100.1 | BD94: 100.1 | BE94: 100.1 | BF94: 100.1 | BG94: 100.1 | BH94: 115.1 | BI94: 115.1 | BJ94: 115.1 | BK94: 115.4 | BL94: 115.4 | BM94: 115.4 | BN94: 115.4 | BO94: 115.4 | BP94: 115.4 | BQ94: 115.4 | BR94: 115.4 | BS94: 115.4 | BT94: 115.4 | BU94: 114.8 | BV94: 114.8 | BW94: 114.8 | BX94: 114.8 | BY94: 114.8 | BZ94: 115.1 | CA94: 115.1 | CB94: 115.1 | CC94: 115.1 | CD94: 115.1 | CE94: 115.1 | CF94: 115.1 | CG94: 118.7 | CH94: 118.7 | CI94: 118.7 | CJ94: 118.7 | CK94: 118.7 | CL94: 118.7 | CM94: 118.7 | CN94: 118.7
A95: 94 | B95: 1国内 | C95: PR01'PRCG20_2200140023 | D95: 国内類別1/_飲食料品 | E95: 商品群/___その他の酒類 | R95: 99.8 | S95: 99.9 | T95: 100.1 | U95: 100.4 | V95: 100.4 | W95: 100.3 | X95: 100.3 | Y95: 100.3 | Z95: 100.3 | AA95: 99.6 | AB95: 99.3 | AC95: 99.3 | AD95: 99.3 | AE95: 99.5 | AF95: 99.5 | AG95: 99.3 | AH95: 99.3 | AI95: 99.3 | AJ95: 99.3 | AK95: 99.3 | AL95: 99.3 | AM95: 99.3 | AN95: 99.3 | AO95: 99.3 | AP95: 99.5 | AQ95: 99.4 | AR95: 99.8 | AS95: 99.8 | AT95: 99.8 | AU95: 99.8 | AV95: 99.8 | AW95: 99.8 | AX95: 100.5 | AY95: 103.3 | AZ95: 103.8 | BA95: 104 | BB95: 102.4 | BC95: 104.5 | BD95: 105.1 | BE95: 105.8 | BF95: 105.8 | BG95: 105.8 | BH95: 106.1 | BI95: 106.1 | BJ95: 106.7 | BK95: 107 | BL95: 107 | BM95: 107 | BN95: 107 | BO95: 107 | BP95: 107.1 | BQ95: 107.1 | BR95: 107.1 | BS95: 107.1 | BT95: 107.1 | BU95: 107.1 | BV95: 106.9 | BW95: 106.9 | BX95: 106.9 | BY95: 106.9 | BZ95: 107 | CA95: 107 | CB95: 107.4 | CC95: 108.8 | CD95: 108.8 | CE95: 108.9 | CF95: 108.8 | CG95: 109.2 | CH95: 109.2 | CI95: 108.3 | CJ95: 108.3 | CK95: 109.2 | CL95: 109.2 | CM95: 109.2 | CN95: 109.2
A96: 95 | B96: 1国内 | C96: PR01'PRCG20_2200150069 | D96: 国内類別1/_飲食料品 | E96: 品目/____果実酒・チューハイ | R96: 99.8 | S96: 99.8 | T96: 99.8 | U96: 99.8 | V96: 99.8 | W96: 99.8 | X96: 99.8 | Y96: 99.8 | Z96: 99.8 | AA96: 100.7 | AB96: 100.7 | AC96: 100.7 | AD96: 100.7 | AE96: 101.2 | AF96: 101.2 | AG96: 100.7 | AH96: 100.7 | AI96: 100.7 | AJ96: 100.7 | AK96: 100.7 | AL96: 100.7 | AM96: 100.7 | AN96: 100.7 | AO96: 100.7 | AP96: 100.9 | AQ96: 100.9 | AR96: 101.8 | AS96: 101.8 | AT96: 101.8 | AU96: 101.8 | AV96: 101.8 | AW96: 101.7 | AX96: 101.7 | AY96: 106.7 | AZ96: 106.7 | BA96: 106.7 | BB96: 106.7 | BC96: 107.6 | BD96: 107.1 | BE96: 107.1 | BF96: 107.1 | BG96: 107.1 | BH96: 107.1 | BI96: 107.1 | BJ96: 107.1 | BK96: 108.1 | BL96: 108.1 | BM96: 108.1 | BN96: 108.1 | BO96: 108.1 | BP96: 108.1 | BQ96: 108.1 | BR96: 108.1 | BS96: 108.1 | BT96: 108.1 | BU96: 108.1 | BV96: 108.1 | BW96: 108.1 | BX96: 108.1 | BY96: 108.1 | BZ96: 108.1 | CA96: 108.1 | CB96: 109.5 | CC96: 113.1 | CD96: 113.1 | CE96: 113.1 | CF96: 113.1 | CG96: 114.1 | CH96: 114.1 | CI96: 114.1 | CJ96: 114.1 | CK96: 114.1 | CL96: 114.1 | CM96: 114.1 | CN96: 114.1
A97: 96 | B97: 1国内 | C97: PR01'PRCG20_2200150070 | D97: 国内類別1/_飲食料品 | E97: 品目/____焼ちゅう | R97: 99.8 | S97: 99.9 | T97: 100.2 | U97: 100.7 | V97: 100.7 | W97: 100.7 | X97: 100.7 | Y97: 100.6 | Z97: 100.6 | AA97: 98.9 | AB97: 98.5 | AC97: 98.5 | AD97: 98.5 | AE97: 98.5 | AF97: 98.5 | AG97: 98.5 | AH97: 98.5 | AI97: 98.5 | AJ97: 98.5 | AK97: 98.5 | AL97: 98.5 | AM97: 98.5 | AN97: 98.5 | AO97: 98.5 | AP97: 98.6 | AQ97: 98.5 | AR97: 98.6 | AS97: 98.5 | AT97: 98.7 | AU97: 98.7 | AV97: 98.6 | AW97: 98.7 | AX97: 99.8 | AY97: 101.2 | AZ97: 102 | BA97: 102.4 | BB97: 99.8 | BC97: 102.5 | BD97: 103.9 | BE97: 104.9 | BF97: 105 | BG97: 105 | BH97: 105.4 | BI97: 105.4 | BJ97: 106.4 | BK97: 106.3 | BL97: 106.3 | BM97: 106.3 | BN97: 106.3 | BO97: 106.4 | BP97: 106.4 | BQ97: 106.4 | BR97: 106.4 | BS97: 106.4 | BT97: 106.4 | BU97: 106.4 | BV97: 106.2 | BW97: 106.2 | BX97: 106.2 | BY97: 106.2 | BZ97: 106.3 | CA97: 106.3 | CB97: 106.1 | CC97: 106.1 | CD97: 106.2 | CE97: 106.3 | CF97: 106.2 | CG97: 106.2 | CH97: 106.2 | CI97: 104.8 | CJ97: 104.8 | CK97: 106.2 | CL97: 106.3 | CM97: 106.2 | CN97: 106.2
A98: 97 | B98: 1国内 | C98: PR01'PRCG20_2200140024 | D98: 国内類別1/_飲食料品 | E98: 商品群/___茶・コーヒー | R98: 100.9 | S98: 100.9 | T98: 100.4 | U98: 99.7 | V98: 100.4 | W98: 100 | X98: 99.7 | Y98: 99.1 | Z98: 100.2 | AA98: 99.8 | AB98: 99.4 | AC98: 99.5 | AD98: 100.1 | AE98: 99.5 | AF98: 99.5 | AG98: 98.4 | AH98: 99.6 | AI98: 99.1 | AJ98: 99.8 | AK98: 100 | AL98: 100.6 | AM98: 102.1 | AN98: 102.8 | AO98: 103.6 | AP98: 107.4 | AQ98: 107.9 | AR98: 108.8 | AS98: 108.7 | AT98: 109.8 | AU98: 108.6 | AV98: 109.7 | AW98: 109.9 | AX98: 110.9 | AY98: 112.3 | AZ98: 112.2 | BA98: 112.2 | BB98: 118.7 | BC98: 119.3 | BD98: 118.3 | BE98: 118 | BF98: 119.1 | BG98: 119 | BH98: 118.1 | BI98: 117.3 | BJ98: 118 | BK98: 118.7 | BL98: 118.6 | BM98: 119.2 | BN98: 118.6 | BO98: 116.8 | BP98: 117.9 | BQ98: 117.3 | BR98: 116.4 | BS98: 117 | BT98: 116.3 | BU98: 117.2 | BV98: 118.7 | BW98: 119 | BX98: 118.7 | BY98: 118.3 | BZ98: 120.2 | CA98: 120.4 | CB98: 123 | CC98: 131.6 | CD98: 133 | CE98: 134 | CF98: 142.2 | CG98: 142.9 | CH98: 143.9 | CI98: 144.6 | CJ98: 168 | CK98: 167.8 | CL98: 169.1 | CM98: 170.4 | CN98: 169.5
A99: 98 | B99: 1国内 | C99: PR01'PRCG20_2200150071 | D99: 国内類別1/_飲食料品 | E99: 品目/____荒茶 | R99: 109.5 | S99: 109.5 | T99: 109.5 | U99: 96.8 | V99: 96.8 | W99: 96.8 | X99: 96.8 | Y99: 96.8 | Z99: 96.8 | AA99: 96.8 | AB99: 96.8 | AC99: 96.8 | AD99: 96.8 | AE99: 96.8 | AF99: 96.8 | AG99: 113.3 | AH99: 113.3 | AI99: 113.3 | AJ99: 113.3 | AK99: 113.3 | AL99: 113.3 | AM99: 113.3 | AN99: 113.3 | AO99: 113.3 | AP99: 113.3 | AQ99: 113.3 | AR99: 113.3 | AS99: 114.6 | AT99: 114.6 | AU99: 114.6 | AV99: 114.6 | AW99: 114.6 | AX99: 114.6 | AY99: 114.6 | AZ99: 114.6 | BA99: 114.6 | BB99: 114.6 | BC99: 114.6 | BD99: 114.6 | BE99: 116 | BF99: 116 | BG99: 116 | BH99: 116 | BI99: 116 | BJ99: 116 | BK99: 116 | BL99: 116 | BM99: 116 | BN99: 116 | BO99: 116 | BP99: 116 | BQ99: 112.1 | BR99: 112.1 | BS99: 112.1 | BT99: 112.1 | BU99: 112.1 | BV99: 112.1 | BW99: 112.1 | BX99: 112.1 | BY99: 112.1 | BZ99: 112.1 | CA99: 112.1 | CB99: 112.1 | CC99: 164.1 | CD99: 164.1 | CE99: 164.1 | CF99: 164.1 | CG99: 164.1 | CH99: 164.1 | CI99: 164.1 | CJ99: 164.1 | CK99: 164.1 | CL99: 164.1 | CM99: 164.1 | CN99: 164.1
A100: 99 | B100: 1国内 | C100: PR01'PRCG20_2200150072 | D100: 国内類別1/_飲食料品 | E100: 品目/____緑茶 | R100: 99.7 | S100: 100.2 | T100: 100 | U100: 100.6 | V100: 100.4 | W100: 100.4 | X100: 100 | Y100: 99.8 | Z100: 99.6 | AA100: 99.7 | AB100: 99.8 | AC100: 99.7 | AD100: 99.3 | AE100: 99.5 | AF100: 99.3 | AG100: 94.9 | AH100: 94.5 | AI100: 94.3 | AJ100: 95.1 | AK100: 95.6 | AL100: 94.2 | AM100: 95.9 | AN100: 95.6 | AO100: 95.4 | AP100: 95.5 | AQ100: 95.2 | AR100: 95.6 | AS100: 95 | AT100: 95.6 | AU100: 95.3 | AV100: 95.6 | AW100: 95.2 | AX100: 95.3 | AY100: 99.1 | AZ100: 99.7 | BA100: 100 | BB100: 100.4 | BC100: 99.9 | BD100: 99.8 | BE100: 99.9 | BF100: 100.1 | BG100: 100.1 | BH100: 99.7 | BI100: 99.8 | BJ100: 99.7 | BK100: 100.2 | BL100: 99.6 | BM100: 99.1 | BN100: 98.9 | BO100: 99.1 | BP100: 99.4 | BQ100: 99 | BR100: 99 | BS100: 99.1 | BT100: 99.4 | BU100: 99.1 | BV100: 99 | BW100: 99.4 | BX100: 99 | BY100: 98.9 | BZ100: 98.9 | CA100: 98.7 | CB100: 98.7 | CC100: 99.3 | CD100: 99.2 | CE100: 99 | CF100: 99.4 | CG100: 99 | CH100: 99.2 | CI100: 99.9 | CJ100: 151.2 | CK100: 151.2 | CL100: 155.4 | CM100: 156.6 | CN100: 156.5
A101: 100 | B101: 1国内 | C101: PR01'PRCG20_2200150073 | D101: 国内類別1/_飲食料品 | E101: 品目/____コーヒー | R101: 99.5 | S101: 99.2 | T101: 98.1 | U101: 99.5 | V101: 101.4 | W101: 100.5 | X101: 100.3 | Y101: 99 | Z101: 101.9 | AA101: 100.9 | AB101: 99.7 | AC101: 100.1 | AD101: 102 | AE101: 100.3 | AF101: 100.5 | AG101: 97.9 | AH101: 101 | AI101: 100 | AJ101: 100.8 | AK101: 101 | AL101: 103.8 | AM101: 105.5 | AN101: 107.7 | AO101: 109.7 | AP101: 118.7 | AQ101: 120.4 | AR101: 122 | AS101: 122 | AT101: 123.9 | AU101: 121.3 | AV101: 123.7 | AW101: 124.6 | AX101: 126.8 | AY101: 126.1 | AZ101: 125.2 | BA101: 124.9 | BB101: 140.1 | BC101: 142 | BD101: 139.6 | BE101: 138.7 | BF101: 140.9 | BG101: 140.7 | BH101: 138.9 | BI101: 137 | BJ101: 138.8 | BK101: 139.9 | BL101: 140.3 | BM101: 142.2 | BN101: 141.1 | BO101: 136.5 | BP101: 138.8 | BQ101: 139.1 | BR101: 137 | BS101: 138.2 | BT101: 136.3 | BU101: 138.7 | BV101: 142.3 | BW101: 142.5 | BX101: 142.4 | BY101: 141.6 | BZ101: 146.1 | CA101: 146.8 | CB101: 152.9 | CC101: 157.5 | CD101: 160.8 | CE101: 163.4 | CF101: 182.7 | CG101: 184.9 | CH101: 187 | CI101: 187.9 | CJ101: 187.7 | CK101: 187.1 | CL101: 185.7 | CM101: 187.6 | CN101: 185.5
A102: 101 | B102: 1国内 | C102: PR01'PRCG20_2200140025 | D102: 国内類別1/_飲食料品 | E102: 商品群/___清涼飲料 | R102: 99.9 | S102: 100.1 | T102: 100.4 | U102: 100.1 | V102: 99.5 | W102: 100.3 | X102: 100.2 | Y102: 100 | Z102: 99.8 | AA102: 99.6 | AB102: 99.7 | AC102: 100.4 | AD102: 99.8 | AE102: 100.4 | AF102: 100 | AG102: 100.3 | AH102: 100 | AI102: 100.1 | AJ102: 100.3 | AK102: 100.4 | AL102: 100.5 | AM102: 100 | AN102: 100.1 | AO102: 100.2 | AP102: 100.1 | AQ102: 99.7 | AR102: 100 | AS102: 101.1 | AT102: 101.3 | AU102: 101 | AV102: 100.6 | AW102: 101.2 | AX102: 101.5 | AY102: 104.4 | AZ102: 105.8 | BA102: 106.8 | BB102: 105.5 | BC102: 107.4 | BD102: 107.7 | BE102: 109.6 | BF102: 111.2 | BG102: 111.3 | BH102: 111.8 | BI102: 111.4 | BJ102: 112.6 | BK102: 113.6 | BL102: 114 | BM102: 114.1 | BN102: 111 | BO102: 111.7 | BP102: 111.9 | BQ102: 113.5 | BR102: 112.9 | BS102: 113 | BT102: 111.9 | BU102: 111.6 | BV102: 112.2 | BW102: 113.8 | BX102: 114.9 | BY102: 115.8 | BZ102: 117 | CA102: 116.7 | CB102: 116.3 | CC102: 116.5 | CD102: 118.1 | CE102: 118.1 | CF102: 118 | CG102: 117.9 | CH102: 118.1 | CI102: 121.3 | CJ102: 121.5 | CK102: 122.4 | CL102: 123.2 | CM102: 123.4 | CN102: 123.9
A103: 102 | B103: 1国内 | C103: PR01'PRCG20_2200150074 | D103: 国内類別1/_飲食料品 | E103: 品目/____炭酸飲料 | R103: 98.9 | S103: 99.8 | T103: 99.2 | U103: 99.8 | V103: 100.7 | W103: 100.2 | X103: 99.9 | Y103: 100 | Z103: 100.5 | AA103: 100.7 | AB103: 100.4 | AC103: 99.8 | AD103: 99.8 | AE103: 100.6 | AF103: 100.3 | AG103: 100.4 | AH103: 100.4 | AI103: 100.1 | AJ103: 99 | AK103: 99.7 | AL103: 100.4 | AM103: 100.3 | AN103: 99.7 | AO103: 98.3 | AP103: 99.2 | AQ103: 99.5 | AR103: 99.9 | AS103: 100 | AT103: 98.7 | AU103: 99.2 | AV103: 97.7 | AW103: 98.3 | AX103: 99.1 | AY103: 104.3 | AZ103: 107.2 | BA103: 105.8 | BB103: 107.8 | BC103: 108.8 | BD103: 109.2 | BE103: 110.1 | BF103: 110.2 | BG103: 110.1 | BH103: 110.3 | BI103: 110.2 | BJ103: 110.4 | BK103: 111.2 | BL103: 112.2 | BM103: 109.8 | BN103: 110.9 | BO103: 112.1 | BP103: 111.7 | BQ103: 116.3 | BR103: 113.5 | BS103: 114 | BT103: 113.3 | BU103: 113.4 | BV103: 113.8 | BW103: 116.8 | BX103: 120.3 | BY103: 120.3 | BZ103: 121.5 | CA103: 121.6 | CB103: 121.2 | CC103: 120.8 | CD103: 120.6 | CE103: 120.8 | CF103: 119.7 | CG103: 119.5 | CH103: 119.6 | CI103: 124.7 | CJ103: 124.5 | CK103: 125.3 | CL103: 124.4 | CM103: 124 | CN103: 124.2
A104: 103 | B104: 1国内 | C104: PR01'PRCG20_2200150075 | D104: 国内類別1/_飲食料品 | E104: 品目/____ジュース | R104: 100.8 | S104: 100.7 | T104: 100.8 | U104: 100.1 | V104: 100.2 | W104: 100.1 | X104: 100.3 | Y104: 100.4 | Z104: 98.4 | AA104: 97.9 | AB104: 99.7 | AC104: 100.6 | AD104: 99.8 | AE104: 100.3 | AF104: 99.4 | AG104: 100.1 | AH104: 99.9 | AI104: 100.4 | AJ104: 100.3 | AK104: 99.8 | AL104: 99.7 | AM104: 99.6 | AN104: 100.4 | AO104: 100.2 | AP104: 100 | AQ104: 99.8 | AR104: 99.5 | AS104: 102.9 | AT104: 102.8 | AU104: 102.5 | AV104: 102.5 | AW104: 102.5 | AX104: 102.5 | AY104: 103.6 | AZ104: 105.2 | BA104: 105.4 | BB104: 105.7 | BC104: 109.2 | BD104: 110 | BE104: 117 | BF104: 117 | BG104: 117.8 | BH104: 117.7 | BI104: 117.8 | BJ104: 118 | BK104: 117.3 | BL104: 118 | BM104: 118.4 | BN104: 118.2 | BO104: 119.6 | BP104: 120.1 | BQ104: 123.1 | BR104: 126.7 | BS104: 124.4 | BT104: 124.7 | BU104: 124.1 | BV104: 124.4 | BW104: 126.4 | BX104: 128 | BY104: 127.5 | BZ104: 127.9 | CA104: 128.4 | CB104: 128.7 | CC104: 128.4 | CD104: 139.4 | CE104: 139 | CF104: 139 | CG104: 138.7 | CH104: 138.9 | CI104: 141 | CJ104: 142.1 | CK104: 142.6 | CL104: 142.6 | CM104: 142.7 | CN104: 143.5
A105: 104 | B105: 1国内 | C105: PR01'PRCG20_2200150076 | D105: 国内類別1/_飲食料品 | E105: 品目/____コーヒー飲料 | R105: 100.1 | S105: 100.7 | T105: 101.2 | U105: 100 | V105: 96.5 | W105: 99.8 | X105: 100.2 | Y105: 100.4 | Z105: 100 | AA105: 100.2 | AB105: 99.3 | AC105: 101.5 | AD105: 100.1 | AE105: 100 | AF105: 99.4 | AG105: 99.5 | AH105: 99.2 | AI105: 99.3 | AJ105: 101.8 | AK105: 101.8 | AL105: 101.7 | AM105: 97.9 | AN105: 99.8 | AO105: 100 | AP105: 100.3 | AQ105: 99.4 | AR105: 98.7 | AS105: 103.1 | AT105: 102.7 | AU105: 102.4 | AV105: 100.9 | AW105: 102.2 | AX105: 102.7 | AY105: 100.4 | AZ105: 102.3 | BA105: 104.8 | BB105: 101.4 | BC105: 104.5 | BD105: 104.1 | BE105: 102.6 | BF105: 112.7 | BG105: 114.7 | BH105: 115.5 | BI105: 115.5 | BJ105: 116 | BK105: 115.2 | BL105: 115.6 | BM105: 117.6 | BN105: 109.7 | BO105: 110.3 | BP105: 111.8 | BQ105: 115.8 | BR105: 113 | BS105: 116.7 | BT105: 113.8 | BU105: 111.1 | BV105: 113.8 | BW105: 113.7 | BX105: 113.4 | BY105: 113.1 | BZ105: 116.9 | CA105: 114.1 | CB105: 114.5 | CC105: 114.6 | CD105: 114.5 | CE105: 114.4 | CF105: 114.4 | CG105: 114.5 | CH105: 114.6 | CI105: 122.3 | CJ105: 122 | CK105: 124 | CL105: 125.4 | CM105: 125.2 | CN105: 125.2
A106: 105 | B106: 1国内 | C106: PR01'PRCG20_2200150077 | D106: 国内類別1/_飲食料品 | E106: 品目/____茶飲料 | R106: 99.8 | S106: 99.7 | T106: 101 | U106: 99.8 | V106: 99.4 | W106: 99.7 | X106: 99.6 | Y106: 100.2 | Z106: 99.9 | AA106: 100.2 | AB106: 99.6 | AC106: 101.1 | AD106: 100.2 | AE106: 100.3 | AF106: 99.4 | AG106: 100.4 | AH106: 99.8 | AI106: 100 | AJ106: 100.5 | AK106: 100.4 | AL106: 99.9 | AM106: 99.8 | AN106: 99.9 | AO106: 100.7 | AP106: 100.1 | AQ106: 99.5 | AR106: 100.4 | AS106: 100.3 | AT106: 101.1 | AU106: 100.1 | AV106: 100.5 | AW106: 100.9 | AX106: 100.6 | AY106: 103.9 | AZ106: 104.6 | BA106: 105.4 | BB106: 102.5 | BC106: 105.4 | BD106: 106.3 | BE106: 107.5 | BF106: 107.3 | BG106: 106.1 | BH106: 107.6 | BI106: 106.1 | BJ106: 107.8 | BK106: 110.5 | BL106: 110.4 | BM106: 110.4 | BN106: 105.5 | BO106: 106.5 | BP106: 106.9 | BQ106: 105.4 | BR106: 104.8 | BS106: 104.1 | BT106: 103 | BU106: 102.8 | BV106: 103.7 | BW106: 104.8 | BX106: 105.4 | BY106: 106.4 | BZ106: 108.4 | CA106: 107.9 | CB106: 107.4 | CC106: 107.7 | CD106: 108 | CE106: 107.9 | CF106: 108.3 | CG106: 107.5 | CH106: 107.7 | CI106: 108.2 | CJ106: 108.1 | CK106: 108.9 | CL106: 112.1 | CM106: 112.3 | CN106: 113.6
A107: 106 | B107: 1国内 | C107: PR01'PRCG20_2200150078 | D107: 国内類別1/_飲食料品 | E107: 品目/____ミネラルウォーター | R107: 100.5 | S107: 100.2 | T107: 100.9 | U107: 101.5 | V107: 101.2 | W107: 101 | X107: 100.6 | Y107: 100.5 | Z107: 100.4 | AA107: 98.1 | AB107: 98.3 | AC107: 96.9 | AD107: 102 | AE107: 101.7 | AF107: 101.6 | AG107: 100.8 | AH107: 100.3 | AI107: 101.3 | AJ107: 100.7 | AK107: 100.4 | AL107: 100.9 | AM107: 102.9 | AN107: 101.8 | AO107: 102.1 | AP107: 102.2 | AQ107: 99.3 | AR107: 99.7 | AS107: 101 | AT107: 102.5 | AU107: 101.7 | AV107: 101.2 | AW107: 101.5 | AX107: 104.8 | AY107: 114.2 | AZ107: 115.4 | BA107: 119.5 | BB107: 115.2 | BC107: 115 | BD107: 114.4 | BE107: 115.8 | BF107: 116.7 | BG107: 117.4 | BH107: 118.1 | BI107: 117.9 | BJ107: 120.8 | BK107: 125.7 | BL107: 124 | BM107: 124.1 | BN107: 116.2 | BO107: 115.9 | BP107: 115.4 | BQ107: 113.5 | BR107: 113.8 | BS107: 115.3 | BT107: 115.4 | BU107: 116 | BV107: 114.7 | BW107: 117.8 | BX107: 118.5 | BY107: 122.9 | BZ107: 121.5 | CA107: 122.2 | CB107: 121.7 | CC107: 121.7 | CD107: 121.5 | CE107: 121.7 | CF107: 122 | CG107: 121.8 | CH107: 121.9 | CI107: 125.4 | CJ107: 125.7 | CK107: 126.6 | CL107: 128.2 | CM107: 128.2 | CN107: 128.2
A108: 107 | B108: 1国内 | C108: PR01'PRCG20_2200150079 | D108: 国内類別1/_飲食料品 | E108: 品目/____スポーツドリンク | R108: 99.4 | S108: 99.7 | T108: 98.9 | U108: 99.9 | V108: 100 | W108: 102.3 | X108: 102 | Y108: 98.6 | Z108: 99.9 | AA108: 98.8 | AB108: 100 | AC108: 100.5 | AD108: 97 | AE108: 100.7 | AF108: 101.2 | AG108: 101.4 | AH108: 100.3 | AI108: 99.9 | AJ108: 99.8 | AK108: 100.3 | AL108: 100.9 | AM108: 101.1 | AN108: 100.1 | AO108: 100.7 | AP108: 99.5 | AQ108: 100.9 | AR108: 101.2 | AS108: 100 | AT108: 100.3 | AU108: 100.6 | AV108: 100.2 | AW108: 101.7 | AX108: 101.1 | AY108: 104.2 | AZ108: 105.5 | BA108: 107.5 | BB108: 106.8 | BC108: 107 | BD108: 107.3 | BE108: 108.8 | BF108: 109.2 | BG108: 108.6 | BH108: 108.3 | BI108: 108.4 | BJ108: 110.9 | BK108: 111.2 | BL108: 112.6 | BM108: 113.2 | BN108: 112.2 | BO108: 112.4 | BP108: 111.5 | BQ108: 114.3 | BR108: 113.5 | BS108: 112.6 | BT108: 109.8 | BU108: 111.3 | BV108: 111.8 | BW108: 114.1 | BX108: 115.6 | BY108: 118.3 | BZ108: 117.8 | CA108: 118.3 | CB108: 116.9 | CC108: 116.8 | CD108: 116.5 | CE108: 116 | CF108: 115.3 | CG108: 116.6 | CH108: 117.3 | CI108: 121.4 | CJ108: 123.1 | CK108: 123.5 | CL108: 121.7 | CM108: 123.1 | CN108: 123.2
A109: 108 | B109: 1国内 | C109: PR01'PRCG20_2200150080 | D109: 国内類別1/_飲食料品 | E109: 品目/____豆乳飲料 | R109: 99.5 | S109: 99.7 | T109: 100.2 | U109: 100.2 | V109: 100 | W109: 100.4 | X109: 99.6 | Y109: 99.5 | Z109: 99.7 | AA109: 100.6 | AB109: 100.1 | AC109: 100.6 | AD109: 100.4 | AE109: 100.5 | AF109: 101.1 | AG109: 100.4 | AH109: 100.8 | AI109: 100.8 | AJ109: 100.4 | AK109: 100.7 | AL109: 100.2 | AM109: 100.6 | AN109: 101.2 | AO109: 100.2 | AP109: 101.7 | AQ109: 101 | AR109: 101.4 | AS109: 102.4 | AT109: 102.8 | AU109: 104.9 | AV109: 105.7 | AW109: 105.3 | AX109: 105.7 | AY109: 106 | AZ109: 106.1 | BA109: 105.9 | BB109: 106.1 | BC109: 105.5 | BD109: 105.9 | BE109: 112.9 | BF109: 114.2 | BG109: 113.8 | BH109: 113.1 | BI109: 114.5 | BJ109: 113.7 | BK109: 112.3 | BL109: 115.4 | BM109: 115.6 | BN109: 116.8 | BO109: 116.2 | BP109: 116.2 | BQ109: 116 | BR109: 116.4 | BS109: 116.4 | BT109: 116.3 | BU109: 115.8 | BV109: 114.6 | BW109: 112.9 | BX109: 115 | BY109: 115.8 | BZ109: 115.3 | CA109: 115.7 | CB109: 115 | CC109: 114.4 | CD109: 112.9 | CE109: 113.8 | CF109: 115.8 | CG109: 116.2 | CH109: 115.5 | CI109: 116.5 | CJ109: 114.4 | CK109: 115.8 | CL109: 115.9 | CM109: 115.2 | CN109: 114.9
A110: 109 | B110: 1国内 | C110: PR01'PRCG20_2200150081 | D110: 国内類別1/_飲食料品 | E110: 品目/____ノンアルコール飲料 | R110: 100.1 | S110: 100.1 | T110: 100.1 | U110: 100.1 | V110: 100.1 | W110: 100.1 | X110: 100.1 | Y110: 99.9 | Z110: 99.9 | AA110: 99.9 | AB110: 99.9 | AC110: 99.9 | AD110: 99.9 | AE110: 99.9 | AF110: 99.9 | AG110: 99.9 | AH110: 99.9 | AI110: 99.9 | AJ110: 99.9 | AK110: 99.9 | AL110: 99.9 | AM110: 99.9 | AN110: 99.9 | AO110: 99.9 | AP110: 99.9 | AQ110: 99.9 | AR110: 99.9 | AS110: 99.9 | AT110: 99.9 | AU110: 99.9 | AV110: 99.9 | AW110: 100.1 | AX110: 100.1 | AY110: 105.2 | AZ110: 105.2 | BA110: 105.2 | BB110: 107 | BC110: 107 | BD110: 107 | BE110: 107 | BF110: 107 | BG110: 107 | BH110: 107 | BI110: 107 | BJ110: 107 | BK110: 107 | BL110: 107 | BM110: 107 | BN110: 107 | BO110: 107 | BP110: 107 | BQ110: 107 | BR110: 107 | BS110: 107 | BT110: 107 | BU110: 107 | BV110: 107 | BW110: 107 | BX110: 107 | BY110: 107 | BZ110: 107 | CA110: 107 | CB110: 107 | CC110: 114.4 | CD110: 114.4 | CE110: 114.4 | CF110: 114.4 | CG110: 114.9 | CH110: 114.9 | CI110: 114.9 | CJ110: 114.9 | CK110: 114.9 | CL110: 114.8 | CM110: 114.8 | CN110: 114.8
A111: 110 | B111: 1国内 | C111: PR01'PRCG20_2200140026 | D111: 国内類別1/_飲食料品 | E111: 商品群/___製氷 | R111: 100.3 | S111: 100.4 | T111: 100.3 | U111: 100.4 | V111: 99.9 | W111: 99.9 | X111: 99.5 | Y111: 99.8 | Z111: 99.9 | AA111: 99.9 | AB111: 99.9 | AC111: 99.9 | AD111: 99.9 | AE111: 100 | AF111: 99.9 | AG111: 99.6 | AH111: 100.2 | AI111: 99.8 | AJ111: 99.8 | AK111: 99.7 | AL111: 99.7 | AM111: 99.8 | AN111: 99.7 | AO111: 99.7 | AP111: 99.7 | AQ111: 99.6 | AR111: 99.7 | AS111: 99.7 | AT111: 99.7 | AU111: 99.6 | AV111: 100 | AW111: 99.9 | AX111: 99.8 | AY111: 101.1 | AZ111: 100.8 | BA111: 101 | BB111: 100.7 | BC111: 100.6 | BD111: 101.1 | BE111: 102 | BF111: 102.5 | BG111: 103.4 | BH111: 105.1 | BI111: 106.5 | BJ111: 106.3 | BK111: 105.9 | BL111: 105.9 | BM111: 105.3 | BN111: 105.3 | BO111: 105.3 | BP111: 105.6 | BQ111: 105.9 | BR111: 105.9 | BS111: 106 | BT111: 108.7 | BU111: 108.8 | BV111: 111.4 | BW111: 111.3 | BX111: 109.3 | BY111: 112.7 | BZ111: 113.1 | CA111: 112.6 | CB111: 113.2 | CC111: 113.6 | CD111: 114.2 | CE111: 115 | CF111: 115.1 | CG111: 115 | CH111: 115.2 | CI111: 115.2 | CJ111: 116 | CK111: 116.5 | CL111: 118.1 | CM111: 117.8 | CN111: 117.9
A112: 111 | B112: 1国内 | C112: PR01'PRCG20_2200150082 | D112: 国内類別1/_飲食料品 | E112: 品目/____人造氷 | R112: 100.3 | S112: 100.4 | T112: 100.3 | U112: 100.4 | V112: 99.9 | W112: 99.9 | X112: 99.5 | Y112: 99.8 | Z112: 99.9 | AA112: 99.9 | AB112: 99.9 | AC112: 99.9 | AD112: 99.9 | AE112: 100 | AF112: 99.9 | AG112: 99.6 | AH112: 100.2 | AI112: 99.8 | AJ112: 99.8 | AK112: 99.7 | AL112: 99.7 | AM112: 99.8 | AN112: 99.7 | AO112: 99.7 | AP112: 99.7 | AQ112: 99.6 | AR112: 99.7 | AS112: 99.7 | AT112: 99.7 | AU112: 99.6 | AV112: 100 | AW112: 99.9 | AX112: 99.8 | AY112: 101.1 | AZ112: 100.8 | BA112: 101 | BB112: 100.7 | BC112: 100.6 | BD112: 101.1 | BE112: 102 | BF112: 102.5 | BG112: 103.4 | BH112: 105.1 | BI112: 106.5 | BJ112: 106.3 | BK112: 105.9 | BL112: 105.9 | BM112: 105.3 | BN112: 105.3 | BO112: 105.3 | BP112: 105.6 | BQ112: 105.9 | BR112: 105.9 | BS112: 106 | BT112: 108.7 | BU112: 108.8 | BV112: 111.4 | BW112: 111.3 | BX112: 109.3 | BY112: 112.7 | BZ112: 113.1 | CA112: 112.6 | CB112: 113.2 | CC112: 113.6 | CD112: 114.2 | CE112: 115 | CF112: 115.1 | CG112: 115 | CH112: 115.2 | CI112: 115.2 | CJ112: 116 | CK112: 116.5 | CL112: 118.1 | CM112: 117.8 | CN112: 117.9
A113: 112 | B113: 1国内 | C113: PR01'PRCG20_2200130003 | D113: 国内類別1/_飲食料品 | E113: 小類別/__飼料・有機質肥料 | R113: 101.7 | S113: 102.3 | T113: 101.8 | U113: 100.2 | V113: 100.1 | W113: 100 | X113: 97.4 | Y113: 97.4 | Z113: 97.3 | AA113: 100.5 | AB113: 100.6 | AC113: 100.7 | AD113: 108.6 | AE113: 109.2 | AF113: 109.3 | AG113: 122.4 | AH113: 121.2 | AI113: 118.7 | AJ113: 133.7 | AK113: 133.5 | AL113: 131.8 | AM113: 129.5 | AN113: 130.4 | AO113: 128.8 | AP113: 135.3 | AQ113: 135.5 | AR113: 139.2 | AS113: 145.7 | AT113: 145.7 | AU113: 145.5 | AV113: 172.8 | AW113: 172.3 | AX113: 172.6 | AY113: 174.2 | AZ113: 172.6 | BA113: 173.9 | BB113: 172.7 | BC113: 173.3 | BD113: 174.7 | BE113: 168.4 | BF113: 168.6 | BG113: 168.9 | BH113: 164.1 | BI113: 166 | BJ113: 165.3 | BK113: 158.8 | BL113: 159 | BM113: 159 | BN113: 162.9 | BO113: 163.7 | BP113: 159.9 | BQ113: 154.2 | BR113: 153 | BS113: 151.7 | BT113: 158.3 | BU113: 158.3 | BV113: 157.5 | BW113: 147.8 | BX113: 148.1 | BY113: 145.8 | BZ113: 153.8 | CA113: 154.6 | CB113: 153 | CC113: 152.5 | CD113: 152.5 | CE113: 151.9 | CF113: 153.2 | CG113: 153.3 | CH113: 152.8 | CI113: 146.1 | CJ113: 145.5 | CK113: 146.3 | CL113: 154.8 | CM113: 156.3 | CN113: 156.3
